Workbook

Sheet Général
D3: Action clé n° 2: coopération en faveur de l’innovation et de l’échange des bonnes pratiques
D4: Renforcement des capacités dans le domaine de l’enseignement supérieur
B7: Avant de compléter ce tableau, veuillez lire attentivement les instructions disponibles sur
B8: APPEL A PROPOSITIONS 2017 – EAC/A03/2016 - Programme Erasmus+ (C2016/386/09)
B9: Guide du programme et instructions pour les candidats
B11: Action | E11: =IF(D11="","Veuillez sélectionner le type d'action",IF(OR(D11="Projet Conjoint",D11="Projet Structurel"),"","Erreur Type Action")) -> Veuillez sélectionner le type d'action
B12: Durée en nombre de mois | E12: =IF(D12="","Veuillez sélectionner la durée",IF(OR(D12=24,D12=36),"","Erreur durée")) -> Veuillez sélectionner la durée
B13: Acronyme du Projet | E13: =IF(D13="","Veuillez indiquer l'acronyme du projet","") -> Veuillez indiquer l'acronyme du projet
B14: Titre du Projet
B16: SUBVENTION UE DEMANDEE POUR LES ACTIVITES DU PROJET (en EUR)
B17: 1. Frais de personnel | D17: ='1. Frais de personnel'!D9 -> 0 | E17: ="Ne peut excéder 40% du total de A." -> Ne peut excéder 40% du total de A.
B18: 2. Frais de voyage | D18: ='2-3.Frais de voyage-séjour'!D8 -> 0
B19: 3. Frais de séjour | D19: ='2-3.Frais de voyage-séjour'!D9 -> 0
B20: 4. Equipement | D20: ='4. Equipement'!C4 -> 0 | E20: ="Ne peut excéder 30% du total de A." -> Ne peut excéder 30% du total de A.
B21: 5. Sous-traitance | D21: ='5. Sous-traitance'!C4 -> 0 | E21: ="Ne peut excéder 10% du total de A." -> Ne peut excéder 10% du total de A.
B22: A. Subvention pour les activités du projet | D22: =SUM(D17:D21) -> 0 | E22: ="Doit être supérieur ou égal à EUR 500.000,00 et inférieur ou égal à EUR 1.000.000,00" -> Doit être supérieur ou égal à EUR 500.000,00 et inférieur ou égal à EUR 1.000.000,00
B24: B. Subvention demandée pour le(s) Volet(s) Spéciale(s) Mobilité(s) | D24: =SUM(J24:J27) -> 0 | E24: Ne peut excéder 80% du total de A. | G24: Etudiants des Pays Partenaires | I24: Montants (en EUR) | J24: =SUMIF('B. Mobilité Spécial - Etudiant'!E:E,G24,'B. Mobilité Spécial - Etudiant'!N:N) -> 0 | K24: Nombre de Participant(s) | L24: =SUMIFS('B. Mobilité Spécial - Etudiant'!G:G,'B. Mobilité Spécial - Etudiant'!E:E,G24,'B. Mobilité Spécial - Etudiant'!O:O,"<>Erreur") -> 0
G25: Etudiants des Pays Programmes | J25: =SUMIF('B. Mobilité Spécial - Etudiant'!E:E,G25,'B. Mobilité Spécial - Etudiant'!N:N) -> 0 | L25: =SUMIFS('B. Mobilité Spécial - Etudiant'!G:G,'B. Mobilité Spécial - Etudiant'!E:E,G25,'B. Mobilité Spécial - Etudiant'!O:O,"<>Erreur") -> 0
G26: Personnel des Pays Partenaires | J26: =SUMIF('B. Mobilité Spécial - Personnel'!E:E,G26,'B. Mobilité Spécial - Personnel'!N:N) -> 0 | L26: =SUMIFS('B. Mobilité Spécial - Personnel'!G:G,'B. Mobilité Spécial - Personnel'!E:E,G26,'B. Mobilité Spécial - Personnel'!O:O,"<>Erreur") -> 0
G27: Personnel des Pays Programmes | J27: =SUMIF('B. Mobilité Spécial - Personnel'!E:E,G27,'B. Mobilité Spécial - Personnel'!N:N) -> 0 | L27: =SUMIFS('B. Mobilité Spécial - Personnel'!G:G,'B. Mobilité Spécial - Personnel'!E:E,G27,'B. Mobilité Spécial - Personnel'!O:O,"<>Erreur") -> 0
B29: Subvention demandée à l'Union Européenne (A + B) | D29: =D22+D24 -> 0
B31: DISTRIBUTION DE LA SUBVENTION PAR ORGANISATION (en EUR)
B32: Part. N° | C32: Nom du Partenaire | D32: Pays | E32: PR/PA | F32: 1. Frais de personnel | G32: 2. Frais de voyage | H32: 3. Frais de séjour | I32: 4. Equipement | J32: 5. Sous-traitance | K32: B. Volet Spécial Mobilité | L32: Total
B33: P1 | E33: =IFERROR(IF(D33<>"",VLOOKUP(D33,CountryType,2,FALSE),""),"Pays non trouvé") ->  | F33: =SUMIF('1. Frais de personnel'!C:C,B33,'1. Frais de personnel'!S:S) -> 0 | G33: =SUMIF('2-3.Frais de voyage-séjour'!C:C,B33,'2-3.Frais de voyage-séjour'!L:L) -> 0 | H33: =SUMIF('2-3.Frais de voyage-séjour'!C:C,B33,'2-3.Frais de voyage-séjour'!M:M) -> 0 | I33: =SUMIF('4. Equipement'!C:C,B33,'4. Equipement'!H:H) -> 0 | J33: =SUMIF('5. Sous-traitance'!C:C,B33,'5. Sous-traitance'!H:H) -> 0 | K33: =SUMIF('B. Mobilité Spécial - Etudiant'!B:B,B33,'B. Mobilité Spécial - Etudiant'!N:N)+SUMIF('B. Mobilité Spécial - Personnel'!B:B,B33,'B. Mobilité Spécial - Personnel'!N:N) -> 0 | L33: =SUM(F33:K33) -> 0
B34: P2 | F34: =SUMIF('1. Frais de personnel'!C:C,B34,'1. Frais de personnel'!S:S) -> 0 | G34: =SUMIF('2-3.Frais de voyage-séjour'!C:C,B34,'2-3.Frais de voyage-séjour'!L:L) -> 0 | H34: =SUMIF('2-3.Frais de voyage-séjour'!C:C,B34,'2-3.Frais de voyage-séjour'!M:M) -> 0 | I34: =SUMIF('4. Equipement'!C:C,B34,'4. Equipement'!H:H) -> 0 | J34: =SUMIF('5. Sous-traitance'!C:C,B34,'5. Sous-traitance'!H:H) -> 0 | K34: =SUMIF('B. Mobilité Spécial - Etudiant'!B:B,B34,'B. Mobilité Spécial - Etudiant'!N:N)+SUMIF('B. Mobilité Spécial - Personnel'!B:B,B34,'B. Mobilité Spécial - Personnel'!N:N) -> 0 | L34: =SUM(F34:K34) -> 0
B35: P3 | F35: =SUMIF('1. Frais de personnel'!C:C,B35,'1. Frais de personnel'!S:S) -> 0 | G35: =SUMIF('2-3.Frais de voyage-séjour'!C:C,B35,'2-3.Frais de voyage-séjour'!L:L) -> 0 | H35: =SUMIF('2-3.Frais de voyage-séjour'!C:C,B35,'2-3.Frais de voyage-séjour'!M:M) -> 0 | I35: =SUMIF('4. Equipement'!C:C,B35,'4. Equipement'!H:H) -> 0 | J35: =SUMIF('5. Sous-traitance'!C:C,B35,'5. Sous-traitance'!H:H) -> 0 | K35: =SUMIF('B. Mobilité Spécial - Etudiant'!B:B,B35,'B. Mobilité Spécial - Etudiant'!N:N)+SUMIF('B. Mobilité Spécial - Personnel'!B:B,B35,'B. Mobilité Spécial - Personnel'!N:N) -> 0 | L35: 0
B36: P4 | F36: =SUMIF('1. Frais de personnel'!C:C,B36,'1. Frais de personnel'!S:S) -> 0 | G36: =SUMIF('2-3.Frais de voyage-séjour'!C:C,B36,'2-3.Frais de voyage-séjour'!L:L) -> 0 | H36: =SUMIF('2-3.Frais de voyage-séjour'!C:C,B36,'2-3.Frais de voyage-séjour'!M:M) -> 0 | I36: =SUMIF('4. Equipement'!C:C,B36,'4. Equipement'!H:H) -> 0 | J36: =SUMIF('5. Sous-traitance'!C:C,B36,'5. Sous-traitance'!H:H) -> 0 | K36: =SUMIF('B. Mobilité Spécial - Etudiant'!B:B,B36,'B. Mobilité Spécial - Etudiant'!N:N)+SUMIF('B. Mobilité Spécial - Personnel'!B:B,B36,'B. Mobilité Spécial - Personnel'!N:N) -> 0 | L36: 0
B37: P5 | F37: =SUMIF('1. Frais de personnel'!C:C,B37,'1. Frais de personnel'!S:S) -> 0 | G37: =SUMIF('2-3.Frais de voyage-séjour'!C:C,B37,'2-3.Frais de voyage-séjour'!L:L) -> 0 | H37: =SUMIF('2-3.Frais de voyage-séjour'!C:C,B37,'2-3.Frais de voyage-séjour'!M:M) -> 0 | I37: =SUMIF('4. Equipement'!C:C,B37,'4. Equipement'!H:H) -> 0 | J37: =SUMIF('5. Sous-traitance'!C:C,B37,'5. Sous-traitance'!H:H) -> 0 | K37: =SUMIF('B. Mobilité Spécial - Etudiant'!B:B,B37,'B. Mobilité Spécial - Etudiant'!N:N)+SUMIF('B. Mobilité Spécial - Personnel'!B:B,B37,'B. Mobilité Spécial - Personnel'!N:N) -> 0 | L37: 0
B38: P6 | F38: =SUMIF('1. Frais de personnel'!C:C,B38,'1. Frais de personnel'!S:S) -> 0 | G38: =SUMIF('2-3.Frais de voyage-séjour'!C:C,B38,'2-3.Frais de voyage-séjour'!L:L) -> 0 | H38: =SUMIF('2-3.Frais de voyage-séjour'!C:C,B38,'2-3.Frais de voyage-séjour'!M:M) -> 0 | I38: =SUMIF('4. Equipement'!C:C,B38,'4. Equipement'!H:H) -> 0 | J38: =SUMIF('5. Sous-traitance'!C:C,B38,'5. Sous-traitance'!H:H) -> 0 | K38: =SUMIF('B. Mobilité Spécial - Etudiant'!B:B,B38,'B. Mobilité Spécial - Etudiant'!N:N)+SUMIF('B. Mobilité Spécial - Personnel'!B:B,B38,'B. Mobilité Spécial - Personnel'!N:N) -> 0 | L38: 0
B39: P7 | F39: =SUMIF('1. Frais de personnel'!C:C,B39,'1. Frais de personnel'!S:S) -> 0 | G39: =SUMIF('2-3.Frais de voyage-séjour'!C:C,B39,'2-3.Frais de voyage-séjour'!L:L) -> 0 | H39: =SUMIF('2-3.Frais de voyage-séjour'!C:C,B39,'2-3.Frais de voyage-séjour'!M:M) -> 0 | I39: =SUMIF('4. Equipement'!C:C,B39,'4. Equipement'!H:H) -> 0 | J39: =SUMIF('5. Sous-traitance'!C:C,B39,'5. Sous-traitance'!H:H) -> 0 | K39: =SUMIF('B. Mobilité Spécial - Etudiant'!B:B,B39,'B. Mobilité Spécial - Etudiant'!N:N)+SUMIF('B. Mobilité Spécial - Personnel'!B:B,B39,'B. Mobilité Spécial - Personnel'!N:N) -> 0 | L39: 0
B40: P8 | F40: =SUMIF('1. Frais de personnel'!C:C,B40,'1. Frais de personnel'!S:S) -> 0 | G40: =SUMIF('2-3.Frais de voyage-séjour'!C:C,B40,'2-3.Frais de voyage-séjour'!L:L) -> 0 | H40: =SUMIF('2-3.Frais de voyage-séjour'!C:C,B40,'2-3.Frais de voyage-séjour'!M:M) -> 0 | I40: =SUMIF('4. Equipement'!C:C,B40,'4. Equipement'!H:H) -> 0 | J40: =SUMIF('5. Sous-traitance'!C:C,B40,'5. Sous-traitance'!H:H) -> 0 | K40: =SUMIF('B. Mobilité Spécial - Etudiant'!B:B,B40,'B. Mobilité Spécial - Etudiant'!N:N)+SUMIF('B. Mobilité Spécial - Personnel'!B:B,B40,'B. Mobilité Spécial - Personnel'!N:N) -> 0 | L40: 0
B41: P9 | F41: =SUMIF('1. Frais de personnel'!C:C,B41,'1. Frais de personnel'!S:S) -> 0 | G41: =SUMIF('2-3.Frais de voyage-séjour'!C:C,B41,'2-3.Frais de voyage-séjour'!L:L) -> 0 | H41: =SUMIF('2-3.Frais de voyage-séjour'!C:C,B41,'2-3.Frais de voyage-séjour'!M:M) -> 0 | I41: =SUMIF('4. Equipement'!C:C,B41,'4. Equipement'!H:H) -> 0 | J41: =SUMIF('5. Sous-traitance'!C:C,B41,'5. Sous-traitance'!H:H) -> 0 | K41: =SUMIF('B. Mobilité Spécial - Etudiant'!B:B,B41,'B. Mobilité Spécial - Etudiant'!N:N)+SUMIF('B. Mobilité Spécial - Personnel'!B:B,B41,'B. Mobilité Spécial - Personnel'!N:N) -> 0 | L41: 0
B42: P10 | F42: =SUMIF('1. Frais de personnel'!C:C,B42,'1. Frais de personnel'!S:S) -> 0 | G42: =SUMIF('2-3.Frais de voyage-séjour'!C:C,B42,'2-3.Frais de voyage-séjour'!L:L) -> 0 | H42: =SUMIF('2-3.Frais de voyage-séjour'!C:C,B42,'2-3.Frais de voyage-séjour'!M:M) -> 0 | I42: =SUMIF('4. Equipement'!C:C,B42,'4. Equipement'!H:H) -> 0 | J42: =SUMIF('5. Sous-traitance'!C:C,B42,'5. Sous-traitance'!H:H) -> 0 | K42: =SUMIF('B. Mobilité Spécial - Etudiant'!B:B,B42,'B. Mobilité Spécial - Etudiant'!N:N)+SUMIF('B. Mobilité Spécial - Personnel'!B:B,B42,'B. Mobilité Spécial - Personnel'!N:N) -> 0 | L42: 0
B43: P11 | F43: =SUMIF('1. Frais de personnel'!C:C,B43,'1. Frais de personnel'!S:S) -> 0 | G43: =SUMIF('2-3.Frais de voyage-séjour'!C:C,B43,'2-3.Frais de voyage-séjour'!L:L) -> 0 | H43: =SUMIF('2-3.Frais de voyage-séjour'!C:C,B43,'2-3.Frais de voyage-séjour'!M:M) -> 0 | I43: =SUMIF('4. Equipement'!C:C,B43,'4. Equipement'!H:H) -> 0 | J43: =SUMIF('5. Sous-traitance'!C:C,B43,'5. Sous-traitance'!H:H) -> 0 | K43: =SUMIF('B. Mobilité Spécial - Etudiant'!B:B,B43,'B. Mobilité Spécial - Etudiant'!N:N)+SUMIF('B. Mobilité Spécial - Personnel'!B:B,B43,'B. Mobilité Spécial - Personnel'!N:N) -> 0 | L43: 0
B44: P12 | F44: =SUMIF('1. Frais de personnel'!C:C,B44,'1. Frais de personnel'!S:S) -> 0 | G44: =SUMIF('2-3.Frais de voyage-séjour'!C:C,B44,'2-3.Frais de voyage-séjour'!L:L) -> 0 | H44: =SUMIF('2-3.Frais de voyage-séjour'!C:C,B44,'2-3.Frais de voyage-séjour'!M:M) -> 0 | I44: =SUMIF('4. Equipement'!C:C,B44,'4. Equipement'!H:H) -> 0 | J44: =SUMIF('5. Sous-traitance'!C:C,B44,'5. Sous-traitance'!H:H) -> 0 | K44: =SUMIF('B. Mobilité Spécial - Etudiant'!B:B,B44,'B. Mobilité Spécial - Etudiant'!N:N)+SUMIF('B. Mobilité Spécial - Personnel'!B:B,B44,'B. Mobilité Spécial - Personnel'!N:N) -> 0 | L44: 0
B45: P13 | F45: =SUMIF('1. Frais de personnel'!C:C,B45,'1. Frais de personnel'!S:S) -> 0 | G45: =SUMIF('2-3.Frais de voyage-séjour'!C:C,B45,'2-3.Frais de voyage-séjour'!L:L) -> 0 | H45: =SUMIF('2-3.Frais de voyage-séjour'!C:C,B45,'2-3.Frais de voyage-séjour'!M:M) -> 0 | I45: =SUMIF('4. Equipement'!C:C,B45,'4. Equipement'!H:H) -> 0 | J45: =SUMIF('5. Sous-traitance'!C:C,B45,'5. Sous-traitance'!H:H) -> 0 | K45: =SUMIF('B. Mobilité Spécial - Etudiant'!B:B,B45,'B. Mobilité Spécial - Etudiant'!N:N)+SUMIF('B. Mobilité Spécial - Personnel'!B:B,B45,'B. Mobilité Spécial - Personnel'!N:N) -> 0 | L45: 0
B46: P14 | F46: =SUMIF('1. Frais de personnel'!C:C,B46,'1. Frais de personnel'!S:S) -> 0 | G46: =SUMIF('2-3.Frais de voyage-séjour'!C:C,B46,'2-3.Frais de voyage-séjour'!L:L) -> 0 | H46: =SUMIF('2-3.Frais de voyage-séjour'!C:C,B46,'2-3.Frais de voyage-séjour'!M:M) -> 0 | I46: =SUMIF('4. Equipement'!C:C,B46,'4. Equipement'!H:H) -> 0 | J46: =SUMIF('5. Sous-traitance'!C:C,B46,'5. Sous-traitance'!H:H) -> 0 | K46: =SUMIF('B. Mobilité Spécial - Etudiant'!B:B,B46,'B. Mobilité Spécial - Etudiant'!N:N)+SUMIF('B. Mobilité Spécial - Personnel'!B:B,B46,'B. Mobilité Spécial - Personnel'!N:N) -> 0 | L46: 0
B47: P15 | F47: =SUMIF('1. Frais de personnel'!C:C,B47,'1. Frais de personnel'!S:S) -> 0 | G47: =SUMIF('2-3.Frais de voyage-séjour'!C:C,B47,'2-3.Frais de voyage-séjour'!L:L) -> 0 | H47: =SUMIF('2-3.Frais de voyage-séjour'!C:C,B47,'2-3.Frais de voyage-séjour'!M:M) -> 0 | I47: =SUMIF('4. Equipement'!C:C,B47,'4. Equipement'!H:H) -> 0 | J47: =SUMIF('5. Sous-traitance'!C:C,B47,'5. Sous-traitance'!H:H) -> 0 | K47: =SUMIF('B. Mobilité Spécial - Etudiant'!B:B,B47,'B. Mobilité Spécial - Etudiant'!N:N)+SUMIF('B. Mobilité Spécial - Personnel'!B:B,B47,'B. Mobilité Spécial - Personnel'!N:N) -> 0 | L47: 0
B48: P16 | F48: =SUMIF('1. Frais de personnel'!C:C,B48,'1. Frais de personnel'!S:S) -> 0 | G48: =SUMIF('2-3.Frais de voyage-séjour'!C:C,B48,'2-3.Frais de voyage-séjour'!L:L) -> 0 | H48: =SUMIF('2-3.Frais de voyage-séjour'!C:C,B48,'2-3.Frais de voyage-séjour'!M:M) -> 0 | I48: =SUMIF('4. Equipement'!C:C,B48,'4. Equipement'!H:H) -> 0 | J48: =SUMIF('5. Sous-traitance'!C:C,B48,'5. Sous-traitance'!H:H) -> 0 | K48: =SUMIF('B. Mobilité Spécial - Etudiant'!B:B,B48,'B. Mobilité Spécial - Etudiant'!N:N)+SUMIF('B. Mobilité Spécial - Personnel'!B:B,B48,'B. Mobilité Spécial - Personnel'!N:N) -> 0 | L48: 0
B49: P17 | F49: =SUMIF('1. Frais de personnel'!C:C,B49,'1. Frais de personnel'!S:S) -> 0 | G49: =SUMIF('2-3.Frais de voyage-séjour'!C:C,B49,'2-3.Frais de voyage-séjour'!L:L) -> 0 | H49: =SUMIF('2-3.Frais de voyage-séjour'!C:C,B49,'2-3.Frais de voyage-séjour'!M:M) -> 0 | I49: =SUMIF('4. Equipement'!C:C,B49,'4. Equipement'!H:H) -> 0 | J49: =SUMIF('5. Sous-traitance'!C:C,B49,'5. Sous-traitance'!H:H) -> 0 | K49: =SUMIF('B. Mobilité Spécial - Etudiant'!B:B,B49,'B. Mobilité Spécial - Etudiant'!N:N)+SUMIF('B. Mobilité Spécial - Personnel'!B:B,B49,'B. Mobilité Spécial - Personnel'!N:N) -> 0 | L49: 0
B50: P18 | F50: =SUMIF('1. Frais de personnel'!C:C,B50,'1. Frais de personnel'!S:S) -> 0 | G50: =SUMIF('2-3.Frais de voyage-séjour'!C:C,B50,'2-3.Frais de voyage-séjour'!L:L) -> 0 | H50: =SUMIF('2-3.Frais de voyage-séjour'!C:C,B50,'2-3.Frais de voyage-séjour'!M:M) -> 0 | I50: =SUMIF('4. Equipement'!C:C,B50,'4. Equipement'!H:H) -> 0 | J50: =SUMIF('5. Sous-traitance'!C:C,B50,'5. Sous-traitance'!H:H) -> 0 | K50: =SUMIF('B. Mobilité Spécial - Etudiant'!B:B,B50,'B. Mobilité Spécial - Etudiant'!N:N)+SUMIF('B. Mobilité Spécial - Personnel'!B:B,B50,'B. Mobilité Spécial - Personnel'!N:N) -> 0 | L50: 0
B51: P19 | F51: =SUMIF('1. Frais de personnel'!C:C,B51,'1. Frais de personnel'!S:S) -> 0 | G51: =SUMIF('2-3.Frais de voyage-séjour'!C:C,B51,'2-3.Frais de voyage-séjour'!L:L) -> 0 | H51: =SUMIF('2-3.Frais de voyage-séjour'!C:C,B51,'2-3.Frais de voyage-séjour'!M:M) -> 0 | I51: =SUMIF('4. Equipement'!C:C,B51,'4. Equipement'!H:H) -> 0 | J51: =SUMIF('5. Sous-traitance'!C:C,B51,'5. Sous-traitance'!H:H) -> 0 | K51: =SUMIF('B. Mobilité Spécial - Etudiant'!B:B,B51,'B. Mobilité Spécial - Etudiant'!N:N)+SUMIF('B. Mobilité Spécial - Personnel'!B:B,B51,'B. Mobilité Spécial - Personnel'!N:N) -> 0 | L51: 0
B52: P20 | F52: =SUMIF('1. Frais de personnel'!C:C,B52,'1. Frais de personnel'!S:S) -> 0 | G52: =SUMIF('2-3.Frais de voyage-séjour'!C:C,B52,'2-3.Frais de voyage-séjour'!L:L) -> 0 | H52: =SUMIF('2-3.Frais de voyage-séjour'!C:C,B52,'2-3.Frais de voyage-séjour'!M:M) -> 0 | I52: =SUMIF('4. Equipement'!C:C,B52,'4. Equipement'!H:H) -> 0 | J52: =SUMIF('5. Sous-traitance'!C:C,B52,'5. Sous-traitance'!H:H) -> 0 | K52: =SUMIF('B. Mobilité Spécial - Etudiant'!B:B,B52,'B. Mobilité Spécial - Etudiant'!N:N)+SUMIF('B. Mobilité Spécial - Personnel'!B:B,B52,'B. Mobilité Spécial - Personnel'!N:N) -> 0 | L52: 0
B53: P21 | F53: =SUMIF('1. Frais de personnel'!C:C,B53,'1. Frais de personnel'!S:S) -> 0 | G53: =SUMIF('2-3.Frais de voyage-séjour'!C:C,B53,'2-3.Frais de voyage-séjour'!L:L) -> 0 | H53: =SUMIF('2-3.Frais de voyage-séjour'!C:C,B53,'2-3.Frais de voyage-séjour'!M:M) -> 0 | I53: =SUMIF('4. Equipement'!C:C,B53,'4. Equipement'!H:H) -> 0 | J53: =SUMIF('5. Sous-traitance'!C:C,B53,'5. Sous-traitance'!H:H) -> 0 | K53: =SUMIF('B. Mobilité Spécial - Etudiant'!B:B,B53,'B. Mobilité Spécial - Etudiant'!N:N)+SUMIF('B. Mobilité Spécial - Personnel'!B:B,B53,'B. Mobilité Spécial - Personnel'!N:N) -> 0 | L53: 0
B54: P22 | F54: =SUMIF('1. Frais de personnel'!C:C,B54,'1. Frais de personnel'!S:S) -> 0 | G54: =SUMIF('2-3.Frais de voyage-séjour'!C:C,B54,'2-3.Frais de voyage-séjour'!L:L) -> 0 | H54: =SUMIF('2-3.Frais de voyage-séjour'!C:C,B54,'2-3.Frais de voyage-séjour'!M:M) -> 0 | I54: =SUMIF('4. Equipement'!C:C,B54,'4. Equipement'!H:H) -> 0 | J54: =SUMIF('5. Sous-traitance'!C:C,B54,'5. Sous-traitance'!H:H) -> 0 | K54: =SUMIF('B. Mobilité Spécial - Etudiant'!B:B,B54,'B. Mobilité Spécial - Etudiant'!N:N)+SUMIF('B. Mobilité Spécial - Personnel'!B:B,B54,'B. Mobilité Spécial - Personnel'!N:N) -> 0 | L54: 0
B55: P23 | F55: =SUMIF('1. Frais de personnel'!C:C,B55,'1. Frais de personnel'!S:S) -> 0 | G55: =SUMIF('2-3.Frais de voyage-séjour'!C:C,B55,'2-3.Frais de voyage-séjour'!L:L) -> 0 | H55: =SUMIF('2-3.Frais de voyage-séjour'!C:C,B55,'2-3.Frais de voyage-séjour'!M:M) -> 0 | I55: =SUMIF('4. Equipement'!C:C,B55,'4. Equipement'!H:H) -> 0 | J55: =SUMIF('5. Sous-traitance'!C:C,B55,'5. Sous-traitance'!H:H) -> 0 | K55: =SUMIF('B. Mobilité Spécial - Etudiant'!B:B,B55,'B. Mobilité Spécial - Etudiant'!N:N)+SUMIF('B. Mobilité Spécial - Personnel'!B:B,B55,'B. Mobilité Spécial - Personnel'!N:N) -> 0 | L55: 0
B56: P24 | F56: =SUMIF('1. Frais de personnel'!C:C,B56,'1. Frais de personnel'!S:S) -> 0 | G56: =SUMIF('2-3.Frais de voyage-séjour'!C:C,B56,'2-3.Frais de voyage-séjour'!L:L) -> 0 | H56: =SUMIF('2-3.Frais de voyage-séjour'!C:C,B56,'2-3.Frais de voyage-séjour'!M:M) -> 0 | I56: =SUMIF('4. Equipement'!C:C,B56,'4. Equipement'!H:H) -> 0 | J56: =SUMIF('5. Sous-traitance'!C:C,B56,'5. Sous-traitance'!H:H) -> 0 | K56: =SUMIF('B. Mobilité Spécial - Etudiant'!B:B,B56,'B. Mobilité Spécial - Etudiant'!N:N)+SUMIF('B. Mobilité Spécial - Personnel'!B:B,B56,'B. Mobilité Spécial - Personnel'!N:N) -> 0 | L56: 0
B57: P25 | F57: =SUMIF('1. Frais de personnel'!C:C,B57,'1. Frais de personnel'!S:S) -> 0 | G57: =SUMIF('2-3.Frais de voyage-séjour'!C:C,B57,'2-3.Frais de voyage-séjour'!L:L) -> 0 | H57: =SUMIF('2-3.Frais de voyage-séjour'!C:C,B57,'2-3.Frais de voyage-séjour'!M:M) -> 0 | I57: =SUMIF('4. Equipement'!C:C,B57,'4. Equipement'!H:H) -> 0 | J57: =SUMIF('5. Sous-traitance'!C:C,B57,'5. Sous-traitance'!H:H) -> 0 | K57: =SUMIF('B. Mobilité Spécial - Etudiant'!B:B,B57,'B. Mobilité Spécial - Etudiant'!N:N)+SUMIF('B. Mobilité Spécial - Personnel'!B:B,B57,'B. Mobilité Spécial - Personnel'!N:N) -> 0 | L57: 0
B58: P26 | F58: =SUMIF('1. Frais de personnel'!C:C,B58,'1. Frais de personnel'!S:S) -> 0 | G58: =SUMIF('2-3.Frais de voyage-séjour'!C:C,B58,'2-3.Frais de voyage-séjour'!L:L) -> 0 | H58: =SUMIF('2-3.Frais de voyage-séjour'!C:C,B58,'2-3.Frais de voyage-séjour'!M:M) -> 0 | I58: =SUMIF('4. Equipement'!C:C,B58,'4. Equipement'!H:H) -> 0 | J58: =SUMIF('5. Sous-traitance'!C:C,B58,'5. Sous-traitance'!H:H) -> 0 | K58: =SUMIF('B. Mobilité Spécial - Etudiant'!B:B,B58,'B. Mobilité Spécial - Etudiant'!N:N)+SUMIF('B. Mobilité Spécial - Personnel'!B:B,B58,'B. Mobilité Spécial - Personnel'!N:N) -> 0 | L58: 0
B59: P27 | F59: =SUMIF('1. Frais de personnel'!C:C,B59,'1. Frais de personnel'!S:S) -> 0 | G59: =SUMIF('2-3.Frais de voyage-séjour'!C:C,B59,'2-3.Frais de voyage-séjour'!L:L) -> 0 | H59: =SUMIF('2-3.Frais de voyage-séjour'!C:C,B59,'2-3.Frais de voyage-séjour'!M:M) -> 0 | I59: =SUMIF('4. Equipement'!C:C,B59,'4. Equipement'!H:H) -> 0 | J59: =SUMIF('5. Sous-traitance'!C:C,B59,'5. Sous-traitance'!H:H) -> 0 | K59: =SUMIF('B. Mobilité Spécial - Etudiant'!B:B,B59,'B. Mobilité Spécial - Etudiant'!N:N)+SUMIF('B. Mobilité Spécial - Personnel'!B:B,B59,'B. Mobilité Spécial - Personnel'!N:N) -> 0 | L59: 0
B60: P28 | F60: =SUMIF('1. Frais de personnel'!C:C,B60,'1. Frais de personnel'!S:S) -> 0 | G60: =SUMIF('2-3.Frais de voyage-séjour'!C:C,B60,'2-3.Frais de voyage-séjour'!L:L) -> 0 | H60: =SUMIF('2-3.Frais de voyage-séjour'!C:C,B60,'2-3.Frais de voyage-séjour'!M:M) -> 0 | I60: =SUMIF('4. Equipement'!C:C,B60,'4. Equipement'!H:H) -> 0 | J60: =SUMIF('5. Sous-traitance'!C:C,B60,'5. Sous-traitance'!H:H) -> 0 | K60: =SUMIF('B. Mobilité Spécial - Etudiant'!B:B,B60,'B. Mobilité Spécial - Etudiant'!N:N)+SUMIF('B. Mobilité Spécial - Personnel'!B:B,B60,'B. Mobilité Spécial - Personnel'!N:N) -> 0 | L60: 0
B61: P29 | F61: =SUMIF('1. Frais de personnel'!C:C,B61,'1. Frais de personnel'!S:S) -> 0 | G61: =SUMIF('2-3.Frais de voyage-séjour'!C:C,B61,'2-3.Frais de voyage-séjour'!L:L) -> 0 | H61: =SUMIF('2-3.Frais de voyage-séjour'!C:C,B61,'2-3.Frais de voyage-séjour'!M:M) -> 0 | I61: =SUMIF('4. Equipement'!C:C,B61,'4. Equipement'!H:H) -> 0 | J61: =SUMIF('5. Sous-traitance'!C:C,B61,'5. Sous-traitance'!H:H) -> 0 | K61: =SUMIF('B. Mobilité Spécial - Etudiant'!B:B,B61,'B. Mobilité Spécial - Etudiant'!N:N)+SUMIF('B. Mobilité Spécial - Personnel'!B:B,B61,'B. Mobilité Spécial - Personnel'!N:N) -> 0 | L61: 0
B62: P30 | F62: =SUMIF('1. Frais de personnel'!C:C,B62,'1. Frais de personnel'!S:S) -> 0 | G62: =SUMIF('2-3.Frais de voyage-séjour'!C:C,B62,'2-3.Frais de voyage-séjour'!L:L) -> 0 | H62: =SUMIF('2-3.Frais de voyage-séjour'!C:C,B62,'2-3.Frais de voyage-séjour'!M:M) -> 0 | I62: =SUMIF('4. Equipement'!C:C,B62,'4. Equipement'!H:H) -> 0 | J62: =SUMIF('5. Sous-traitance'!C:C,B62,'5. Sous-traitance'!H:H) -> 0 | K62: =SUMIF('B. Mobilité Spécial - Etudiant'!B:B,B62,'B. Mobilité Spécial - Etudiant'!N:N)+SUMIF('B. Mobilité Spécial - Personnel'!B:B,B62,'B. Mobilité Spécial - Personnel'!N:N) -> 0 | L62: 0
B63: P31 | F63: =SUMIF('1. Frais de personnel'!C:C,B63,'1. Frais de personnel'!S:S) -> 0 | G63: =SUMIF('2-3.Frais de voyage-séjour'!C:C,B63,'2-3.Frais de voyage-séjour'!L:L) -> 0 | H63: =SUMIF('2-3.Frais de voyage-séjour'!C:C,B63,'2-3.Frais de voyage-séjour'!M:M) -> 0 | I63: =SUMIF('4. Equipement'!C:C,B63,'4. Equipement'!H:H) -> 0 | J63: =SUMIF('5. Sous-traitance'!C:C,B63,'5. Sous-traitance'!H:H) -> 0 | K63: =SUMIF('B. Mobilité Spécial - Etudiant'!B:B,B63,'B. Mobilité Spécial - Etudiant'!N:N)+SUMIF('B. Mobilité Spécial - Personnel'!B:B,B63,'B. Mobilité Spécial - Personnel'!N:N) -> 0 | L63: 0
B64: P32 | F64: =SUMIF('1. Frais de personnel'!C:C,B64,'1. Frais de personnel'!S:S) -> 0 | G64: =SUMIF('2-3.Frais de voyage-séjour'!C:C,B64,'2-3.Frais de voyage-séjour'!L:L) -> 0 | H64: =SUMIF('2-3.Frais de voyage-séjour'!C:C,B64,'2-3.Frais de voyage-séjour'!M:M) -> 0 | I64: =SUMIF('4. Equipement'!C:C,B64,'4. Equipement'!H:H) -> 0 | J64: =SUMIF('5. Sous-traitance'!C:C,B64,'5. Sous-traitance'!H:H) -> 0 | K64: =SUMIF('B. Mobilité Spécial - Etudiant'!B:B,B64,'B. Mobilité Spécial - Etudiant'!N:N)+SUMIF('B. Mobilité Spécial - Personnel'!B:B,B64,'B. Mobilité Spécial - Personnel'!N:N) -> 0 | L64: 0
B65: P33 | E65: =IFERROR(IF(D65<>"",VLOOKUP(D65,CountryType,2,FALSE),""),"Pays non trouvé") ->  | F65: =SUMIF('1. Frais de personnel'!C:C,B65,'1. Frais de personnel'!S:S) -> 0 | G65: =SUMIF('2-3.Frais de voyage-séjour'!C:C,B65,'2-3.Frais de voyage-séjour'!L:L) -> 0 | H65: =SUMIF('2-3.Frais de voyage-séjour'!C:C,B65,'2-3.Frais de voyage-séjour'!M:M) -> 0 | I65: =SUMIF('4. Equipement'!C:C,B65,'4. Equipement'!H:H) -> 0 | J65: =SUMIF('5. Sous-traitance'!C:C,B65,'5. Sous-traitance'!H:H) -> 0 | K65: =SUMIF('B. Mobilité Spécial - Etudiant'!B:B,B65,'B. Mobilité Spécial - Etudiant'!N:N)+SUMIF('B. Mobilité Spécial - Personnel'!B:B,B65,'B. Mobilité Spécial - Personnel'!N:N) -> 0 | L65: 0
B66: P34 | F66: =SUMIF('1. Frais de personnel'!C:C,B66,'1. Frais de personnel'!S:S) -> 0 | G66: =SUMIF('2-3.Frais de voyage-séjour'!C:C,B66,'2-3.Frais de voyage-séjour'!L:L) -> 0 | H66: =SUMIF('2-3.Frais de voyage-séjour'!C:C,B66,'2-3.Frais de voyage-séjour'!M:M) -> 0 | I66: =SUMIF('4. Equipement'!C:C,B66,'4. Equipement'!H:H) -> 0 | J66: =SUMIF('5. Sous-traitance'!C:C,B66,'5. Sous-traitance'!H:H) -> 0 | K66: =SUMIF('B. Mobilité Spécial - Etudiant'!B:B,B66,'B. Mobilité Spécial - Etudiant'!N:N)+SUMIF('B. Mobilité Spécial - Personnel'!B:B,B66,'B. Mobilité Spécial - Personnel'!N:N) -> 0 | L66: 0
B67: P35 | F67: =SUMIF('1. Frais de personnel'!C:C,B67,'1. Frais de personnel'!S:S) -> 0 | G67: =SUMIF('2-3.Frais de voyage-séjour'!C:C,B67,'2-3.Frais de voyage-séjour'!L:L) -> 0 | H67: =SUMIF('2-3.Frais de voyage-séjour'!C:C,B67,'2-3.Frais de voyage-séjour'!M:M) -> 0 | I67: =SUMIF('4. Equipement'!C:C,B67,'4. Equipement'!H:H) -> 0 | J67: =SUMIF('5. Sous-traitance'!C:C,B67,'5. Sous-traitance'!H:H) -> 0 | K67: =SUMIF('B. Mobilité Spécial - Etudiant'!B:B,B67,'B. Mobilité Spécial - Etudiant'!N:N)+SUMIF('B. Mobilité Spécial - Personnel'!B:B,B67,'B. Mobilité Spécial - Personnel'!N:N) -> 0 | L67: 0
B68: P36 | F68: =SUMIF('1. Frais de personnel'!C:C,B68,'1. Frais de personnel'!S:S) -> 0 | G68: =SUMIF('2-3.Frais de voyage-séjour'!C:C,B68,'2-3.Frais de voyage-séjour'!L:L) -> 0 | H68: =SUMIF('2-3.Frais de voyage-séjour'!C:C,B68,'2-3.Frais de voyage-séjour'!M:M) -> 0 | I68: =SUMIF('4. Equipement'!C:C,B68,'4. Equipement'!H:H) -> 0 | J68: =SUMIF('5. Sous-traitance'!C:C,B68,'5. Sous-traitance'!H:H) -> 0 | K68: =SUMIF('B. Mobilité Spécial - Etudiant'!B:B,B68,'B. Mobilité Spécial - Etudiant'!N:N)+SUMIF('B. Mobilité Spécial - Personnel'!B:B,B68,'B. Mobilité Spécial - Personnel'!N:N) -> 0 | L68: 0
B69: P37 | F69: =SUMIF('1. Frais de personnel'!C:C,B69,'1. Frais de personnel'!S:S) -> 0 | G69: =SUMIF('2-3.Frais de voyage-séjour'!C:C,B69,'2-3.Frais de voyage-séjour'!L:L) -> 0 | H69: =SUMIF('2-3.Frais de voyage-séjour'!C:C,B69,'2-3.Frais de voyage-séjour'!M:M) -> 0 | I69: =SUMIF('4. Equipement'!C:C,B69,'4. Equipement'!H:H) -> 0 | J69: =SUMIF('5. Sous-traitance'!C:C,B69,'5. Sous-traitance'!H:H) -> 0 | K69: =SUMIF('B. Mobilité Spécial - Etudiant'!B:B,B69,'B. Mobilité Spécial - Etudiant'!N:N)+SUMIF('B. Mobilité Spécial - Personnel'!B:B,B69,'B. Mobilité Spécial - Personnel'!N:N) -> 0 | L69: 0
B70: P38 | F70: =SUMIF('1. Frais de personnel'!C:C,B70,'1. Frais de personnel'!S:S) -> 0 | G70: =SUMIF('2-3.Frais de voyage-séjour'!C:C,B70,'2-3.Frais de voyage-séjour'!L:L) -> 0 | H70: =SUMIF('2-3.Frais de voyage-séjour'!C:C,B70,'2-3.Frais de voyage-séjour'!M:M) -> 0 | I70: =SUMIF('4. Equipement'!C:C,B70,'4. Equipement'!H:H) -> 0 | J70: =SUMIF('5. Sous-traitance'!C:C,B70,'5. Sous-traitance'!H:H) -> 0 | K70: =SUMIF('B. Mobilité Spécial - Etudiant'!B:B,B70,'B. Mobilité Spécial - Etudiant'!N:N)+SUMIF('B. Mobilité Spécial - Personnel'!B:B,B70,'B. Mobilité Spécial - Personnel'!N:N) -> 0 | L70: 0
B71: P39 | F71: =SUMIF('1. Frais de personnel'!C:C,B71,'1. Frais de personnel'!S:S) -> 0 | G71: =SUMIF('2-3.Frais de voyage-séjour'!C:C,B71,'2-3.Frais de voyage-séjour'!L:L) -> 0 | H71: =SUMIF('2-3.Frais de voyage-séjour'!C:C,B71,'2-3.Frais de voyage-séjour'!M:M) -> 0 | I71: =SUMIF('4. Equipement'!C:C,B71,'4. Equipement'!H:H) -> 0 | J71: =SUMIF('5. Sous-traitance'!C:C,B71,'5. Sous-traitance'!H:H) -> 0 | K71: =SUMIF('B. Mobilité Spécial - Etudiant'!B:B,B71,'B. Mobilité Spécial - Etudiant'!N:N)+SUMIF('B. Mobilité Spécial - Personnel'!B:B,B71,'B. Mobilité Spécial - Personnel'!N:N) -> 0 | L71: 0
B72: P40 | F72: =SUMIF('1. Frais de personnel'!C:C,B72,'1. Frais de personnel'!S:S) -> 0 | G72: =SUMIF('2-3.Frais de voyage-séjour'!C:C,B72,'2-3.Frais de voyage-séjour'!L:L) -> 0 | H72: =SUMIF('2-3.Frais de voyage-séjour'!C:C,B72,'2-3.Frais de voyage-séjour'!M:M) -> 0 | I72: =SUMIF('4. Equipement'!C:C,B72,'4. Equipement'!H:H) -> 0 | J72: =SUMIF('5. Sous-traitance'!C:C,B72,'5. Sous-traitance'!H:H) -> 0 | K72: =SUMIF('B. Mobilité Spécial - Etudiant'!B:B,B72,'B. Mobilité Spécial - Etudiant'!N:N)+SUMIF('B. Mobilité Spécial - Personnel'!B:B,B72,'B. Mobilité Spécial - Personnel'!N:N) -> 0 | L72: 0
B73: P41 | F73: =SUMIF('1. Frais de personnel'!C:C,B73,'1. Frais de personnel'!S:S) -> 0 | G73: =SUMIF('2-3.Frais de voyage-séjour'!C:C,B73,'2-3.Frais de voyage-séjour'!L:L) -> 0 | H73: =SUMIF('2-3.Frais de voyage-séjour'!C:C,B73,'2-3.Frais de voyage-séjour'!M:M) -> 0 | I73: =SUMIF('4. Equipement'!C:C,B73,'4. Equipement'!H:H) -> 0 | J73: =SUMIF('5. Sous-traitance'!C:C,B73,'5. Sous-traitance'!H:H) -> 0 | K73: =SUMIF('B. Mobilité Spécial - Etudiant'!B:B,B73,'B. Mobilité Spécial - Etudiant'!N:N)+SUMIF('B. Mobilité Spécial - Personnel'!B:B,B73,'B. Mobilité Spécial - Personnel'!N:N) -> 0 | L73: 0
B74: P42 | F74: =SUMIF('1. Frais de personnel'!C:C,B74,'1. Frais de personnel'!S:S) -> 0 | G74: =SUMIF('2-3.Frais de voyage-séjour'!C:C,B74,'2-3.Frais de voyage-séjour'!L:L) -> 0 | H74: =SUMIF('2-3.Frais de voyage-séjour'!C:C,B74,'2-3.Frais de voyage-séjour'!M:M) -> 0 | I74: =SUMIF('4. Equipement'!C:C,B74,'4. Equipement'!H:H) -> 0 | J74: =SUMIF('5. Sous-traitance'!C:C,B74,'5. Sous-traitance'!H:H) -> 0 | K74: =SUMIF('B. Mobilité Spécial - Etudiant'!B:B,B74,'B. Mobilité Spécial - Etudiant'!N:N)+SUMIF('B. Mobilité Spécial - Personnel'!B:B,B74,'B. Mobilité Spécial - Personnel'!N:N) -> 0 | L74: 0
B75: P43 | F75: =SUMIF('1. Frais de personnel'!C:C,B75,'1. Frais de personnel'!S:S) -> 0 | G75: =SUMIF('2-3.Frais de voyage-séjour'!C:C,B75,'2-3.Frais de voyage-séjour'!L:L) -> 0 | H75: =SUMIF('2-3.Frais de voyage-séjour'!C:C,B75,'2-3.Frais de voyage-séjour'!M:M) -> 0 | I75: =SUMIF('4. Equipement'!C:C,B75,'4. Equipement'!H:H) -> 0 | J75: =SUMIF('5. Sous-traitance'!C:C,B75,'5. Sous-traitance'!H:H) -> 0 | K75: =SUMIF('B. Mobilité Spécial - Etudiant'!B:B,B75,'B. Mobilité Spécial - Etudiant'!N:N)+SUMIF('B. Mobilité Spécial - Personnel'!B:B,B75,'B. Mobilité Spécial - Personnel'!N:N) -> 0 | L75: 0
B76: P44 | F76: =SUMIF('1. Frais de personnel'!C:C,B76,'1. Frais de personnel'!S:S) -> 0 | G76: =SUMIF('2-3.Frais de voyage-séjour'!C:C,B76,'2-3.Frais de voyage-séjour'!L:L) -> 0 | H76: =SUMIF('2-3.Frais de voyage-séjour'!C:C,B76,'2-3.Frais de voyage-séjour'!M:M) -> 0 | I76: =SUMIF('4. Equipement'!C:C,B76,'4. Equipement'!H:H) -> 0 | J76: =SUMIF('5. Sous-traitance'!C:C,B76,'5. Sous-traitance'!H:H) -> 0 | K76: =SUMIF('B. Mobilité Spécial - Etudiant'!B:B,B76,'B. Mobilité Spécial - Etudiant'!N:N)+SUMIF('B. Mobilité Spécial - Personnel'!B:B,B76,'B. Mobilité Spécial - Personnel'!N:N) -> 0 | L76: 0
B77: P45 | F77: =SUMIF('1. Frais de personnel'!C:C,B77,'1. Frais de personnel'!S:S) -> 0 | G77: =SUMIF('2-3.Frais de voyage-séjour'!C:C,B77,'2-3.Frais de voyage-séjour'!L:L) -> 0 | H77: =SUMIF('2-3.Frais de voyage-séjour'!C:C,B77,'2-3.Frais de voyage-séjour'!M:M) -> 0 | I77: =SUMIF('4. Equipement'!C:C,B77,'4. Equipement'!H:H) -> 0 | J77: =SUMIF('5. Sous-traitance'!C:C,B77,'5. Sous-traitance'!H:H) -> 0 | K77: =SUMIF('B. Mobilité Spécial - Etudiant'!B:B,B77,'B. Mobilité Spécial - Etudiant'!N:N)+SUMIF('B. Mobilité Spécial - Personnel'!B:B,B77,'B. Mobilité Spécial - Personnel'!N:N) -> 0 | L77: 0
B78: P46 | F78: =SUMIF('1. Frais de personnel'!C:C,B78,'1. Frais de personnel'!S:S) -> 0 | G78: =SUMIF('2-3.Frais de voyage-séjour'!C:C,B78,'2-3.Frais de voyage-séjour'!L:L) -> 0 | H78: =SUMIF('2-3.Frais de voyage-séjour'!C:C,B78,'2-3.Frais de voyage-séjour'!M:M) -> 0 | I78: =SUMIF('4. Equipement'!C:C,B78,'4. Equipement'!H:H) -> 0 | J78: =SUMIF('5. Sous-traitance'!C:C,B78,'5. Sous-traitance'!H:H) -> 0 | K78: =SUMIF('B. Mobilité Spécial - Etudiant'!B:B,B78,'B. Mobilité Spécial - Etudiant'!N:N)+SUMIF('B. Mobilité Spécial - Personnel'!B:B,B78,'B. Mobilité Spécial - Personnel'!N:N) -> 0 | L78: 0
B79: P47 | F79: =SUMIF('1. Frais de personnel'!C:C,B79,'1. Frais de personnel'!S:S) -> 0 | G79: =SUMIF('2-3.Frais de voyage-séjour'!C:C,B79,'2-3.Frais de voyage-séjour'!L:L) -> 0 | H79: =SUMIF('2-3.Frais de voyage-séjour'!C:C,B79,'2-3.Frais de voyage-séjour'!M:M) -> 0 | I79: =SUMIF('4. Equipement'!C:C,B79,'4. Equipement'!H:H) -> 0 | J79: =SUMIF('5. Sous-traitance'!C:C,B79,'5. Sous-traitance'!H:H) -> 0 | K79: =SUMIF('B. Mobilité Spécial - Etudiant'!B:B,B79,'B. Mobilité Spécial - Etudiant'!N:N)+SUMIF('B. Mobilité Spécial - Personnel'!B:B,B79,'B. Mobilité Spécial - Personnel'!N:N) -> 0 | L79: 0
B80: P48 | F80: =SUMIF('1. Frais de personnel'!C:C,B80,'1. Frais de personnel'!S:S) -> 0 | G80: =SUMIF('2-3.Frais de voyage-séjour'!C:C,B80,'2-3.Frais de voyage-séjour'!L:L) -> 0 | H80: =SUMIF('2-3.Frais de voyage-séjour'!C:C,B80,'2-3.Frais de voyage-séjour'!M:M) -> 0 | I80: =SUMIF('4. Equipement'!C:C,B80,'4. Equipement'!H:H) -> 0 | J80: =SUMIF('5. Sous-traitance'!C:C,B80,'5. Sous-traitance'!H:H) -> 0 | K80: =SUMIF('B. Mobilité Spécial - Etudiant'!B:B,B80,'B. Mobilité Spécial - Etudiant'!N:N)+SUMIF('B. Mobilité Spécial - Personnel'!B:B,B80,'B. Mobilité Spécial - Personnel'!N:N) -> 0 | L80: 0
B81: P49 | F81: =SUMIF('1. Frais de personnel'!C:C,B81,'1. Frais de personnel'!S:S) -> 0 | G81: =SUMIF('2-3.Frais de voyage-séjour'!C:C,B81,'2-3.Frais de voyage-séjour'!L:L) -> 0 | H81: =SUMIF('2-3.Frais de voyage-séjour'!C:C,B81,'2-3.Frais de voyage-séjour'!M:M) -> 0 | I81: =SUMIF('4. Equipement'!C:C,B81,'4. Equipement'!H:H) -> 0 | J81: =SUMIF('5. Sous-traitance'!C:C,B81,'5. Sous-traitance'!H:H) -> 0 | K81: =SUMIF('B. Mobilité Spécial - Etudiant'!B:B,B81,'B. Mobilité Spécial - Etudiant'!N:N)+SUMIF('B. Mobilité Spécial - Personnel'!B:B,B81,'B. Mobilité Spécial - Personnel'!N:N) -> 0 | L81: 0
B82: P50 | F82: =SUMIF('1. Frais de personnel'!C:C,B82,'1. Frais de personnel'!S:S) -> 0 | G82: =SUMIF('2-3.Frais de voyage-séjour'!C:C,B82,'2-3.Frais de voyage-séjour'!L:L) -> 0 | H82: =SUMIF('2-3.Frais de voyage-séjour'!C:C,B82,'2-3.Frais de voyage-séjour'!M:M) -> 0 | I82: =SUMIF('4. Equipement'!C:C,B82,'4. Equipement'!H:H) -> 0 | J82: =SUMIF('5. Sous-traitance'!C:C,B82,'5. Sous-traitance'!H:H) -> 0 | K82: =SUMIF('B. Mobilité Spécial - Etudiant'!B:B,B82,'B. Mobilité Spécial - Etudiant'!N:N)+SUMIF('B. Mobilité Spécial - Personnel'!B:B,B82,'B. Mobilité Spécial - Personnel'!N:N) -> 0 | L82: 0
B83: P51 | F83: =SUMIF('1. Frais de personnel'!C:C,B83,'1. Frais de personnel'!S:S) -> 0 | G83: =SUMIF('2-3.Frais de voyage-séjour'!C:C,B83,'2-3.Frais de voyage-séjour'!L:L) -> 0 | H83: =SUMIF('2-3.Frais de voyage-séjour'!C:C,B83,'2-3.Frais de voyage-séjour'!M:M) -> 0 | I83: =SUMIF('4. Equipement'!C:C,B83,'4. Equipement'!H:H) -> 0 | J83: =SUMIF('5. Sous-traitance'!C:C,B83,'5. Sous-traitance'!H:H) -> 0 | K83: =SUMIF('B. Mobilité Spécial - Etudiant'!B:B,B83,'B. Mobilité Spécial - Etudiant'!N:N)+SUMIF('B. Mobilité Spécial - Personnel'!B:B,B83,'B. Mobilité Spécial - Personnel'!N:N) -> 0 | L83: 0
B84: P52 | F84: =SUMIF('1. Frais de personnel'!C:C,B84,'1. Frais de personnel'!S:S) -> 0 | G84: =SUMIF('2-3.Frais de voyage-séjour'!C:C,B84,'2-3.Frais de voyage-séjour'!L:L) -> 0 | H84: =SUMIF('2-3.Frais de voyage-séjour'!C:C,B84,'2-3.Frais de voyage-séjour'!M:M) -> 0 | I84: =SUMIF('4. Equipement'!C:C,B84,'4. Equipement'!H:H) -> 0 | J84: =SUMIF('5. Sous-traitance'!C:C,B84,'5. Sous-traitance'!H:H) -> 0 | K84: =SUMIF('B. Mobilité Spécial - Etudiant'!B:B,B84,'B. Mobilité Spécial - Etudiant'!N:N)+SUMIF('B. Mobilité Spécial - Personnel'!B:B,B84,'B. Mobilité Spécial - Personnel'!N:N) -> 0 | L84: 0
B85: P53 | F85: =SUMIF('1. Frais de personnel'!C:C,B85,'1. Frais de personnel'!S:S) -> 0 | G85: =SUMIF('2-3.Frais de voyage-séjour'!C:C,B85,'2-3.Frais de voyage-séjour'!L:L) -> 0 | H85: =SUMIF('2-3.Frais de voyage-séjour'!C:C,B85,'2-3.Frais de voyage-séjour'!M:M) -> 0 | I85: =SUMIF('4. Equipement'!C:C,B85,'4. Equipement'!H:H) -> 0 | J85: =SUMIF('5. Sous-traitance'!C:C,B85,'5. Sous-traitance'!H:H) -> 0 | K85: =SUMIF('B. Mobilité Spécial - Etudiant'!B:B,B85,'B. Mobilité Spécial - Etudiant'!N:N)+SUMIF('B. Mobilité Spécial - Personnel'!B:B,B85,'B. Mobilité Spécial - Personnel'!N:N) -> 0 | L85: 0
B86: P54 | F86: =SUMIF('1. Frais de personnel'!C:C,B86,'1. Frais de personnel'!S:S) -> 0 | G86: =SUMIF('2-3.Frais de voyage-séjour'!C:C,B86,'2-3.Frais de voyage-séjour'!L:L) -> 0 | H86: =SUMIF('2-3.Frais de voyage-séjour'!C:C,B86,'2-3.Frais de voyage-séjour'!M:M) -> 0 | I86: =SUMIF('4. Equipement'!C:C,B86,'4. Equipement'!H:H) -> 0 | J86: =SUMIF('5. Sous-traitance'!C:C,B86,'5. Sous-traitance'!H:H) -> 0 | K86: =SUMIF('B. Mobilité Spécial - Etudiant'!B:B,B86,'B. Mobilité Spécial - Etudiant'!N:N)+SUMIF('B. Mobilité Spécial - Personnel'!B:B,B86,'B. Mobilité Spécial - Personnel'!N:N) -> 0 | L86: 0
B87: P55 | F87: =SUMIF('1. Frais de personnel'!C:C,B87,'1. Frais de personnel'!S:S) -> 0 | G87: =SUMIF('2-3.Frais de voyage-séjour'!C:C,B87,'2-3.Frais de voyage-séjour'!L:L) -> 0 | H87: =SUMIF('2-3.Frais de voyage-séjour'!C:C,B87,'2-3.Frais de voyage-séjour'!M:M) -> 0 | I87: =SUMIF('4. Equipement'!C:C,B87,'4. Equipement'!H:H) -> 0 | J87: =SUMIF('5. Sous-traitance'!C:C,B87,'5. Sous-traitance'!H:H) -> 0 | K87: =SUMIF('B. Mobilité Spécial - Etudiant'!B:B,B87,'B. Mobilité Spécial - Etudiant'!N:N)+SUMIF('B. Mobilité Spécial - Personnel'!B:B,B87,'B. Mobilité Spécial - Personnel'!N:N) -> 0 | L87: 0

Sheet 1. Frais de personnel
B2: 1. Frais de personnel
D4: Total (EUR) | E4: Nombre de jours
B5: Gestionnaire | D5: =SUM(H:H) -> 0 | E5: =SUMIF(T:T,"<>Erreur",F:F) -> 0
B6: Enseignant/formateur/chercheur | D6: =SUM(K:K) -> 0 | E6: =SUMIF(T:T,"<>Erreur",I:I) -> 0
B7: Personnel technique | D7: =SUM(N:N) -> 0 | E7: =SUMIF(T:T,"<>Erreur",L:L) -> 0
B8: Personnel administratif | D8: =SUM(Q:Q) -> 0 | E8: =SUMIF(T:T,"<>Erreur",O:O) -> 0
D9: =SUM(D5:D8) -> 0 | E9: =SUM(E5:E8) -> 0
B11: Type de lot | C11: Part. N° | D11: Nom du partenaire (à encoder dans l'onglet "général") | E11: Pays (à encoder dans l'onglet "général") | F11: =Rates!E3 -> Gestionnaire | I11: =Rates!F3 -> Enseignant/formateur/chercheur | L11: =Rates!G3 -> Personnel technique | O11: =Rates!H3 -> Personnel administratif | R11: Total Nombre de Jours | S11: Total (EUR) | T11: Erreur Encodage
F12: Nombre de jours | G12: Coûts par jour | H12: Total (EUR) | I12: Nombre de jours | J12: Coûts par jour | K12: Total (EUR) | L12: Nombre de jours | M12: Coûts par jour | N12: Total (EUR) | O12: Nombre de jours | P12: Coûts par jour | Q12: Total (EUR)
D13: =IFERROR(IF(VLOOKUP(C13,PartnerN°Ref,2,FALSE)=0,"",VLOOKUP(C13,PartnerN°Ref,2,FALSE)),"") ->  | E13: =IFERROR(IF(OR(VLOOKUP(C13,PartnerN°Ref,4,FALSE)="Pays non trouvé",VLOOKUP(C13,PartnerN°Ref,3,FALSE)=0),"",VLOOKUP(C13,PartnerN°Ref,3,FALSE)),"") ->  | F13: 0 | G13: =IF(T13="Erreur",0,INDEX(Rates,MATCH(E13,CountryALL,0),MATCH($F$11,Category,0))) -> 0 | H13: =IFERROR(IF(T13="Erreur",0,ROUND(F13*G13,2)),0) -> 0 | I13: 0 | J13: =IF(T13="Erreur",0,INDEX(Rates,MATCH(E13,CountryALL,0),MATCH($I$11,Category,0))) -> 0 | K13: =IFERROR(IF(T13="Erreur",0,ROUND(I13*J13,2)),0) -> 0 | L13: 0 | M13: =IF(T13="Erreur",0,INDEX(Rates,MATCH(E13,CountryALL,0),MATCH($L$11,Category,0))) -> 0 | N13: =IFERROR(IF(T13="Erreur",0,ROUND(L13*M13,2)),0) -> 0 | O13: 0 | P13: =IF(T13="Erreur",0,INDEX(Rates,MATCH(E13,CountryALL,0),MATCH($O$11,Category,0))) -> 0 | Q13: =IFERROR(IF(T13="Erreur",0,ROUND(O13*P13,2)),0) -> 0 | R13: =IF(T13="Erreur",0,F13+I13+L13+O13) -> 0 | S13: =IF(T13="Erreur",0,H13+K13+N13+Q13) -> 0 | T13: =IF(OR(COUNTIF(WorkPackage,B13)=0,COUNTIF(PartnerN°,C13)=0,D13="",COUNTIF(CountryALL,E13)=0,ISNUMBER(F13)=FALSE,ISNUMBER(I13)=FALSE,ISNUMBER(L13)=FALSE,ISNUMBER(O13)=FALSE,IF(ISNUMBER(F13)=TRUE,F13=INT(F13*10)/10=FALSE),IF(ISNUMBER(I13)=TRUE,I13=INT(I13*10)/10=FALSE),IF(ISNUMBER(L13)=TRUE,L13=INT(L13*10)/10=FALSE),IF(ISNUMBER(O13)=TRUE,O13=INT(O13*10)/10=FALSE)),"Erreur","") -> Erreur
D14: =IFERROR(IF(VLOOKUP(C14,PartnerN°Ref,2,FALSE)=0,"",VLOOKUP(C14,PartnerN°Ref,2,FALSE)),"") ->  | E14: =IFERROR(IF(OR(VLOOKUP(C14,PartnerN°Ref,4,FALSE)="Pays non trouvé",VLOOKUP(C14,PartnerN°Ref,3,FALSE)=0),"",VLOOKUP(C14,PartnerN°Ref,3,FALSE)),"") ->  | F14: 0 | G14: =IF(T14="Erreur",0,INDEX(Rates,MATCH(E14,CountryALL,0),MATCH($F$11,Category,0))) -> 0 | H14: =IFERROR(IF(T14="Erreur",0,ROUND(F14*G14,2)),0) -> 0 | I14: 0 | J14: =IF(T14="Erreur",0,INDEX(Rates,MATCH(E14,CountryALL,0),MATCH($I$11,Category,0))) -> 0 | K14: =IFERROR(IF(T14="Erreur",0,ROUND(I14*J14,2)),0) -> 0 | L14: 0 | M14: =IF(T14="Erreur",0,INDEX(Rates,MATCH(E14,CountryALL,0),MATCH($L$11,Category,0))) -> 0 | N14: =IFERROR(IF(T14="Erreur",0,ROUND(L14*M14,2)),0) -> 0 | O14: 0 | P14: =IF(T14="Erreur",0,INDEX(Rates,MATCH(E14,CountryALL,0),MATCH($O$11,Category,0))) -> 0 | Q14: =IFERROR(IF(T14="Erreur",0,ROUND(O14*P14,2)),0) -> 0 | R14: =IF(T14="Erreur",0,F14+I14+L14+O14) -> 0 | S14: =IF(T14="Erreur",0,H14+K14+N14+Q14) -> 0 | T14: =IF(OR(COUNTIF(WorkPackage,B14)=0,COUNTIF(PartnerN°,C14)=0,D14="",COUNTIF(CountryALL,E14)=0,ISNUMBER(F14)=FALSE,ISNUMBER(I14)=FALSE,ISNUMBER(L14)=FALSE,ISNUMBER(O14)=FALSE,IF(ISNUMBER(F14)=TRUE,F14=INT(F14*10)/10=FALSE),IF(ISNUMBER(I14)=TRUE,I14=INT(I14*10)/10=FALSE),IF(ISNUMBER(L14)=TRUE,L14=INT(L14*10)/10=FALSE),IF(ISNUMBER(O14)=TRUE,O14=INT(O14*10)/10=FALSE)),"Erreur","") -> Erreur

Sheet 2-3.Frais de voyage-séjour
B2: 2-3.Frais de voyage-séjour
B4: Frais de voyage Etudiant (EUR) | D4: =SUMIF(G:G,"Etudiant",L:L) -> 0 | E4: =D4+D5 -> 0 | F4: =SUMIFS(H:H,G:G,"Etudiant",O:O,"<>Erreur") -> 0
B5: Frais de séjour Etudiant (EUR) | D5: =SUMIF(G:G,"Etudiant",M:M) -> 0
B6: Frais de voyage Personnel (EUR) | D6: =SUMIF(G:G,"Personnel",L:L) -> 0 | E6: =D6+D7 -> 0 | F6: =SUMIFS(H:H,G:G,"Personnel",O:O,"<>Erreur") -> 0
B7: Frais de séjour Personnel (EUR) | D7: =SUMIF(G:G,"Personnel",M:M) -> 0
B8: Total Frais de voyage (EUR) | D8: =SUM(L:L) -> 0 | E8: =D8+D9 -> 0 | F8: =F4+F6 -> 0
B9: Total Frais de séjour (EUR) | D9: =SUM(M:M) -> 0
B11: Type de lot | C11: Part. N° | D11: Nom du partenaire (à encoder dans l'onglet "général") | E11: Pays (à encoder dans l'onglet "général") | F11: Ville de Départ | G11: Personnel/ Etudiant | H11: Nombre de Participants | I11: Ville de Destination | J11: Distance | K11: Nombre de jours (par participant) | L11: Frais de voyage (EUR) | M11: Frais de séjour (EUR) | N11: Total (EUR) | O11: Erreur Encodage
D13: =IFERROR(IF(VLOOKUP(C13,PartnerN°Ref,2,FALSE)=0,"",VLOOKUP(C13,PartnerN°Ref,2,FALSE)),"") ->  | E13: =IFERROR(IF(OR(VLOOKUP(C13,PartnerN°Ref,4,FALSE)="Pays non trouvé",VLOOKUP(C13,PartnerN°Ref,3,FALSE)=0),"",VLOOKUP(C13,PartnerN°Ref,3,FALSE)),"") ->  | H13: 0 | K13: 0 | L13: =IF(O13="Erreur",0,ROUND(ROUND(H13,0)*(VLOOKUP(J13,TravelCosts,2,FALSE)),2)) -> 0 | M13: =IF(O13="Erreur",0,IF(AND(G13="Personnel",K13>0,K13<15),(120*K13)*H13,IF(AND(G13="Personnel",K13>14,K13<61),(1680+((K13-14)*70))*H13,IF(AND(G13="Personnel",K13>60,K13<91),(4900+((K13-60)*50))*H13,IF(AND(G13="Etudiant",K13>0,K13<15),(55*K13)*H13,IF(AND(G13="Etudiant",K13>14,K13<91),(770+((K13-14)*40))*H13,0)))))) -> 0 | N13: =L13+M13 -> 0 | O13: =IF(OR(COUNTIF(WorkPackage,B13)=0,COUNTIF(PartnerN°,C13)=0,D13="",COUNTIF(CountryALL,E13)=0,F13="",COUNTIF(Category2,G13)=0,ISNUMBER(H13)=FALSE,I13="",COUNTIF(TravelBands,J13)=0,ISNUMBER(K13)=FALSE,OR(K13<0,K13>90),IF(ISNUMBER(H13)=TRUE,H13=INT(H13*1)/1=FALSE),IF(ISNUMBER(K13)=TRUE,K13=INT(K13*1)/1=FALSE)),"Erreur","") -> Erreur
D14: =IFERROR(IF(VLOOKUP(C14,PartnerN°Ref,2,FALSE)=0,"",VLOOKUP(C14,PartnerN°Ref,2,FALSE)),"") ->  | E14: =IFERROR(IF(OR(VLOOKUP(C14,PartnerN°Ref,4,FALSE)="Pays non trouvé",VLOOKUP(C14,PartnerN°Ref,3,FALSE)=0),"",VLOOKUP(C14,PartnerN°Ref,3,FALSE)),"") ->  | H14: 0 | K14: 0 | L14: =IF(O14="Erreur",0,ROUND(ROUND(H14,0)*(VLOOKUP(J14,TravelCosts,2,FALSE)),2)) -> 0 | M14: =IF(O14="Erreur",0,IF(AND(G14="Personnel",K14>0,K14<15),(120*K14)*H14,IF(AND(G14="Personnel",K14>14,K14<61),(1680+((K14-14)*70))*H14,IF(AND(G14="Personnel",K14>60,K14<91),(4900+((K14-60)*50))*H14,IF(AND(G14="Etudiant",K14>0,K14<15),(55*K14)*H14,IF(AND(G14="Etudiant",K14>14,K14<91),(770+((K14-14)*40))*H14,0)))))) -> 0 | N14: =L14+M14 -> 0 | O14: =IF(OR(COUNTIF(WorkPackage,B14)=0,COUNTIF(PartnerN°,C14)=0,D14="",COUNTIF(CountryALL,E14)=0,F14="",COUNTIF(Category2,G14)=0,ISNUMBER(H14)=FALSE,I14="",COUNTIF(TravelBands,J14)=0,ISNUMBER(K14)=FALSE,OR(K14<0,K14>90),IF(ISNUMBER(H14)=TRUE,H14=INT(H14*1)/1=FALSE),IF(ISNUMBER(K14)=TRUE,K14=INT(K14*1)/1=FALSE)),"Erreur","") -> Erreur

Sheet 4. Equipement
B2: 4. Equipement
B4: Total (EUR) | C4: =SUM(H:H) -> 0
B11: Type de lot | C11: Part. N° | D11: Nom du partenaire (à encoder dans l'onglet "général") | E11: Pays (à encoder dans l'onglet "général") | F11: Nature, type and specifications | G11: Montant Hors TVA (EUR) | H11: Total (EUR) | I11: Erreur Encodage
D13: =IFERROR(IF(VLOOKUP(C13,PartnerN°Ref,2,FALSE)=0,"",VLOOKUP(C13,PartnerN°Ref,2,FALSE)),"") ->  | E13: =IFERROR(IF(OR(VLOOKUP(C13,PartnerN°Ref,4,FALSE)="Pays non trouvé",VLOOKUP(C13,PartnerN°Ref,3,FALSE)=0),"",VLOOKUP(C13,PartnerN°Ref,3,FALSE)),"") ->  | G13: 0 | H13: =IF(I13="Erreur",0,ROUND(G13,2)) -> 0 | I13: =IF(OR(COUNTIF(WorkPackage,B13)=0,COUNTIF(PartnerN°,C13)=0,D13="",COUNTIF(CountryEligEquip,E13)=0,F13="",ISNUMBER(G13)=FALSE,IF(ISNUMBER(G13)=TRUE,G13=INT(G13*100)/100=FALSE)),"Erreur","") -> Erreur
D14: =IFERROR(IF(VLOOKUP(C14,PartnerN°Ref,2,FALSE)=0,"",VLOOKUP(C14,PartnerN°Ref,2,FALSE)),"") ->  | E14: =IFERROR(IF(OR(VLOOKUP(C14,PartnerN°Ref,4,FALSE)="Pays non trouvé",VLOOKUP(C14,PartnerN°Ref,3,FALSE)=0),"",VLOOKUP(C14,PartnerN°Ref,3,FALSE)),"") ->  | G14: 0 | H14: =IF(I14="Erreur",0,ROUND(G14,2)) -> 0 | I14: =IF(OR(COUNTIF(WorkPackage,B14)=0,COUNTIF(PartnerN°,C14)=0,D14="",COUNTIF(CountryEligEquip,E14)=0,F14="",ISNUMBER(G14)=FALSE,IF(ISNUMBER(G14)=TRUE,G14=INT(G14*100)/100=FALSE)),"Erreur","") -> Erreur

Sheet 5. Sous-traitance
B2: 5. Sous-traitance
B4: Total (EUR) | C4: =SUM(H:H) -> 0
B11: Type de lot | C11: Part. N° | D11: Nom du partenaire (à encoder dans l'onglet "général") | E11: Pays (à encoder dans l'onglet "général") | F11: Nature, type and specifications | G11: Montant Hors TVA (EUR) | H11: Total (EUR) | I11: Erreur Encodage
D13: =IFERROR(IF(VLOOKUP(C13,PartnerN°Ref,2,FALSE)=0,"",VLOOKUP(C13,PartnerN°Ref,2,FALSE)),"") ->  | E13: =IFERROR(IF(OR(VLOOKUP(C13,PartnerN°Ref,4,FALSE)="Pays non trouvé",VLOOKUP(C13,PartnerN°Ref,3,FALSE)=0),"",VLOOKUP(C13,PartnerN°Ref,3,FALSE)),"") ->  | G13: 0 | H13: =IF(I13="Erreur",0,ROUND(G13,2)) -> 0 | I13: =IF(OR(COUNTIF(WorkPackage,B13)=0,COUNTIF(PartnerN°,C13)=0,D13="",COUNTIF(CountryALL,E13)=0,F13="",ISNUMBER(G13)=FALSE,IF(ISNUMBER(G13)=TRUE,G13=INT(G13*100)/100=FALSE)),"Erreur","") -> Erreur
D14: =IFERROR(IF(VLOOKUP(C14,PartnerN°Ref,2,FALSE)=0,"",VLOOKUP(C14,PartnerN°Ref,2,FALSE)),"") ->  | E14: =IFERROR(IF(OR(VLOOKUP(C14,PartnerN°Ref,4,FALSE)="Pays non trouvé",VLOOKUP(C14,PartnerN°Ref,3,FALSE)=0),"",VLOOKUP(C14,PartnerN°Ref,3,FALSE)),"") ->  | G14: 0 | H14: =IF(I14="Erreur",0,ROUND(G14,2)) -> 0 | I14: =IF(OR(COUNTIF(WorkPackage,B14)=0,COUNTIF(PartnerN°,C14)=0,D14="",COUNTIF(CountryALL,E14)=0,F14="",ISNUMBER(G14)=FALSE,IF(ISNUMBER(G14)=TRUE,G14=INT(G14*100)/100=FALSE)),"Erreur","") -> Erreur

Sheet B. Mobilité Spécial - Etudiant
B2: B. Mobilité Spécial - Etudiant
B4: Frais de voyage | C4: =SUM(L:L) -> 0
B6: Frais de séjour | C6: =SUM(M:M) -> 0
B8: Total (EUR) | C8: =C4+C6 -> 0
B11: Part. N° | C11: Nom du partenaire (à encoder dans l'onglet "général") | D11: Pays (à encoder dans l'onglet "général") | E11: Categorie | F11: Ville de Départ | G11: Nombre de Participants | H11: Pays de Destination | I11: Ville de Destination | J11: Distance du Voyage | K11: Numbre de mois (par participant) | L11: Frais de Voyage (EUR) | M11: Frais de Séjour (EUR) | N11: Total (EUR) | O11: Erreur Encodage
C13: =IFERROR(IF(VLOOKUP(B13,PartnerN°Ref,2,FALSE)=0,"",VLOOKUP(B13,PartnerN°Ref,2,FALSE)),"") ->  | D13: =IFERROR(IF(OR(VLOOKUP(B13,PartnerN°Ref,4,FALSE)="Pays non trouvé",VLOOKUP(B13,PartnerN°Ref,3,FALSE)=0),"",VLOOKUP(B13,PartnerN°Ref,3,FALSE)),"") ->  | E13: =IF(D13="","",CONCATENATE("Etudiants des"," ",VLOOKUP(D13,CountryType,2,FALSE))) ->  | G13: 0 | L13: =IF(O13="Erreur",0,ROUND(ROUND(G13,0)*(VLOOKUP(J13,TravelCosts,2,FALSE)),2)) -> 0 | M13: =IF(O13="Erreur",0,ROUND(ROUND(G13,0)*(ROUND(K13,0)*(INDEX(Rates,MATCH(H13,CountryALL,0),MATCH(E13,Category,0)))),2)) -> 0 | N13: =L13+M13 -> 0 | O13: =IF(OR(COUNTIF(PartnerN°,B13)=0,C13="",COUNTIF(SMSCountry,D13)=0,COUNTIF(Category,E13)=0,F13="",ISNUMBER(G13)=FALSE,COUNTIF(SMSCountry,H13)=0,I13="",COUNTIF(TravelBands,J13)=0,ISNUMBER(K13)=FALSE,COUNTIF(StudentSMSMonths,K13)=0,P13=1,Q13=1,R13=1,IF(ISNUMBER(G13)=TRUE,G13=INT(G13*1)/1=FALSE),IF(ISNUMBER(K13)=TRUE,K13=INT(K13*1)/1=FALSE)),"Erreur","") -> Erreur | P13: =IF(AND(COUNTIF(EUCountry,D13)=1,COUNTIF(EUCountry,H13)=1),1,0) -> 0 | Q13: =IF(AND(D13<>"",COUNTIF(SMSCountry,D13)=0),1,0) -> 0 | R13: =IF(AND(H13<>"",COUNTIF(SMSCountry,H13)=0),1,0) -> 0
C14: =IFERROR(IF(VLOOKUP(B14,PartnerN°Ref,2,FALSE)=0,"",VLOOKUP(B14,PartnerN°Ref,2,FALSE)),"") ->  | D14: =IFERROR(IF(OR(VLOOKUP(B14,PartnerN°Ref,4,FALSE)="Pays non trouvé",VLOOKUP(B14,PartnerN°Ref,3,FALSE)=0),"",VLOOKUP(B14,PartnerN°Ref,3,FALSE)),"") ->  | E14: =IF(D14="","",CONCATENATE("Etudiants des"," ",VLOOKUP(D14,CountryType,2,FALSE))) ->  | G14: 0 | L14: =IF(O14="Erreur",0,ROUND(ROUND(G14,0)*(VLOOKUP(J14,TravelCosts,2,FALSE)),2)) -> 0 | M14: =IF(O14="Erreur",0,ROUND(ROUND(G14,0)*(ROUND(K14,0)*(INDEX(Rates,MATCH(H14,CountryALL,0),MATCH(E14,Category,0)))),2)) -> 0 | N14: =L14+M14 -> 0 | O14: =IF(OR(COUNTIF(PartnerN°,B14)=0,C14="",COUNTIF(SMSCountry,D14)=0,COUNTIF(Category,E14)=0,F14="",ISNUMBER(G14)=FALSE,COUNTIF(SMSCountry,H14)=0,I14="",COUNTIF(TravelBands,J14)=0,ISNUMBER(K14)=FALSE,COUNTIF(StudentSMSMonths,K14)=0,P14=1,Q14=1,R14=1,IF(ISNUMBER(G14)=TRUE,G14=INT(G14*1)/1=FALSE),IF(ISNUMBER(K14)=TRUE,K14=INT(K14*1)/1=FALSE)),"Erreur","") -> Erreur | P14: =IF(AND(COUNTIF(EUCountry,D14)=1,COUNTIF(EUCountry,H14)=1),1,0) -> 0 | Q14: =IF(AND(D14<>"",COUNTIF(SMSCountry,D14)=0),1,0) -> 0 | R14: =IF(AND(H14<>"",COUNTIF(SMSCountry,H14)=0),1,0) -> 0

Sheet B. Mobilité Spécial - Personnel
B2: B. Mobilité Spécial - Personnel
B4: Frais de voyage | C4: =SUM(L:L) -> 0
B6: Frais de séjour | C6: =SUM(M:M) -> 0
B8: Total (EUR) | C8: =C4+C6 -> 0
B11: Part. N° | C11: Nom du partenaire (à encoder dans l'onglet "général") | D11: Pays (à encoder dans l'onglet "général") | E11: Categorie | F11: Ville de Départ | G11: Nombre de Participants | H11: Pays de Destination | I11: Ville de Destination | J11: Distance du Voyage | K11: Numbre de jours (par participant) | L11: Frais de Voyage (EUR) | M11: Frais de Séjour (EUR) | N11: Total (EUR) | O11: Erreur Encodage
C13: =IFERROR(IF(VLOOKUP(B13,PartnerN°Ref,2,FALSE)=0,"",VLOOKUP(B13,PartnerN°Ref,2,FALSE)),"") ->  | D13: =IFERROR(IF(OR(VLOOKUP(B13,PartnerN°Ref,4,FALSE)="Pays non trouvé",VLOOKUP(B13,PartnerN°Ref,3,FALSE)=0),"",VLOOKUP(B13,PartnerN°Ref,3,FALSE)),"") ->  | E13: =IF(D13="","",CONCATENATE("Personnel des"," ",VLOOKUP(D13,CountryType,2,FALSE))) ->  | G13: 0 | L13: =IF(O13="Erreur",0,ROUND(ROUND(G13,0)*(VLOOKUP(J13,TravelCosts,2,FALSE)),2)) -> 0 | M13: =IF(O13="Erreur",0,ROUND(IF(AND(ROUND(K13,0)>0,ROUND(K13,0)<=14),ROUND(G13,0)*(ROUND(K13,0)*(INDEX(Rates,MATCH(H13,CountryALL,0),MATCH(E13,Category,0)))),IF(AND(ROUND(K13,0)>14,ROUND(K13,0)<=60),ROUND(G13,0)*((14*(INDEX(Rates,MATCH(H13,CountryALL,0),MATCH(E13,Category,0)))))+ROUND(G13,0)*(((ROUND(K13,0)-14)*(0.7*INDEX(Rates,MATCH(H13,CountryALL,0),MATCH(E13,Category,0))))),IF(ROUND(K13,0)>60,0))),2)) -> 0 | N13: =L13+M13 -> 0 | O13: =IF(OR(COUNTIF(PartnerN°,B13)=0,C13="",COUNTIF(SMSCountry,D13)=0,COUNTIF(Category,E13)=0,F13="",ISNUMBER(G13)=FALSE,COUNTIF(SMSCountry,H13)=0,I13="",COUNTIF(TravelBands,J13)=0,ISNUMBER(K13)=FALSE,COUNTIF(StaffSMSDays,K13)=0,P13=1,Q13=1,R13=1,IF(ISNUMBER(G13)=TRUE,G13=INT(G13*1)/1=FALSE),IF(ISNUMBER(K13)=TRUE,K13=INT(K13*1)/1=FALSE)),"Erreur","") -> Erreur | P13: =IF(AND(COUNTIF(EUCountry,D13)=1,COUNTIF(EUCountry,H13)=1),1,0) -> 0 | Q13: =IF(AND(D13<>"",COUNTIF(SMSCountry,D13)=0),1,0) -> 0 | R13: =IF(AND(H13<>"",COUNTIF(SMSCountry,H13)=0),1,0) -> 0
C14: =IFERROR(IF(VLOOKUP(B14,PartnerN°Ref,2,FALSE)=0,"",VLOOKUP(B14,PartnerN°Ref,2,FALSE)),"") ->  | D14: =IFERROR(IF(OR(VLOOKUP(B14,PartnerN°Ref,4,FALSE)="Pays non trouvé",VLOOKUP(B14,PartnerN°Ref,3,FALSE)=0),"",VLOOKUP(B14,PartnerN°Ref,3,FALSE)),"") ->  | E14: =IF(D14="","",CONCATENATE("Personnel des"," ",VLOOKUP(D14,CountryType,2,FALSE))) ->  | G14: 0 | L14: =IF(O14="Erreur",0,ROUND(ROUND(G14,0)*(VLOOKUP(J14,TravelCosts,2,FALSE)),2)) -> 0 | M14: =IF(O14="Erreur",0,ROUND(IF(AND(ROUND(K14,0)>0,ROUND(K14,0)<=14),ROUND(G14,0)*(ROUND(K14,0)*(INDEX(Rates,MATCH(H14,CountryALL,0),MATCH(E14,Category,0)))),IF(AND(ROUND(K14,0)>14,ROUND(K14,0)<=60),ROUND(G14,0)*((14*(INDEX(Rates,MATCH(H14,CountryALL,0),MATCH(E14,Category,0)))))+ROUND(G14,0)*(((ROUND(K14,0)-14)*(0.7*INDEX(Rates,MATCH(H14,CountryALL,0),MATCH(E14,Category,0))))),IF(ROUND(K14,0)>60,0))),2)) -> 0 | N14: 0 | O14: =IF(OR(COUNTIF(PartnerN°,B14)=0,C14="",COUNTIF(SMSCountry,D14)=0,COUNTIF(Category,E14)=0,F14="",ISNUMBER(G14)=FALSE,COUNTIF(SMSCountry,H14)=0,I14="",COUNTIF(TravelBands,J14)=0,ISNUMBER(K14)=FALSE,COUNTIF(StaffSMSDays,K14)=0,P14=1,Q14=1,R14=1,IF(ISNUMBER(G14)=TRUE,G14=INT(G14*1)/1=FALSE),IF(ISNUMBER(K14)=TRUE,K14=INT(K14*1)/1=FALSE)),"Erreur","") -> Erreur | P14: =IF(AND(COUNTIF(EUCountry,D14)=1,COUNTIF(EUCountry,H14)=1),1,0) -> 0 | Q14: =IF(AND(D14<>"",COUNTIF(SMSCountry,D14)=0),1,0) -> 0 | R14: =IF(AND(H14<>"",COUNTIF(SMSCountry,H14)=0),1,0) -> 0

Sheet Cofinancement
B2: Information sur le Cofinancement
B4: Total (EUR) | C4: =SUM(I:I) -> 0
B11: Part. N° | C11: Nom du partenaire (à encoder dans l'onglet "général") | D11: Pays (à encoder dans l'onglet "général") | E11: Objet* | F11: Source du Cofinancement** | G11: Justification*** | H11: Montant Hors TVA (EUR) | I11: Total (EUR) | J11: Erreur Encodage
C13: =IFERROR(IF(VLOOKUP(B13,PartnerN°Ref,2,FALSE)=0,"",VLOOKUP(B13,PartnerN°Ref,2,FALSE)),"") ->  | D13: =IFERROR(IF(OR(VLOOKUP(B13,PartnerN°Ref,4,FALSE)="Pays non trouvé",VLOOKUP(B13,PartnerN°Ref,3,FALSE)=0),"",VLOOKUP(B13,PartnerN°Ref,3,FALSE)),"") ->  | H13: 0 | I13: =IF(J13="Erreur",0,ROUND(H13,2)) -> 0 | J13: =IF(OR(COUNTIF(PartnerN°,B13)=0,C13="",COUNTIF(CountryALL,D13)=0,E13="",F13="",G13="",ISNUMBER(H13)=FALSE,IF(ISNUMBER(H13)=TRUE,H13=INT(H13*100)/100=FALSE)),"Erreur","") -> Erreur
C14: =IFERROR(IF(VLOOKUP(B14,PartnerN°Ref,2,FALSE)=0,"",VLOOKUP(B14,PartnerN°Ref,2,FALSE)),"") ->  | D14: =IFERROR(IF(OR(VLOOKUP(B14,PartnerN°Ref,4,FALSE)="Pays non trouvé",VLOOKUP(B14,PartnerN°Ref,3,FALSE)=0),"",VLOOKUP(B14,PartnerN°Ref,3,FALSE)),"") ->  | H14: 0 | I14: =IF(J14="Erreur",0,ROUND(H14,2)) -> 0 | J14: =IF(OR(COUNTIF(PartnerN°,B14)=0,C14="",COUNTIF(CountryALL,D14)=0,E14="",F14="",G14="",ISNUMBER(H14)=FALSE,IF(ISNUMBER(H14)=TRUE,H14=INT(H14*100)/100=FALSE)),"Erreur","") -> Erreur
B16: * Equipement, Frais de Personnel, Frais de Voyage et/ou Frais de Séjour, Impression & Publication
B17: ** Subvention Gouvernementale, ressources propres de l'organisation/institution
B18: *** Préparation du matériel de formation - 2 jours x 7,5 heures x 3 personnes x € 25

Sheet Ventilation&Financement Projet
B2: Ventilation par Lot / Poste Budgétaire
B4: Lots | C4: 1. Frais de personnel | D4: 2. Frais de voyage | E4: 3. Frais de séjour | F4: 4. Equipement | G4: 5. Sous-traitance | H4: B. Mobilité(s) Spéciale(s) | I4: Total (EUR)
B5: =Rates!P14 -> Préparation | C5: =SUMIF('1. Frais de personnel'!B:B,B5,'1. Frais de personnel'!S:S) -> 0 | D5: =SUMIF('2-3.Frais de voyage-séjour'!B:B,B5,'2-3.Frais de voyage-séjour'!L:L) -> 0 | E5: =SUMIF('2-3.Frais de voyage-séjour'!B:B,B5,'2-3.Frais de voyage-séjour'!M:M) -> 0 | F5: =SUMIF('4. Equipement'!B:B,B5,'4. Equipement'!H:H) -> 0 | G5: =SUMIF('5. Sous-traitance'!B:B,B5,'5. Sous-traitance'!H:H) -> 0 | I5: =SUM(C5:G5) -> 0
B6: =Rates!P15 -> Développement | C6: =SUMIF('1. Frais de personnel'!B:B,B6,'1. Frais de personnel'!S:S) -> 0 | D6: =SUMIF('2-3.Frais de voyage-séjour'!B:B,B6,'2-3.Frais de voyage-séjour'!L:L) -> 0 | E6: =SUMIF('2-3.Frais de voyage-séjour'!B:B,B6,'2-3.Frais de voyage-séjour'!M:M) -> 0 | F6: =SUMIF('4. Equipement'!B:B,B6,'4. Equipement'!H:H) -> 0 | G6: =SUMIF('5. Sous-traitance'!B:B,B6,'5. Sous-traitance'!H:H) -> 0 | I6: =SUM(C6:G6) -> 0
B7: =Rates!P16 -> Plan Qualité | C7: =SUMIF('1. Frais de personnel'!B:B,B7,'1. Frais de personnel'!S:S) -> 0 | D7: =SUMIF('2-3.Frais de voyage-séjour'!B:B,B7,'2-3.Frais de voyage-séjour'!L:L) -> 0 | E7: =SUMIF('2-3.Frais de voyage-séjour'!B:B,B7,'2-3.Frais de voyage-séjour'!M:M) -> 0 | F7: =SUMIF('4. Equipement'!B:B,B7,'4. Equipement'!H:H) -> 0 | G7: =SUMIF('5. Sous-traitance'!B:B,B7,'5. Sous-traitance'!H:H) -> 0 | I7: 0
B8: =Rates!P17 -> Diffusion et Exploitation des Résultats | C8: =SUMIF('1. Frais de personnel'!B:B,B8,'1. Frais de personnel'!S:S) -> 0 | D8: =SUMIF('2-3.Frais de voyage-séjour'!B:B,B8,'2-3.Frais de voyage-séjour'!L:L) -> 0 | E8: =SUMIF('2-3.Frais de voyage-séjour'!B:B,B8,'2-3.Frais de voyage-séjour'!M:M) -> 0 | F8: =SUMIF('4. Equipement'!B:B,B8,'4. Equipement'!H:H) -> 0 | G8: =SUMIF('5. Sous-traitance'!B:B,B8,'5. Sous-traitance'!H:H) -> 0 | I8: 0
B9: =Rates!P18 -> Gestion | C9: =SUMIF('1. Frais de personnel'!B:B,B9,'1. Frais de personnel'!S:S) -> 0 | D9: =SUMIF('2-3.Frais de voyage-séjour'!B:B,B9,'2-3.Frais de voyage-séjour'!L:L) -> 0 | E9: =SUMIF('2-3.Frais de voyage-séjour'!B:B,B9,'2-3.Frais de voyage-séjour'!M:M) -> 0 | F9: =SUMIF('4. Equipement'!B:B,B9,'4. Equipement'!H:H) -> 0 | G9: =SUMIF('5. Sous-traitance'!B:B,B9,'5. Sous-traitance'!H:H) -> 0 | I9: 0
B10: Total | C10: =SUM(C5:C9) -> 0 | D10: 0 | E10: 0 | F10: 0 | G10: =SUM(G5:G9) -> 0 | H10: ='B. Mobilité Spécial - Etudiant'!C8+'B. Mobilité Spécial - Personnel'!C8 -> 0 | I10: =SUM(C10:H10) -> 0
B14: Ventilation par Pays Membres du Programme ou Pays Partenaires / Poste Budgétaire
B16: Pays | C16: 1. Frais de personnel | D16: 2. Frais de voyage | E16: 3. Frais de séjour | F16: 4. Equipement | G16: 5. Sous-traitance | H16: B. Mobilité(s) Spéciale(s) | I16: Total (EUR)
B17: Pays Programmes | C17: =SUMIF(Général!$E$33:$E$87,B17,Général!$F$33:$F$87) -> 0 | D17: =SUMIF(Général!$E$33:$E$87,B17,Général!$G$33:$G$87) -> 0 | E17: =SUMIF(Général!$E$33:$E$87,B17,Général!$H$33:$H$87) -> 0 | F17: =SUMIF(Général!$E$33:$E$87,B17,Général!$I$33:$I$87) -> 0 | G17: =SUMIF(Général!$E$33:$E$87,B17,Général!$J$33:$J$87) -> 0 | H17: =SUMIF(Général!$E$33:$E$87,B17,Général!$K$33:$K$87) -> 0 | I17: =SUM(C17:H17) -> 0
B18: Pays Partenaires | C18: =SUMIF(Général!$E$33:$E$87,B18,Général!$F$33:$F$87) -> 0 | D18: =SUMIF(Général!$E$33:$E$87,B18,Général!$G$33:$G$87) -> 0 | E18: =SUMIF(Général!$E$33:$E$87,B18,Général!$H$33:$H$87) -> 0 | F18: =SUMIF(Général!$E$33:$E$87,B18,Général!$I$33:$I$87) -> 0 | G18: =SUMIF(Général!$E$33:$E$87,B18,Général!$J$33:$J$87) -> 0 | H18: =SUMIF(Général!$E$33:$E$87,B18,Général!$K$33:$K$87) -> 0 | I18: =SUM(C18:H18) -> 0
B19: Total | C19: =SUM(C17:C18) -> 0 | D19: 0 | E19: 0 | F19: 0 | G19: 0 | H19: 0 | I19: =SUM(C19:H19) -> 0
B23: Ventilation par Partneraire / Lot
B25: Partenaire N° | C25: =Rates!P14 -> Préparation | D25: =Rates!P15 -> Développement | E25: =Rates!P16 -> Plan Qualité | F25: =Rates!P17 -> Diffusion et Exploitation des Résultats | G25: =Rates!P18 -> Gestion | H25: B. Mobilité(s) Spéciale(s) | I25: Total (EUR)
B26: P1 | C26: =SUMIFS('1. Frais de personnel'!S:S,'1. Frais de personnel'!C:C,B26,'1. Frais de personnel'!B:B,$C$25)+SUMIFS('2-3.Frais de voyage-séjour'!N:N,'2-3.Frais de voyage-séjour'!C:C,B26,'2-3.Frais de voyage-séjour'!B:B,$C$25)+SUMIFS('4. Equipement'!H:H,'4. Equipement'!C:C,B26,'4. Equipement'!B:B,$C$25)+SUMIFS('5. Sous-traitance'!H:H,'5. Sous-traitance'!C:C,B26,'5. Sous-traitance'!B:B,$C$25) -> 0 | D26: =SUMIFS('1. Frais de personnel'!S:S,'1. Frais de personnel'!C:C,B26,'1. Frais de personnel'!B:B,$D$25)+SUMIFS('2-3.Frais de voyage-séjour'!N:N,'2-3.Frais de voyage-séjour'!C:C,B26,'2-3.Frais de voyage-séjour'!B:B,$D$25)+SUMIFS('4. Equipement'!H:H,'4. Equipement'!C:C,B26,'4. Equipement'!B:B,$D$25)+SUMIFS('5. Sous-traitance'!H:H,'5. Sous-traitance'!C:C,B26,'5. Sous-traitance'!B:B,$D$25) -> 0 | E26: =SUMIFS('1. Frais de personnel'!S:S,'1. Frais de personnel'!C:C,B26,'1. Frais de personnel'!B:B,$E$25)+SUMIFS('2-3.Frais de voyage-séjour'!N:N,'2-3.Frais de voyage-séjour'!C:C,B26,'2-3.Frais de voyage-séjour'!B:B,$E$25)+SUMIFS('4. Equipement'!H:H,'4. Equipement'!C:C,B26,'4. Equipement'!B:B,$E$25)+SUMIFS('5. Sous-traitance'!H:H,'5. Sous-traitance'!C:C,B26,'5. Sous-traitance'!B:B,$E$25) -> 0 | F26: =SUMIFS('1. Frais de personnel'!S:S,'1. Frais de personnel'!C:C,B26,'1. Frais de personnel'!B:B,$B$8)+SUMIFS('2-3.Frais de voyage-séjour'!N:N,'2-3.Frais de voyage-séjour'!C:C,B26,'2-3.Frais de voyage-séjour'!B:B,$B$8)+SUMIFS('4. Equipement'!H:H,'4. Equipement'!C:C,B26,'4. Equipement'!B:B,$B$8)+SUMIFS('5. Sous-traitance'!H:H,'5. Sous-traitance'!C:C,B26,'5. Sous-traitance'!B:B,$B$8) -> 0 | G26: =SUMIFS('1. Frais de personnel'!S:S,'1. Frais de personnel'!C:C,B26,'1. Frais de personnel'!B:B,$G$25)+SUMIFS('2-3.Frais de voyage-séjour'!N:N,'2-3.Frais de voyage-séjour'!C:C,B26,'2-3.Frais de voyage-séjour'!B:B,$G$25)+SUMIFS('4. Equipement'!H:H,'4. Equipement'!C:C,B26,'4. Equipement'!B:B,$G$25)+SUMIFS('5. Sous-traitance'!H:H,'5. Sous-traitance'!C:C,B26,'5. Sous-traitance'!B:B,$G$25) -> 0 | H26: =SUMIF('B. Mobilité Spécial - Etudiant'!B:B,B26,'B. Mobilité Spécial - Etudiant'!N:N)+SUMIF('B. Mobilité Spécial - Personnel'!B:B,B26,'B. Mobilité Spécial - Personnel'!N:N) -> 0 | I26: =SUM(C26:H26) -> 0
B27: P2 | C27: =SUMIFS('1. Frais de personnel'!S:S,'1. Frais de personnel'!C:C,B27,'1. Frais de personnel'!B:B,$C$25)+SUMIFS('2-3.Frais de voyage-séjour'!N:N,'2-3.Frais de voyage-séjour'!C:C,B27,'2-3.Frais de voyage-séjour'!B:B,$C$25)+SUMIFS('4. Equipement'!H:H,'4. Equipement'!C:C,B27,'4. Equipement'!B:B,$C$25)+SUMIFS('5. Sous-traitance'!H:H,'5. Sous-traitance'!C:C,B27,'5. Sous-traitance'!B:B,$C$25) -> 0 | D27: =SUMIFS('1. Frais de personnel'!S:S,'1. Frais de personnel'!C:C,B27,'1. Frais de personnel'!B:B,$D$25)+SUMIFS('2-3.Frais de voyage-séjour'!N:N,'2-3.Frais de voyage-séjour'!C:C,B27,'2-3.Frais de voyage-séjour'!B:B,$D$25)+SUMIFS('4. Equipement'!H:H,'4. Equipement'!C:C,B27,'4. Equipement'!B:B,$D$25)+SUMIFS('5. Sous-traitance'!H:H,'5. Sous-traitance'!C:C,B27,'5. Sous-traitance'!B:B,$D$25) -> 0 | E27: =SUMIFS('1. Frais de personnel'!S:S,'1. Frais de personnel'!C:C,B27,'1. Frais de personnel'!B:B,$E$25)+SUMIFS('2-3.Frais de voyage-séjour'!N:N,'2-3.Frais de voyage-séjour'!C:C,B27,'2-3.Frais de voyage-séjour'!B:B,$E$25)+SUMIFS('4. Equipement'!H:H,'4. Equipement'!C:C,B27,'4. Equipement'!B:B,$E$25)+SUMIFS('5. Sous-traitance'!H:H,'5. Sous-traitance'!C:C,B27,'5. Sous-traitance'!B:B,$E$25) -> 0 | F27: =SUMIFS('1. Frais de personnel'!S:S,'1. Frais de personnel'!C:C,B27,'1. Frais de personnel'!B:B,$B$8)+SUMIFS('2-3.Frais de voyage-séjour'!N:N,'2-3.Frais de voyage-séjour'!C:C,B27,'2-3.Frais de voyage-séjour'!B:B,$B$8)+SUMIFS('4. Equipement'!H:H,'4. Equipement'!C:C,B27,'4. Equipement'!B:B,$B$8)+SUMIFS('5. Sous-traitance'!H:H,'5. Sous-traitance'!C:C,B27,'5. Sous-traitance'!B:B,$B$8) -> 0 | G27: =SUMIFS('1. Frais de personnel'!S:S,'1. Frais de personnel'!C:C,B27,'1. Frais de personnel'!B:B,$G$25)+SUMIFS('2-3.Frais de voyage-séjour'!N:N,'2-3.Frais de voyage-séjour'!C:C,B27,'2-3.Frais de voyage-séjour'!B:B,$G$25)+SUMIFS('4. Equipement'!H:H,'4. Equipement'!C:C,B27,'4. Equipement'!B:B,$G$25)+SUMIFS('5. Sous-traitance'!H:H,'5. Sous-traitance'!C:C,B27,'5. Sous-traitance'!B:B,$G$25) -> 0 | H27: =SUMIF('B. Mobilité Spécial - Etudiant'!B:B,B27,'B. Mobilité Spécial - Etudiant'!N:N)+SUMIF('B. Mobilité Spécial - Personnel'!B:B,B27,'B. Mobilité Spécial - Personnel'!N:N) -> 0 | I27: =SUM(C27:H27) -> 0
B28: P3 | C28: =SUMIFS('1. Frais de personnel'!S:S,'1. Frais de personnel'!C:C,B28,'1. Frais de personnel'!B:B,$C$25)+SUMIFS('2-3.Frais de voyage-séjour'!N:N,'2-3.Frais de voyage-séjour'!C:C,B28,'2-3.Frais de voyage-séjour'!B:B,$C$25)+SUMIFS('4. Equipement'!H:H,'4. Equipement'!C:C,B28,'4. Equipement'!B:B,$C$25)+SUMIFS('5. Sous-traitance'!H:H,'5. Sous-traitance'!C:C,B28,'5. Sous-traitance'!B:B,$C$25) -> 0 | D28: =SUMIFS('1. Frais de personnel'!S:S,'1. Frais de personnel'!C:C,B28,'1. Frais de personnel'!B:B,$D$25)+SUMIFS('2-3.Frais de voyage-séjour'!N:N,'2-3.Frais de voyage-séjour'!C:C,B28,'2-3.Frais de voyage-séjour'!B:B,$D$25)+SUMIFS('4. Equipement'!H:H,'4. Equipement'!C:C,B28,'4. Equipement'!B:B,$D$25)+SUMIFS('5. Sous-traitance'!H:H,'5. Sous-traitance'!C:C,B28,'5. Sous-traitance'!B:B,$D$25) -> 0 | E28: =SUMIFS('1. Frais de personnel'!S:S,'1. Frais de personnel'!C:C,B28,'1. Frais de personnel'!B:B,$E$25)+SUMIFS('2-3.Frais de voyage-séjour'!N:N,'2-3.Frais de voyage-séjour'!C:C,B28,'2-3.Frais de voyage-séjour'!B:B,$E$25)+SUMIFS('4. Equipement'!H:H,'4. Equipement'!C:C,B28,'4. Equipement'!B:B,$E$25)+SUMIFS('5. Sous-traitance'!H:H,'5. Sous-traitance'!C:C,B28,'5. Sous-traitance'!B:B,$E$25) -> 0 | F28: =SUMIFS('1. Frais de personnel'!S:S,'1. Frais de personnel'!C:C,B28,'1. Frais de personnel'!B:B,$B$8)+SUMIFS('2-3.Frais de voyage-séjour'!N:N,'2-3.Frais de voyage-séjour'!C:C,B28,'2-3.Frais de voyage-séjour'!B:B,$B$8)+SUMIFS('4. Equipement'!H:H,'4. Equipement'!C:C,B28,'4. Equipement'!B:B,$B$8)+SUMIFS('5. Sous-traitance'!H:H,'5. Sous-traitance'!C:C,B28,'5. Sous-traitance'!B:B,$B$8) -> 0 | G28: =SUMIFS('1. Frais de personnel'!S:S,'1. Frais de personnel'!C:C,B28,'1. Frais de personnel'!B:B,$G$25)+SUMIFS('2-3.Frais de voyage-séjour'!N:N,'2-3.Frais de voyage-séjour'!C:C,B28,'2-3.Frais de voyage-séjour'!B:B,$G$25)+SUMIFS('4. Equipement'!H:H,'4. Equipement'!C:C,B28,'4. Equipement'!B:B,$G$25)+SUMIFS('5. Sous-traitance'!H:H,'5. Sous-traitance'!C:C,B28,'5. Sous-traitance'!B:B,$G$25) -> 0 | H28: =SUMIF('B. Mobilité Spécial - Etudiant'!B:B,B28,'B. Mobilité Spécial - Etudiant'!N:N)+SUMIF('B. Mobilité Spécial - Personnel'!B:B,B28,'B. Mobilité Spécial - Personnel'!N:N) -> 0 | I28: 0
B29: P4 | C29: =SUMIFS('1. Frais de personnel'!S:S,'1. Frais de personnel'!C:C,B29,'1. Frais de personnel'!B:B,$C$25)+SUMIFS('2-3.Frais de voyage-séjour'!N:N,'2-3.Frais de voyage-séjour'!C:C,B29,'2-3.Frais de voyage-séjour'!B:B,$C$25)+SUMIFS('4. Equipement'!H:H,'4. Equipement'!C:C,B29,'4. Equipement'!B:B,$C$25)+SUMIFS('5. Sous-traitance'!H:H,'5. Sous-traitance'!C:C,B29,'5. Sous-traitance'!B:B,$C$25) -> 0 | D29: =SUMIFS('1. Frais de personnel'!S:S,'1. Frais de personnel'!C:C,B29,'1. Frais de personnel'!B:B,$D$25)+SUMIFS('2-3.Frais de voyage-séjour'!N:N,'2-3.Frais de voyage-séjour'!C:C,B29,'2-3.Frais de voyage-séjour'!B:B,$D$25)+SUMIFS('4. Equipement'!H:H,'4. Equipement'!C:C,B29,'4. Equipement'!B:B,$D$25)+SUMIFS('5. Sous-traitance'!H:H,'5. Sous-traitance'!C:C,B29,'5. Sous-traitance'!B:B,$D$25) -> 0 | E29: =SUMIFS('1. Frais de personnel'!S:S,'1. Frais de personnel'!C:C,B29,'1. Frais de personnel'!B:B,$E$25)+SUMIFS('2-3.Frais de voyage-séjour'!N:N,'2-3.Frais de voyage-séjour'!C:C,B29,'2-3.Frais de voyage-séjour'!B:B,$E$25)+SUMIFS('4. Equipement'!H:H,'4. Equipement'!C:C,B29,'4. Equipement'!B:B,$E$25)+SUMIFS('5. Sous-traitance'!H:H,'5. Sous-traitance'!C:C,B29,'5. Sous-traitance'!B:B,$E$25) -> 0 | F29: =SUMIFS('1. Frais de personnel'!S:S,'1. Frais de personnel'!C:C,B29,'1. Frais de personnel'!B:B,$B$8)+SUMIFS('2-3.Frais de voyage-séjour'!N:N,'2-3.Frais de voyage-séjour'!C:C,B29,'2-3.Frais de voyage-séjour'!B:B,$B$8)+SUMIFS('4. Equipement'!H:H,'4. Equipement'!C:C,B29,'4. Equipement'!B:B,$B$8)+SUMIFS('5. Sous-traitance'!H:H,'5. Sous-traitance'!C:C,B29,'5. Sous-traitance'!B:B,$B$8) -> 0 | G29: =SUMIFS('1. Frais de personnel'!S:S,'1. Frais de personnel'!C:C,B29,'1. Frais de personnel'!B:B,$G$25)+SUMIFS('2-3.Frais de voyage-séjour'!N:N,'2-3.Frais de voyage-séjour'!C:C,B29,'2-3.Frais de voyage-séjour'!B:B,$G$25)+SUMIFS('4. Equipement'!H:H,'4. Equipement'!C:C,B29,'4. Equipement'!B:B,$G$25)+SUMIFS('5. Sous-traitance'!H:H,'5. Sous-traitance'!C:C,B29,'5. Sous-traitance'!B:B,$G$25) -> 0 | H29: =SUMIF('B. Mobilité Spécial - Etudiant'!B:B,B29,'B. Mobilité Spécial - Etudiant'!N:N)+SUMIF('B. Mobilité Spécial - Personnel'!B:B,B29,'B. Mobilité Spécial - Personnel'!N:N) -> 0 | I29: 0
B30: P5 | C30: =SUMIFS('1. Frais de personnel'!S:S,'1. Frais de personnel'!C:C,B30,'1. Frais de personnel'!B:B,$C$25)+SUMIFS('2-3.Frais de voyage-séjour'!N:N,'2-3.Frais de voyage-séjour'!C:C,B30,'2-3.Frais de voyage-séjour'!B:B,$C$25)+SUMIFS('4. Equipement'!H:H,'4. Equipement'!C:C,B30,'4. Equipement'!B:B,$C$25)+SUMIFS('5. Sous-traitance'!H:H,'5. Sous-traitance'!C:C,B30,'5. Sous-traitance'!B:B,$C$25) -> 0 | D30: =SUMIFS('1. Frais de personnel'!S:S,'1. Frais de personnel'!C:C,B30,'1. Frais de personnel'!B:B,$D$25)+SUMIFS('2-3.Frais de voyage-séjour'!N:N,'2-3.Frais de voyage-séjour'!C:C,B30,'2-3.Frais de voyage-séjour'!B:B,$D$25)+SUMIFS('4. Equipement'!H:H,'4. Equipement'!C:C,B30,'4. Equipement'!B:B,$D$25)+SUMIFS('5. Sous-traitance'!H:H,'5. Sous-traitance'!C:C,B30,'5. Sous-traitance'!B:B,$D$25) -> 0 | E30: =SUMIFS('1. Frais de personnel'!S:S,'1. Frais de personnel'!C:C,B30,'1. Frais de personnel'!B:B,$E$25)+SUMIFS('2-3.Frais de voyage-séjour'!N:N,'2-3.Frais de voyage-séjour'!C:C,B30,'2-3.Frais de voyage-séjour'!B:B,$E$25)+SUMIFS('4. Equipement'!H:H,'4. Equipement'!C:C,B30,'4. Equipement'!B:B,$E$25)+SUMIFS('5. Sous-traitance'!H:H,'5. Sous-traitance'!C:C,B30,'5. Sous-traitance'!B:B,$E$25) -> 0 | F30: =SUMIFS('1. Frais de personnel'!S:S,'1. Frais de personnel'!C:C,B30,'1. Frais de personnel'!B:B,$B$8)+SUMIFS('2-3.Frais de voyage-séjour'!N:N,'2-3.Frais de voyage-séjour'!C:C,B30,'2-3.Frais de voyage-séjour'!B:B,$B$8)+SUMIFS('4. Equipement'!H:H,'4. Equipement'!C:C,B30,'4. Equipement'!B:B,$B$8)+SUMIFS('5. Sous-traitance'!H:H,'5. Sous-traitance'!C:C,B30,'5. Sous-traitance'!B:B,$B$8) -> 0 | G30: =SUMIFS('1. Frais de personnel'!S:S,'1. Frais de personnel'!C:C,B30,'1. Frais de personnel'!B:B,$G$25)+SUMIFS('2-3.Frais de voyage-séjour'!N:N,'2-3.Frais de voyage-séjour'!C:C,B30,'2-3.Frais de voyage-séjour'!B:B,$G$25)+SUMIFS('4. Equipement'!H:H,'4. Equipement'!C:C,B30,'4. Equipement'!B:B,$G$25)+SUMIFS('5. Sous-traitance'!H:H,'5. Sous-traitance'!C:C,B30,'5. Sous-traitance'!B:B,$G$25) -> 0 | H30: =SUMIF('B. Mobilité Spécial - Etudiant'!B:B,B30,'B. Mobilité Spécial - Etudiant'!N:N)+SUMIF('B. Mobilité Spécial - Personnel'!B:B,B30,'B. Mobilité Spécial - Personnel'!N:N) -> 0 | I30: 0
B31: P6 | C31: =SUMIFS('1. Frais de personnel'!S:S,'1. Frais de personnel'!C:C,B31,'1. Frais de personnel'!B:B,$C$25)+SUMIFS('2-3.Frais de voyage-séjour'!N:N,'2-3.Frais de voyage-séjour'!C:C,B31,'2-3.Frais de voyage-séjour'!B:B,$C$25)+SUMIFS('4. Equipement'!H:H,'4. Equipement'!C:C,B31,'4. Equipement'!B:B,$C$25)+SUMIFS('5. Sous-traitance'!H:H,'5. Sous-traitance'!C:C,B31,'5. Sous-traitance'!B:B,$C$25) -> 0 | D31: =SUMIFS('1. Frais de personnel'!S:S,'1. Frais de personnel'!C:C,B31,'1. Frais de personnel'!B:B,$D$25)+SUMIFS('2-3.Frais de voyage-séjour'!N:N,'2-3.Frais de voyage-séjour'!C:C,B31,'2-3.Frais de voyage-séjour'!B:B,$D$25)+SUMIFS('4. Equipement'!H:H,'4. Equipement'!C:C,B31,'4. Equipement'!B:B,$D$25)+SUMIFS('5. Sous-traitance'!H:H,'5. Sous-traitance'!C:C,B31,'5. Sous-traitance'!B:B,$D$25) -> 0 | E31: =SUMIFS('1. Frais de personnel'!S:S,'1. Frais de personnel'!C:C,B31,'1. Frais de personnel'!B:B,$E$25)+SUMIFS('2-3.Frais de voyage-séjour'!N:N,'2-3.Frais de voyage-séjour'!C:C,B31,'2-3.Frais de voyage-séjour'!B:B,$E$25)+SUMIFS('4. Equipement'!H:H,'4. Equipement'!C:C,B31,'4. Equipement'!B:B,$E$25)+SUMIFS('5. Sous-traitance'!H:H,'5. Sous-traitance'!C:C,B31,'5. Sous-traitance'!B:B,$E$25) -> 0 | F31: =SUMIFS('1. Frais de personnel'!S:S,'1. Frais de personnel'!C:C,B31,'1. Frais de personnel'!B:B,$B$8)+SUMIFS('2-3.Frais de voyage-séjour'!N:N,'2-3.Frais de voyage-séjour'!C:C,B31,'2-3.Frais de voyage-séjour'!B:B,$B$8)+SUMIFS('4. Equipement'!H:H,'4. Equipement'!C:C,B31,'4. Equipement'!B:B,$B$8)+SUMIFS('5. Sous-traitance'!H:H,'5. Sous-traitance'!C:C,B31,'5. Sous-traitance'!B:B,$B$8) -> 0 | G31: =SUMIFS('1. Frais de personnel'!S:S,'1. Frais de personnel'!C:C,B31,'1. Frais de personnel'!B:B,$G$25)+SUMIFS('2-3.Frais de voyage-séjour'!N:N,'2-3.Frais de voyage-séjour'!C:C,B31,'2-3.Frais de voyage-séjour'!B:B,$G$25)+SUMIFS('4. Equipement'!H:H,'4. Equipement'!C:C,B31,'4. Equipement'!B:B,$G$25)+SUMIFS('5. Sous-traitance'!H:H,'5. Sous-traitance'!C:C,B31,'5. Sous-traitance'!B:B,$G$25) -> 0 | H31: =SUMIF('B. Mobilité Spécial - Etudiant'!B:B,B31,'B. Mobilité Spécial - Etudiant'!N:N)+SUMIF('B. Mobilité Spécial - Personnel'!B:B,B31,'B. Mobilité Spécial - Personnel'!N:N) -> 0 | I31: 0
B32: P7 | C32: =SUMIFS('1. Frais de personnel'!S:S,'1. Frais de personnel'!C:C,B32,'1. Frais de personnel'!B:B,$C$25)+SUMIFS('2-3.Frais de voyage-séjour'!N:N,'2-3.Frais de voyage-séjour'!C:C,B32,'2-3.Frais de voyage-séjour'!B:B,$C$25)+SUMIFS('4. Equipement'!H:H,'4. Equipement'!C:C,B32,'4. Equipement'!B:B,$C$25)+SUMIFS('5. Sous-traitance'!H:H,'5. Sous-traitance'!C:C,B32,'5. Sous-traitance'!B:B,$C$25) -> 0 | D32: =SUMIFS('1. Frais de personnel'!S:S,'1. Frais de personnel'!C:C,B32,'1. Frais de personnel'!B:B,$D$25)+SUMIFS('2-3.Frais de voyage-séjour'!N:N,'2-3.Frais de voyage-séjour'!C:C,B32,'2-3.Frais de voyage-séjour'!B:B,$D$25)+SUMIFS('4. Equipement'!H:H,'4. Equipement'!C:C,B32,'4. Equipement'!B:B,$D$25)+SUMIFS('5. Sous-traitance'!H:H,'5. Sous-traitance'!C:C,B32,'5. Sous-traitance'!B:B,$D$25) -> 0 | E32: =SUMIFS('1. Frais de personnel'!S:S,'1. Frais de personnel'!C:C,B32,'1. Frais de personnel'!B:B,$E$25)+SUMIFS('2-3.Frais de voyage-séjour'!N:N,'2-3.Frais de voyage-séjour'!C:C,B32,'2-3.Frais de voyage-séjour'!B:B,$E$25)+SUMIFS('4. Equipement'!H:H,'4. Equipement'!C:C,B32,'4. Equipement'!B:B,$E$25)+SUMIFS('5. Sous-traitance'!H:H,'5. Sous-traitance'!C:C,B32,'5. Sous-traitance'!B:B,$E$25) -> 0 | F32: =SUMIFS('1. Frais de personnel'!S:S,'1. Frais de personnel'!C:C,B32,'1. Frais de personnel'!B:B,$B$8)+SUMIFS('2-3.Frais de voyage-séjour'!N:N,'2-3.Frais de voyage-séjour'!C:C,B32,'2-3.Frais de voyage-séjour'!B:B,$B$8)+SUMIFS('4. Equipement'!H:H,'4. Equipement'!C:C,B32,'4. Equipement'!B:B,$B$8)+SUMIFS('5. Sous-traitance'!H:H,'5. Sous-traitance'!C:C,B32,'5. Sous-traitance'!B:B,$B$8) -> 0 | G32: =SUMIFS('1. Frais de personnel'!S:S,'1. Frais de personnel'!C:C,B32,'1. Frais de personnel'!B:B,$G$25)+SUMIFS('2-3.Frais de voyage-séjour'!N:N,'2-3.Frais de voyage-séjour'!C:C,B32,'2-3.Frais de voyage-séjour'!B:B,$G$25)+SUMIFS('4. Equipement'!H:H,'4. Equipement'!C:C,B32,'4. Equipement'!B:B,$G$25)+SUMIFS('5. Sous-traitance'!H:H,'5. Sous-traitance'!C:C,B32,'5. Sous-traitance'!B:B,$G$25) -> 0 | H32: =SUMIF('B. Mobilité Spécial - Etudiant'!B:B,B32,'B. Mobilité Spécial - Etudiant'!N:N)+SUMIF('B. Mobilité Spécial - Personnel'!B:B,B32,'B. Mobilité Spécial - Personnel'!N:N) -> 0 | I32: 0
B33: P8 | C33: =SUMIFS('1. Frais de personnel'!S:S,'1. Frais de personnel'!C:C,B33,'1. Frais de personnel'!B:B,$C$25)+SUMIFS('2-3.Frais de voyage-séjour'!N:N,'2-3.Frais de voyage-séjour'!C:C,B33,'2-3.Frais de voyage-séjour'!B:B,$C$25)+SUMIFS('4. Equipement'!H:H,'4. Equipement'!C:C,B33,'4. Equipement'!B:B,$C$25)+SUMIFS('5. Sous-traitance'!H:H,'5. Sous-traitance'!C:C,B33,'5. Sous-traitance'!B:B,$C$25) -> 0 | D33: =SUMIFS('1. Frais de personnel'!S:S,'1. Frais de personnel'!C:C,B33,'1. Frais de personnel'!B:B,$D$25)+SUMIFS('2-3.Frais de voyage-séjour'!N:N,'2-3.Frais de voyage-séjour'!C:C,B33,'2-3.Frais de voyage-séjour'!B:B,$D$25)+SUMIFS('4. Equipement'!H:H,'4. Equipement'!C:C,B33,'4. Equipement'!B:B,$D$25)+SUMIFS('5. Sous-traitance'!H:H,'5. Sous-traitance'!C:C,B33,'5. Sous-traitance'!B:B,$D$25) -> 0 | E33: =SUMIFS('1. Frais de personnel'!S:S,'1. Frais de personnel'!C:C,B33,'1. Frais de personnel'!B:B,$E$25)+SUMIFS('2-3.Frais de voyage-séjour'!N:N,'2-3.Frais de voyage-séjour'!C:C,B33,'2-3.Frais de voyage-séjour'!B:B,$E$25)+SUMIFS('4. Equipement'!H:H,'4. Equipement'!C:C,B33,'4. Equipement'!B:B,$E$25)+SUMIFS('5. Sous-traitance'!H:H,'5. Sous-traitance'!C:C,B33,'5. Sous-traitance'!B:B,$E$25) -> 0 | F33: =SUMIFS('1. Frais de personnel'!S:S,'1. Frais de personnel'!C:C,B33,'1. Frais de personnel'!B:B,$B$8)+SUMIFS('2-3.Frais de voyage-séjour'!N:N,'2-3.Frais de voyage-séjour'!C:C,B33,'2-3.Frais de voyage-séjour'!B:B,$B$8)+SUMIFS('4. Equipement'!H:H,'4. Equipement'!C:C,B33,'4. Equipement'!B:B,$B$8)+SUMIFS('5. Sous-traitance'!H:H,'5. Sous-traitance'!C:C,B33,'5. Sous-traitance'!B:B,$B$8) -> 0 | G33: =SUMIFS('1. Frais de personnel'!S:S,'1. Frais de personnel'!C:C,B33,'1. Frais de personnel'!B:B,$G$25)+SUMIFS('2-3.Frais de voyage-séjour'!N:N,'2-3.Frais de voyage-séjour'!C:C,B33,'2-3.Frais de voyage-séjour'!B:B,$G$25)+SUMIFS('4. Equipement'!H:H,'4. Equipement'!C:C,B33,'4. Equipement'!B:B,$G$25)+SUMIFS('5. Sous-traitance'!H:H,'5. Sous-traitance'!C:C,B33,'5. Sous-traitance'!B:B,$G$25) -> 0 | H33: =SUMIF('B. Mobilité Spécial - Etudiant'!B:B,B33,'B. Mobilité Spécial - Etudiant'!N:N)+SUMIF('B. Mobilité Spécial - Personnel'!B:B,B33,'B. Mobilité Spécial - Personnel'!N:N) -> 0 | I33: 0
B34: P9 | C34: =SUMIFS('1. Frais de personnel'!S:S,'1. Frais de personnel'!C:C,B34,'1. Frais de personnel'!B:B,$C$25)+SUMIFS('2-3.Frais de voyage-séjour'!N:N,'2-3.Frais de voyage-séjour'!C:C,B34,'2-3.Frais de voyage-séjour'!B:B,$C$25)+SUMIFS('4. Equipement'!H:H,'4. Equipement'!C:C,B34,'4. Equipement'!B:B,$C$25)+SUMIFS('5. Sous-traitance'!H:H,'5. Sous-traitance'!C:C,B34,'5. Sous-traitance'!B:B,$C$25) -> 0 | D34: =SUMIFS('1. Frais de personnel'!S:S,'1. Frais de personnel'!C:C,B34,'1. Frais de personnel'!B:B,$D$25)+SUMIFS('2-3.Frais de voyage-séjour'!N:N,'2-3.Frais de voyage-séjour'!C:C,B34,'2-3.Frais de voyage-séjour'!B:B,$D$25)+SUMIFS('4. Equipement'!H:H,'4. Equipement'!C:C,B34,'4. Equipement'!B:B,$D$25)+SUMIFS('5. Sous-traitance'!H:H,'5. Sous-traitance'!C:C,B34,'5. Sous-traitance'!B:B,$D$25) -> 0 | E34: =SUMIFS('1. Frais de personnel'!S:S,'1. Frais de personnel'!C:C,B34,'1. Frais de personnel'!B:B,$E$25)+SUMIFS('2-3.Frais de voyage-séjour'!N:N,'2-3.Frais de voyage-séjour'!C:C,B34,'2-3.Frais de voyage-séjour'!B:B,$E$25)+SUMIFS('4. Equipement'!H:H,'4. Equipement'!C:C,B34,'4. Equipement'!B:B,$E$25)+SUMIFS('5. Sous-traitance'!H:H,'5. Sous-traitance'!C:C,B34,'5. Sous-traitance'!B:B,$E$25) -> 0 | F34: =SUMIFS('1. Frais de personnel'!S:S,'1. Frais de personnel'!C:C,B34,'1. Frais de personnel'!B:B,$B$8)+SUMIFS('2-3.Frais de voyage-séjour'!N:N,'2-3.Frais de voyage-séjour'!C:C,B34,'2-3.Frais de voyage-séjour'!B:B,$B$8)+SUMIFS('4. Equipement'!H:H,'4. Equipement'!C:C,B34,'4. Equipement'!B:B,$B$8)+SUMIFS('5. Sous-traitance'!H:H,'5. Sous-traitance'!C:C,B34,'5. Sous-traitance'!B:B,$B$8) -> 0 | G34: =SUMIFS('1. Frais de personnel'!S:S,'1. Frais de personnel'!C:C,B34,'1. Frais de personnel'!B:B,$G$25)+SUMIFS('2-3.Frais de voyage-séjour'!N:N,'2-3.Frais de voyage-séjour'!C:C,B34,'2-3.Frais de voyage-séjour'!B:B,$G$25)+SUMIFS('4. Equipement'!H:H,'4. Equipement'!C:C,B34,'4. Equipement'!B:B,$G$25)+SUMIFS('5. Sous-traitance'!H:H,'5. Sous-traitance'!C:C,B34,'5. Sous-traitance'!B:B,$G$25) -> 0 | H34: =SUMIF('B. Mobilité Spécial - Etudiant'!B:B,B34,'B. Mobilité Spécial - Etudiant'!N:N)+SUMIF('B. Mobilité Spécial - Personnel'!B:B,B34,'B. Mobilité Spécial - Personnel'!N:N) -> 0 | I34: 0
B35: P10 | C35: =SUMIFS('1. Frais de personnel'!S:S,'1. Frais de personnel'!C:C,B35,'1. Frais de personnel'!B:B,$C$25)+SUMIFS('2-3.Frais de voyage-séjour'!N:N,'2-3.Frais de voyage-séjour'!C:C,B35,'2-3.Frais de voyage-séjour'!B:B,$C$25)+SUMIFS('4. Equipement'!H:H,'4. Equipement'!C:C,B35,'4. Equipement'!B:B,$C$25)+SUMIFS('5. Sous-traitance'!H:H,'5. Sous-traitance'!C:C,B35,'5. Sous-traitance'!B:B,$C$25) -> 0 | D35: =SUMIFS('1. Frais de personnel'!S:S,'1. Frais de personnel'!C:C,B35,'1. Frais de personnel'!B:B,$D$25)+SUMIFS('2-3.Frais de voyage-séjour'!N:N,'2-3.Frais de voyage-séjour'!C:C,B35,'2-3.Frais de voyage-séjour'!B:B,$D$25)+SUMIFS('4. Equipement'!H:H,'4. Equipement'!C:C,B35,'4. Equipement'!B:B,$D$25)+SUMIFS('5. Sous-traitance'!H:H,'5. Sous-traitance'!C:C,B35,'5. Sous-traitance'!B:B,$D$25) -> 0 | E35: =SUMIFS('1. Frais de personnel'!S:S,'1. Frais de personnel'!C:C,B35,'1. Frais de personnel'!B:B,$E$25)+SUMIFS('2-3.Frais de voyage-séjour'!N:N,'2-3.Frais de voyage-séjour'!C:C,B35,'2-3.Frais de voyage-séjour'!B:B,$E$25)+SUMIFS('4. Equipement'!H:H,'4. Equipement'!C:C,B35,'4. Equipement'!B:B,$E$25)+SUMIFS('5. Sous-traitance'!H:H,'5. Sous-traitance'!C:C,B35,'5. Sous-traitance'!B:B,$E$25) -> 0 | F35: =SUMIFS('1. Frais de personnel'!S:S,'1. Frais de personnel'!C:C,B35,'1. Frais de personnel'!B:B,$B$8)+SUMIFS('2-3.Frais de voyage-séjour'!N:N,'2-3.Frais de voyage-séjour'!C:C,B35,'2-3.Frais de voyage-séjour'!B:B,$B$8)+SUMIFS('4. Equipement'!H:H,'4. Equipement'!C:C,B35,'4. Equipement'!B:B,$B$8)+SUMIFS('5. Sous-traitance'!H:H,'5. Sous-traitance'!C:C,B35,'5. Sous-traitance'!B:B,$B$8) -> 0 | G35: =SUMIFS('1. Frais de personnel'!S:S,'1. Frais de personnel'!C:C,B35,'1. Frais de personnel'!B:B,$G$25)+SUMIFS('2-3.Frais de voyage-séjour'!N:N,'2-3.Frais de voyage-séjour'!C:C,B35,'2-3.Frais de voyage-séjour'!B:B,$G$25)+SUMIFS('4. Equipement'!H:H,'4. Equipement'!C:C,B35,'4. Equipement'!B:B,$G$25)+SUMIFS('5. Sous-traitance'!H:H,'5. Sous-traitance'!C:C,B35,'5. Sous-traitance'!B:B,$G$25) -> 0 | H35: =SUMIF('B. Mobilité Spécial - Etudiant'!B:B,B35,'B. Mobilité Spécial - Etudiant'!N:N)+SUMIF('B. Mobilité Spécial - Personnel'!B:B,B35,'B. Mobilité Spécial - Personnel'!N:N) -> 0 | I35: 0
B36: P11 | C36: =SUMIFS('1. Frais de personnel'!S:S,'1. Frais de personnel'!C:C,B36,'1. Frais de personnel'!B:B,$C$25)+SUMIFS('2-3.Frais de voyage-séjour'!N:N,'2-3.Frais de voyage-séjour'!C:C,B36,'2-3.Frais de voyage-séjour'!B:B,$C$25)+SUMIFS('4. Equipement'!H:H,'4. Equipement'!C:C,B36,'4. Equipement'!B:B,$C$25)+SUMIFS('5. Sous-traitance'!H:H,'5. Sous-traitance'!C:C,B36,'5. Sous-traitance'!B:B,$C$25) -> 0 | D36: =SUMIFS('1. Frais de personnel'!S:S,'1. Frais de personnel'!C:C,B36,'1. Frais de personnel'!B:B,$D$25)+SUMIFS('2-3.Frais de voyage-séjour'!N:N,'2-3.Frais de voyage-séjour'!C:C,B36,'2-3.Frais de voyage-séjour'!B:B,$D$25)+SUMIFS('4. Equipement'!H:H,'4. Equipement'!C:C,B36,'4. Equipement'!B:B,$D$25)+SUMIFS('5. Sous-traitance'!H:H,'5. Sous-traitance'!C:C,B36,'5. Sous-traitance'!B:B,$D$25) -> 0 | E36: =SUMIFS('1. Frais de personnel'!S:S,'1. Frais de personnel'!C:C,B36,'1. Frais de personnel'!B:B,$E$25)+SUMIFS('2-3.Frais de voyage-séjour'!N:N,'2-3.Frais de voyage-séjour'!C:C,B36,'2-3.Frais de voyage-séjour'!B:B,$E$25)+SUMIFS('4. Equipement'!H:H,'4. Equipement'!C:C,B36,'4. Equipement'!B:B,$E$25)+SUMIFS('5. Sous-traitance'!H:H,'5. Sous-traitance'!C:C,B36,'5. Sous-traitance'!B:B,$E$25) -> 0 | F36: =SUMIFS('1. Frais de personnel'!S:S,'1. Frais de personnel'!C:C,B36,'1. Frais de personnel'!B:B,$B$8)+SUMIFS('2-3.Frais de voyage-séjour'!N:N,'2-3.Frais de voyage-séjour'!C:C,B36,'2-3.Frais de voyage-séjour'!B:B,$B$8)+SUMIFS('4. Equipement'!H:H,'4. Equipement'!C:C,B36,'4. Equipement'!B:B,$B$8)+SUMIFS('5. Sous-traitance'!H:H,'5. Sous-traitance'!C:C,B36,'5. Sous-traitance'!B:B,$B$8) -> 0 | G36: =SUMIFS('1. Frais de personnel'!S:S,'1. Frais de personnel'!C:C,B36,'1. Frais de personnel'!B:B,$G$25)+SUMIFS('2-3.Frais de voyage-séjour'!N:N,'2-3.Frais de voyage-séjour'!C:C,B36,'2-3.Frais de voyage-séjour'!B:B,$G$25)+SUMIFS('4. Equipement'!H:H,'4. Equipement'!C:C,B36,'4. Equipement'!B:B,$G$25)+SUMIFS('5. Sous-traitance'!H:H,'5. Sous-traitance'!C:C,B36,'5. Sous-traitance'!B:B,$G$25) -> 0 | H36: =SUMIF('B. Mobilité Spécial - Etudiant'!B:B,B36,'B. Mobilité Spécial - Etudiant'!N:N)+SUMIF('B. Mobilité Spécial - Personnel'!B:B,B36,'B. Mobilité Spécial - Personnel'!N:N) -> 0 | I36: 0
B37: P12 | C37: =SUMIFS('1. Frais de personnel'!S:S,'1. Frais de personnel'!C:C,B37,'1. Frais de personnel'!B:B,$C$25)+SUMIFS('2-3.Frais de voyage-séjour'!N:N,'2-3.Frais de voyage-séjour'!C:C,B37,'2-3.Frais de voyage-séjour'!B:B,$C$25)+SUMIFS('4. Equipement'!H:H,'4. Equipement'!C:C,B37,'4. Equipement'!B:B,$C$25)+SUMIFS('5. Sous-traitance'!H:H,'5. Sous-traitance'!C:C,B37,'5. Sous-traitance'!B:B,$C$25) -> 0 | D37: =SUMIFS('1. Frais de personnel'!S:S,'1. Frais de personnel'!C:C,B37,'1. Frais de personnel'!B:B,$D$25)+SUMIFS('2-3.Frais de voyage-séjour'!N:N,'2-3.Frais de voyage-séjour'!C:C,B37,'2-3.Frais de voyage-séjour'!B:B,$D$25)+SUMIFS('4. Equipement'!H:H,'4. Equipement'!C:C,B37,'4. Equipement'!B:B,$D$25)+SUMIFS('5. Sous-traitance'!H:H,'5. Sous-traitance'!C:C,B37,'5. Sous-traitance'!B:B,$D$25) -> 0 | E37: =SUMIFS('1. Frais de personnel'!S:S,'1. Frais de personnel'!C:C,B37,'1. Frais de personnel'!B:B,$E$25)+SUMIFS('2-3.Frais de voyage-séjour'!N:N,'2-3.Frais de voyage-séjour'!C:C,B37,'2-3.Frais de voyage-séjour'!B:B,$E$25)+SUMIFS('4. Equipement'!H:H,'4. Equipement'!C:C,B37,'4. Equipement'!B:B,$E$25)+SUMIFS('5. Sous-traitance'!H:H,'5. Sous-traitance'!C:C,B37,'5. Sous-traitance'!B:B,$E$25) -> 0 | F37: =SUMIFS('1. Frais de personnel'!S:S,'1. Frais de personnel'!C:C,B37,'1. Frais de personnel'!B:B,$B$8)+SUMIFS('2-3.Frais de voyage-séjour'!N:N,'2-3.Frais de voyage-séjour'!C:C,B37,'2-3.Frais de voyage-séjour'!B:B,$B$8)+SUMIFS('4. Equipement'!H:H,'4. Equipement'!C:C,B37,'4. Equipement'!B:B,$B$8)+SUMIFS('5. Sous-traitance'!H:H,'5. Sous-traitance'!C:C,B37,'5. Sous-traitance'!B:B,$B$8) -> 0 | G37: =SUMIFS('1. Frais de personnel'!S:S,'1. Frais de personnel'!C:C,B37,'1. Frais de personnel'!B:B,$G$25)+SUMIFS('2-3.Frais de voyage-séjour'!N:N,'2-3.Frais de voyage-séjour'!C:C,B37,'2-3.Frais de voyage-séjour'!B:B,$G$25)+SUMIFS('4. Equipement'!H:H,'4. Equipement'!C:C,B37,'4. Equipement'!B:B,$G$25)+SUMIFS('5. Sous-traitance'!H:H,'5. Sous-traitance'!C:C,B37,'5. Sous-traitance'!B:B,$G$25) -> 0 | H37: =SUMIF('B. Mobilité Spécial - Etudiant'!B:B,B37,'B. Mobilité Spécial - Etudiant'!N:N)+SUMIF('B. Mobilité Spécial - Personnel'!B:B,B37,'B. Mobilité Spécial - Personnel'!N:N) -> 0 | I37: 0
B38: P13 | C38: =SUMIFS('1. Frais de personnel'!S:S,'1. Frais de personnel'!C:C,B38,'1. Frais de personnel'!B:B,$C$25)+SUMIFS('2-3.Frais de voyage-séjour'!N:N,'2-3.Frais de voyage-séjour'!C:C,B38,'2-3.Frais de voyage-séjour'!B:B,$C$25)+SUMIFS('4. Equipement'!H:H,'4. Equipement'!C:C,B38,'4. Equipement'!B:B,$C$25)+SUMIFS('5. Sous-traitance'!H:H,'5. Sous-traitance'!C:C,B38,'5. Sous-traitance'!B:B,$C$25) -> 0 | D38: =SUMIFS('1. Frais de personnel'!S:S,'1. Frais de personnel'!C:C,B38,'1. Frais de personnel'!B:B,$D$25)+SUMIFS('2-3.Frais de voyage-séjour'!N:N,'2-3.Frais de voyage-séjour'!C:C,B38,'2-3.Frais de voyage-séjour'!B:B,$D$25)+SUMIFS('4. Equipement'!H:H,'4. Equipement'!C:C,B38,'4. Equipement'!B:B,$D$25)+SUMIFS('5. Sous-traitance'!H:H,'5. Sous-traitance'!C:C,B38,'5. Sous-traitance'!B:B,$D$25) -> 0 | E38: =SUMIFS('1. Frais de personnel'!S:S,'1. Frais de personnel'!C:C,B38,'1. Frais de personnel'!B:B,$E$25)+SUMIFS('2-3.Frais de voyage-séjour'!N:N,'2-3.Frais de voyage-séjour'!C:C,B38,'2-3.Frais de voyage-séjour'!B:B,$E$25)+SUMIFS('4. Equipement'!H:H,'4. Equipement'!C:C,B38,'4. Equipement'!B:B,$E$25)+SUMIFS('5. Sous-traitance'!H:H,'5. Sous-traitance'!C:C,B38,'5. Sous-traitance'!B:B,$E$25) -> 0 | F38: =SUMIFS('1. Frais de personnel'!S:S,'1. Frais de personnel'!C:C,B38,'1. Frais de personnel'!B:B,$B$8)+SUMIFS('2-3.Frais de voyage-séjour'!N:N,'2-3.Frais de voyage-séjour'!C:C,B38,'2-3.Frais de voyage-séjour'!B:B,$B$8)+SUMIFS('4. Equipement'!H:H,'4. Equipement'!C:C,B38,'4. Equipement'!B:B,$B$8)+SUMIFS('5. Sous-traitance'!H:H,'5. Sous-traitance'!C:C,B38,'5. Sous-traitance'!B:B,$B$8) -> 0 | G38: =SUMIFS('1. Frais de personnel'!S:S,'1. Frais de personnel'!C:C,B38,'1. Frais de personnel'!B:B,$G$25)+SUMIFS('2-3.Frais de voyage-séjour'!N:N,'2-3.Frais de voyage-séjour'!C:C,B38,'2-3.Frais de voyage-séjour'!B:B,$G$25)+SUMIFS('4. Equipement'!H:H,'4. Equipement'!C:C,B38,'4. Equipement'!B:B,$G$25)+SUMIFS('5. Sous-traitance'!H:H,'5. Sous-traitance'!C:C,B38,'5. Sous-traitance'!B:B,$G$25) -> 0 | H38: =SUMIF('B. Mobilité Spécial - Etudiant'!B:B,B38,'B. Mobilité Spécial - Etudiant'!N:N)+SUMIF('B. Mobilité Spécial - Personnel'!B:B,B38,'B. Mobilité Spécial - Personnel'!N:N) -> 0 | I38: 0
B39: P14 | C39: =SUMIFS('1. Frais de personnel'!S:S,'1. Frais de personnel'!C:C,B39,'1. Frais de personnel'!B:B,$C$25)+SUMIFS('2-3.Frais de voyage-séjour'!N:N,'2-3.Frais de voyage-séjour'!C:C,B39,'2-3.Frais de voyage-séjour'!B:B,$C$25)+SUMIFS('4. Equipement'!H:H,'4. Equipement'!C:C,B39,'4. Equipement'!B:B,$C$25)+SUMIFS('5. Sous-traitance'!H:H,'5. Sous-traitance'!C:C,B39,'5. Sous-traitance'!B:B,$C$25) -> 0 | D39: =SUMIFS('1. Frais de personnel'!S:S,'1. Frais de personnel'!C:C,B39,'1. Frais de personnel'!B:B,$D$25)+SUMIFS('2-3.Frais de voyage-séjour'!N:N,'2-3.Frais de voyage-séjour'!C:C,B39,'2-3.Frais de voyage-séjour'!B:B,$D$25)+SUMIFS('4. Equipement'!H:H,'4. Equipement'!C:C,B39,'4. Equipement'!B:B,$D$25)+SUMIFS('5. Sous-traitance'!H:H,'5. Sous-traitance'!C:C,B39,'5. Sous-traitance'!B:B,$D$25) -> 0 | E39: =SUMIFS('1. Frais de personnel'!S:S,'1. Frais de personnel'!C:C,B39,'1. Frais de personnel'!B:B,$E$25)+SUMIFS('2-3.Frais de voyage-séjour'!N:N,'2-3.Frais de voyage-séjour'!C:C,B39,'2-3.Frais de voyage-séjour'!B:B,$E$25)+SUMIFS('4. Equipement'!H:H,'4. Equipement'!C:C,B39,'4. Equipement'!B:B,$E$25)+SUMIFS('5. Sous-traitance'!H:H,'5. Sous-traitance'!C:C,B39,'5. Sous-traitance'!B:B,$E$25) -> 0 | F39: =SUMIFS('1. Frais de personnel'!S:S,'1. Frais de personnel'!C:C,B39,'1. Frais de personnel'!B:B,$B$8)+SUMIFS('2-3.Frais de voyage-séjour'!N:N,'2-3.Frais de voyage-séjour'!C:C,B39,'2-3.Frais de voyage-séjour'!B:B,$B$8)+SUMIFS('4. Equipement'!H:H,'4. Equipement'!C:C,B39,'4. Equipement'!B:B,$B$8)+SUMIFS('5. Sous-traitance'!H:H,'5. Sous-traitance'!C:C,B39,'5. Sous-traitance'!B:B,$B$8) -> 0 | G39: =SUMIFS('1. Frais de personnel'!S:S,'1. Frais de personnel'!C:C,B39,'1. Frais de personnel'!B:B,$G$25)+SUMIFS('2-3.Frais de voyage-séjour'!N:N,'2-3.Frais de voyage-séjour'!C:C,B39,'2-3.Frais de voyage-séjour'!B:B,$G$25)+SUMIFS('4. Equipement'!H:H,'4. Equipement'!C:C,B39,'4. Equipement'!B:B,$G$25)+SUMIFS('5. Sous-traitance'!H:H,'5. Sous-traitance'!C:C,B39,'5. Sous-traitance'!B:B,$G$25) -> 0 | H39: =SUMIF('B. Mobilité Spécial - Etudiant'!B:B,B39,'B. Mobilité Spécial - Etudiant'!N:N)+SUMIF('B. Mobilité Spécial - Personnel'!B:B,B39,'B. Mobilité Spécial - Personnel'!N:N) -> 0 | I39: 0
B40: P15 | C40: =SUMIFS('1. Frais de personnel'!S:S,'1. Frais de personnel'!C:C,B40,'1. Frais de personnel'!B:B,$C$25)+SUMIFS('2-3.Frais de voyage-séjour'!N:N,'2-3.Frais de voyage-séjour'!C:C,B40,'2-3.Frais de voyage-séjour'!B:B,$C$25)+SUMIFS('4. Equipement'!H:H,'4. Equipement'!C:C,B40,'4. Equipement'!B:B,$C$25)+SUMIFS('5. Sous-traitance'!H:H,'5. Sous-traitance'!C:C,B40,'5. Sous-traitance'!B:B,$C$25) -> 0 | D40: =SUMIFS('1. Frais de personnel'!S:S,'1. Frais de personnel'!C:C,B40,'1. Frais de personnel'!B:B,$D$25)+SUMIFS('2-3.Frais de voyage-séjour'!N:N,'2-3.Frais de voyage-séjour'!C:C,B40,'2-3.Frais de voyage-séjour'!B:B,$D$25)+SUMIFS('4. Equipement'!H:H,'4. Equipement'!C:C,B40,'4. Equipement'!B:B,$D$25)+SUMIFS('5. Sous-traitance'!H:H,'5. Sous-traitance'!C:C,B40,'5. Sous-traitance'!B:B,$D$25) -> 0 | E40: =SUMIFS('1. Frais de personnel'!S:S,'1. Frais de personnel'!C:C,B40,'1. Frais de personnel'!B:B,$E$25)+SUMIFS('2-3.Frais de voyage-séjour'!N:N,'2-3.Frais de voyage-séjour'!C:C,B40,'2-3.Frais de voyage-séjour'!B:B,$E$25)+SUMIFS('4. Equipement'!H:H,'4. Equipement'!C:C,B40,'4. Equipement'!B:B,$E$25)+SUMIFS('5. Sous-traitance'!H:H,'5. Sous-traitance'!C:C,B40,'5. Sous-traitance'!B:B,$E$25) -> 0 | F40: =SUMIFS('1. Frais de personnel'!S:S,'1. Frais de personnel'!C:C,B40,'1. Frais de personnel'!B:B,$B$8)+SUMIFS('2-3.Frais de voyage-séjour'!N:N,'2-3.Frais de voyage-séjour'!C:C,B40,'2-3.Frais de voyage-séjour'!B:B,$B$8)+SUMIFS('4. Equipement'!H:H,'4. Equipement'!C:C,B40,'4. Equipement'!B:B,$B$8)+SUMIFS('5. Sous-traitance'!H:H,'5. Sous-traitance'!C:C,B40,'5. Sous-traitance'!B:B,$B$8) -> 0 | G40: =SUMIFS('1. Frais de personnel'!S:S,'1. Frais de personnel'!C:C,B40,'1. Frais de personnel'!B:B,$G$25)+SUMIFS('2-3.Frais de voyage-séjour'!N:N,'2-3.Frais de voyage-séjour'!C:C,B40,'2-3.Frais de voyage-séjour'!B:B,$G$25)+SUMIFS('4. Equipement'!H:H,'4. Equipement'!C:C,B40,'4. Equipement'!B:B,$G$25)+SUMIFS('5. Sous-traitance'!H:H,'5. Sous-traitance'!C:C,B40,'5. Sous-traitance'!B:B,$G$25) -> 0 | H40: =SUMIF('B. Mobilité Spécial - Etudiant'!B:B,B40,'B. Mobilité Spécial - Etudiant'!N:N)+SUMIF('B. Mobilité Spécial - Personnel'!B:B,B40,'B. Mobilité Spécial - Personnel'!N:N) -> 0 | I40: 0
B41: P16 | C41: =SUMIFS('1. Frais de personnel'!S:S,'1. Frais de personnel'!C:C,B41,'1. Frais de personnel'!B:B,$C$25)+SUMIFS('2-3.Frais de voyage-séjour'!N:N,'2-3.Frais de voyage-séjour'!C:C,B41,'2-3.Frais de voyage-séjour'!B:B,$C$25)+SUMIFS('4. Equipement'!H:H,'4. Equipement'!C:C,B41,'4. Equipement'!B:B,$C$25)+SUMIFS('5. Sous-traitance'!H:H,'5. Sous-traitance'!C:C,B41,'5. Sous-traitance'!B:B,$C$25) -> 0 | D41: =SUMIFS('1. Frais de personnel'!S:S,'1. Frais de personnel'!C:C,B41,'1. Frais de personnel'!B:B,$D$25)+SUMIFS('2-3.Frais de voyage-séjour'!N:N,'2-3.Frais de voyage-séjour'!C:C,B41,'2-3.Frais de voyage-séjour'!B:B,$D$25)+SUMIFS('4. Equipement'!H:H,'4. Equipement'!C:C,B41,'4. Equipement'!B:B,$D$25)+SUMIFS('5. Sous-traitance'!H:H,'5. Sous-traitance'!C:C,B41,'5. Sous-traitance'!B:B,$D$25) -> 0 | E41: =SUMIFS('1. Frais de personnel'!S:S,'1. Frais de personnel'!C:C,B41,'1. Frais de personnel'!B:B,$E$25)+SUMIFS('2-3.Frais de voyage-séjour'!N:N,'2-3.Frais de voyage-séjour'!C:C,B41,'2-3.Frais de voyage-séjour'!B:B,$E$25)+SUMIFS('4. Equipement'!H:H,'4. Equipement'!C:C,B41,'4. Equipement'!B:B,$E$25)+SUMIFS('5. Sous-traitance'!H:H,'5. Sous-traitance'!C:C,B41,'5. Sous-traitance'!B:B,$E$25) -> 0 | F41: =SUMIFS('1. Frais de personnel'!S:S,'1. Frais de personnel'!C:C,B41,'1. Frais de personnel'!B:B,$B$8)+SUMIFS('2-3.Frais de voyage-séjour'!N:N,'2-3.Frais de voyage-séjour'!C:C,B41,'2-3.Frais de voyage-séjour'!B:B,$B$8)+SUMIFS('4. Equipement'!H:H,'4. Equipement'!C:C,B41,'4. Equipement'!B:B,$B$8)+SUMIFS('5. Sous-traitance'!H:H,'5. Sous-traitance'!C:C,B41,'5. Sous-traitance'!B:B,$B$8) -> 0 | G41: =SUMIFS('1. Frais de personnel'!S:S,'1. Frais de personnel'!C:C,B41,'1. Frais de personnel'!B:B,$G$25)+SUMIFS('2-3.Frais de voyage-séjour'!N:N,'2-3.Frais de voyage-séjour'!C:C,B41,'2-3.Frais de voyage-séjour'!B:B,$G$25)+SUMIFS('4. Equipement'!H:H,'4. Equipement'!C:C,B41,'4. Equipement'!B:B,$G$25)+SUMIFS('5. Sous-traitance'!H:H,'5. Sous-traitance'!C:C,B41,'5. Sous-traitance'!B:B,$G$25) -> 0 | H41: =SUMIF('B. Mobilité Spécial - Etudiant'!B:B,B41,'B. Mobilité Spécial - Etudiant'!N:N)+SUMIF('B. Mobilité Spécial - Personnel'!B:B,B41,'B. Mobilité Spécial - Personnel'!N:N) -> 0 | I41: 0
B42: P17 | C42: =SUMIFS('1. Frais de personnel'!S:S,'1. Frais de personnel'!C:C,B42,'1. Frais de personnel'!B:B,$C$25)+SUMIFS('2-3.Frais de voyage-séjour'!N:N,'2-3.Frais de voyage-séjour'!C:C,B42,'2-3.Frais de voyage-séjour'!B:B,$C$25)+SUMIFS('4. Equipement'!H:H,'4. Equipement'!C:C,B42,'4. Equipement'!B:B,$C$25)+SUMIFS('5. Sous-traitance'!H:H,'5. Sous-traitance'!C:C,B42,'5. Sous-traitance'!B:B,$C$25) -> 0 | D42: =SUMIFS('1. Frais de personnel'!S:S,'1. Frais de personnel'!C:C,B42,'1. Frais de personnel'!B:B,$D$25)+SUMIFS('2-3.Frais de voyage-séjour'!N:N,'2-3.Frais de voyage-séjour'!C:C,B42,'2-3.Frais de voyage-séjour'!B:B,$D$25)+SUMIFS('4. Equipement'!H:H,'4. Equipement'!C:C,B42,'4. Equipement'!B:B,$D$25)+SUMIFS('5. Sous-traitance'!H:H,'5. Sous-traitance'!C:C,B42,'5. Sous-traitance'!B:B,$D$25) -> 0 | E42: =SUMIFS('1. Frais de personnel'!S:S,'1. Frais de personnel'!C:C,B42,'1. Frais de personnel'!B:B,$E$25)+SUMIFS('2-3.Frais de voyage-séjour'!N:N,'2-3.Frais de voyage-séjour'!C:C,B42,'2-3.Frais de voyage-séjour'!B:B,$E$25)+SUMIFS('4. Equipement'!H:H,'4. Equipement'!C:C,B42,'4. Equipement'!B:B,$E$25)+SUMIFS('5. Sous-traitance'!H:H,'5. Sous-traitance'!C:C,B42,'5. Sous-traitance'!B:B,$E$25) -> 0 | F42: =SUMIFS('1. Frais de personnel'!S:S,'1. Frais de personnel'!C:C,B42,'1. Frais de personnel'!B:B,$B$8)+SUMIFS('2-3.Frais de voyage-séjour'!N:N,'2-3.Frais de voyage-séjour'!C:C,B42,'2-3.Frais de voyage-séjour'!B:B,$B$8)+SUMIFS('4. Equipement'!H:H,'4. Equipement'!C:C,B42,'4. Equipement'!B:B,$B$8)+SUMIFS('5. Sous-traitance'!H:H,'5. Sous-traitance'!C:C,B42,'5. Sous-traitance'!B:B,$B$8) -> 0 | G42: =SUMIFS('1. Frais de personnel'!S:S,'1. Frais de personnel'!C:C,B42,'1. Frais de personnel'!B:B,$G$25)+SUMIFS('2-3.Frais de voyage-séjour'!N:N,'2-3.Frais de voyage-séjour'!C:C,B42,'2-3.Frais de voyage-séjour'!B:B,$G$25)+SUMIFS('4. Equipement'!H:H,'4. Equipement'!C:C,B42,'4. Equipement'!B:B,$G$25)+SUMIFS('5. Sous-traitance'!H:H,'5. Sous-traitance'!C:C,B42,'5. Sous-traitance'!B:B,$G$25) -> 0 | H42: =SUMIF('B. Mobilité Spécial - Etudiant'!B:B,B42,'B. Mobilité Spécial - Etudiant'!N:N)+SUMIF('B. Mobilité Spécial - Personnel'!B:B,B42,'B. Mobilité Spécial - Personnel'!N:N) -> 0 | I42: 0
B43: P18 | C43: =SUMIFS('1. Frais de personnel'!S:S,'1. Frais de personnel'!C:C,B43,'1. Frais de personnel'!B:B,$C$25)+SUMIFS('2-3.Frais de voyage-séjour'!N:N,'2-3.Frais de voyage-séjour'!C:C,B43,'2-3.Frais de voyage-séjour'!B:B,$C$25)+SUMIFS('4. Equipement'!H:H,'4. Equipement'!C:C,B43,'4. Equipement'!B:B,$C$25)+SUMIFS('5. Sous-traitance'!H:H,'5. Sous-traitance'!C:C,B43,'5. Sous-traitance'!B:B,$C$25) -> 0 | D43: =SUMIFS('1. Frais de personnel'!S:S,'1. Frais de personnel'!C:C,B43,'1. Frais de personnel'!B:B,$D$25)+SUMIFS('2-3.Frais de voyage-séjour'!N:N,'2-3.Frais de voyage-séjour'!C:C,B43,'2-3.Frais de voyage-séjour'!B:B,$D$25)+SUMIFS('4. Equipement'!H:H,'4. Equipement'!C:C,B43,'4. Equipement'!B:B,$D$25)+SUMIFS('5. Sous-traitance'!H:H,'5. Sous-traitance'!C:C,B43,'5. Sous-traitance'!B:B,$D$25) -> 0 | E43: =SUMIFS('1. Frais de personnel'!S:S,'1. Frais de personnel'!C:C,B43,'1. Frais de personnel'!B:B,$E$25)+SUMIFS('2-3.Frais de voyage-séjour'!N:N,'2-3.Frais de voyage-séjour'!C:C,B43,'2-3.Frais de voyage-séjour'!B:B,$E$25)+SUMIFS('4. Equipement'!H:H,'4. Equipement'!C:C,B43,'4. Equipement'!B:B,$E$25)+SUMIFS('5. Sous-traitance'!H:H,'5. Sous-traitance'!C:C,B43,'5. Sous-traitance'!B:B,$E$25) -> 0 | F43: =SUMIFS('1. Frais de personnel'!S:S,'1. Frais de personnel'!C:C,B43,'1. Frais de personnel'!B:B,$B$8)+SUMIFS('2-3.Frais de voyage-séjour'!N:N,'2-3.Frais de voyage-séjour'!C:C,B43,'2-3.Frais de voyage-séjour'!B:B,$B$8)+SUMIFS('4. Equipement'!H:H,'4. Equipement'!C:C,B43,'4. Equipement'!B:B,$B$8)+SUMIFS('5. Sous-traitance'!H:H,'5. Sous-traitance'!C:C,B43,'5. Sous-traitance'!B:B,$B$8) -> 0 | G43: =SUMIFS('1. Frais de personnel'!S:S,'1. Frais de personnel'!C:C,B43,'1. Frais de personnel'!B:B,$G$25)+SUMIFS('2-3.Frais de voyage-séjour'!N:N,'2-3.Frais de voyage-séjour'!C:C,B43,'2-3.Frais de voyage-séjour'!B:B,$G$25)+SUMIFS('4. Equipement'!H:H,'4. Equipement'!C:C,B43,'4. Equipement'!B:B,$G$25)+SUMIFS('5. Sous-traitance'!H:H,'5. Sous-traitance'!C:C,B43,'5. Sous-traitance'!B:B,$G$25) -> 0 | H43: =SUMIF('B. Mobilité Spécial - Etudiant'!B:B,B43,'B. Mobilité Spécial - Etudiant'!N:N)+SUMIF('B. Mobilité Spécial - Personnel'!B:B,B43,'B. Mobilité Spécial - Personnel'!N:N) -> 0 | I43: 0
B44: P19 | C44: =SUMIFS('1. Frais de personnel'!S:S,'1. Frais de personnel'!C:C,B44,'1. Frais de personnel'!B:B,$C$25)+SUMIFS('2-3.Frais de voyage-séjour'!N:N,'2-3.Frais de voyage-séjour'!C:C,B44,'2-3.Frais de voyage-séjour'!B:B,$C$25)+SUMIFS('4. Equipement'!H:H,'4. Equipement'!C:C,B44,'4. Equipement'!B:B,$C$25)+SUMIFS('5. Sous-traitance'!H:H,'5. Sous-traitance'!C:C,B44,'5. Sous-traitance'!B:B,$C$25) -> 0 | D44: =SUMIFS('1. Frais de personnel'!S:S,'1. Frais de personnel'!C:C,B44,'1. Frais de personnel'!B:B,$D$25)+SUMIFS('2-3.Frais de voyage-séjour'!N:N,'2-3.Frais de voyage-séjour'!C:C,B44,'2-3.Frais de voyage-séjour'!B:B,$D$25)+SUMIFS('4. Equipement'!H:H,'4. Equipement'!C:C,B44,'4. Equipement'!B:B,$D$25)+SUMIFS('5. Sous-traitance'!H:H,'5. Sous-traitance'!C:C,B44,'5. Sous-traitance'!B:B,$D$25) -> 0 | E44: =SUMIFS('1. Frais de personnel'!S:S,'1. Frais de personnel'!C:C,B44,'1. Frais de personnel'!B:B,$E$25)+SUMIFS('2-3.Frais de voyage-séjour'!N:N,'2-3.Frais de voyage-séjour'!C:C,B44,'2-3.Frais de voyage-séjour'!B:B,$E$25)+SUMIFS('4. Equipement'!H:H,'4. Equipement'!C:C,B44,'4. Equipement'!B:B,$E$25)+SUMIFS('5. Sous-traitance'!H:H,'5. Sous-traitance'!C:C,B44,'5. Sous-traitance'!B:B,$E$25) -> 0 | F44: =SUMIFS('1. Frais de personnel'!S:S,'1. Frais de personnel'!C:C,B44,'1. Frais de personnel'!B:B,$B$8)+SUMIFS('2-3.Frais de voyage-séjour'!N:N,'2-3.Frais de voyage-séjour'!C:C,B44,'2-3.Frais de voyage-séjour'!B:B,$B$8)+SUMIFS('4. Equipement'!H:H,'4. Equipement'!C:C,B44,'4. Equipement'!B:B,$B$8)+SUMIFS('5. Sous-traitance'!H:H,'5. Sous-traitance'!C:C,B44,'5. Sous-traitance'!B:B,$B$8) -> 0 | G44: =SUMIFS('1. Frais de personnel'!S:S,'1. Frais de personnel'!C:C,B44,'1. Frais de personnel'!B:B,$G$25)+SUMIFS('2-3.Frais de voyage-séjour'!N:N,'2-3.Frais de voyage-séjour'!C:C,B44,'2-3.Frais de voyage-séjour'!B:B,$G$25)+SUMIFS('4. Equipement'!H:H,'4. Equipement'!C:C,B44,'4. Equipement'!B:B,$G$25)+SUMIFS('5. Sous-traitance'!H:H,'5. Sous-traitance'!C:C,B44,'5. Sous-traitance'!B:B,$G$25) -> 0 | H44: =SUMIF('B. Mobilité Spécial - Etudiant'!B:B,B44,'B. Mobilité Spécial - Etudiant'!N:N)+SUMIF('B. Mobilité Spécial - Personnel'!B:B,B44,'B. Mobilité Spécial - Personnel'!N:N) -> 0 | I44: 0
B45: P20 | C45: =SUMIFS('1. Frais de personnel'!S:S,'1. Frais de personnel'!C:C,B45,'1. Frais de personnel'!B:B,$C$25)+SUMIFS('2-3.Frais de voyage-séjour'!N:N,'2-3.Frais de voyage-séjour'!C:C,B45,'2-3.Frais de voyage-séjour'!B:B,$C$25)+SUMIFS('4. Equipement'!H:H,'4. Equipement'!C:C,B45,'4. Equipement'!B:B,$C$25)+SUMIFS('5. Sous-traitance'!H:H,'5. Sous-traitance'!C:C,B45,'5. Sous-traitance'!B:B,$C$25) -> 0 | D45: =SUMIFS('1. Frais de personnel'!S:S,'1. Frais de personnel'!C:C,B45,'1. Frais de personnel'!B:B,$D$25)+SUMIFS('2-3.Frais de voyage-séjour'!N:N,'2-3.Frais de voyage-séjour'!C:C,B45,'2-3.Frais de voyage-séjour'!B:B,$D$25)+SUMIFS('4. Equipement'!H:H,'4. Equipement'!C:C,B45,'4. Equipement'!B:B,$D$25)+SUMIFS('5. Sous-traitance'!H:H,'5. Sous-traitance'!C:C,B45,'5. Sous-traitance'!B:B,$D$25) -> 0 | E45: =SUMIFS('1. Frais de personnel'!S:S,'1. Frais de personnel'!C:C,B45,'1. Frais de personnel'!B:B,$E$25)+SUMIFS('2-3.Frais de voyage-séjour'!N:N,'2-3.Frais de voyage-séjour'!C:C,B45,'2-3.Frais de voyage-séjour'!B:B,$E$25)+SUMIFS('4. Equipement'!H:H,'4. Equipement'!C:C,B45,'4. Equipement'!B:B,$E$25)+SUMIFS('5. Sous-traitance'!H:H,'5. Sous-traitance'!C:C,B45,'5. Sous-traitance'!B:B,$E$25) -> 0 | F45: =SUMIFS('1. Frais de personnel'!S:S,'1. Frais de personnel'!C:C,B45,'1. Frais de personnel'!B:B,$B$8)+SUMIFS('2-3.Frais de voyage-séjour'!N:N,'2-3.Frais de voyage-séjour'!C:C,B45,'2-3.Frais de voyage-séjour'!B:B,$B$8)+SUMIFS('4. Equipement'!H:H,'4. Equipement'!C:C,B45,'4. Equipement'!B:B,$B$8)+SUMIFS('5. Sous-traitance'!H:H,'5. Sous-traitance'!C:C,B45,'5. Sous-traitance'!B:B,$B$8) -> 0 | G45: =SUMIFS('1. Frais de personnel'!S:S,'1. Frais de personnel'!C:C,B45,'1. Frais de personnel'!B:B,$G$25)+SUMIFS('2-3.Frais de voyage-séjour'!N:N,'2-3.Frais de voyage-séjour'!C:C,B45,'2-3.Frais de voyage-séjour'!B:B,$G$25)+SUMIFS('4. Equipement'!H:H,'4. Equipement'!C:C,B45,'4. Equipement'!B:B,$G$25)+SUMIFS('5. Sous-traitance'!H:H,'5. Sous-traitance'!C:C,B45,'5. Sous-traitance'!B:B,$G$25) -> 0 | H45: =SUMIF('B. Mobilité Spécial - Etudiant'!B:B,B45,'B. Mobilité Spécial - Etudiant'!N:N)+SUMIF('B. Mobilité Spécial - Personnel'!B:B,B45,'B. Mobilité Spécial - Personnel'!N:N) -> 0 | I45: 0
B46: P21 | C46: =SUMIFS('1. Frais de personnel'!S:S,'1. Frais de personnel'!C:C,B46,'1. Frais de personnel'!B:B,$C$25)+SUMIFS('2-3.Frais de voyage-séjour'!N:N,'2-3.Frais de voyage-séjour'!C:C,B46,'2-3.Frais de voyage-séjour'!B:B,$C$25)+SUMIFS('4. Equipement'!H:H,'4. Equipement'!C:C,B46,'4. Equipement'!B:B,$C$25)+SUMIFS('5. Sous-traitance'!H:H,'5. Sous-traitance'!C:C,B46,'5. Sous-traitance'!B:B,$C$25) -> 0 | D46: =SUMIFS('1. Frais de personnel'!S:S,'1. Frais de personnel'!C:C,B46,'1. Frais de personnel'!B:B,$D$25)+SUMIFS('2-3.Frais de voyage-séjour'!N:N,'2-3.Frais de voyage-séjour'!C:C,B46,'2-3.Frais de voyage-séjour'!B:B,$D$25)+SUMIFS('4. Equipement'!H:H,'4. Equipement'!C:C,B46,'4. Equipement'!B:B,$D$25)+SUMIFS('5. Sous-traitance'!H:H,'5. Sous-traitance'!C:C,B46,'5. Sous-traitance'!B:B,$D$25) -> 0 | E46: =SUMIFS('1. Frais de personnel'!S:S,'1. Frais de personnel'!C:C,B46,'1. Frais de personnel'!B:B,$E$25)+SUMIFS('2-3.Frais de voyage-séjour'!N:N,'2-3.Frais de voyage-séjour'!C:C,B46,'2-3.Frais de voyage-séjour'!B:B,$E$25)+SUMIFS('4. Equipement'!H:H,'4. Equipement'!C:C,B46,'4. Equipement'!B:B,$E$25)+SUMIFS('5. Sous-traitance'!H:H,'5. Sous-traitance'!C:C,B46,'5. Sous-traitance'!B:B,$E$25) -> 0 | F46: =SUMIFS('1. Frais de personnel'!S:S,'1. Frais de personnel'!C:C,B46,'1. Frais de personnel'!B:B,$B$8)+SUMIFS('2-3.Frais de voyage-séjour'!N:N,'2-3.Frais de voyage-séjour'!C:C,B46,'2-3.Frais de voyage-séjour'!B:B,$B$8)+SUMIFS('4. Equipement'!H:H,'4. Equipement'!C:C,B46,'4. Equipement'!B:B,$B$8)+SUMIFS('5. Sous-traitance'!H:H,'5. Sous-traitance'!C:C,B46,'5. Sous-traitance'!B:B,$B$8) -> 0 | G46: =SUMIFS('1. Frais de personnel'!S:S,'1. Frais de personnel'!C:C,B46,'1. Frais de personnel'!B:B,$G$25)+SUMIFS('2-3.Frais de voyage-séjour'!N:N,'2-3.Frais de voyage-séjour'!C:C,B46,'2-3.Frais de voyage-séjour'!B:B,$G$25)+SUMIFS('4. Equipement'!H:H,'4. Equipement'!C:C,B46,'4. Equipement'!B:B,$G$25)+SUMIFS('5. Sous-traitance'!H:H,'5. Sous-traitance'!C:C,B46,'5. Sous-traitance'!B:B,$G$25) -> 0 | H46: =SUMIF('B. Mobilité Spécial - Etudiant'!B:B,B46,'B. Mobilité Spécial - Etudiant'!N:N)+SUMIF('B. Mobilité Spécial - Personnel'!B:B,B46,'B. Mobilité Spécial - Personnel'!N:N) -> 0 | I46: 0
B47: P22 | C47: =SUMIFS('1. Frais de personnel'!S:S,'1. Frais de personnel'!C:C,B47,'1. Frais de personnel'!B:B,$C$25)+SUMIFS('2-3.Frais de voyage-séjour'!N:N,'2-3.Frais de voyage-séjour'!C:C,B47,'2-3.Frais de voyage-séjour'!B:B,$C$25)+SUMIFS('4. Equipement'!H:H,'4. Equipement'!C:C,B47,'4. Equipement'!B:B,$C$25)+SUMIFS('5. Sous-traitance'!H:H,'5. Sous-traitance'!C:C,B47,'5. Sous-traitance'!B:B,$C$25) -> 0 | D47: =SUMIFS('1. Frais de personnel'!S:S,'1. Frais de personnel'!C:C,B47,'1. Frais de personnel'!B:B,$D$25)+SUMIFS('2-3.Frais de voyage-séjour'!N:N,'2-3.Frais de voyage-séjour'!C:C,B47,'2-3.Frais de voyage-séjour'!B:B,$D$25)+SUMIFS('4. Equipement'!H:H,'4. Equipement'!C:C,B47,'4. Equipement'!B:B,$D$25)+SUMIFS('5. Sous-traitance'!H:H,'5. Sous-traitance'!C:C,B47,'5. Sous-traitance'!B:B,$D$25) -> 0 | E47: =SUMIFS('1. Frais de personnel'!S:S,'1. Frais de personnel'!C:C,B47,'1. Frais de personnel'!B:B,$E$25)+SUMIFS('2-3.Frais de voyage-séjour'!N:N,'2-3.Frais de voyage-séjour'!C:C,B47,'2-3.Frais de voyage-séjour'!B:B,$E$25)+SUMIFS('4. Equipement'!H:H,'4. Equipement'!C:C,B47,'4. Equipement'!B:B,$E$25)+SUMIFS('5. Sous-traitance'!H:H,'5. Sous-traitance'!C:C,B47,'5. Sous-traitance'!B:B,$E$25) -> 0 | F47: =SUMIFS('1. Frais de personnel'!S:S,'1. Frais de personnel'!C:C,B47,'1. Frais de personnel'!B:B,$B$8)+SUMIFS('2-3.Frais de voyage-séjour'!N:N,'2-3.Frais de voyage-séjour'!C:C,B47,'2-3.Frais de voyage-séjour'!B:B,$B$8)+SUMIFS('4. Equipement'!H:H,'4. Equipement'!C:C,B47,'4. Equipement'!B:B,$B$8)+SUMIFS('5. Sous-traitance'!H:H,'5. Sous-traitance'!C:C,B47,'5. Sous-traitance'!B:B,$B$8) -> 0 | G47: =SUMIFS('1. Frais de personnel'!S:S,'1. Frais de personnel'!C:C,B47,'1. Frais de personnel'!B:B,$G$25)+SUMIFS('2-3.Frais de voyage-séjour'!N:N,'2-3.Frais de voyage-séjour'!C:C,B47,'2-3.Frais de voyage-séjour'!B:B,$G$25)+SUMIFS('4. Equipement'!H:H,'4. Equipement'!C:C,B47,'4. Equipement'!B:B,$G$25)+SUMIFS('5. Sous-traitance'!H:H,'5. Sous-traitance'!C:C,B47,'5. Sous-traitance'!B:B,$G$25) -> 0 | H47: =SUMIF('B. Mobilité Spécial - Etudiant'!B:B,B47,'B. Mobilité Spécial - Etudiant'!N:N)+SUMIF('B. Mobilité Spécial - Personnel'!B:B,B47,'B. Mobilité Spécial - Personnel'!N:N) -> 0 | I47: 0
B48: P23 | C48: =SUMIFS('1. Frais de personnel'!S:S,'1. Frais de personnel'!C:C,B48,'1. Frais de personnel'!B:B,$C$25)+SUMIFS('2-3.Frais de voyage-séjour'!N:N,'2-3.Frais de voyage-séjour'!C:C,B48,'2-3.Frais de voyage-séjour'!B:B,$C$25)+SUMIFS('4. Equipement'!H:H,'4. Equipement'!C:C,B48,'4. Equipement'!B:B,$C$25)+SUMIFS('5. Sous-traitance'!H:H,'5. Sous-traitance'!C:C,B48,'5. Sous-traitance'!B:B,$C$25) -> 0 | D48: =SUMIFS('1. Frais de personnel'!S:S,'1. Frais de personnel'!C:C,B48,'1. Frais de personnel'!B:B,$D$25)+SUMIFS('2-3.Frais de voyage-séjour'!N:N,'2-3.Frais de voyage-séjour'!C:C,B48,'2-3.Frais de voyage-séjour'!B:B,$D$25)+SUMIFS('4. Equipement'!H:H,'4. Equipement'!C:C,B48,'4. Equipement'!B:B,$D$25)+SUMIFS('5. Sous-traitance'!H:H,'5. Sous-traitance'!C:C,B48,'5. Sous-traitance'!B:B,$D$25) -> 0 | E48: =SUMIFS('1. Frais de personnel'!S:S,'1. Frais de personnel'!C:C,B48,'1. Frais de personnel'!B:B,$E$25)+SUMIFS('2-3.Frais de voyage-séjour'!N:N,'2-3.Frais de voyage-séjour'!C:C,B48,'2-3.Frais de voyage-séjour'!B:B,$E$25)+SUMIFS('4. Equipement'!H:H,'4. Equipement'!C:C,B48,'4. Equipement'!B:B,$E$25)+SUMIFS('5. Sous-traitance'!H:H,'5. Sous-traitance'!C:C,B48,'5. Sous-traitance'!B:B,$E$25) -> 0 | F48: =SUMIFS('1. Frais de personnel'!S:S,'1. Frais de personnel'!C:C,B48,'1. Frais de personnel'!B:B,$B$8)+SUMIFS('2-3.Frais de voyage-séjour'!N:N,'2-3.Frais de voyage-séjour'!C:C,B48,'2-3.Frais de voyage-séjour'!B:B,$B$8)+SUMIFS('4. Equipement'!H:H,'4. Equipement'!C:C,B48,'4. Equipement'!B:B,$B$8)+SUMIFS('5. Sous-traitance'!H:H,'5. Sous-traitance'!C:C,B48,'5. Sous-traitance'!B:B,$B$8) -> 0 | G48: =SUMIFS('1. Frais de personnel'!S:S,'1. Frais de personnel'!C:C,B48,'1. Frais de personnel'!B:B,$G$25)+SUMIFS('2-3.Frais de voyage-séjour'!N:N,'2-3.Frais de voyage-séjour'!C:C,B48,'2-3.Frais de voyage-séjour'!B:B,$G$25)+SUMIFS('4. Equipement'!H:H,'4. Equipement'!C:C,B48,'4. Equipement'!B:B,$G$25)+SUMIFS('5. Sous-traitance'!H:H,'5. Sous-traitance'!C:C,B48,'5. Sous-traitance'!B:B,$G$25) -> 0 | H48: =SUMIF('B. Mobilité Spécial - Etudiant'!B:B,B48,'B. Mobilité Spécial - Etudiant'!N:N)+SUMIF('B. Mobilité Spécial - Personnel'!B:B,B48,'B. Mobilité Spécial - Personnel'!N:N) -> 0 | I48: 0
B49: P24 | C49: =SUMIFS('1. Frais de personnel'!S:S,'1. Frais de personnel'!C:C,B49,'1. Frais de personnel'!B:B,$C$25)+SUMIFS('2-3.Frais de voyage-séjour'!N:N,'2-3.Frais de voyage-séjour'!C:C,B49,'2-3.Frais de voyage-séjour'!B:B,$C$25)+SUMIFS('4. Equipement'!H:H,'4. Equipement'!C:C,B49,'4. Equipement'!B:B,$C$25)+SUMIFS('5. Sous-traitance'!H:H,'5. Sous-traitance'!C:C,B49,'5. Sous-traitance'!B:B,$C$25) -> 0 | D49: =SUMIFS('1. Frais de personnel'!S:S,'1. Frais de personnel'!C:C,B49,'1. Frais de personnel'!B:B,$D$25)+SUMIFS('2-3.Frais de voyage-séjour'!N:N,'2-3.Frais de voyage-séjour'!C:C,B49,'2-3.Frais de voyage-séjour'!B:B,$D$25)+SUMIFS('4. Equipement'!H:H,'4. Equipement'!C:C,B49,'4. Equipement'!B:B,$D$25)+SUMIFS('5. Sous-traitance'!H:H,'5. Sous-traitance'!C:C,B49,'5. Sous-traitance'!B:B,$D$25) -> 0 | E49: =SUMIFS('1. Frais de personnel'!S:S,'1. Frais de personnel'!C:C,B49,'1. Frais de personnel'!B:B,$E$25)+SUMIFS('2-3.Frais de voyage-séjour'!N:N,'2-3.Frais de voyage-séjour'!C:C,B49,'2-3.Frais de voyage-séjour'!B:B,$E$25)+SUMIFS('4. Equipement'!H:H,'4. Equipement'!C:C,B49,'4. Equipement'!B:B,$E$25)+SUMIFS('5. Sous-traitance'!H:H,'5. Sous-traitance'!C:C,B49,'5. Sous-traitance'!B:B,$E$25) -> 0 | F49: =SUMIFS('1. Frais de personnel'!S:S,'1. Frais de personnel'!C:C,B49,'1. Frais de personnel'!B:B,$B$8)+SUMIFS('2-3.Frais de voyage-séjour'!N:N,'2-3.Frais de voyage-séjour'!C:C,B49,'2-3.Frais de voyage-séjour'!B:B,$B$8)+SUMIFS('4. Equipement'!H:H,'4. Equipement'!C:C,B49,'4. Equipement'!B:B,$B$8)+SUMIFS('5. Sous-traitance'!H:H,'5. Sous-traitance'!C:C,B49,'5. Sous-traitance'!B:B,$B$8) -> 0 | G49: =SUMIFS('1. Frais de personnel'!S:S,'1. Frais de personnel'!C:C,B49,'1. Frais de personnel'!B:B,$G$25)+SUMIFS('2-3.Frais de voyage-séjour'!N:N,'2-3.Frais de voyage-séjour'!C:C,B49,'2-3.Frais de voyage-séjour'!B:B,$G$25)+SUMIFS('4. Equipement'!H:H,'4. Equipement'!C:C,B49,'4. Equipement'!B:B,$G$25)+SUMIFS('5. Sous-traitance'!H:H,'5. Sous-traitance'!C:C,B49,'5. Sous-traitance'!B:B,$G$25) -> 0 | H49: =SUMIF('B. Mobilité Spécial - Etudiant'!B:B,B49,'B. Mobilité Spécial - Etudiant'!N:N)+SUMIF('B. Mobilité Spécial - Personnel'!B:B,B49,'B. Mobilité Spécial - Personnel'!N:N) -> 0 | I49: 0
B50: P25 | C50: =SUMIFS('1. Frais de personnel'!S:S,'1. Frais de personnel'!C:C,B50,'1. Frais de personnel'!B:B,$C$25)+SUMIFS('2-3.Frais de voyage-séjour'!N:N,'2-3.Frais de voyage-séjour'!C:C,B50,'2-3.Frais de voyage-séjour'!B:B,$C$25)+SUMIFS('4. Equipement'!H:H,'4. Equipement'!C:C,B50,'4. Equipement'!B:B,$C$25)+SUMIFS('5. Sous-traitance'!H:H,'5. Sous-traitance'!C:C,B50,'5. Sous-traitance'!B:B,$C$25) -> 0 | D50: =SUMIFS('1. Frais de personnel'!S:S,'1. Frais de personnel'!C:C,B50,'1. Frais de personnel'!B:B,$D$25)+SUMIFS('2-3.Frais de voyage-séjour'!N:N,'2-3.Frais de voyage-séjour'!C:C,B50,'2-3.Frais de voyage-séjour'!B:B,$D$25)+SUMIFS('4. Equipement'!H:H,'4. Equipement'!C:C,B50,'4. Equipement'!B:B,$D$25)+SUMIFS('5. Sous-traitance'!H:H,'5. Sous-traitance'!C:C,B50,'5. Sous-traitance'!B:B,$D$25) -> 0 | E50: =SUMIFS('1. Frais de personnel'!S:S,'1. Frais de personnel'!C:C,B50,'1. Frais de personnel'!B:B,$E$25)+SUMIFS('2-3.Frais de voyage-séjour'!N:N,'2-3.Frais de voyage-séjour'!C:C,B50,'2-3.Frais de voyage-séjour'!B:B,$E$25)+SUMIFS('4. Equipement'!H:H,'4. Equipement'!C:C,B50,'4. Equipement'!B:B,$E$25)+SUMIFS('5. Sous-traitance'!H:H,'5. Sous-traitance'!C:C,B50,'5. Sous-traitance'!B:B,$E$25) -> 0 | F50: =SUMIFS('1. Frais de personnel'!S:S,'1. Frais de personnel'!C:C,B50,'1. Frais de personnel'!B:B,$B$8)+SUMIFS('2-3.Frais de voyage-séjour'!N:N,'2-3.Frais de voyage-séjour'!C:C,B50,'2-3.Frais de voyage-séjour'!B:B,$B$8)+SUMIFS('4. Equipement'!H:H,'4. Equipement'!C:C,B50,'4. Equipement'!B:B,$B$8)+SUMIFS('5. Sous-traitance'!H:H,'5. Sous-traitance'!C:C,B50,'5. Sous-traitance'!B:B,$B$8) -> 0 | G50: =SUMIFS('1. Frais de personnel'!S:S,'1. Frais de personnel'!C:C,B50,'1. Frais de personnel'!B:B,$G$25)+SUMIFS('2-3.Frais de voyage-séjour'!N:N,'2-3.Frais de voyage-séjour'!C:C,B50,'2-3.Frais de voyage-séjour'!B:B,$G$25)+SUMIFS('4. Equipement'!H:H,'4. Equipement'!C:C,B50,'4. Equipement'!B:B,$G$25)+SUMIFS('5. Sous-traitance'!H:H,'5. Sous-traitance'!C:C,B50,'5. Sous-traitance'!B:B,$G$25) -> 0 | H50: =SUMIF('B. Mobilité Spécial - Etudiant'!B:B,B50,'B. Mobilité Spécial - Etudiant'!N:N)+SUMIF('B. Mobilité Spécial - Personnel'!B:B,B50,'B. Mobilité Spécial - Personnel'!N:N) -> 0 | I50: 0
B51: P26 | C51: =SUMIFS('1. Frais de personnel'!S:S,'1. Frais de personnel'!C:C,B51,'1. Frais de personnel'!B:B,$C$25)+SUMIFS('2-3.Frais de voyage-séjour'!N:N,'2-3.Frais de voyage-séjour'!C:C,B51,'2-3.Frais de voyage-séjour'!B:B,$C$25)+SUMIFS('4. Equipement'!H:H,'4. Equipement'!C:C,B51,'4. Equipement'!B:B,$C$25)+SUMIFS('5. Sous-traitance'!H:H,'5. Sous-traitance'!C:C,B51,'5. Sous-traitance'!B:B,$C$25) -> 0 | D51: =SUMIFS('1. Frais de personnel'!S:S,'1. Frais de personnel'!C:C,B51,'1. Frais de personnel'!B:B,$D$25)+SUMIFS('2-3.Frais de voyage-séjour'!N:N,'2-3.Frais de voyage-séjour'!C:C,B51,'2-3.Frais de voyage-séjour'!B:B,$D$25)+SUMIFS('4. Equipement'!H:H,'4. Equipement'!C:C,B51,'4. Equipement'!B:B,$D$25)+SUMIFS('5. Sous-traitance'!H:H,'5. Sous-traitance'!C:C,B51,'5. Sous-traitance'!B:B,$D$25) -> 0 | E51: =SUMIFS('1. Frais de personnel'!S:S,'1. Frais de personnel'!C:C,B51,'1. Frais de personnel'!B:B,$E$25)+SUMIFS('2-3.Frais de voyage-séjour'!N:N,'2-3.Frais de voyage-séjour'!C:C,B51,'2-3.Frais de voyage-séjour'!B:B,$E$25)+SUMIFS('4. Equipement'!H:H,'4. Equipement'!C:C,B51,'4. Equipement'!B:B,$E$25)+SUMIFS('5. Sous-traitance'!H:H,'5. Sous-traitance'!C:C,B51,'5. Sous-traitance'!B:B,$E$25) -> 0 | F51: =SUMIFS('1. Frais de personnel'!S:S,'1. Frais de personnel'!C:C,B51,'1. Frais de personnel'!B:B,$B$8)+SUMIFS('2-3.Frais de voyage-séjour'!N:N,'2-3.Frais de voyage-séjour'!C:C,B51,'2-3.Frais de voyage-séjour'!B:B,$B$8)+SUMIFS('4. Equipement'!H:H,'4. Equipement'!C:C,B51,'4. Equipement'!B:B,$B$8)+SUMIFS('5. Sous-traitance'!H:H,'5. Sous-traitance'!C:C,B51,'5. Sous-traitance'!B:B,$B$8) -> 0 | G51: =SUMIFS('1. Frais de personnel'!S:S,'1. Frais de personnel'!C:C,B51,'1. Frais de personnel'!B:B,$G$25)+SUMIFS('2-3.Frais de voyage-séjour'!N:N,'2-3.Frais de voyage-séjour'!C:C,B51,'2-3.Frais de voyage-séjour'!B:B,$G$25)+SUMIFS('4. Equipement'!H:H,'4. Equipement'!C:C,B51,'4. Equipement'!B:B,$G$25)+SUMIFS('5. Sous-traitance'!H:H,'5. Sous-traitance'!C:C,B51,'5. Sous-traitance'!B:B,$G$25) -> 0 | H51: =SUMIF('B. Mobilité Spécial - Etudiant'!B:B,B51,'B. Mobilité Spécial - Etudiant'!N:N)+SUMIF('B. Mobilité Spécial - Personnel'!B:B,B51,'B. Mobilité Spécial - Personnel'!N:N) -> 0 | I51: 0
B52: P27 | C52: =SUMIFS('1. Frais de personnel'!S:S,'1. Frais de personnel'!C:C,B52,'1. Frais de personnel'!B:B,$C$25)+SUMIFS('2-3.Frais de voyage-séjour'!N:N,'2-3.Frais de voyage-séjour'!C:C,B52,'2-3.Frais de voyage-séjour'!B:B,$C$25)+SUMIFS('4. Equipement'!H:H,'4. Equipement'!C:C,B52,'4. Equipement'!B:B,$C$25)+SUMIFS('5. Sous-traitance'!H:H,'5. Sous-traitance'!C:C,B52,'5. Sous-traitance'!B:B,$C$25) -> 0 | D52: =SUMIFS('1. Frais de personnel'!S:S,'1. Frais de personnel'!C:C,B52,'1. Frais de personnel'!B:B,$D$25)+SUMIFS('2-3.Frais de voyage-séjour'!N:N,'2-3.Frais de voyage-séjour'!C:C,B52,'2-3.Frais de voyage-séjour'!B:B,$D$25)+SUMIFS('4. Equipement'!H:H,'4. Equipement'!C:C,B52,'4. Equipement'!B:B,$D$25)+SUMIFS('5. Sous-traitance'!H:H,'5. Sous-traitance'!C:C,B52,'5. Sous-traitance'!B:B,$D$25) -> 0 | E52: =SUMIFS('1. Frais de personnel'!S:S,'1. Frais de personnel'!C:C,B52,'1. Frais de personnel'!B:B,$E$25)+SUMIFS('2-3.Frais de voyage-séjour'!N:N,'2-3.Frais de voyage-séjour'!C:C,B52,'2-3.Frais de voyage-séjour'!B:B,$E$25)+SUMIFS('4. Equipement'!H:H,'4. Equipement'!C:C,B52,'4. Equipement'!B:B,$E$25)+SUMIFS('5. Sous-traitance'!H:H,'5. Sous-traitance'!C:C,B52,'5. Sous-traitance'!B:B,$E$25) -> 0 | F52: =SUMIFS('1. Frais de personnel'!S:S,'1. Frais de personnel'!C:C,B52,'1. Frais de personnel'!B:B,$B$8)+SUMIFS('2-3.Frais de voyage-séjour'!N:N,'2-3.Frais de voyage-séjour'!C:C,B52,'2-3.Frais de voyage-séjour'!B:B,$B$8)+SUMIFS('4. Equipement'!H:H,'4. Equipement'!C:C,B52,'4. Equipement'!B:B,$B$8)+SUMIFS('5. Sous-traitance'!H:H,'5. Sous-traitance'!C:C,B52,'5. Sous-traitance'!B:B,$B$8) -> 0 | G52: =SUMIFS('1. Frais de personnel'!S:S,'1. Frais de personnel'!C:C,B52,'1. Frais de personnel'!B:B,$G$25)+SUMIFS('2-3.Frais de voyage-séjour'!N:N,'2-3.Frais de voyage-séjour'!C:C,B52,'2-3.Frais de voyage-séjour'!B:B,$G$25)+SUMIFS('4. Equipement'!H:H,'4. Equipement'!C:C,B52,'4. Equipement'!B:B,$G$25)+SUMIFS('5. Sous-traitance'!H:H,'5. Sous-traitance'!C:C,B52,'5. Sous-traitance'!B:B,$G$25) -> 0 | H52: =SUMIF('B. Mobilité Spécial - Etudiant'!B:B,B52,'B. Mobilité Spécial - Etudiant'!N:N)+SUMIF('B. Mobilité Spécial - Personnel'!B:B,B52,'B. Mobilité Spécial - Personnel'!N:N) -> 0 | I52: 0
B53: P28 | C53: =SUMIFS('1. Frais de personnel'!S:S,'1. Frais de personnel'!C:C,B53,'1. Frais de personnel'!B:B,$C$25)+SUMIFS('2-3.Frais de voyage-séjour'!N:N,'2-3.Frais de voyage-séjour'!C:C,B53,'2-3.Frais de voyage-séjour'!B:B,$C$25)+SUMIFS('4. Equipement'!H:H,'4. Equipement'!C:C,B53,'4. Equipement'!B:B,$C$25)+SUMIFS('5. Sous-traitance'!H:H,'5. Sous-traitance'!C:C,B53,'5. Sous-traitance'!B:B,$C$25) -> 0 | D53: =SUMIFS('1. Frais de personnel'!S:S,'1. Frais de personnel'!C:C,B53,'1. Frais de personnel'!B:B,$D$25)+SUMIFS('2-3.Frais de voyage-séjour'!N:N,'2-3.Frais de voyage-séjour'!C:C,B53,'2-3.Frais de voyage-séjour'!B:B,$D$25)+SUMIFS('4. Equipement'!H:H,'4. Equipement'!C:C,B53,'4. Equipement'!B:B,$D$25)+SUMIFS('5. Sous-traitance'!H:H,'5. Sous-traitance'!C:C,B53,'5. Sous-traitance'!B:B,$D$25) -> 0 | E53: =SUMIFS('1. Frais de personnel'!S:S,'1. Frais de personnel'!C:C,B53,'1. Frais de personnel'!B:B,$E$25)+SUMIFS('2-3.Frais de voyage-séjour'!N:N,'2-3.Frais de voyage-séjour'!C:C,B53,'2-3.Frais de voyage-séjour'!B:B,$E$25)+SUMIFS('4. Equipement'!H:H,'4. Equipement'!C:C,B53,'4. Equipement'!B:B,$E$25)+SUMIFS('5. Sous-traitance'!H:H,'5. Sous-traitance'!C:C,B53,'5. Sous-traitance'!B:B,$E$25) -> 0 | F53: =SUMIFS('1. Frais de personnel'!S:S,'1. Frais de personnel'!C:C,B53,'1. Frais de personnel'!B:B,$B$8)+SUMIFS('2-3.Frais de voyage-séjour'!N:N,'2-3.Frais de voyage-séjour'!C:C,B53,'2-3.Frais de voyage-séjour'!B:B,$B$8)+SUMIFS('4. Equipement'!H:H,'4. Equipement'!C:C,B53,'4. Equipement'!B:B,$B$8)+SUMIFS('5. Sous-traitance'!H:H,'5. Sous-traitance'!C:C,B53,'5. Sous-traitance'!B:B,$B$8) -> 0 | G53: =SUMIFS('1. Frais de personnel'!S:S,'1. Frais de personnel'!C:C,B53,'1. Frais de personnel'!B:B,$G$25)+SUMIFS('2-3.Frais de voyage-séjour'!N:N,'2-3.Frais de voyage-séjour'!C:C,B53,'2-3.Frais de voyage-séjour'!B:B,$G$25)+SUMIFS('4. Equipement'!H:H,'4. Equipement'!C:C,B53,'4. Equipement'!B:B,$G$25)+SUMIFS('5. Sous-traitance'!H:H,'5. Sous-traitance'!C:C,B53,'5. Sous-traitance'!B:B,$G$25) -> 0 | H53: =SUMIF('B. Mobilité Spécial - Etudiant'!B:B,B53,'B. Mobilité Spécial - Etudiant'!N:N)+SUMIF('B. Mobilité Spécial - Personnel'!B:B,B53,'B. Mobilité Spécial - Personnel'!N:N) -> 0 | I53: 0
B54: P29 | C54: =SUMIFS('1. Frais de personnel'!S:S,'1. Frais de personnel'!C:C,B54,'1. Frais de personnel'!B:B,$C$25)+SUMIFS('2-3.Frais de voyage-séjour'!N:N,'2-3.Frais de voyage-séjour'!C:C,B54,'2-3.Frais de voyage-séjour'!B:B,$C$25)+SUMIFS('4. Equipement'!H:H,'4. Equipement'!C:C,B54,'4. Equipement'!B:B,$C$25)+SUMIFS('5. Sous-traitance'!H:H,'5. Sous-traitance'!C:C,B54,'5. Sous-traitance'!B:B,$C$25) -> 0 | D54: =SUMIFS('1. Frais de personnel'!S:S,'1. Frais de personnel'!C:C,B54,'1. Frais de personnel'!B:B,$D$25)+SUMIFS('2-3.Frais de voyage-séjour'!N:N,'2-3.Frais de voyage-séjour'!C:C,B54,'2-3.Frais de voyage-séjour'!B:B,$D$25)+SUMIFS('4. Equipement'!H:H,'4. Equipement'!C:C,B54,'4. Equipement'!B:B,$D$25)+SUMIFS('5. Sous-traitance'!H:H,'5. Sous-traitance'!C:C,B54,'5. Sous-traitance'!B:B,$D$25) -> 0 | E54: =SUMIFS('1. Frais de personnel'!S:S,'1. Frais de personnel'!C:C,B54,'1. Frais de personnel'!B:B,$E$25)+SUMIFS('2-3.Frais de voyage-séjour'!N:N,'2-3.Frais de voyage-séjour'!C:C,B54,'2-3.Frais de voyage-séjour'!B:B,$E$25)+SUMIFS('4. Equipement'!H:H,'4. Equipement'!C:C,B54,'4. Equipement'!B:B,$E$25)+SUMIFS('5. Sous-traitance'!H:H,'5. Sous-traitance'!C:C,B54,'5. Sous-traitance'!B:B,$E$25) -> 0 | F54: =SUMIFS('1. Frais de personnel'!S:S,'1. Frais de personnel'!C:C,B54,'1. Frais de personnel'!B:B,$B$8)+SUMIFS('2-3.Frais de voyage-séjour'!N:N,'2-3.Frais de voyage-séjour'!C:C,B54,'2-3.Frais de voyage-séjour'!B:B,$B$8)+SUMIFS('4. Equipement'!H:H,'4. Equipement'!C:C,B54,'4. Equipement'!B:B,$B$8)+SUMIFS('5. Sous-traitance'!H:H,'5. Sous-traitance'!C:C,B54,'5. Sous-traitance'!B:B,$B$8) -> 0 | G54: =SUMIFS('1. Frais de personnel'!S:S,'1. Frais de personnel'!C:C,B54,'1. Frais de personnel'!B:B,$G$25)+SUMIFS('2-3.Frais de voyage-séjour'!N:N,'2-3.Frais de voyage-séjour'!C:C,B54,'2-3.Frais de voyage-séjour'!B:B,$G$25)+SUMIFS('4. Equipement'!H:H,'4. Equipement'!C:C,B54,'4. Equipement'!B:B,$G$25)+SUMIFS('5. Sous-traitance'!H:H,'5. Sous-traitance'!C:C,B54,'5. Sous-traitance'!B:B,$G$25) -> 0 | H54: =SUMIF('B. Mobilité Spécial - Etudiant'!B:B,B54,'B. Mobilité Spécial - Etudiant'!N:N)+SUMIF('B. Mobilité Spécial - Personnel'!B:B,B54,'B. Mobilité Spécial - Personnel'!N:N) -> 0 | I54: 0
B55: P30 | C55: =SUMIFS('1. Frais de personnel'!S:S,'1. Frais de personnel'!C:C,B55,'1. Frais de personnel'!B:B,$C$25)+SUMIFS('2-3.Frais de voyage-séjour'!N:N,'2-3.Frais de voyage-séjour'!C:C,B55,'2-3.Frais de voyage-séjour'!B:B,$C$25)+SUMIFS('4. Equipement'!H:H,'4. Equipement'!C:C,B55,'4. Equipement'!B:B,$C$25)+SUMIFS('5. Sous-traitance'!H:H,'5. Sous-traitance'!C:C,B55,'5. Sous-traitance'!B:B,$C$25) -> 0 | D55: =SUMIFS('1. Frais de personnel'!S:S,'1. Frais de personnel'!C:C,B55,'1. Frais de personnel'!B:B,$D$25)+SUMIFS('2-3.Frais de voyage-séjour'!N:N,'2-3.Frais de voyage-séjour'!C:C,B55,'2-3.Frais de voyage-séjour'!B:B,$D$25)+SUMIFS('4. Equipement'!H:H,'4. Equipement'!C:C,B55,'4. Equipement'!B:B,$D$25)+SUMIFS('5. Sous-traitance'!H:H,'5. Sous-traitance'!C:C,B55,'5. Sous-traitance'!B:B,$D$25) -> 0 | E55: =SUMIFS('1. Frais de personnel'!S:S,'1. Frais de personnel'!C:C,B55,'1. Frais de personnel'!B:B,$E$25)+SUMIFS('2-3.Frais de voyage-séjour'!N:N,'2-3.Frais de voyage-séjour'!C:C,B55,'2-3.Frais de voyage-séjour'!B:B,$E$25)+SUMIFS('4. Equipement'!H:H,'4. Equipement'!C:C,B55,'4. Equipement'!B:B,$E$25)+SUMIFS('5. Sous-traitance'!H:H,'5. Sous-traitance'!C:C,B55,'5. Sous-traitance'!B:B,$E$25) -> 0 | F55: =SUMIFS('1. Frais de personnel'!S:S,'1. Frais de personnel'!C:C,B55,'1. Frais de personnel'!B:B,$B$8)+SUMIFS('2-3.Frais de voyage-séjour'!N:N,'2-3.Frais de voyage-séjour'!C:C,B55,'2-3.Frais de voyage-séjour'!B:B,$B$8)+SUMIFS('4. Equipement'!H:H,'4. Equipement'!C:C,B55,'4. Equipement'!B:B,$B$8)+SUMIFS('5. Sous-traitance'!H:H,'5. Sous-traitance'!C:C,B55,'5. Sous-traitance'!B:B,$B$8) -> 0 | G55: =SUMIFS('1. Frais de personnel'!S:S,'1. Frais de personnel'!C:C,B55,'1. Frais de personnel'!B:B,$G$25)+SUMIFS('2-3.Frais de voyage-séjour'!N:N,'2-3.Frais de voyage-séjour'!C:C,B55,'2-3.Frais de voyage-séjour'!B:B,$G$25)+SUMIFS('4. Equipement'!H:H,'4. Equipement'!C:C,B55,'4. Equipement'!B:B,$G$25)+SUMIFS('5. Sous-traitance'!H:H,'5. Sous-traitance'!C:C,B55,'5. Sous-traitance'!B:B,$G$25) -> 0 | H55: =SUMIF('B. Mobilité Spécial - Etudiant'!B:B,B55,'B. Mobilité Spécial - Etudiant'!N:N)+SUMIF('B. Mobilité Spécial - Personnel'!B:B,B55,'B. Mobilité Spécial - Personnel'!N:N) -> 0 | I55: 0
B56: P31 | C56: =SUMIFS('1. Frais de personnel'!S:S,'1. Frais de personnel'!C:C,B56,'1. Frais de personnel'!B:B,$C$25)+SUMIFS('2-3.Frais de voyage-séjour'!N:N,'2-3.Frais de voyage-séjour'!C:C,B56,'2-3.Frais de voyage-séjour'!B:B,$C$25)+SUMIFS('4. Equipement'!H:H,'4. Equipement'!C:C,B56,'4. Equipement'!B:B,$C$25)+SUMIFS('5. Sous-traitance'!H:H,'5. Sous-traitance'!C:C,B56,'5. Sous-traitance'!B:B,$C$25) -> 0 | D56: =SUMIFS('1. Frais de personnel'!S:S,'1. Frais de personnel'!C:C,B56,'1. Frais de personnel'!B:B,$D$25)+SUMIFS('2-3.Frais de voyage-séjour'!N:N,'2-3.Frais de voyage-séjour'!C:C,B56,'2-3.Frais de voyage-séjour'!B:B,$D$25)+SUMIFS('4. Equipement'!H:H,'4. Equipement'!C:C,B56,'4. Equipement'!B:B,$D$25)+SUMIFS('5. Sous-traitance'!H:H,'5. Sous-traitance'!C:C,B56,'5. Sous-traitance'!B:B,$D$25) -> 0 | E56: =SUMIFS('1. Frais de personnel'!S:S,'1. Frais de personnel'!C:C,B56,'1. Frais de personnel'!B:B,$E$25)+SUMIFS('2-3.Frais de voyage-séjour'!N:N,'2-3.Frais de voyage-séjour'!C:C,B56,'2-3.Frais de voyage-séjour'!B:B,$E$25)+SUMIFS('4. Equipement'!H:H,'4. Equipement'!C:C,B56,'4. Equipement'!B:B,$E$25)+SUMIFS('5. Sous-traitance'!H:H,'5. Sous-traitance'!C:C,B56,'5. Sous-traitance'!B:B,$E$25) -> 0 | F56: =SUMIFS('1. Frais de personnel'!S:S,'1. Frais de personnel'!C:C,B56,'1. Frais de personnel'!B:B,$B$8)+SUMIFS('2-3.Frais de voyage-séjour'!N:N,'2-3.Frais de voyage-séjour'!C:C,B56,'2-3.Frais de voyage-séjour'!B:B,$B$8)+SUMIFS('4. Equipement'!H:H,'4. Equipement'!C:C,B56,'4. Equipement'!B:B,$B$8)+SUMIFS('5. Sous-traitance'!H:H,'5. Sous-traitance'!C:C,B56,'5. Sous-traitance'!B:B,$B$8) -> 0 | G56: =SUMIFS('1. Frais de personnel'!S:S,'1. Frais de personnel'!C:C,B56,'1. Frais de personnel'!B:B,$G$25)+SUMIFS('2-3.Frais de voyage-séjour'!N:N,'2-3.Frais de voyage-séjour'!C:C,B56,'2-3.Frais de voyage-séjour'!B:B,$G$25)+SUMIFS('4. Equipement'!H:H,'4. Equipement'!C:C,B56,'4. Equipement'!B:B,$G$25)+SUMIFS('5. Sous-traitance'!H:H,'5. Sous-traitance'!C:C,B56,'5. Sous-traitance'!B:B,$G$25) -> 0 | H56: =SUMIF('B. Mobilité Spécial - Etudiant'!B:B,B56,'B. Mobilité Spécial - Etudiant'!N:N)+SUMIF('B. Mobilité Spécial - Personnel'!B:B,B56,'B. Mobilité Spécial - Personnel'!N:N) -> 0 | I56: 0
B57: P32 | C57: =SUMIFS('1. Frais de personnel'!S:S,'1. Frais de personnel'!C:C,B57,'1. Frais de personnel'!B:B,$C$25)+SUMIFS('2-3.Frais de voyage-séjour'!N:N,'2-3.Frais de voyage-séjour'!C:C,B57,'2-3.Frais de voyage-séjour'!B:B,$C$25)+SUMIFS('4. Equipement'!H:H,'4. Equipement'!C:C,B57,'4. Equipement'!B:B,$C$25)+SUMIFS('5. Sous-traitance'!H:H,'5. Sous-traitance'!C:C,B57,'5. Sous-traitance'!B:B,$C$25) -> 0 | D57: =SUMIFS('1. Frais de personnel'!S:S,'1. Frais de personnel'!C:C,B57,'1. Frais de personnel'!B:B,$D$25)+SUMIFS('2-3.Frais de voyage-séjour'!N:N,'2-3.Frais de voyage-séjour'!C:C,B57,'2-3.Frais de voyage-séjour'!B:B,$D$25)+SUMIFS('4. Equipement'!H:H,'4. Equipement'!C:C,B57,'4. Equipement'!B:B,$D$25)+SUMIFS('5. Sous-traitance'!H:H,'5. Sous-traitance'!C:C,B57,'5. Sous-traitance'!B:B,$D$25) -> 0 | E57: =SUMIFS('1. Frais de personnel'!S:S,'1. Frais de personnel'!C:C,B57,'1. Frais de personnel'!B:B,$E$25)+SUMIFS('2-3.Frais de voyage-séjour'!N:N,'2-3.Frais de voyage-séjour'!C:C,B57,'2-3.Frais de voyage-séjour'!B:B,$E$25)+SUMIFS('4. Equipement'!H:H,'4. Equipement'!C:C,B57,'4. Equipement'!B:B,$E$25)+SUMIFS('5. Sous-traitance'!H:H,'5. Sous-traitance'!C:C,B57,'5. Sous-traitance'!B:B,$E$25) -> 0 | F57: =SUMIFS('1. Frais de personnel'!S:S,'1. Frais de personnel'!C:C,B57,'1. Frais de personnel'!B:B,$B$8)+SUMIFS('2-3.Frais de voyage-séjour'!N:N,'2-3.Frais de voyage-séjour'!C:C,B57,'2-3.Frais de voyage-séjour'!B:B,$B$8)+SUMIFS('4. Equipement'!H:H,'4. Equipement'!C:C,B57,'4. Equipement'!B:B,$B$8)+SUMIFS('5. Sous-traitance'!H:H,'5. Sous-traitance'!C:C,B57,'5. Sous-traitance'!B:B,$B$8) -> 0 | G57: =SUMIFS('1. Frais de personnel'!S:S,'1. Frais de personnel'!C:C,B57,'1. Frais de personnel'!B:B,$G$25)+SUMIFS('2-3.Frais de voyage-séjour'!N:N,'2-3.Frais de voyage-séjour'!C:C,B57,'2-3.Frais de voyage-séjour'!B:B,$G$25)+SUMIFS('4. Equipement'!H:H,'4. Equipement'!C:C,B57,'4. Equipement'!B:B,$G$25)+SUMIFS('5. Sous-traitance'!H:H,'5. Sous-traitance'!C:C,B57,'5. Sous-traitance'!B:B,$G$25) -> 0 | H57: =SUMIF('B. Mobilité Spécial - Etudiant'!B:B,B57,'B. Mobilité Spécial - Etudiant'!N:N)+SUMIF('B. Mobilité Spécial - Personnel'!B:B,B57,'B. Mobilité Spécial - Personnel'!N:N) -> 0 | I57: 0
B58: P33 | C58: =SUMIFS('1. Frais de personnel'!S:S,'1. Frais de personnel'!C:C,B58,'1. Frais de personnel'!B:B,$C$25)+SUMIFS('2-3.Frais de voyage-séjour'!N:N,'2-3.Frais de voyage-séjour'!C:C,B58,'2-3.Frais de voyage-séjour'!B:B,$C$25)+SUMIFS('4. Equipement'!H:H,'4. Equipement'!C:C,B58,'4. Equipement'!B:B,$C$25)+SUMIFS('5. Sous-traitance'!H:H,'5. Sous-traitance'!C:C,B58,'5. Sous-traitance'!B:B,$C$25) -> 0 | D58: =SUMIFS('1. Frais de personnel'!S:S,'1. Frais de personnel'!C:C,B58,'1. Frais de personnel'!B:B,$D$25)+SUMIFS('2-3.Frais de voyage-séjour'!N:N,'2-3.Frais de voyage-séjour'!C:C,B58,'2-3.Frais de voyage-séjour'!B:B,$D$25)+SUMIFS('4. Equipement'!H:H,'4. Equipement'!C:C,B58,'4. Equipement'!B:B,$D$25)+SUMIFS('5. Sous-traitance'!H:H,'5. Sous-traitance'!C:C,B58,'5. Sous-traitance'!B:B,$D$25) -> 0 | E58: =SUMIFS('1. Frais de personnel'!S:S,'1. Frais de personnel'!C:C,B58,'1. Frais de personnel'!B:B,$E$25)+SUMIFS('2-3.Frais de voyage-séjour'!N:N,'2-3.Frais de voyage-séjour'!C:C,B58,'2-3.Frais de voyage-séjour'!B:B,$E$25)+SUMIFS('4. Equipement'!H:H,'4. Equipement'!C:C,B58,'4. Equipement'!B:B,$E$25)+SUMIFS('5. Sous-traitance'!H:H,'5. Sous-traitance'!C:C,B58,'5. Sous-traitance'!B:B,$E$25) -> 0 | F58: =SUMIFS('1. Frais de personnel'!S:S,'1. Frais de personnel'!C:C,B58,'1. Frais de personnel'!B:B,$B$8)+SUMIFS('2-3.Frais de voyage-séjour'!N:N,'2-3.Frais de voyage-séjour'!C:C,B58,'2-3.Frais de voyage-séjour'!B:B,$B$8)+SUMIFS('4. Equipement'!H:H,'4. Equipement'!C:C,B58,'4. Equipement'!B:B,$B$8)+SUMIFS('5. Sous-traitance'!H:H,'5. Sous-traitance'!C:C,B58,'5. Sous-traitance'!B:B,$B$8) -> 0 | G58: =SUMIFS('1. Frais de personnel'!S:S,'1. Frais de personnel'!C:C,B58,'1. Frais de personnel'!B:B,$G$25)+SUMIFS('2-3.Frais de voyage-séjour'!N:N,'2-3.Frais de voyage-séjour'!C:C,B58,'2-3.Frais de voyage-séjour'!B:B,$G$25)+SUMIFS('4. Equipement'!H:H,'4. Equipement'!C:C,B58,'4. Equipement'!B:B,$G$25)+SUMIFS('5. Sous-traitance'!H:H,'5. Sous-traitance'!C:C,B58,'5. Sous-traitance'!B:B,$G$25) -> 0 | H58: =SUMIF('B. Mobilité Spécial - Etudiant'!B:B,B58,'B. Mobilité Spécial - Etudiant'!N:N)+SUMIF('B. Mobilité Spécial - Personnel'!B:B,B58,'B. Mobilité Spécial - Personnel'!N:N) -> 0 | I58: 0
B59: P34 | C59: =SUMIFS('1. Frais de personnel'!S:S,'1. Frais de personnel'!C:C,B59,'1. Frais de personnel'!B:B,$C$25)+SUMIFS('2-3.Frais de voyage-séjour'!N:N,'2-3.Frais de voyage-séjour'!C:C,B59,'2-3.Frais de voyage-séjour'!B:B,$C$25)+SUMIFS('4. Equipement'!H:H,'4. Equipement'!C:C,B59,'4. Equipement'!B:B,$C$25)+SUMIFS('5. Sous-traitance'!H:H,'5. Sous-traitance'!C:C,B59,'5. Sous-traitance'!B:B,$C$25) -> 0 | D59: =SUMIFS('1. Frais de personnel'!S:S,'1. Frais de personnel'!C:C,B59,'1. Frais de personnel'!B:B,$D$25)+SUMIFS('2-3.Frais de voyage-séjour'!N:N,'2-3.Frais de voyage-séjour'!C:C,B59,'2-3.Frais de voyage-séjour'!B:B,$D$25)+SUMIFS('4. Equipement'!H:H,'4. Equipement'!C:C,B59,'4. Equipement'!B:B,$D$25)+SUMIFS('5. Sous-traitance'!H:H,'5. Sous-traitance'!C:C,B59,'5. Sous-traitance'!B:B,$D$25) -> 0 | E59: =SUMIFS('1. Frais de personnel'!S:S,'1. Frais de personnel'!C:C,B59,'1. Frais de personnel'!B:B,$E$25)+SUMIFS('2-3.Frais de voyage-séjour'!N:N,'2-3.Frais de voyage-séjour'!C:C,B59,'2-3.Frais de voyage-séjour'!B:B,$E$25)+SUMIFS('4. Equipement'!H:H,'4. Equipement'!C:C,B59,'4. Equipement'!B:B,$E$25)+SUMIFS('5. Sous-traitance'!H:H,'5. Sous-traitance'!C:C,B59,'5. Sous-traitance'!B:B,$E$25) -> 0 | F59: =SUMIFS('1. Frais de personnel'!S:S,'1. Frais de personnel'!C:C,B59,'1. Frais de personnel'!B:B,$B$8)+SUMIFS('2-3.Frais de voyage-séjour'!N:N,'2-3.Frais de voyage-séjour'!C:C,B59,'2-3.Frais de voyage-séjour'!B:B,$B$8)+SUMIFS('4. Equipement'!H:H,'4. Equipement'!C:C,B59,'4. Equipement'!B:B,$B$8)+SUMIFS('5. Sous-traitance'!H:H,'5. Sous-traitance'!C:C,B59,'5. Sous-traitance'!B:B,$B$8) -> 0 | G59: =SUMIFS('1. Frais de personnel'!S:S,'1. Frais de personnel'!C:C,B59,'1. Frais de personnel'!B:B,$G$25)+SUMIFS('2-3.Frais de voyage-séjour'!N:N,'2-3.Frais de voyage-séjour'!C:C,B59,'2-3.Frais de voyage-séjour'!B:B,$G$25)+SUMIFS('4. Equipement'!H:H,'4. Equipement'!C:C,B59,'4. Equipement'!B:B,$G$25)+SUMIFS('5. Sous-traitance'!H:H,'5. Sous-traitance'!C:C,B59,'5. Sous-traitance'!B:B,$G$25) -> 0 | H59: =SUMIF('B. Mobilité Spécial - Etudiant'!B:B,B59,'B. Mobilité Spécial - Etudiant'!N:N)+SUMIF('B. Mobilité Spécial - Personnel'!B:B,B59,'B. Mobilité Spécial - Personnel'!N:N) -> 0 | I59: 0
B60: P35 | C60: =SUMIFS('1. Frais de personnel'!S:S,'1. Frais de personnel'!C:C,B60,'1. Frais de personnel'!B:B,$C$25)+SUMIFS('2-3.Frais de voyage-séjour'!N:N,'2-3.Frais de voyage-séjour'!C:C,B60,'2-3.Frais de voyage-séjour'!B:B,$C$25)+SUMIFS('4. Equipement'!H:H,'4. Equipement'!C:C,B60,'4. Equipement'!B:B,$C$25)+SUMIFS('5. Sous-traitance'!H:H,'5. Sous-traitance'!C:C,B60,'5. Sous-traitance'!B:B,$C$25) -> 0 | D60: =SUMIFS('1. Frais de personnel'!S:S,'1. Frais de personnel'!C:C,B60,'1. Frais de personnel'!B:B,$D$25)+SUMIFS('2-3.Frais de voyage-séjour'!N:N,'2-3.Frais de voyage-séjour'!C:C,B60,'2-3.Frais de voyage-séjour'!B:B,$D$25)+SUMIFS('4. Equipement'!H:H,'4. Equipement'!C:C,B60,'4. Equipement'!B:B,$D$25)+SUMIFS('5. Sous-traitance'!H:H,'5. Sous-traitance'!C:C,B60,'5. Sous-traitance'!B:B,$D$25) -> 0 | E60: =SUMIFS('1. Frais de personnel'!S:S,'1. Frais de personnel'!C:C,B60,'1. Frais de personnel'!B:B,$E$25)+SUMIFS('2-3.Frais de voyage-séjour'!N:N,'2-3.Frais de voyage-séjour'!C:C,B60,'2-3.Frais de voyage-séjour'!B:B,$E$25)+SUMIFS('4. Equipement'!H:H,'4. Equipement'!C:C,B60,'4. Equipement'!B:B,$E$25)+SUMIFS('5. Sous-traitance'!H:H,'5. Sous-traitance'!C:C,B60,'5. Sous-traitance'!B:B,$E$25) -> 0 | F60: =SUMIFS('1. Frais de personnel'!S:S,'1. Frais de personnel'!C:C,B60,'1. Frais de personnel'!B:B,$B$8)+SUMIFS('2-3.Frais de voyage-séjour'!N:N,'2-3.Frais de voyage-séjour'!C:C,B60,'2-3.Frais de voyage-séjour'!B:B,$B$8)+SUMIFS('4. Equipement'!H:H,'4. Equipement'!C:C,B60,'4. Equipement'!B:B,$B$8)+SUMIFS('5. Sous-traitance'!H:H,'5. Sous-traitance'!C:C,B60,'5. Sous-traitance'!B:B,$B$8) -> 0 | G60: =SUMIFS('1. Frais de personnel'!S:S,'1. Frais de personnel'!C:C,B60,'1. Frais de personnel'!B:B,$G$25)+SUMIFS('2-3.Frais de voyage-séjour'!N:N,'2-3.Frais de voyage-séjour'!C:C,B60,'2-3.Frais de voyage-séjour'!B:B,$G$25)+SUMIFS('4. Equipement'!H:H,'4. Equipement'!C:C,B60,'4. Equipement'!B:B,$G$25)+SUMIFS('5. Sous-traitance'!H:H,'5. Sous-traitance'!C:C,B60,'5. Sous-traitance'!B:B,$G$25) -> 0 | H60: =SUMIF('B. Mobilité Spécial - Etudiant'!B:B,B60,'B. Mobilité Spécial - Etudiant'!N:N)+SUMIF('B. Mobilité Spécial - Personnel'!B:B,B60,'B. Mobilité Spécial - Personnel'!N:N) -> 0 | I60: 0
B61: P36 | C61: =SUMIFS('1. Frais de personnel'!S:S,'1. Frais de personnel'!C:C,B61,'1. Frais de personnel'!B:B,$C$25)+SUMIFS('2-3.Frais de voyage-séjour'!N:N,'2-3.Frais de voyage-séjour'!C:C,B61,'2-3.Frais de voyage-séjour'!B:B,$C$25)+SUMIFS('4. Equipement'!H:H,'4. Equipement'!C:C,B61,'4. Equipement'!B:B,$C$25)+SUMIFS('5. Sous-traitance'!H:H,'5. Sous-traitance'!C:C,B61,'5. Sous-traitance'!B:B,$C$25) -> 0 | D61: =SUMIFS('1. Frais de personnel'!S:S,'1. Frais de personnel'!C:C,B61,'1. Frais de personnel'!B:B,$D$25)+SUMIFS('2-3.Frais de voyage-séjour'!N:N,'2-3.Frais de voyage-séjour'!C:C,B61,'2-3.Frais de voyage-séjour'!B:B,$D$25)+SUMIFS('4. Equipement'!H:H,'4. Equipement'!C:C,B61,'4. Equipement'!B:B,$D$25)+SUMIFS('5. Sous-traitance'!H:H,'5. Sous-traitance'!C:C,B61,'5. Sous-traitance'!B:B,$D$25) -> 0 | E61: =SUMIFS('1. Frais de personnel'!S:S,'1. Frais de personnel'!C:C,B61,'1. Frais de personnel'!B:B,$E$25)+SUMIFS('2-3.Frais de voyage-séjour'!N:N,'2-3.Frais de voyage-séjour'!C:C,B61,'2-3.Frais de voyage-séjour'!B:B,$E$25)+SUMIFS('4. Equipement'!H:H,'4. Equipement'!C:C,B61,'4. Equipement'!B:B,$E$25)+SUMIFS('5. Sous-traitance'!H:H,'5. Sous-traitance'!C:C,B61,'5. Sous-traitance'!B:B,$E$25) -> 0 | F61: =SUMIFS('1. Frais de personnel'!S:S,'1. Frais de personnel'!C:C,B61,'1. Frais de personnel'!B:B,$B$8)+SUMIFS('2-3.Frais de voyage-séjour'!N:N,'2-3.Frais de voyage-séjour'!C:C,B61,'2-3.Frais de voyage-séjour'!B:B,$B$8)+SUMIFS('4. Equipement'!H:H,'4. Equipement'!C:C,B61,'4. Equipement'!B:B,$B$8)+SUMIFS('5. Sous-traitance'!H:H,'5. Sous-traitance'!C:C,B61,'5. Sous-traitance'!B:B,$B$8) -> 0 | G61: =SUMIFS('1. Frais de personnel'!S:S,'1. Frais de personnel'!C:C,B61,'1. Frais de personnel'!B:B,$G$25)+SUMIFS('2-3.Frais de voyage-séjour'!N:N,'2-3.Frais de voyage-séjour'!C:C,B61,'2-3.Frais de voyage-séjour'!B:B,$G$25)+SUMIFS('4. Equipement'!H:H,'4. Equipement'!C:C,B61,'4. Equipement'!B:B,$G$25)+SUMIFS('5. Sous-traitance'!H:H,'5. Sous-traitance'!C:C,B61,'5. Sous-traitance'!B:B,$G$25) -> 0 | H61: =SUMIF('B. Mobilité Spécial - Etudiant'!B:B,B61,'B. Mobilité Spécial - Etudiant'!N:N)+SUMIF('B. Mobilité Spécial - Personnel'!B:B,B61,'B. Mobilité Spécial - Personnel'!N:N) -> 0 | I61: 0
B62: P37 | C62: =SUMIFS('1. Frais de personnel'!S:S,'1. Frais de personnel'!C:C,B62,'1. Frais de personnel'!B:B,$C$25)+SUMIFS('2-3.Frais de voyage-séjour'!N:N,'2-3.Frais de voyage-séjour'!C:C,B62,'2-3.Frais de voyage-séjour'!B:B,$C$25)+SUMIFS('4. Equipement'!H:H,'4. Equipement'!C:C,B62,'4. Equipement'!B:B,$C$25)+SUMIFS('5. Sous-traitance'!H:H,'5. Sous-traitance'!C:C,B62,'5. Sous-traitance'!B:B,$C$25) -> 0 | D62: =SUMIFS('1. Frais de personnel'!S:S,'1. Frais de personnel'!C:C,B62,'1. Frais de personnel'!B:B,$D$25)+SUMIFS('2-3.Frais de voyage-séjour'!N:N,'2-3.Frais de voyage-séjour'!C:C,B62,'2-3.Frais de voyage-séjour'!B:B,$D$25)+SUMIFS('4. Equipement'!H:H,'4. Equipement'!C:C,B62,'4. Equipement'!B:B,$D$25)+SUMIFS('5. Sous-traitance'!H:H,'5. Sous-traitance'!C:C,B62,'5. Sous-traitance'!B:B,$D$25) -> 0 | E62: =SUMIFS('1. Frais de personnel'!S:S,'1. Frais de personnel'!C:C,B62,'1. Frais de personnel'!B:B,$E$25)+SUMIFS('2-3.Frais de voyage-séjour'!N:N,'2-3.Frais de voyage-séjour'!C:C,B62,'2-3.Frais de voyage-séjour'!B:B,$E$25)+SUMIFS('4. Equipement'!H:H,'4. Equipement'!C:C,B62,'4. Equipement'!B:B,$E$25)+SUMIFS('5. Sous-traitance'!H:H,'5. Sous-traitance'!C:C,B62,'5. Sous-traitance'!B:B,$E$25) -> 0 | F62: =SUMIFS('1. Frais de personnel'!S:S,'1. Frais de personnel'!C:C,B62,'1. Frais de personnel'!B:B,$B$8)+SUMIFS('2-3.Frais de voyage-séjour'!N:N,'2-3.Frais de voyage-séjour'!C:C,B62,'2-3.Frais de voyage-séjour'!B:B,$B$8)+SUMIFS('4. Equipement'!H:H,'4. Equipement'!C:C,B62,'4. Equipement'!B:B,$B$8)+SUMIFS('5. Sous-traitance'!H:H,'5. Sous-traitance'!C:C,B62,'5. Sous-traitance'!B:B,$B$8) -> 0 | G62: =SUMIFS('1. Frais de personnel'!S:S,'1. Frais de personnel'!C:C,B62,'1. Frais de personnel'!B:B,$G$25)+SUMIFS('2-3.Frais de voyage-séjour'!N:N,'2-3.Frais de voyage-séjour'!C:C,B62,'2-3.Frais de voyage-séjour'!B:B,$G$25)+SUMIFS('4. Equipement'!H:H,'4. Equipement'!C:C,B62,'4. Equipement'!B:B,$G$25)+SUMIFS('5. Sous-traitance'!H:H,'5. Sous-traitance'!C:C,B62,'5. Sous-traitance'!B:B,$G$25) -> 0 | H62: =SUMIF('B. Mobilité Spécial - Etudiant'!B:B,B62,'B. Mobilité Spécial - Etudiant'!N:N)+SUMIF('B. Mobilité Spécial - Personnel'!B:B,B62,'B. Mobilité Spécial - Personnel'!N:N) -> 0 | I62: 0
B63: P38 | C63: =SUMIFS('1. Frais de personnel'!S:S,'1. Frais de personnel'!C:C,B63,'1. Frais de personnel'!B:B,$C$25)+SUMIFS('2-3.Frais de voyage-séjour'!N:N,'2-3.Frais de voyage-séjour'!C:C,B63,'2-3.Frais de voyage-séjour'!B:B,$C$25)+SUMIFS('4. Equipement'!H:H,'4. Equipement'!C:C,B63,'4. Equipement'!B:B,$C$25)+SUMIFS('5. Sous-traitance'!H:H,'5. Sous-traitance'!C:C,B63,'5. Sous-traitance'!B:B,$C$25) -> 0 | D63: =SUMIFS('1. Frais de personnel'!S:S,'1. Frais de personnel'!C:C,B63,'1. Frais de personnel'!B:B,$D$25)+SUMIFS('2-3.Frais de voyage-séjour'!N:N,'2-3.Frais de voyage-séjour'!C:C,B63,'2-3.Frais de voyage-séjour'!B:B,$D$25)+SUMIFS('4. Equipement'!H:H,'4. Equipement'!C:C,B63,'4. Equipement'!B:B,$D$25)+SUMIFS('5. Sous-traitance'!H:H,'5. Sous-traitance'!C:C,B63,'5. Sous-traitance'!B:B,$D$25) -> 0 | E63: =SUMIFS('1. Frais de personnel'!S:S,'1. Frais de personnel'!C:C,B63,'1. Frais de personnel'!B:B,$E$25)+SUMIFS('2-3.Frais de voyage-séjour'!N:N,'2-3.Frais de voyage-séjour'!C:C,B63,'2-3.Frais de voyage-séjour'!B:B,$E$25)+SUMIFS('4. Equipement'!H:H,'4. Equipement'!C:C,B63,'4. Equipement'!B:B,$E$25)+SUMIFS('5. Sous-traitance'!H:H,'5. Sous-traitance'!C:C,B63,'5. Sous-traitance'!B:B,$E$25) -> 0 | F63: =SUMIFS('1. Frais de personnel'!S:S,'1. Frais de personnel'!C:C,B63,'1. Frais de personnel'!B:B,$B$8)+SUMIFS('2-3.Frais de voyage-séjour'!N:N,'2-3.Frais de voyage-séjour'!C:C,B63,'2-3.Frais de voyage-séjour'!B:B,$B$8)+SUMIFS('4. Equipement'!H:H,'4. Equipement'!C:C,B63,'4. Equipement'!B:B,$B$8)+SUMIFS('5. Sous-traitance'!H:H,'5. Sous-traitance'!C:C,B63,'5. Sous-traitance'!B:B,$B$8) -> 0 | G63: =SUMIFS('1. Frais de personnel'!S:S,'1. Frais de personnel'!C:C,B63,'1. Frais de personnel'!B:B,$G$25)+SUMIFS('2-3.Frais de voyage-séjour'!N:N,'2-3.Frais de voyage-séjour'!C:C,B63,'2-3.Frais de voyage-séjour'!B:B,$G$25)+SUMIFS('4. Equipement'!H:H,'4. Equipement'!C:C,B63,'4. Equipement'!B:B,$G$25)+SUMIFS('5. Sous-traitance'!H:H,'5. Sous-traitance'!C:C,B63,'5. Sous-traitance'!B:B,$G$25) -> 0 | H63: =SUMIF('B. Mobilité Spécial - Etudiant'!B:B,B63,'B. Mobilité Spécial - Etudiant'!N:N)+SUMIF('B. Mobilité Spécial - Personnel'!B:B,B63,'B. Mobilité Spécial - Personnel'!N:N) -> 0 | I63: 0
B64: P39 | C64: =SUMIFS('1. Frais de personnel'!S:S,'1. Frais de personnel'!C:C,B64,'1. Frais de personnel'!B:B,$C$25)+SUMIFS('2-3.Frais de voyage-séjour'!N:N,'2-3.Frais de voyage-séjour'!C:C,B64,'2-3.Frais de voyage-séjour'!B:B,$C$25)+SUMIFS('4. Equipement'!H:H,'4. Equipement'!C:C,B64,'4. Equipement'!B:B,$C$25)+SUMIFS('5. Sous-traitance'!H:H,'5. Sous-traitance'!C:C,B64,'5. Sous-traitance'!B:B,$C$25) -> 0 | D64: =SUMIFS('1. Frais de personnel'!S:S,'1. Frais de personnel'!C:C,B64,'1. Frais de personnel'!B:B,$D$25)+SUMIFS('2-3.Frais de voyage-séjour'!N:N,'2-3.Frais de voyage-séjour'!C:C,B64,'2-3.Frais de voyage-séjour'!B:B,$D$25)+SUMIFS('4. Equipement'!H:H,'4. Equipement'!C:C,B64,'4. Equipement'!B:B,$D$25)+SUMIFS('5. Sous-traitance'!H:H,'5. Sous-traitance'!C:C,B64,'5. Sous-traitance'!B:B,$D$25) -> 0 | E64: =SUMIFS('1. Frais de personnel'!S:S,'1. Frais de personnel'!C:C,B64,'1. Frais de personnel'!B:B,$E$25)+SUMIFS('2-3.Frais de voyage-séjour'!N:N,'2-3.Frais de voyage-séjour'!C:C,B64,'2-3.Frais de voyage-séjour'!B:B,$E$25)+SUMIFS('4. Equipement'!H:H,'4. Equipement'!C:C,B64,'4. Equipement'!B:B,$E$25)+SUMIFS('5. Sous-traitance'!H:H,'5. Sous-traitance'!C:C,B64,'5. Sous-traitance'!B:B,$E$25) -> 0 | F64: =SUMIFS('1. Frais de personnel'!S:S,'1. Frais de personnel'!C:C,B64,'1. Frais de personnel'!B:B,$B$8)+SUMIFS('2-3.Frais de voyage-séjour'!N:N,'2-3.Frais de voyage-séjour'!C:C,B64,'2-3.Frais de voyage-séjour'!B:B,$B$8)+SUMIFS('4. Equipement'!H:H,'4. Equipement'!C:C,B64,'4. Equipement'!B:B,$B$8)+SUMIFS('5. Sous-traitance'!H:H,'5. Sous-traitance'!C:C,B64,'5. Sous-traitance'!B:B,$B$8) -> 0 | G64: =SUMIFS('1. Frais de personnel'!S:S,'1. Frais de personnel'!C:C,B64,'1. Frais de personnel'!B:B,$G$25)+SUMIFS('2-3.Frais de voyage-séjour'!N:N,'2-3.Frais de voyage-séjour'!C:C,B64,'2-3.Frais de voyage-séjour'!B:B,$G$25)+SUMIFS('4. Equipement'!H:H,'4. Equipement'!C:C,B64,'4. Equipement'!B:B,$G$25)+SUMIFS('5. Sous-traitance'!H:H,'5. Sous-traitance'!C:C,B64,'5. Sous-traitance'!B:B,$G$25) -> 0 | H64: =SUMIF('B. Mobilité Spécial - Etudiant'!B:B,B64,'B. Mobilité Spécial - Etudiant'!N:N)+SUMIF('B. Mobilité Spécial - Personnel'!B:B,B64,'B. Mobilité Spécial - Personnel'!N:N) -> 0 | I64: 0
B65: P40 | C65: =SUMIFS('1. Frais de personnel'!S:S,'1. Frais de personnel'!C:C,B65,'1. Frais de personnel'!B:B,$C$25)+SUMIFS('2-3.Frais de voyage-séjour'!N:N,'2-3.Frais de voyage-séjour'!C:C,B65,'2-3.Frais de voyage-séjour'!B:B,$C$25)+SUMIFS('4. Equipement'!H:H,'4. Equipement'!C:C,B65,'4. Equipement'!B:B,$C$25)+SUMIFS('5. Sous-traitance'!H:H,'5. Sous-traitance'!C:C,B65,'5. Sous-traitance'!B:B,$C$25) -> 0 | D65: =SUMIFS('1. Frais de personnel'!S:S,'1. Frais de personnel'!C:C,B65,'1. Frais de personnel'!B:B,$D$25)+SUMIFS('2-3.Frais de voyage-séjour'!N:N,'2-3.Frais de voyage-séjour'!C:C,B65,'2-3.Frais de voyage-séjour'!B:B,$D$25)+SUMIFS('4. Equipement'!H:H,'4. Equipement'!C:C,B65,'4. Equipement'!B:B,$D$25)+SUMIFS('5. Sous-traitance'!H:H,'5. Sous-traitance'!C:C,B65,'5. Sous-traitance'!B:B,$D$25) -> 0 | E65: =SUMIFS('1. Frais de personnel'!S:S,'1. Frais de personnel'!C:C,B65,'1. Frais de personnel'!B:B,$E$25)+SUMIFS('2-3.Frais de voyage-séjour'!N:N,'2-3.Frais de voyage-séjour'!C:C,B65,'2-3.Frais de voyage-séjour'!B:B,$E$25)+SUMIFS('4. Equipement'!H:H,'4. Equipement'!C:C,B65,'4. Equipement'!B:B,$E$25)+SUMIFS('5. Sous-traitance'!H:H,'5. Sous-traitance'!C:C,B65,'5. Sous-traitance'!B:B,$E$25) -> 0 | F65: =SUMIFS('1. Frais de personnel'!S:S,'1. Frais de personnel'!C:C,B65,'1. Frais de personnel'!B:B,$B$8)+SUMIFS('2-3.Frais de voyage-séjour'!N:N,'2-3.Frais de voyage-séjour'!C:C,B65,'2-3.Frais de voyage-séjour'!B:B,$B$8)+SUMIFS('4. Equipement'!H:H,'4. Equipement'!C:C,B65,'4. Equipement'!B:B,$B$8)+SUMIFS('5. Sous-traitance'!H:H,'5. Sous-traitance'!C:C,B65,'5. Sous-traitance'!B:B,$B$8) -> 0 | G65: =SUMIFS('1. Frais de personnel'!S:S,'1. Frais de personnel'!C:C,B65,'1. Frais de personnel'!B:B,$G$25)+SUMIFS('2-3.Frais de voyage-séjour'!N:N,'2-3.Frais de voyage-séjour'!C:C,B65,'2-3.Frais de voyage-séjour'!B:B,$G$25)+SUMIFS('4. Equipement'!H:H,'4. Equipement'!C:C,B65,'4. Equipement'!B:B,$G$25)+SUMIFS('5. Sous-traitance'!H:H,'5. Sous-traitance'!C:C,B65,'5. Sous-traitance'!B:B,$G$25) -> 0 | H65: =SUMIF('B. Mobilité Spécial - Etudiant'!B:B,B65,'B. Mobilité Spécial - Etudiant'!N:N)+SUMIF('B. Mobilité Spécial - Personnel'!B:B,B65,'B. Mobilité Spécial - Personnel'!N:N) -> 0 | I65: 0
B66: P41 | C66: =SUMIFS('1. Frais de personnel'!S:S,'1. Frais de personnel'!C:C,B66,'1. Frais de personnel'!B:B,$C$25)+SUMIFS('2-3.Frais de voyage-séjour'!N:N,'2-3.Frais de voyage-séjour'!C:C,B66,'2-3.Frais de voyage-séjour'!B:B,$C$25)+SUMIFS('4. Equipement'!H:H,'4. Equipement'!C:C,B66,'4. Equipement'!B:B,$C$25)+SUMIFS('5. Sous-traitance'!H:H,'5. Sous-traitance'!C:C,B66,'5. Sous-traitance'!B:B,$C$25) -> 0 | D66: =SUMIFS('1. Frais de personnel'!S:S,'1. Frais de personnel'!C:C,B66,'1. Frais de personnel'!B:B,$D$25)+SUMIFS('2-3.Frais de voyage-séjour'!N:N,'2-3.Frais de voyage-séjour'!C:C,B66,'2-3.Frais de voyage-séjour'!B:B,$D$25)+SUMIFS('4. Equipement'!H:H,'4. Equipement'!C:C,B66,'4. Equipement'!B:B,$D$25)+SUMIFS('5. Sous-traitance'!H:H,'5. Sous-traitance'!C:C,B66,'5. Sous-traitance'!B:B,$D$25) -> 0 | E66: =SUMIFS('1. Frais de personnel'!S:S,'1. Frais de personnel'!C:C,B66,'1. Frais de personnel'!B:B,$E$25)+SUMIFS('2-3.Frais de voyage-séjour'!N:N,'2-3.Frais de voyage-séjour'!C:C,B66,'2-3.Frais de voyage-séjour'!B:B,$E$25)+SUMIFS('4. Equipement'!H:H,'4. Equipement'!C:C,B66,'4. Equipement'!B:B,$E$25)+SUMIFS('5. Sous-traitance'!H:H,'5. Sous-traitance'!C:C,B66,'5. Sous-traitance'!B:B,$E$25) -> 0 | F66: =SUMIFS('1. Frais de personnel'!S:S,'1. Frais de personnel'!C:C,B66,'1. Frais de personnel'!B:B,$B$8)+SUMIFS('2-3.Frais de voyage-séjour'!N:N,'2-3.Frais de voyage-séjour'!C:C,B66,'2-3.Frais de voyage-séjour'!B:B,$B$8)+SUMIFS('4. Equipement'!H:H,'4. Equipement'!C:C,B66,'4. Equipement'!B:B,$B$8)+SUMIFS('5. Sous-traitance'!H:H,'5. Sous-traitance'!C:C,B66,'5. Sous-traitance'!B:B,$B$8) -> 0 | G66: =SUMIFS('1. Frais de personnel'!S:S,'1. Frais de personnel'!C:C,B66,'1. Frais de personnel'!B:B,$G$25)+SUMIFS('2-3.Frais de voyage-séjour'!N:N,'2-3.Frais de voyage-séjour'!C:C,B66,'2-3.Frais de voyage-séjour'!B:B,$G$25)+SUMIFS('4. Equipement'!H:H,'4. Equipement'!C:C,B66,'4. Equipement'!B:B,$G$25)+SUMIFS('5. Sous-traitance'!H:H,'5. Sous-traitance'!C:C,B66,'5. Sous-traitance'!B:B,$G$25) -> 0 | H66: =SUMIF('B. Mobilité Spécial - Etudiant'!B:B,B66,'B. Mobilité Spécial - Etudiant'!N:N)+SUMIF('B. Mobilité Spécial - Personnel'!B:B,B66,'B. Mobilité Spécial - Personnel'!N:N) -> 0 | I66: 0
B67: P42 | C67: =SUMIFS('1. Frais de personnel'!S:S,'1. Frais de personnel'!C:C,B67,'1. Frais de personnel'!B:B,$C$25)+SUMIFS('2-3.Frais de voyage-séjour'!N:N,'2-3.Frais de voyage-séjour'!C:C,B67,'2-3.Frais de voyage-séjour'!B:B,$C$25)+SUMIFS('4. Equipement'!H:H,'4. Equipement'!C:C,B67,'4. Equipement'!B:B,$C$25)+SUMIFS('5. Sous-traitance'!H:H,'5. Sous-traitance'!C:C,B67,'5. Sous-traitance'!B:B,$C$25) -> 0 | D67: =SUMIFS('1. Frais de personnel'!S:S,'1. Frais de personnel'!C:C,B67,'1. Frais de personnel'!B:B,$D$25)+SUMIFS('2-3.Frais de voyage-séjour'!N:N,'2-3.Frais de voyage-séjour'!C:C,B67,'2-3.Frais de voyage-séjour'!B:B,$D$25)+SUMIFS('4. Equipement'!H:H,'4. Equipement'!C:C,B67,'4. Equipement'!B:B,$D$25)+SUMIFS('5. Sous-traitance'!H:H,'5. Sous-traitance'!C:C,B67,'5. Sous-traitance'!B:B,$D$25) -> 0 | E67: =SUMIFS('1. Frais de personnel'!S:S,'1. Frais de personnel'!C:C,B67,'1. Frais de personnel'!B:B,$E$25)+SUMIFS('2-3.Frais de voyage-séjour'!N:N,'2-3.Frais de voyage-séjour'!C:C,B67,'2-3.Frais de voyage-séjour'!B:B,$E$25)+SUMIFS('4. Equipement'!H:H,'4. Equipement'!C:C,B67,'4. Equipement'!B:B,$E$25)+SUMIFS('5. Sous-traitance'!H:H,'5. Sous-traitance'!C:C,B67,'5. Sous-traitance'!B:B,$E$25) -> 0 | F67: =SUMIFS('1. Frais de personnel'!S:S,'1. Frais de personnel'!C:C,B67,'1. Frais de personnel'!B:B,$B$8)+SUMIFS('2-3.Frais de voyage-séjour'!N:N,'2-3.Frais de voyage-séjour'!C:C,B67,'2-3.Frais de voyage-séjour'!B:B,$B$8)+SUMIFS('4. Equipement'!H:H,'4. Equipement'!C:C,B67,'4. Equipement'!B:B,$B$8)+SUMIFS('5. Sous-traitance'!H:H,'5. Sous-traitance'!C:C,B67,'5. Sous-traitance'!B:B,$B$8) -> 0 | G67: =SUMIFS('1. Frais de personnel'!S:S,'1. Frais de personnel'!C:C,B67,'1. Frais de personnel'!B:B,$G$25)+SUMIFS('2-3.Frais de voyage-séjour'!N:N,'2-3.Frais de voyage-séjour'!C:C,B67,'2-3.Frais de voyage-séjour'!B:B,$G$25)+SUMIFS('4. Equipement'!H:H,'4. Equipement'!C:C,B67,'4. Equipement'!B:B,$G$25)+SUMIFS('5. Sous-traitance'!H:H,'5. Sous-traitance'!C:C,B67,'5. Sous-traitance'!B:B,$G$25) -> 0 | H67: =SUMIF('B. Mobilité Spécial - Etudiant'!B:B,B67,'B. Mobilité Spécial - Etudiant'!N:N)+SUMIF('B. Mobilité Spécial - Personnel'!B:B,B67,'B. Mobilité Spécial - Personnel'!N:N) -> 0 | I67: 0
B68: P43 | C68: =SUMIFS('1. Frais de personnel'!S:S,'1. Frais de personnel'!C:C,B68,'1. Frais de personnel'!B:B,$C$25)+SUMIFS('2-3.Frais de voyage-séjour'!N:N,'2-3.Frais de voyage-séjour'!C:C,B68,'2-3.Frais de voyage-séjour'!B:B,$C$25)+SUMIFS('4. Equipement'!H:H,'4. Equipement'!C:C,B68,'4. Equipement'!B:B,$C$25)+SUMIFS('5. Sous-traitance'!H:H,'5. Sous-traitance'!C:C,B68,'5. Sous-traitance'!B:B,$C$25) -> 0 | D68: =SUMIFS('1. Frais de personnel'!S:S,'1. Frais de personnel'!C:C,B68,'1. Frais de personnel'!B:B,$D$25)+SUMIFS('2-3.Frais de voyage-séjour'!N:N,'2-3.Frais de voyage-séjour'!C:C,B68,'2-3.Frais de voyage-séjour'!B:B,$D$25)+SUMIFS('4. Equipement'!H:H,'4. Equipement'!C:C,B68,'4. Equipement'!B:B,$D$25)+SUMIFS('5. Sous-traitance'!H:H,'5. Sous-traitance'!C:C,B68,'5. Sous-traitance'!B:B,$D$25) -> 0 | E68: =SUMIFS('1. Frais de personnel'!S:S,'1. Frais de personnel'!C:C,B68,'1. Frais de personnel'!B:B,$E$25)+SUMIFS('2-3.Frais de voyage-séjour'!N:N,'2-3.Frais de voyage-séjour'!C:C,B68,'2-3.Frais de voyage-séjour'!B:B,$E$25)+SUMIFS('4. Equipement'!H:H,'4. Equipement'!C:C,B68,'4. Equipement'!B:B,$E$25)+SUMIFS('5. Sous-traitance'!H:H,'5. Sous-traitance'!C:C,B68,'5. Sous-traitance'!B:B,$E$25) -> 0 | F68: =SUMIFS('1. Frais de personnel'!S:S,'1. Frais de personnel'!C:C,B68,'1. Frais de personnel'!B:B,$B$8)+SUMIFS('2-3.Frais de voyage-séjour'!N:N,'2-3.Frais de voyage-séjour'!C:C,B68,'2-3.Frais de voyage-séjour'!B:B,$B$8)+SUMIFS('4. Equipement'!H:H,'4. Equipement'!C:C,B68,'4. Equipement'!B:B,$B$8)+SUMIFS('5. Sous-traitance'!H:H,'5. Sous-traitance'!C:C,B68,'5. Sous-traitance'!B:B,$B$8) -> 0 | G68: =SUMIFS('1. Frais de personnel'!S:S,'1. Frais de personnel'!C:C,B68,'1. Frais de personnel'!B:B,$G$25)+SUMIFS('2-3.Frais de voyage-séjour'!N:N,'2-3.Frais de voyage-séjour'!C:C,B68,'2-3.Frais de voyage-séjour'!B:B,$G$25)+SUMIFS('4. Equipement'!H:H,'4. Equipement'!C:C,B68,'4. Equipement'!B:B,$G$25)+SUMIFS('5. Sous-traitance'!H:H,'5. Sous-traitance'!C:C,B68,'5. Sous-traitance'!B:B,$G$25) -> 0 | H68: =SUMIF('B. Mobilité Spécial - Etudiant'!B:B,B68,'B. Mobilité Spécial - Etudiant'!N:N)+SUMIF('B. Mobilité Spécial - Personnel'!B:B,B68,'B. Mobilité Spécial - Personnel'!N:N) -> 0 | I68: 0
B69: P44 | C69: =SUMIFS('1. Frais de personnel'!S:S,'1. Frais de personnel'!C:C,B69,'1. Frais de personnel'!B:B,$C$25)+SUMIFS('2-3.Frais de voyage-séjour'!N:N,'2-3.Frais de voyage-séjour'!C:C,B69,'2-3.Frais de voyage-séjour'!B:B,$C$25)+SUMIFS('4. Equipement'!H:H,'4. Equipement'!C:C,B69,'4. Equipement'!B:B,$C$25)+SUMIFS('5. Sous-traitance'!H:H,'5. Sous-traitance'!C:C,B69,'5. Sous-traitance'!B:B,$C$25) -> 0 | D69: =SUMIFS('1. Frais de personnel'!S:S,'1. Frais de personnel'!C:C,B69,'1. Frais de personnel'!B:B,$D$25)+SUMIFS('2-3.Frais de voyage-séjour'!N:N,'2-3.Frais de voyage-séjour'!C:C,B69,'2-3.Frais de voyage-séjour'!B:B,$D$25)+SUMIFS('4. Equipement'!H:H,'4. Equipement'!C:C,B69,'4. Equipement'!B:B,$D$25)+SUMIFS('5. Sous-traitance'!H:H,'5. Sous-traitance'!C:C,B69,'5. Sous-traitance'!B:B,$D$25) -> 0 | E69: =SUMIFS('1. Frais de personnel'!S:S,'1. Frais de personnel'!C:C,B69,'1. Frais de personnel'!B:B,$E$25)+SUMIFS('2-3.Frais de voyage-séjour'!N:N,'2-3.Frais de voyage-séjour'!C:C,B69,'2-3.Frais de voyage-séjour'!B:B,$E$25)+SUMIFS('4. Equipement'!H:H,'4. Equipement'!C:C,B69,'4. Equipement'!B:B,$E$25)+SUMIFS('5. Sous-traitance'!H:H,'5. Sous-traitance'!C:C,B69,'5. Sous-traitance'!B:B,$E$25) -> 0 | F69: =SUMIFS('1. Frais de personnel'!S:S,'1. Frais de personnel'!C:C,B69,'1. Frais de personnel'!B:B,$B$8)+SUMIFS('2-3.Frais de voyage-séjour'!N:N,'2-3.Frais de voyage-séjour'!C:C,B69,'2-3.Frais de voyage-séjour'!B:B,$B$8)+SUMIFS('4. Equipement'!H:H,'4. Equipement'!C:C,B69,'4. Equipement'!B:B,$B$8)+SUMIFS('5. Sous-traitance'!H:H,'5. Sous-traitance'!C:C,B69,'5. Sous-traitance'!B:B,$B$8) -> 0 | G69: =SUMIFS('1. Frais de personnel'!S:S,'1. Frais de personnel'!C:C,B69,'1. Frais de personnel'!B:B,$G$25)+SUMIFS('2-3.Frais de voyage-séjour'!N:N,'2-3.Frais de voyage-séjour'!C:C,B69,'2-3.Frais de voyage-séjour'!B:B,$G$25)+SUMIFS('4. Equipement'!H:H,'4. Equipement'!C:C,B69,'4. Equipement'!B:B,$G$25)+SUMIFS('5. Sous-traitance'!H:H,'5. Sous-traitance'!C:C,B69,'5. Sous-traitance'!B:B,$G$25) -> 0 | H69: =SUMIF('B. Mobilité Spécial - Etudiant'!B:B,B69,'B. Mobilité Spécial - Etudiant'!N:N)+SUMIF('B. Mobilité Spécial - Personnel'!B:B,B69,'B. Mobilité Spécial - Personnel'!N:N) -> 0 | I69: 0
B70: P45 | C70: =SUMIFS('1. Frais de personnel'!S:S,'1. Frais de personnel'!C:C,B70,'1. Frais de personnel'!B:B,$C$25)+SUMIFS('2-3.Frais de voyage-séjour'!N:N,'2-3.Frais de voyage-séjour'!C:C,B70,'2-3.Frais de voyage-séjour'!B:B,$C$25)+SUMIFS('4. Equipement'!H:H,'4. Equipement'!C:C,B70,'4. Equipement'!B:B,$C$25)+SUMIFS('5. Sous-traitance'!H:H,'5. Sous-traitance'!C:C,B70,'5. Sous-traitance'!B:B,$C$25) -> 0 | D70: =SUMIFS('1. Frais de personnel'!S:S,'1. Frais de personnel'!C:C,B70,'1. Frais de personnel'!B:B,$D$25)+SUMIFS('2-3.Frais de voyage-séjour'!N:N,'2-3.Frais de voyage-séjour'!C:C,B70,'2-3.Frais de voyage-séjour'!B:B,$D$25)+SUMIFS('4. Equipement'!H:H,'4. Equipement'!C:C,B70,'4. Equipement'!B:B,$D$25)+SUMIFS('5. Sous-traitance'!H:H,'5. Sous-traitance'!C:C,B70,'5. Sous-traitance'!B:B,$D$25) -> 0 | E70: =SUMIFS('1. Frais de personnel'!S:S,'1. Frais de personnel'!C:C,B70,'1. Frais de personnel'!B:B,$E$25)+SUMIFS('2-3.Frais de voyage-séjour'!N:N,'2-3.Frais de voyage-séjour'!C:C,B70,'2-3.Frais de voyage-séjour'!B:B,$E$25)+SUMIFS('4. Equipement'!H:H,'4. Equipement'!C:C,B70,'4. Equipement'!B:B,$E$25)+SUMIFS('5. Sous-traitance'!H:H,'5. Sous-traitance'!C:C,B70,'5. Sous-traitance'!B:B,$E$25) -> 0 | F70: =SUMIFS('1. Frais de personnel'!S:S,'1. Frais de personnel'!C:C,B70,'1. Frais de personnel'!B:B,$B$8)+SUMIFS('2-3.Frais de voyage-séjour'!N:N,'2-3.Frais de voyage-séjour'!C:C,B70,'2-3.Frais de voyage-séjour'!B:B,$B$8)+SUMIFS('4. Equipement'!H:H,'4. Equipement'!C:C,B70,'4. Equipement'!B:B,$B$8)+SUMIFS('5. Sous-traitance'!H:H,'5. Sous-traitance'!C:C,B70,'5. Sous-traitance'!B:B,$B$8) -> 0 | G70: =SUMIFS('1. Frais de personnel'!S:S,'1. Frais de personnel'!C:C,B70,'1. Frais de personnel'!B:B,$G$25)+SUMIFS('2-3.Frais de voyage-séjour'!N:N,'2-3.Frais de voyage-séjour'!C:C,B70,'2-3.Frais de voyage-séjour'!B:B,$G$25)+SUMIFS('4. Equipement'!H:H,'4. Equipement'!C:C,B70,'4. Equipement'!B:B,$G$25)+SUMIFS('5. Sous-traitance'!H:H,'5. Sous-traitance'!C:C,B70,'5. Sous-traitance'!B:B,$G$25) -> 0 | H70: =SUMIF('B. Mobilité Spécial - Etudiant'!B:B,B70,'B. Mobilité Spécial - Etudiant'!N:N)+SUMIF('B. Mobilité Spécial - Personnel'!B:B,B70,'B. Mobilité Spécial - Personnel'!N:N) -> 0 | I70: 0
B71: P46 | C71: =SUMIFS('1. Frais de personnel'!S:S,'1. Frais de personnel'!C:C,B71,'1. Frais de personnel'!B:B,$C$25)+SUMIFS('2-3.Frais de voyage-séjour'!N:N,'2-3.Frais de voyage-séjour'!C:C,B71,'2-3.Frais de voyage-séjour'!B:B,$C$25)+SUMIFS('4. Equipement'!H:H,'4. Equipement'!C:C,B71,'4. Equipement'!B:B,$C$25)+SUMIFS('5. Sous-traitance'!H:H,'5. Sous-traitance'!C:C,B71,'5. Sous-traitance'!B:B,$C$25) -> 0 | D71: =SUMIFS('1. Frais de personnel'!S:S,'1. Frais de personnel'!C:C,B71,'1. Frais de personnel'!B:B,$D$25)+SUMIFS('2-3.Frais de voyage-séjour'!N:N,'2-3.Frais de voyage-séjour'!C:C,B71,'2-3.Frais de voyage-séjour'!B:B,$D$25)+SUMIFS('4. Equipement'!H:H,'4. Equipement'!C:C,B71,'4. Equipement'!B:B,$D$25)+SUMIFS('5. Sous-traitance'!H:H,'5. Sous-traitance'!C:C,B71,'5. Sous-traitance'!B:B,$D$25) -> 0 | E71: =SUMIFS('1. Frais de personnel'!S:S,'1. Frais de personnel'!C:C,B71,'1. Frais de personnel'!B:B,$E$25)+SUMIFS('2-3.Frais de voyage-séjour'!N:N,'2-3.Frais de voyage-séjour'!C:C,B71,'2-3.Frais de voyage-séjour'!B:B,$E$25)+SUMIFS('4. Equipement'!H:H,'4. Equipement'!C:C,B71,'4. Equipement'!B:B,$E$25)+SUMIFS('5. Sous-traitance'!H:H,'5. Sous-traitance'!C:C,B71,'5. Sous-traitance'!B:B,$E$25) -> 0 | F71: =SUMIFS('1. Frais de personnel'!S:S,'1. Frais de personnel'!C:C,B71,'1. Frais de personnel'!B:B,$B$8)+SUMIFS('2-3.Frais de voyage-séjour'!N:N,'2-3.Frais de voyage-séjour'!C:C,B71,'2-3.Frais de voyage-séjour'!B:B,$B$8)+SUMIFS('4. Equipement'!H:H,'4. Equipement'!C:C,B71,'4. Equipement'!B:B,$B$8)+SUMIFS('5. Sous-traitance'!H:H,'5. Sous-traitance'!C:C,B71,'5. Sous-traitance'!B:B,$B$8) -> 0 | G71: =SUMIFS('1. Frais de personnel'!S:S,'1. Frais de personnel'!C:C,B71,'1. Frais de personnel'!B:B,$G$25)+SUMIFS('2-3.Frais de voyage-séjour'!N:N,'2-3.Frais de voyage-séjour'!C:C,B71,'2-3.Frais de voyage-séjour'!B:B,$G$25)+SUMIFS('4. Equipement'!H:H,'4. Equipement'!C:C,B71,'4. Equipement'!B:B,$G$25)+SUMIFS('5. Sous-traitance'!H:H,'5. Sous-traitance'!C:C,B71,'5. Sous-traitance'!B:B,$G$25) -> 0 | H71: =SUMIF('B. Mobilité Spécial - Etudiant'!B:B,B71,'B. Mobilité Spécial - Etudiant'!N:N)+SUMIF('B. Mobilité Spécial - Personnel'!B:B,B71,'B. Mobilité Spécial - Personnel'!N:N) -> 0 | I71: 0
B72: P47 | C72: =SUMIFS('1. Frais de personnel'!S:S,'1. Frais de personnel'!C:C,B72,'1. Frais de personnel'!B:B,$C$25)+SUMIFS('2-3.Frais de voyage-séjour'!N:N,'2-3.Frais de voyage-séjour'!C:C,B72,'2-3.Frais de voyage-séjour'!B:B,$C$25)+SUMIFS('4. Equipement'!H:H,'4. Equipement'!C:C,B72,'4. Equipement'!B:B,$C$25)+SUMIFS('5. Sous-traitance'!H:H,'5. Sous-traitance'!C:C,B72,'5. Sous-traitance'!B:B,$C$25) -> 0 | D72: =SUMIFS('1. Frais de personnel'!S:S,'1. Frais de personnel'!C:C,B72,'1. Frais de personnel'!B:B,$D$25)+SUMIFS('2-3.Frais de voyage-séjour'!N:N,'2-3.Frais de voyage-séjour'!C:C,B72,'2-3.Frais de voyage-séjour'!B:B,$D$25)+SUMIFS('4. Equipement'!H:H,'4. Equipement'!C:C,B72,'4. Equipement'!B:B,$D$25)+SUMIFS('5. Sous-traitance'!H:H,'5. Sous-traitance'!C:C,B72,'5. Sous-traitance'!B:B,$D$25) -> 0 | E72: =SUMIFS('1. Frais de personnel'!S:S,'1. Frais de personnel'!C:C,B72,'1. Frais de personnel'!B:B,$E$25)+SUMIFS('2-3.Frais de voyage-séjour'!N:N,'2-3.Frais de voyage-séjour'!C:C,B72,'2-3.Frais de voyage-séjour'!B:B,$E$25)+SUMIFS('4. Equipement'!H:H,'4. Equipement'!C:C,B72,'4. Equipement'!B:B,$E$25)+SUMIFS('5. Sous-traitance'!H:H,'5. Sous-traitance'!C:C,B72,'5. Sous-traitance'!B:B,$E$25) -> 0 | F72: =SUMIFS('1. Frais de personnel'!S:S,'1. Frais de personnel'!C:C,B72,'1. Frais de personnel'!B:B,$B$8)+SUMIFS('2-3.Frais de voyage-séjour'!N:N,'2-3.Frais de voyage-séjour'!C:C,B72,'2-3.Frais de voyage-séjour'!B:B,$B$8)+SUMIFS('4. Equipement'!H:H,'4. Equipement'!C:C,B72,'4. Equipement'!B:B,$B$8)+SUMIFS('5. Sous-traitance'!H:H,'5. Sous-traitance'!C:C,B72,'5. Sous-traitance'!B:B,$B$8) -> 0 | G72: =SUMIFS('1. Frais de personnel'!S:S,'1. Frais de personnel'!C:C,B72,'1. Frais de personnel'!B:B,$G$25)+SUMIFS('2-3.Frais de voyage-séjour'!N:N,'2-3.Frais de voyage-séjour'!C:C,B72,'2-3.Frais de voyage-séjour'!B:B,$G$25)+SUMIFS('4. Equipement'!H:H,'4. Equipement'!C:C,B72,'4. Equipement'!B:B,$G$25)+SUMIFS('5. Sous-traitance'!H:H,'5. Sous-traitance'!C:C,B72,'5. Sous-traitance'!B:B,$G$25) -> 0 | H72: =SUMIF('B. Mobilité Spécial - Etudiant'!B:B,B72,'B. Mobilité Spécial - Etudiant'!N:N)+SUMIF('B. Mobilité Spécial - Personnel'!B:B,B72,'B. Mobilité Spécial - Personnel'!N:N) -> 0 | I72: 0
B73: P48 | C73: =SUMIFS('1. Frais de personnel'!S:S,'1. Frais de personnel'!C:C,B73,'1. Frais de personnel'!B:B,$C$25)+SUMIFS('2-3.Frais de voyage-séjour'!N:N,'2-3.Frais de voyage-séjour'!C:C,B73,'2-3.Frais de voyage-séjour'!B:B,$C$25)+SUMIFS('4. Equipement'!H:H,'4. Equipement'!C:C,B73,'4. Equipement'!B:B,$C$25)+SUMIFS('5. Sous-traitance'!H:H,'5. Sous-traitance'!C:C,B73,'5. Sous-traitance'!B:B,$C$25) -> 0 | D73: =SUMIFS('1. Frais de personnel'!S:S,'1. Frais de personnel'!C:C,B73,'1. Frais de personnel'!B:B,$D$25)+SUMIFS('2-3.Frais de voyage-séjour'!N:N,'2-3.Frais de voyage-séjour'!C:C,B73,'2-3.Frais de voyage-séjour'!B:B,$D$25)+SUMIFS('4. Equipement'!H:H,'4. Equipement'!C:C,B73,'4. Equipement'!B:B,$D$25)+SUMIFS('5. Sous-traitance'!H:H,'5. Sous-traitance'!C:C,B73,'5. Sous-traitance'!B:B,$D$25) -> 0 | E73: =SUMIFS('1. Frais de personnel'!S:S,'1. Frais de personnel'!C:C,B73,'1. Frais de personnel'!B:B,$E$25)+SUMIFS('2-3.Frais de voyage-séjour'!N:N,'2-3.Frais de voyage-séjour'!C:C,B73,'2-3.Frais de voyage-séjour'!B:B,$E$25)+SUMIFS('4. Equipement'!H:H,'4. Equipement'!C:C,B73,'4. Equipement'!B:B,$E$25)+SUMIFS('5. Sous-traitance'!H:H,'5. Sous-traitance'!C:C,B73,'5. Sous-traitance'!B:B,$E$25) -> 0 | F73: =SUMIFS('1. Frais de personnel'!S:S,'1. Frais de personnel'!C:C,B73,'1. Frais de personnel'!B:B,$B$8)+SUMIFS('2-3.Frais de voyage-séjour'!N:N,'2-3.Frais de voyage-séjour'!C:C,B73,'2-3.Frais de voyage-séjour'!B:B,$B$8)+SUMIFS('4. Equipement'!H:H,'4. Equipement'!C:C,B73,'4. Equipement'!B:B,$B$8)+SUMIFS('5. Sous-traitance'!H:H,'5. Sous-traitance'!C:C,B73,'5. Sous-traitance'!B:B,$B$8) -> 0 | G73: =SUMIFS('1. Frais de personnel'!S:S,'1. Frais de personnel'!C:C,B73,'1. Frais de personnel'!B:B,$G$25)+SUMIFS('2-3.Frais de voyage-séjour'!N:N,'2-3.Frais de voyage-séjour'!C:C,B73,'2-3.Frais de voyage-séjour'!B:B,$G$25)+SUMIFS('4. Equipement'!H:H,'4. Equipement'!C:C,B73,'4. Equipement'!B:B,$G$25)+SUMIFS('5. Sous-traitance'!H:H,'5. Sous-traitance'!C:C,B73,'5. Sous-traitance'!B:B,$G$25) -> 0 | H73: =SUMIF('B. Mobilité Spécial - Etudiant'!B:B,B73,'B. Mobilité Spécial - Etudiant'!N:N)+SUMIF('B. Mobilité Spécial - Personnel'!B:B,B73,'B. Mobilité Spécial - Personnel'!N:N) -> 0 | I73: 0
B74: P49 | C74: =SUMIFS('1. Frais de personnel'!S:S,'1. Frais de personnel'!C:C,B74,'1. Frais de personnel'!B:B,$C$25)+SUMIFS('2-3.Frais de voyage-séjour'!N:N,'2-3.Frais de voyage-séjour'!C:C,B74,'2-3.Frais de voyage-séjour'!B:B,$C$25)+SUMIFS('4. Equipement'!H:H,'4. Equipement'!C:C,B74,'4. Equipement'!B:B,$C$25)+SUMIFS('5. Sous-traitance'!H:H,'5. Sous-traitance'!C:C,B74,'5. Sous-traitance'!B:B,$C$25) -> 0 | D74: =SUMIFS('1. Frais de personnel'!S:S,'1. Frais de personnel'!C:C,B74,'1. Frais de personnel'!B:B,$D$25)+SUMIFS('2-3.Frais de voyage-séjour'!N:N,'2-3.Frais de voyage-séjour'!C:C,B74,'2-3.Frais de voyage-séjour'!B:B,$D$25)+SUMIFS('4. Equipement'!H:H,'4. Equipement'!C:C,B74,'4. Equipement'!B:B,$D$25)+SUMIFS('5. Sous-traitance'!H:H,'5. Sous-traitance'!C:C,B74,'5. Sous-traitance'!B:B,$D$25) -> 0 | E74: =SUMIFS('1. Frais de personnel'!S:S,'1. Frais de personnel'!C:C,B74,'1. Frais de personnel'!B:B,$E$25)+SUMIFS('2-3.Frais de voyage-séjour'!N:N,'2-3.Frais de voyage-séjour'!C:C,B74,'2-3.Frais de voyage-séjour'!B:B,$E$25)+SUMIFS('4. Equipement'!H:H,'4. Equipement'!C:C,B74,'4. Equipement'!B:B,$E$25)+SUMIFS('5. Sous-traitance'!H:H,'5. Sous-traitance'!C:C,B74,'5. Sous-traitance'!B:B,$E$25) -> 0 | F74: =SUMIFS('1. Frais de personnel'!S:S,'1. Frais de personnel'!C:C,B74,'1. Frais de personnel'!B:B,$B$8)+SUMIFS('2-3.Frais de voyage-séjour'!N:N,'2-3.Frais de voyage-séjour'!C:C,B74,'2-3.Frais de voyage-séjour'!B:B,$B$8)+SUMIFS('4. Equipement'!H:H,'4. Equipement'!C:C,B74,'4. Equipement'!B:B,$B$8)+SUMIFS('5. Sous-traitance'!H:H,'5. Sous-traitance'!C:C,B74,'5. Sous-traitance'!B:B,$B$8) -> 0 | G74: =SUMIFS('1. Frais de personnel'!S:S,'1. Frais de personnel'!C:C,B74,'1. Frais de personnel'!B:B,$G$25)+SUMIFS('2-3.Frais de voyage-séjour'!N:N,'2-3.Frais de voyage-séjour'!C:C,B74,'2-3.Frais de voyage-séjour'!B:B,$G$25)+SUMIFS('4. Equipement'!H:H,'4. Equipement'!C:C,B74,'4. Equipement'!B:B,$G$25)+SUMIFS('5. Sous-traitance'!H:H,'5. Sous-traitance'!C:C,B74,'5. Sous-traitance'!B:B,$G$25) -> 0 | H74: =SUMIF('B. Mobilité Spécial - Etudiant'!B:B,B74,'B. Mobilité Spécial - Etudiant'!N:N)+SUMIF('B. Mobilité Spécial - Personnel'!B:B,B74,'B. Mobilité Spécial - Personnel'!N:N) -> 0 | I74: 0
B75: P50 | C75: =SUMIFS('1. Frais de personnel'!S:S,'1. Frais de personnel'!C:C,B75,'1. Frais de personnel'!B:B,$C$25)+SUMIFS('2-3.Frais de voyage-séjour'!N:N,'2-3.Frais de voyage-séjour'!C:C,B75,'2-3.Frais de voyage-séjour'!B:B,$C$25)+SUMIFS('4. Equipement'!H:H,'4. Equipement'!C:C,B75,'4. Equipement'!B:B,$C$25)+SUMIFS('5. Sous-traitance'!H:H,'5. Sous-traitance'!C:C,B75,'5. Sous-traitance'!B:B,$C$25) -> 0 | D75: =SUMIFS('1. Frais de personnel'!S:S,'1. Frais de personnel'!C:C,B75,'1. Frais de personnel'!B:B,$D$25)+SUMIFS('2-3.Frais de voyage-séjour'!N:N,'2-3.Frais de voyage-séjour'!C:C,B75,'2-3.Frais de voyage-séjour'!B:B,$D$25)+SUMIFS('4. Equipement'!H:H,'4. Equipement'!C:C,B75,'4. Equipement'!B:B,$D$25)+SUMIFS('5. Sous-traitance'!H:H,'5. Sous-traitance'!C:C,B75,'5. Sous-traitance'!B:B,$D$25) -> 0 | E75: =SUMIFS('1. Frais de personnel'!S:S,'1. Frais de personnel'!C:C,B75,'1. Frais de personnel'!B:B,$E$25)+SUMIFS('2-3.Frais de voyage-séjour'!N:N,'2-3.Frais de voyage-séjour'!C:C,B75,'2-3.Frais de voyage-séjour'!B:B,$E$25)+SUMIFS('4. Equipement'!H:H,'4. Equipement'!C:C,B75,'4. Equipement'!B:B,$E$25)+SUMIFS('5. Sous-traitance'!H:H,'5. Sous-traitance'!C:C,B75,'5. Sous-traitance'!B:B,$E$25) -> 0 | F75: =SUMIFS('1. Frais de personnel'!S:S,'1. Frais de personnel'!C:C,B75,'1. Frais de personnel'!B:B,$B$8)+SUMIFS('2-3.Frais de voyage-séjour'!N:N,'2-3.Frais de voyage-séjour'!C:C,B75,'2-3.Frais de voyage-séjour'!B:B,$B$8)+SUMIFS('4. Equipement'!H:H,'4. Equipement'!C:C,B75,'4. Equipement'!B:B,$B$8)+SUMIFS('5. Sous-traitance'!H:H,'5. Sous-traitance'!C:C,B75,'5. Sous-traitance'!B:B,$B$8) -> 0 | G75: =SUMIFS('1. Frais de personnel'!S:S,'1. Frais de personnel'!C:C,B75,'1. Frais de personnel'!B:B,$G$25)+SUMIFS('2-3.Frais de voyage-séjour'!N:N,'2-3.Frais de voyage-séjour'!C:C,B75,'2-3.Frais de voyage-séjour'!B:B,$G$25)+SUMIFS('4. Equipement'!H:H,'4. Equipement'!C:C,B75,'4. Equipement'!B:B,$G$25)+SUMIFS('5. Sous-traitance'!H:H,'5. Sous-traitance'!C:C,B75,'5. Sous-traitance'!B:B,$G$25) -> 0 | H75: =SUMIF('B. Mobilité Spécial - Etudiant'!B:B,B75,'B. Mobilité Spécial - Etudiant'!N:N)+SUMIF('B. Mobilité Spécial - Personnel'!B:B,B75,'B. Mobilité Spécial - Personnel'!N:N) -> 0 | I75: 0
B76: P51 | C76: =SUMIFS('1. Frais de personnel'!S:S,'1. Frais de personnel'!C:C,B76,'1. Frais de personnel'!B:B,$C$25)+SUMIFS('2-3.Frais de voyage-séjour'!N:N,'2-3.Frais de voyage-séjour'!C:C,B76,'2-3.Frais de voyage-séjour'!B:B,$C$25)+SUMIFS('4. Equipement'!H:H,'4. Equipement'!C:C,B76,'4. Equipement'!B:B,$C$25)+SUMIFS('5. Sous-traitance'!H:H,'5. Sous-traitance'!C:C,B76,'5. Sous-traitance'!B:B,$C$25) -> 0 | D76: =SUMIFS('1. Frais de personnel'!S:S,'1. Frais de personnel'!C:C,B76,'1. Frais de personnel'!B:B,$D$25)+SUMIFS('2-3.Frais de voyage-séjour'!N:N,'2-3.Frais de voyage-séjour'!C:C,B76,'2-3.Frais de voyage-séjour'!B:B,$D$25)+SUMIFS('4. Equipement'!H:H,'4. Equipement'!C:C,B76,'4. Equipement'!B:B,$D$25)+SUMIFS('5. Sous-traitance'!H:H,'5. Sous-traitance'!C:C,B76,'5. Sous-traitance'!B:B,$D$25) -> 0 | E76: =SUMIFS('1. Frais de personnel'!S:S,'1. Frais de personnel'!C:C,B76,'1. Frais de personnel'!B:B,$E$25)+SUMIFS('2-3.Frais de voyage-séjour'!N:N,'2-3.Frais de voyage-séjour'!C:C,B76,'2-3.Frais de voyage-séjour'!B:B,$E$25)+SUMIFS('4. Equipement'!H:H,'4. Equipement'!C:C,B76,'4. Equipement'!B:B,$E$25)+SUMIFS('5. Sous-traitance'!H:H,'5. Sous-traitance'!C:C,B76,'5. Sous-traitance'!B:B,$E$25) -> 0 | F76: =SUMIFS('1. Frais de personnel'!S:S,'1. Frais de personnel'!C:C,B76,'1. Frais de personnel'!B:B,$B$8)+SUMIFS('2-3.Frais de voyage-séjour'!N:N,'2-3.Frais de voyage-séjour'!C:C,B76,'2-3.Frais de voyage-séjour'!B:B,$B$8)+SUMIFS('4. Equipement'!H:H,'4. Equipement'!C:C,B76,'4. Equipement'!B:B,$B$8)+SUMIFS('5. Sous-traitance'!H:H,'5. Sous-traitance'!C:C,B76,'5. Sous-traitance'!B:B,$B$8) -> 0 | G76: =SUMIFS('1. Frais de personnel'!S:S,'1. Frais de personnel'!C:C,B76,'1. Frais de personnel'!B:B,$G$25)+SUMIFS('2-3.Frais de voyage-séjour'!N:N,'2-3.Frais de voyage-séjour'!C:C,B76,'2-3.Frais de voyage-séjour'!B:B,$G$25)+SUMIFS('4. Equipement'!H:H,'4. Equipement'!C:C,B76,'4. Equipement'!B:B,$G$25)+SUMIFS('5. Sous-traitance'!H:H,'5. Sous-traitance'!C:C,B76,'5. Sous-traitance'!B:B,$G$25) -> 0 | H76: =SUMIF('B. Mobilité Spécial - Etudiant'!B:B,B76,'B. Mobilité Spécial - Etudiant'!N:N)+SUMIF('B. Mobilité Spécial - Personnel'!B:B,B76,'B. Mobilité Spécial - Personnel'!N:N) -> 0 | I76: 0
B77: P52 | C77: =SUMIFS('1. Frais de personnel'!S:S,'1. Frais de personnel'!C:C,B77,'1. Frais de personnel'!B:B,$C$25)+SUMIFS('2-3.Frais de voyage-séjour'!N:N,'2-3.Frais de voyage-séjour'!C:C,B77,'2-3.Frais de voyage-séjour'!B:B,$C$25)+SUMIFS('4. Equipement'!H:H,'4. Equipement'!C:C,B77,'4. Equipement'!B:B,$C$25)+SUMIFS('5. Sous-traitance'!H:H,'5. Sous-traitance'!C:C,B77,'5. Sous-traitance'!B:B,$C$25) -> 0 | D77: =SUMIFS('1. Frais de personnel'!S:S,'1. Frais de personnel'!C:C,B77,'1. Frais de personnel'!B:B,$D$25)+SUMIFS('2-3.Frais de voyage-séjour'!N:N,'2-3.Frais de voyage-séjour'!C:C,B77,'2-3.Frais de voyage-séjour'!B:B,$D$25)+SUMIFS('4. Equipement'!H:H,'4. Equipement'!C:C,B77,'4. Equipement'!B:B,$D$25)+SUMIFS('5. Sous-traitance'!H:H,'5. Sous-traitance'!C:C,B77,'5. Sous-traitance'!B:B,$D$25) -> 0 | E77: =SUMIFS('1. Frais de personnel'!S:S,'1. Frais de personnel'!C:C,B77,'1. Frais de personnel'!B:B,$E$25)+SUMIFS('2-3.Frais de voyage-séjour'!N:N,'2-3.Frais de voyage-séjour'!C:C,B77,'2-3.Frais de voyage-séjour'!B:B,$E$25)+SUMIFS('4. Equipement'!H:H,'4. Equipement'!C:C,B77,'4. Equipement'!B:B,$E$25)+SUMIFS('5. Sous-traitance'!H:H,'5. Sous-traitance'!C:C,B77,'5. Sous-traitance'!B:B,$E$25) -> 0 | F77: =SUMIFS('1. Frais de personnel'!S:S,'1. Frais de personnel'!C:C,B77,'1. Frais de personnel'!B:B,$B$8)+SUMIFS('2-3.Frais de voyage-séjour'!N:N,'2-3.Frais de voyage-séjour'!C:C,B77,'2-3.Frais de voyage-séjour'!B:B,$B$8)+SUMIFS('4. Equipement'!H:H,'4. Equipement'!C:C,B77,'4. Equipement'!B:B,$B$8)+SUMIFS('5. Sous-traitance'!H:H,'5. Sous-traitance'!C:C,B77,'5. Sous-traitance'!B:B,$B$8) -> 0 | G77: =SUMIFS('1. Frais de personnel'!S:S,'1. Frais de personnel'!C:C,B77,'1. Frais de personnel'!B:B,$G$25)+SUMIFS('2-3.Frais de voyage-séjour'!N:N,'2-3.Frais de voyage-séjour'!C:C,B77,'2-3.Frais de voyage-séjour'!B:B,$G$25)+SUMIFS('4. Equipement'!H:H,'4. Equipement'!C:C,B77,'4. Equipement'!B:B,$G$25)+SUMIFS('5. Sous-traitance'!H:H,'5. Sous-traitance'!C:C,B77,'5. Sous-traitance'!B:B,$G$25) -> 0 | H77: =SUMIF('B. Mobilité Spécial - Etudiant'!B:B,B77,'B. Mobilité Spécial - Etudiant'!N:N)+SUMIF('B. Mobilité Spécial - Personnel'!B:B,B77,'B. Mobilité Spécial - Personnel'!N:N) -> 0 | I77: 0
B78: P53 | C78: =SUMIFS('1. Frais de personnel'!S:S,'1. Frais de personnel'!C:C,B78,'1. Frais de personnel'!B:B,$C$25)+SUMIFS('2-3.Frais de voyage-séjour'!N:N,'2-3.Frais de voyage-séjour'!C:C,B78,'2-3.Frais de voyage-séjour'!B:B,$C$25)+SUMIFS('4. Equipement'!H:H,'4. Equipement'!C:C,B78,'4. Equipement'!B:B,$C$25)+SUMIFS('5. Sous-traitance'!H:H,'5. Sous-traitance'!C:C,B78,'5. Sous-traitance'!B:B,$C$25) -> 0 | D78: =SUMIFS('1. Frais de personnel'!S:S,'1. Frais de personnel'!C:C,B78,'1. Frais de personnel'!B:B,$D$25)+SUMIFS('2-3.Frais de voyage-séjour'!N:N,'2-3.Frais de voyage-séjour'!C:C,B78,'2-3.Frais de voyage-séjour'!B:B,$D$25)+SUMIFS('4. Equipement'!H:H,'4. Equipement'!C:C,B78,'4. Equipement'!B:B,$D$25)+SUMIFS('5. Sous-traitance'!H:H,'5. Sous-traitance'!C:C,B78,'5. Sous-traitance'!B:B,$D$25) -> 0 | E78: =SUMIFS('1. Frais de personnel'!S:S,'1. Frais de personnel'!C:C,B78,'1. Frais de personnel'!B:B,$E$25)+SUMIFS('2-3.Frais de voyage-séjour'!N:N,'2-3.Frais de voyage-séjour'!C:C,B78,'2-3.Frais de voyage-séjour'!B:B,$E$25)+SUMIFS('4. Equipement'!H:H,'4. Equipement'!C:C,B78,'4. Equipement'!B:B,$E$25)+SUMIFS('5. Sous-traitance'!H:H,'5. Sous-traitance'!C:C,B78,'5. Sous-traitance'!B:B,$E$25) -> 0 | F78: =SUMIFS('1. Frais de personnel'!S:S,'1. Frais de personnel'!C:C,B78,'1. Frais de personnel'!B:B,$B$8)+SUMIFS('2-3.Frais de voyage-séjour'!N:N,'2-3.Frais de voyage-séjour'!C:C,B78,'2-3.Frais de voyage-séjour'!B:B,$B$8)+SUMIFS('4. Equipement'!H:H,'4. Equipement'!C:C,B78,'4. Equipement'!B:B,$B$8)+SUMIFS('5. Sous-traitance'!H:H,'5. Sous-traitance'!C:C,B78,'5. Sous-traitance'!B:B,$B$8) -> 0 | G78: =SUMIFS('1. Frais de personnel'!S:S,'1. Frais de personnel'!C:C,B78,'1. Frais de personnel'!B:B,$G$25)+SUMIFS('2-3.Frais de voyage-séjour'!N:N,'2-3.Frais de voyage-séjour'!C:C,B78,'2-3.Frais de voyage-séjour'!B:B,$G$25)+SUMIFS('4. Equipement'!H:H,'4. Equipement'!C:C,B78,'4. Equipement'!B:B,$G$25)+SUMIFS('5. Sous-traitance'!H:H,'5. Sous-traitance'!C:C,B78,'5. Sous-traitance'!B:B,$G$25) -> 0 | H78: =SUMIF('B. Mobilité Spécial - Etudiant'!B:B,B78,'B. Mobilité Spécial - Etudiant'!N:N)+SUMIF('B. Mobilité Spécial - Personnel'!B:B,B78,'B. Mobilité Spécial - Personnel'!N:N) -> 0 | I78: 0
B79: P54 | C79: =SUMIFS('1. Frais de personnel'!S:S,'1. Frais de personnel'!C:C,B79,'1. Frais de personnel'!B:B,$C$25)+SUMIFS('2-3.Frais de voyage-séjour'!N:N,'2-3.Frais de voyage-séjour'!C:C,B79,'2-3.Frais de voyage-séjour'!B:B,$C$25)+SUMIFS('4. Equipement'!H:H,'4. Equipement'!C:C,B79,'4. Equipement'!B:B,$C$25)+SUMIFS('5. Sous-traitance'!H:H,'5. Sous-traitance'!C:C,B79,'5. Sous-traitance'!B:B,$C$25) -> 0 | D79: =SUMIFS('1. Frais de personnel'!S:S,'1. Frais de personnel'!C:C,B79,'1. Frais de personnel'!B:B,$D$25)+SUMIFS('2-3.Frais de voyage-séjour'!N:N,'2-3.Frais de voyage-séjour'!C:C,B79,'2-3.Frais de voyage-séjour'!B:B,$D$25)+SUMIFS('4. Equipement'!H:H,'4. Equipement'!C:C,B79,'4. Equipement'!B:B,$D$25)+SUMIFS('5. Sous-traitance'!H:H,'5. Sous-traitance'!C:C,B79,'5. Sous-traitance'!B:B,$D$25) -> 0 | E79: =SUMIFS('1. Frais de personnel'!S:S,'1. Frais de personnel'!C:C,B79,'1. Frais de personnel'!B:B,$E$25)+SUMIFS('2-3.Frais de voyage-séjour'!N:N,'2-3.Frais de voyage-séjour'!C:C,B79,'2-3.Frais de voyage-séjour'!B:B,$E$25)+SUMIFS('4. Equipement'!H:H,'4. Equipement'!C:C,B79,'4. Equipement'!B:B,$E$25)+SUMIFS('5. Sous-traitance'!H:H,'5. Sous-traitance'!C:C,B79,'5. Sous-traitance'!B:B,$E$25) -> 0 | F79: =SUMIFS('1. Frais de personnel'!S:S,'1. Frais de personnel'!C:C,B79,'1. Frais de personnel'!B:B,$B$8)+SUMIFS('2-3.Frais de voyage-séjour'!N:N,'2-3.Frais de voyage-séjour'!C:C,B79,'2-3.Frais de voyage-séjour'!B:B,$B$8)+SUMIFS('4. Equipement'!H:H,'4. Equipement'!C:C,B79,'4. Equipement'!B:B,$B$8)+SUMIFS('5. Sous-traitance'!H:H,'5. Sous-traitance'!C:C,B79,'5. Sous-traitance'!B:B,$B$8) -> 0 | G79: =SUMIFS('1. Frais de personnel'!S:S,'1. Frais de personnel'!C:C,B79,'1. Frais de personnel'!B:B,$G$25)+SUMIFS('2-3.Frais de voyage-séjour'!N:N,'2-3.Frais de voyage-séjour'!C:C,B79,'2-3.Frais de voyage-séjour'!B:B,$G$25)+SUMIFS('4. Equipement'!H:H,'4. Equipement'!C:C,B79,'4. Equipement'!B:B,$G$25)+SUMIFS('5. Sous-traitance'!H:H,'5. Sous-traitance'!C:C,B79,'5. Sous-traitance'!B:B,$G$25) -> 0 | H79: =SUMIF('B. Mobilité Spécial - Etudiant'!B:B,B79,'B. Mobilité Spécial - Etudiant'!N:N)+SUMIF('B. Mobilité Spécial - Personnel'!B:B,B79,'B. Mobilité Spécial - Personnel'!N:N) -> 0 | I79: 0
B80: P55 | C80: =SUMIFS('1. Frais de personnel'!S:S,'1. Frais de personnel'!C:C,B80,'1. Frais de personnel'!B:B,$C$25)+SUMIFS('2-3.Frais de voyage-séjour'!N:N,'2-3.Frais de voyage-séjour'!C:C,B80,'2-3.Frais de voyage-séjour'!B:B,$C$25)+SUMIFS('4. Equipement'!H:H,'4. Equipement'!C:C,B80,'4. Equipement'!B:B,$C$25)+SUMIFS('5. Sous-traitance'!H:H,'5. Sous-traitance'!C:C,B80,'5. Sous-traitance'!B:B,$C$25) -> 0 | D80: =SUMIFS('1. Frais de personnel'!S:S,'1. Frais de personnel'!C:C,B80,'1. Frais de personnel'!B:B,$D$25)+SUMIFS('2-3.Frais de voyage-séjour'!N:N,'2-3.Frais de voyage-séjour'!C:C,B80,'2-3.Frais de voyage-séjour'!B:B,$D$25)+SUMIFS('4. Equipement'!H:H,'4. Equipement'!C:C,B80,'4. Equipement'!B:B,$D$25)+SUMIFS('5. Sous-traitance'!H:H,'5. Sous-traitance'!C:C,B80,'5. Sous-traitance'!B:B,$D$25) -> 0 | E80: =SUMIFS('1. Frais de personnel'!S:S,'1. Frais de personnel'!C:C,B80,'1. Frais de personnel'!B:B,$E$25)+SUMIFS('2-3.Frais de voyage-séjour'!N:N,'2-3.Frais de voyage-séjour'!C:C,B80,'2-3.Frais de voyage-séjour'!B:B,$E$25)+SUMIFS('4. Equipement'!H:H,'4. Equipement'!C:C,B80,'4. Equipement'!B:B,$E$25)+SUMIFS('5. Sous-traitance'!H:H,'5. Sous-traitance'!C:C,B80,'5. Sous-traitance'!B:B,$E$25) -> 0 | F80: =SUMIFS('1. Frais de personnel'!S:S,'1. Frais de personnel'!C:C,B80,'1. Frais de personnel'!B:B,$B$8)+SUMIFS('2-3.Frais de voyage-séjour'!N:N,'2-3.Frais de voyage-séjour'!C:C,B80,'2-3.Frais de voyage-séjour'!B:B,$B$8)+SUMIFS('4. Equipement'!H:H,'4. Equipement'!C:C,B80,'4. Equipement'!B:B,$B$8)+SUMIFS('5. Sous-traitance'!H:H,'5. Sous-traitance'!C:C,B80,'5. Sous-traitance'!B:B,$B$8) -> 0 | G80: =SUMIFS('1. Frais de personnel'!S:S,'1. Frais de personnel'!C:C,B80,'1. Frais de personnel'!B:B,$G$25)+SUMIFS('2-3.Frais de voyage-séjour'!N:N,'2-3.Frais de voyage-séjour'!C:C,B80,'2-3.Frais de voyage-séjour'!B:B,$G$25)+SUMIFS('4. Equipement'!H:H,'4. Equipement'!C:C,B80,'4. Equipement'!B:B,$G$25)+SUMIFS('5. Sous-traitance'!H:H,'5. Sous-traitance'!C:C,B80,'5. Sous-traitance'!B:B,$G$25) -> 0 | H80: =SUMIF('B. Mobilité Spécial - Etudiant'!B:B,B80,'B. Mobilité Spécial - Etudiant'!N:N)+SUMIF('B. Mobilité Spécial - Personnel'!B:B,B80,'B. Mobilité Spécial - Personnel'!N:N) -> 0 | I80: 0
B81: TOTAL | C81: =SUM(C26:C80) -> 0 | D81: =SUM(D26:D80) -> 0 | E81: 0 | F81: 0 | G81: 0 | H81: 0 | I81: =SUM(C81:H81) -> 0

Sheet Rates (hidden)
E2: Staff Costs | I2: SMS
C3: Country | D3: PR/PA | E3: Gestionnaire | F3: Enseignant/formateur/chercheur | G3: Personnel technique | H3: Personnel administratif | I3: Etudiants des Pays Partenaires | J3: Etudiants des Pays Programmes | K3: Personnel des Pays Partenaires | L3: Personnel des Pays Programmes | N3: Country SMS | P3: Distance | Q3: Travel Costs (EUR)
B4: 1 | C4: Allemagne | D4: Pays Programmes | E4: 280 | F4: 214 | G4: 162 | H4: 131 | I4: 800 | J4: 0 | K4: 120 | L4: 0 | N4: Allemagne | P4: 0 KM et 9 KM | Q4: 0
B5: 2 | C5: Ancienne République yougoslave de Macédoine | D5: Pays Programmes | E5: 88 | F5: 74 | G5: 55 | H5: 39 | I5: 750 | J5: 0 | K5: 120 | L5: 0 | N5: Ancienne République yougoslave de Macédoine | P5: 10 KM et 99 KM | Q5: 20
B6: 3 | C6: Autriche | D6: Pays Programmes | E6: 294 | F6: 241 | G6: 190 | H6: 157 | I6: 850 | J6: 0 | K6: 140 | L6: 0 | N6: Autriche | P6: 100 KM et 499 KM | Q6: 180
B7: 4 | C7: Belgique | D7: Pays Programmes | E7: 280 | F7: 214 | G7: 162 | H7: 131 | I7: 800 | J7: 0 | K7: 140 | L7: 0 | N7: Belgique | P7: 500 KM et 1999 KM | Q7: 275
B8: 5 | C8: Bulgarie | D8: Pays Programmes | E8: 88 | F8: 74 | G8: 55 | H8: 39 | I8: 750 | J8: 0 | K8: 140 | L8: 0 | N8: Bulgarie | P8: 2000 KM et 2999 KM | Q8: 360
B9: 6 | C9: Chypre | D9: Pays Programmes | E9: 164 | F9: 137 | G9: 102 | H9: 78 | I9: 800 | J9: 0 | K9: 140 | L9: 0 | N9: Chypre | P9: 3000 KM et 3999 KM | Q9: 530
B10: 7 | C10: Croatie | D10: Pays Programmes | E10: 88 | F10: 74 | G10: 55 | H10: 39 | I10: 800 | J10: 0 | K10: 100 | L10: 0 | N10: Croatie | P10: 4000 KM et 7999 KM | Q10: 820
B11: 8 | C11: Danemark | D11: Pays Programmes | E11: 294 | F11: 241 | G11: 190 | H11: 157 | I11: 850 | J11: 0 | K11: 160 | L11: 0 | N11: Danemark | P11: 8000 KM ou plus | Q11: 1100
B12: 9 | C12: Espagne | D12: Pays Programmes | E12: 164 | F12: 137 | G12: 102 | H12: 78 | I12: 800 | J12: 0 | K12: 120 | L12: 0 | N12: Espagne
B13: 10 | C13: Estonie | D13: Pays Programmes | E13: 88 | F13: 74 | G13: 55 | H13: 39 | I13: 750 | J13: 0 | K13: 100 | L13: 0 | N13: Estonie | P13: Work Package
B14: 11 | C14: Finlande | D14: Pays Programmes | E14: 280 | F14: 214 | G14: 162 | H14: 131 | I14: 850 | J14: 0 | K14: 140 | L14: 0 | N14: Finlande | P14: Préparation
B15: 12 | C15: France | D15: Pays Programmes | E15: 280 | F15: 214 | G15: 162 | H15: 131 | I15: 850 | J15: 0 | K15: 140 | L15: 0 | N15: France | P15: Développement
B16: 13 | C16: Grèce | D16: Pays Programmes | E16: 164 | F16: 137 | G16: 102 | H16: 78 | I16: 800 | J16: 0 | K16: 140 | L16: 0 | N16: Grèce | P16: Plan Qualité
B17: 14 | C17: Hongrie | D17: Pays Programmes | E17: 88 | F17: 74 | G17: 55 | H17: 39 | I17: 750 | J17: 0 | K17: 140 | L17: 0 | N17: Hongrie | P17: Diffusion et Exploitation des Résultats
B18: 15 | C18: Irlande | D18: Pays Programmes | E18: 294 | F18: 241 | G18: 190 | H18: 157 | I18: 850 | J18: 0 | K18: 160 | L18: 0 | N18: Irlande | P18: Gestion
B19: 16 | C19: Islande | D19: Pays Programmes | E19: 280 | F19: 214 | G19: 162 | H19: 131 | I19: 800 | J19: 0 | K19: 140 | L19: 0 | N19: Islande
B20: 17 | C20: Italie | D20: Pays Programmes | E20: 280 | F20: 214 | G20: 162 | H20: 131 | I20: 850 | J20: 0 | K20: 140 | L20: 0 | N20: Italie | P20: Action Type
B21: 18 | C21: Lettonie | D21: Pays Programmes | E21: 88 | F21: 74 | G21: 55 | H21: 39 | I21: 750 | J21: 0 | K21: 120 | L21: 0 | N21: Lettonie | P21: Projet Conjoint
B22: 19 | C22: Liechtenstein | D22: Pays Programmes | E22: 294 | F22: 241 | G22: 190 | H22: 157 | I22: 850 | J22: 0 | K22: 140 | L22: 0 | N22: Liechtenstein | P22: Projet Structurel
B23: 20 | C23: Lituanie | D23: Pays Programmes | E23: 88 | F23: 74 | G23: 55 | H23: 39 | I23: 750 | J23: 0 | K23: 100 | L23: 0 | N23: Lituanie
B24: 21 | C24: Luxembourg | D24: Pays Programmes | E24: 294 | F24: 241 | G24: 190 | H24: 157 | I24: 800 | J24: 0 | K24: 140 | L24: 0 | N24: Luxembourg | P24: Duration
B25: 22 | C25: Malte | D25: Pays Programmes | E25: 164 | F25: 137 | G25: 102 | H25: 78 | I25: 750 | J25: 0 | K25: 120 | L25: 0 | N25: Malte | P25: 24
B26: 23 | C26: Norvège | D26: Pays Programmes | E26: 294 | F26: 241 | G26: 190 | H26: 157 | I26: 850 | J26: 0 | K26: 140 | L26: 0 | N26: Norvège | P26: 36
B27: 24 | C27: Pays-Bas | D27: Pays Programmes | E27: 294 | F27: 241 | G27: 190 | H27: 157 | I27: 800 | J27: 0 | K27: 160 | L27: 0 | N27: Pays-Bas
B28: 25 | C28: Pologne | D28: Pays Programmes | E28: 88 | F28: 74 | G28: 55 | H28: 39 | I28: 750 | J28: 0 | K28: 140 | L28: 0 | N28: Pologne | P28: Category 2
B29: 26 | C29: Portugal | D29: Pays Programmes | E29: 164 | F29: 137 | G29: 102 | H29: 78 | I29: 800 | J29: 0 | K29: 120 | L29: 0 | N29: Portugal | P29: Etudiant
B30: 27 | C30: République tchèque | D30: Pays Programmes | E30: 164 | F30: 137 | G30: 102 | H30: 78 | I30: 800 | J30: 0 | K30: 140 | L30: 0 | N30: République tchèque | P30: Personnel
B31: 28 | C31: Roumanie | D31: Pays Programmes | E31: 88 | F31: 74 | G31: 55 | H31: 39 | I31: 750 | J31: 0 | K31: 140 | L31: 0 | N31: Roumanie
B32: 29 | C32: Royaume-Uni | D32: Pays Programmes | E32: 280 | F32: 214 | G32: 162 | H32: 131 | I32: 850 | J32: 0 | K32: 160 | L32: 0 | N32: Royaume-Uni
B33: 30 | C33: Slovaquie | D33: Pays Programmes | E33: 88 | F33: 74 | G33: 55 | H33: 39 | I33: 750 | J33: 0 | K33: 120 | L33: 0 | N33: Slovaquie
B34: 31 | C34: Slovénie | D34: Pays Programmes | E34: 164 | F34: 137 | G34: 102 | H34: 78 | I34: 800 | J34: 0 | K34: 100 | L34: 0 | N34: Slovénie
B35: 32 | C35: Suède | D35: Pays Programmes | E35: 294 | F35: 241 | G35: 190 | H35: 157 | I35: 850 | J35: 0 | K35: 160 | L35: 0 | N35: Suède
B36: 33 | C36: Turquie | D36: Pays Programmes | E36: 88 | F36: 74 | G36: 55 | H36: 39 | I36: 800 | J36: 0 | K36: 140 | L36: 0 | N36: Turquie
B37: 34 | C37: Afghanistan | D37: Pays Partenaires | E37: 77 | F37: 57 | G37: 40 | H37: 32 | I37: 0 | J37: 0 | K37: 0 | L37: 0 | N37: Albanie
B38: 35 | C38: Afrique du Sud | D38: Pays Partenaires | E38: 77 | F38: 57 | G38: 40 | H38: 32 | I38: 0 | J38: 0 | K38: 0 | L38: 0 | N38: Algérie
B39: 36 | C39: Albanie | D39: Pays Partenaires | E39: 108 | F39: 80 | G39: 57 | H39: 45 | I39: 750 | J39: 650 | K39: 100 | L39: 160 | N39: Arménie
B40: 37 | C40: Algérie | D40: Pays Partenaires | E40: 47 | F40: 33 | G40: 22 | H40: 17 | I40: 750 | J40: 650 | K40: 100 | L40: 160 | N40: Azerbaïdjan
B41: 38 | C41: Angola | D41: Pays Partenaires | E41: 108 | F41: 80 | G41: 57 | H41: 45 | I41: 0 | J41: 0 | K41: 0 | L41: 0 | N41: Biélorussie
B42: 39 | C42: Antigua-et-Barbuda | D42: Pays Partenaires | E42: 108 | F42: 80 | G42: 57 | H42: 45 | I42: 0 | J42: 0 | K42: 0 | L42: 0 | N42: Bosnie-Herzégovine
B43: 40 | C43: Argentine | D43: Pays Partenaires | E43: 108 | F43: 80 | G43: 57 | H43: 45 | I43: 0 | J43: 0 | K43: 0 | L43: 0 | N43: Égypte
B44: 41 | C44: Arménie | D44: Pays Partenaires | E44: 47 | F44: 33 | G44: 22 | H44: 17 | I44: 750 | J44: 650 | K44: 100 | L44: 160 | N44: Géorgie
B45: 42 | C45: Azerbaïdjan | D45: Pays Partenaires | E45: 77 | F45: 57 | G45: 40 | H45: 32 | I45: 750 | J45: 650 | K45: 100 | L45: 160 | N45: Israël
B46: 43 | C46: Bahamas | D46: Pays Partenaires | E46: 77 | F46: 57 | G46: 40 | H46: 32 | I46: 0 | J46: 0 | K46: 0 | L46: 0 | N46: Jordanie
B47: 44 | C47: Bangladesh | D47: Pays Partenaires | E47: 47 | F47: 33 | G47: 22 | H47: 17 | I47: 0 | J47: 0 | K47: 0 | L47: 0 | N47: Kosovo
B48: 45 | C48: Barbade | D48: Pays Partenaires | E48: 108 | F48: 80 | G48: 57 | H48: 45 | I48: 0 | J48: 0 | K48: 0 | L48: 0 | N48: Liban
B49: 46 | C49: Belize | D49: Pays Partenaires | E49: 47 | F49: 33 | G49: 22 | H49: 17 | I49: 0 | J49: 0 | K49: 0 | L49: 0 | N49: Libye
B50: 47 | C50: Bénin | D50: Pays Partenaires | E50: 47 | F50: 33 | G50: 22 | H50: 17 | I50: 0 | J50: 0 | K50: 0 | L50: 0 | N50: Maroc
B51: 48 | C51: Bhoutan | D51: Pays Partenaires | E51: 47 | F51: 33 | G51: 22 | H51: 17 | I51: 0 | J51: 0 | K51: 0 | L51: 0 | N51: Moldavie
B52: 49 | C52: Biélorussie | D52: Pays Partenaires | E52: 47 | F52: 33 | G52: 22 | H52: 17 | I52: 750 | J52: 650 | K52: 100 | L52: 160 | N52: Monténégro
B53: 50 | C53: Bolivie | D53: Pays Partenaires | E53: 77 | F53: 57 | G53: 40 | H53: 32 | I53: 0 | J53: 0 | K53: 0 | L53: 0 | N53: Palestine
B54: 51 | C54: Bosnie-Herzégovine | D54: Pays Partenaires | E54: 108 | F54: 80 | G54: 57 | H54: 45 | I54: 750 | J54: 650 | K54: 100 | L54: 160 | N54: Serbie
B55: 52 | C55: Botswana | D55: Pays Partenaires | E55: 47 | F55: 33 | G55: 22 | H55: 17 | I55: 0 | J55: 0 | K55: 0 | L55: 0 | N55: Syrie
B56: 53 | C56: Brésil | D56: Pays Partenaires | E56: 108 | F56: 80 | G56: 57 | H56: 45 | I56: 0 | J56: 0 | K56: 0 | L56: 0 | N56: Tunisie
B57: 54 | C57: Burkina Faso | D57: Pays Partenaires | E57: 77 | F57: 57 | G57: 40 | H57: 32 | I57: 0 | J57: 0 | K57: 0 | L57: 0 | N57: Ukraine
B58: 55 | C58: Burundi | D58: Pays Partenaires | E58: 47 | F58: 33 | G58: 22 | H58: 17 | I58: 0 | J58: 0 | K58: 0 | L58: 0
B59: 56 | C59: Cambodge | D59: Pays Partenaires | E59: 47 | F59: 33 | G59: 22 | H59: 17 | I59: 0 | J59: 0 | K59: 0 | L59: 0
B60: 57 | C60: Cameroun | D60: Pays Partenaires | E60: 77 | F60: 57 | G60: 40 | H60: 32 | I60: 0 | J60: 0 | K60: 0 | L60: 0
B61: 58 | C61: Cape-Vert | D61: Pays Partenaires | E61: 47 | F61: 33 | G61: 22 | H61: 17 | I61: 0 | J61: 0 | K61: 0 | L61: 0
B62: 59 | C62: Chili | D62: Pays Partenaires | E62: 108 | F62: 80 | G62: 57 | H62: 45 | I62: 0 | J62: 0 | K62: 0 | L62: 0
B63: 60 | C63: Chine | D63: Pays Partenaires | E63: 77 | F63: 57 | G63: 40 | H63: 32 | I63: 0 | J63: 0 | K63: 0 | L63: 0
B64: 61 | C64: Colombie | D64: Pays Partenaires | E64: 108 | F64: 80 | G64: 57 | H64: 45 | I64: 0 | J64: 0 | K64: 0 | L64: 0
B65: 62 | C65: Comores | D65: Pays Partenaires | E65: 108 | F65: 80 | G65: 57 | H65: 45 | I65: 0 | J65: 0 | K65: 0 | L65: 0
B66: 63 | C66: Congo (Brazzaville) | D66: Pays Partenaires | E66: 77 | F66: 57 | G66: 40 | H66: 32 | I66: 0 | J66: 0 | K66: 0 | L66: 0
B67: 64 | C67: Congo (Kinshasa) | D67: Pays Partenaires | E67: 47 | F67: 33 | G67: 22 | H67: 17 | I67: 0 | J67: 0 | K67: 0 | L67: 0
B68: 65 | C68: Costa Rica | D68: Pays Partenaires | E68: 77 | F68: 57 | G68: 40 | H68: 32 | I68: 0 | J68: 0 | K68: 0 | L68: 0
B69: 66 | C69: Côte d’Ivoire | D69: Pays Partenaires | E69: 108 | F69: 80 | G69: 57 | H69: 45 | I69: 0 | J69: 0 | K69: 0 | L69: 0
B70: 67 | C70: Cuba | D70: Pays Partenaires | E70: 47 | F70: 33 | G70: 22 | H70: 17 | I70: 0 | J70: 0 | K70: 0 | L70: 0
B71: 68 | C71: Djibouti | D71: Pays Partenaires | E71: 77 | F71: 57 | G71: 40 | H71: 32 | I71: 0 | J71: 0 | K71: 0 | L71: 0
B72: 69 | C72: Dominique | D72: Pays Partenaires | E72: 108 | F72: 80 | G72: 57 | H72: 45 | I72: 0 | J72: 0 | K72: 0 | L72: 0
B73: 70 | C73: Égypte | D73: Pays Partenaires | E73: 47 | F73: 33 | G73: 22 | H73: 17 | I73: 750 | J73: 650 | K73: 100 | L73: 160
B74: 71 | C74: El Salvador | D74: Pays Partenaires | E74: 77 | F74: 57 | G74: 40 | H74: 32 | I74: 0 | J74: 0 | K74: 0 | L74: 0
B75: 72 | C75: Équateur | D75: Pays Partenaires | E75: 77 | F75: 57 | G75: 40 | H75: 32 | I75: 0 | J75: 0 | K75: 0 | L75: 0
B76: 73 | C76: Érythrée | D76: Pays Partenaires | E76: 47 | F76: 33 | G76: 22 | H76: 17 | I76: 0 | J76: 0 | K76: 0 | L76: 0
B77: 74 | C77: Éthiopie | D77: Pays Partenaires | E77: 47 | F77: 33 | G77: 22 | H77: 17 | I77: 0 | J77: 0 | K77: 0 | L77: 0
B78: 75 | C78: Fidji | D78: Pays Partenaires | E78: 47 | F78: 33 | G78: 22 | H78: 17 | I78: 0 | J78: 0 | K78: 0 | L78: 0
B79: 76 | C79: Gabon | D79: Pays Partenaires | E79: 108 | F79: 80 | G79: 57 | H79: 45 | I79: 0 | J79: 0 | K79: 0 | L79: 0
B80: 77 | C80: Gambie | D80: Pays Partenaires | E80: 47 | F80: 33 | G80: 22 | H80: 17 | I80: 0 | J80: 0 | K80: 0 | L80: 0
B81: 78 | C81: Géorgie | D81: Pays Partenaires | E81: 77 | F81: 57 | G81: 40 | H81: 32 | I81: 750 | J81: 650 | K81: 100 | L81: 160
B82: 79 | C82: Ghana | D82: Pays Partenaires | E82: 47 | F82: 33 | G82: 22 | H82: 17 | I82: 0 | J82: 0 | K82: 0 | L82: 0
B83: 80 | C83: Grenade | D83: Pays Partenaires | E83: 108 | F83: 80 | G83: 57 | H83: 45 | I83: 0 | J83: 0 | K83: 0 | L83: 0
B84: 81 | C84: Guatemala | D84: Pays Partenaires | E84: 77 | F84: 57 | G84: 40 | H84: 32 | I84: 0 | J84: 0 | K84: 0 | L84: 0
B85: 82 | C85: Guinée équatoriale | D85: Pays Partenaires | E85: 47 | F85: 33 | G85: 22 | H85: 17 | I85: 0 | J85: 0 | K85: 0 | L85: 0
B86: 83 | C86: Guinée-Bissau | D86: Pays Partenaires | E86: 77 | F86: 57 | G86: 40 | H86: 32 | I86: 0 | J86: 0 | K86: 0 | L86: 0
B87: 84 | C87: Guyana | D87: Pays Partenaires | E87: 47 | F87: 33 | G87: 22 | H87: 17 | I87: 0 | J87: 0 | K87: 0 | L87: 0
B88: 85 | C88: Haïti | D88: Pays Partenaires | E88: 77 | F88: 57 | G88: 40 | H88: 32 | I88: 0 | J88: 0 | K88: 0 | L88: 0
B89: 86 | C89: Honduras | D89: Pays Partenaires | E89: 47 | F89: 33 | G89: 22 | H89: 17 | I89: 0 | J89: 0 | K89: 0 | L89: 0
B90: 87 | C90: Îles Cook | D90: Pays Partenaires | E90: 108 | F90: 80 | G90: 57 | H90: 45 | I90: 0 | J90: 0 | K90: 0 | L90: 0
B91: 88 | C91: Îles Marshall | D91: Pays Partenaires | E91: 47 | F91: 33 | G91: 22 | H91: 17 | I91: 0 | J91: 0 | K91: 0 | L91: 0
B92: 89 | C92: Îles Salomon | D92: Pays Partenaires | E92: 47 | F92: 33 | G92: 22 | H92: 17 | I92: 0 | J92: 0 | K92: 0 | L92: 0
B93: 90 | C93: Inde | D93: Pays Partenaires | E93: 47 | F93: 33 | G93: 22 | H93: 17 | I93: 0 | J93: 0 | K93: 0 | L93: 0
B94: 91 | C94: Indonésie | D94: Pays Partenaires | E94: 47 | F94: 33 | G94: 22 | H94: 17 | I94: 0 | J94: 0 | K94: 0 | L94: 0
B95: 92 | C95: Iran | D95: Pays Partenaires | E95: 77 | F95: 57 | G95: 40 | H95: 32 | I95: 0 | J95: 0 | K95: 0 | L95: 0
B96: 93 | C96: Iraq | D96: Pays Partenaires | E96: 77 | F96: 57 | G96: 40 | H96: 32 | I96: 0 | J96: 0 | K96: 0 | L96: 0
B97: 94 | C97: Israël | D97: Pays Partenaires | E97: 166 | F97: 132 | G97: 102 | H97: 92 | I97: 750 | J97: 650 | K97: 100 | L97: 160
B98: 95 | C98: Jamaïque | D98: Pays Partenaires | E98: 77 | F98: 57 | G98: 40 | H98: 32 | I98: 0 | J98: 0 | K98: 0 | L98: 0
B99: 96 | C99: Jordanie | D99: Pays Partenaires | E99: 77 | F99: 57 | G99: 40 | H99: 32 | I99: 750 | J99: 650 | K99: 100 | L99: 160
B100: 97 | C100: Kazakhstan | D100: Pays Partenaires | E100: 77 | F100: 57 | G100: 40 | H100: 32 | I100: 0 | J100: 0 | K100: 0 | L100: 0
B101: 98 | C101: Kenya | D101: Pays Partenaires | E101: 77 | F101: 57 | G101: 40 | H101: 32 | I101: 0 | J101: 0 | K101: 0 | L101: 0
B102: 99 | C102: Kirghizstan | D102: Pays Partenaires | E102: 47 | F102: 33 | G102: 22 | H102: 17 | I102: 0 | J102: 0 | K102: 0 | L102: 0
B103: 100 | C103: Kiribati | D103: Pays Partenaires | E103: 47 | F103: 33 | G103: 22 | H103: 17 | I103: 0 | J103: 0 | K103: 0 | L103: 0
B104: 101 | C104: Kosovo | D104: Pays Partenaires | E104: 108 | F104: 80 | G104: 57 | H104: 45 | I104: 750 | J104: 650 | K104: 100 | L104: 160
B105: 102 | C105: Laos | D105: Pays Partenaires | E105: 47 | F105: 33 | G105: 22 | H105: 17 | I105: 0 | J105: 0 | K105: 0 | L105: 0
B106: 103 | C106: Lesotho | D106: Pays Partenaires | E106: 47 | F106: 33 | G106: 22 | H106: 17 | I106: 0 | J106: 0 | K106: 0 | L106: 0
B107: 104 | C107: Liban | D107: Pays Partenaires | E107: 108 | F107: 80 | G107: 57 | H107: 45 | I107: 750 | J107: 650 | K107: 100 | L107: 160
B108: 105 | C108: Liberia | D108: Pays Partenaires | E108: 47 | F108: 33 | G108: 22 | H108: 17 | I108: 0 | J108: 0 | K108: 0 | L108: 0
B109: 106 | C109: Libye | D109: Pays Partenaires | E109: 108 | F109: 80 | G109: 57 | H109: 45 | I109: 750 | J109: 650 | K109: 100 | L109: 160
B110: 107 | C110: Madagascar | D110: Pays Partenaires | E110: 47 | F110: 33 | G110: 22 | H110: 17 | I110: 0 | J110: 0 | K110: 0 | L110: 0
B111: 108 | C111: Malaisie | D111: Pays Partenaires | E111: 47 | F111: 33 | G111: 22 | H111: 17 | I111: 0 | J111: 0 | K111: 0 | L111: 0
B112: 109 | C112: Malawi | D112: Pays Partenaires | E112: 47 | F112: 33 | G112: 22 | H112: 17 | I112: 0 | J112: 0 | K112: 0 | L112: 0
B113: 110 | C113: Maldives | D113: Pays Partenaires | E113: 47 | F113: 33 | G113: 22 | H113: 17 | I113: 0 | J113: 0 | K113: 0 | L113: 0
B114: 111 | C114: Mali | D114: Pays Partenaires | E114: 47 | F114: 33 | G114: 22 | H114: 17 | I114: 0 | J114: 0 | K114: 0 | L114: 0
B115: 112 | C115: Maroc | D115: Pays Partenaires | E115: 77 | F115: 57 | G115: 40 | H115: 32 | I115: 750 | J115: 650 | K115: 100 | L115: 160
B116: 113 | C116: Maurice | D116: Pays Partenaires | E116: 47 | F116: 33 | G116: 22 | H116: 17 | I116: 0 | J116: 0 | K116: 0 | L116: 0
B117: 114 | C117: Mauritanie | D117: Pays Partenaires | E117: 47 | F117: 33 | G117: 22 | H117: 17 | I117: 0 | J117: 0 | K117: 0 | L117: 0
B118: 115 | C118: Mexique | D118: Pays Partenaires | E118: 108 | F118: 80 | G118: 57 | H118: 45 | I118: 0 | J118: 0 | K118: 0 | L118: 0
B119: 116 | C119: Micronésie | D119: Pays Partenaires | E119: 77 | F119: 57 | G119: 40 | H119: 32 | I119: 0 | J119: 0 | K119: 0 | L119: 0
B120: 117 | C120: Moldavie | D120: Pays Partenaires | E120: 47 | F120: 33 | G120: 22 | H120: 17 | I120: 750 | J120: 650 | K120: 100 | L120: 160
B121: 118 | C121: Mongolie | D121: Pays Partenaires | E121: 47 | F121: 33 | G121: 22 | H121: 17 | I121: 0 | J121: 0 | K121: 0 | L121: 0
B122: 119 | C122: Monténégro | D122: Pays Partenaires | E122: 108 | F122: 80 | G122: 57 | H122: 45 | I122: 750 | J122: 650 | K122: 100 | L122: 160
B123: 120 | C123: Mozambique | D123: Pays Partenaires | E123: 77 | F123: 57 | G123: 40 | H123: 32 | I123: 0 | J123: 0 | K123: 0 | L123: 0
B124: 121 | C124: Myanmar | D124: Pays Partenaires | E124: 47 | F124: 33 | G124: 22 | H124: 17 | I124: 0 | J124: 0 | K124: 0 | L124: 0
B125: 122 | C125: Namibie | D125: Pays Partenaires | E125: 77 | F125: 57 | G125: 40 | H125: 32 | I125: 0 | J125: 0 | K125: 0 | L125: 0
B126: 123 | C126: Nauru | D126: Pays Partenaires | E126: 47 | F126: 33 | G126: 22 | H126: 17 | I126: 0 | J126: 0 | K126: 0 | L126: 0
B127: 124 | C127: Népal | D127: Pays Partenaires | E127: 47 | F127: 33 | G127: 22 | H127: 17 | I127: 0 | J127: 0 | K127: 0 | L127: 0
B128: 125 | C128: Nicaragua | D128: Pays Partenaires | E128: 47 | F128: 33 | G128: 22 | H128: 17 | I128: 0 | J128: 0 | K128: 0 | L128: 0
B129: 126 | C129: Niger | D129: Pays Partenaires | E129: 47 | F129: 33 | G129: 22 | H129: 17 | I129: 0 | J129: 0 | K129: 0 | L129: 0
B130: 127 | C130: Nigeria | D130: Pays Partenaires | E130: 108 | F130: 80 | G130: 57 | H130: 45 | I130: 0 | J130: 0 | K130: 0 | L130: 0
B131: 128 | C131: Niue | D131: Pays Partenaires | E131: 47 | F131: 33 | G131: 22 | H131: 17 | I131: 0 | J131: 0 | K131: 0 | L131: 0
B132: 129 | C132: Ouganda | D132: Pays Partenaires | E132: 47 | F132: 33 | G132: 22 | H132: 17 | I132: 0 | J132: 0 | K132: 0 | L132: 0
B133: 130 | C133: Ouzbékistan | D133: Pays Partenaires | E133: 47 | F133: 33 | G133: 22 | H133: 17 | I133: 0 | J133: 0 | K133: 0 | L133: 0
B134: 131 | C134: Pakistan | D134: Pays Partenaires | E134: 47 | F134: 33 | G134: 22 | H134: 17 | I134: 0 | J134: 0 | K134: 0 | L134: 0
B135: 132 | C135: Palaos | D135: Pays Partenaires | E135: 47 | F135: 33 | G135: 22 | H135: 17 | I135: 0 | J135: 0 | K135: 0 | L135: 0
B136: 133 | C136: Palestine | D136: Pays Partenaires | E136: 77 | F136: 57 | G136: 40 | H136: 32 | I136: 750 | J136: 650 | K136: 100 | L136: 160
B137: 134 | C137: Panama | D137: Pays Partenaires | E137: 77 | F137: 57 | G137: 40 | H137: 32 | I137: 0 | J137: 0 | K137: 0 | L137: 0
B138: 135 | C138: Papouasie-Nouvelle-Guinée | D138: Pays Partenaires | E138: 77 | F138: 57 | G138: 40 | H138: 32 | I138: 0 | J138: 0 | K138: 0 | L138: 0
B139: 136 | C139: Paraguay | D139: Pays Partenaires | E139: 77 | F139: 57 | G139: 40 | H139: 32 | I139: 0 | J139: 0 | K139: 0 | L139: 0
B140: 137 | C140: Pérou | D140: Pays Partenaires | E140: 108 | F140: 80 | G140: 57 | H140: 45 | I140: 0 | J140: 0 | K140: 0 | L140: 0
B141: 138 | C141: Philippines | D141: Pays Partenaires | E141: 47 | F141: 33 | G141: 22 | H141: 17 | I141: 0 | J141: 0 | K141: 0 | L141: 0
B142: 139 | C142: République centrafricaine | D142: Pays Partenaires | E142: 47 | F142: 33 | G142: 22 | H142: 17 | I142: 0 | J142: 0 | K142: 0 | L142: 0
B143: 140 | C143: République de Guinée | D143: Pays Partenaires | E143: 47 | F143: 33 | G143: 22 | H143: 17 | I143: 0 | J143: 0 | K143: 0 | L143: 0
B144: 141 | C144: République dominicaine | D144: Pays Partenaires | E144: 77 | F144: 57 | G144: 40 | H144: 32 | I144: 0 | J144: 0 | K144: 0 | L144: 0
B145: 142 | C145: RPD Corée | D145: Pays Partenaires | E145: 47 | F145: 33 | G145: 22 | H145: 17 | I145: 0 | J145: 0 | K145: 0 | L145: 0
B146: 143 | C146: Russie | D146: Pays Partenaires | E146: 77 | F146: 57 | G146: 40 | H146: 32 | I146: 0 | J146: 0 | K146: 0 | L146: 0
B147: 144 | C147: Rwanda | D147: Pays Partenaires | E147: 47 | F147: 33 | G147: 22 | H147: 17 | I147: 0 | J147: 0 | K147: 0 | L147: 0
B148: 145 | C148: Saint-Christophe-et-Niévès | D148: Pays Partenaires | E148: 108 | F148: 80 | G148: 57 | H148: 45 | I148: 0 | J148: 0 | K148: 0 | L148: 0
B149: 146 | C149: Sainte-Lucie | D149: Pays Partenaires | E149: 108 | F149: 80 | G149: 57 | H149: 45 | I149: 0 | J149: 0 | K149: 0 | L149: 0
B150: 147 | C150: Saint-Vincent-et-les-Grenadines | D150: Pays Partenaires | E150: 108 | F150: 80 | G150: 57 | H150: 45 | I150: 0 | J150: 0 | K150: 0 | L150: 0
B151: 148 | C151: Samoa | D151: Pays Partenaires | E151: 47 | F151: 33 | G151: 22 | H151: 17 | I151: 0 | J151: 0 | K151: 0 | L151: 0
B152: 149 | C152: Sao Tomé-et-Principe | D152: Pays Partenaires | E152: 108 | F152: 80 | G152: 57 | H152: 45 | I152: 0 | J152: 0 | K152: 0 | L152: 0
B153: 150 | C153: Sénégal | D153: Pays Partenaires | E153: 77 | F153: 57 | G153: 40 | H153: 32 | I153: 0 | J153: 0 | K153: 0 | L153: 0
B154: 151 | C154: Serbie | D154: Pays Partenaires | E154: 108 | F154: 80 | G154: 57 | H154: 45 | I154: 750 | J154: 650 | K154: 100 | L154: 160
B155: 152 | C155: Seychelles | D155: Pays Partenaires | E155: 108 | F155: 80 | G155: 57 | H155: 45 | I155: 0 | J155: 0 | K155: 0 | L155: 0
B156: 153 | C156: Sierra Leone | D156: Pays Partenaires | E156: 47 | F156: 33 | G156: 22 | H156: 17 | I156: 0 | J156: 0 | K156: 0 | L156: 0
B157: 154 | C157: Somalie | D157: Pays Partenaires | E157: 47 | F157: 33 | G157: 22 | H157: 17 | I157: 0 | J157: 0 | K157: 0 | L157: 0
B158: 155 | C158: Soudan | D158: Pays Partenaires | E158: 47 | F158: 33 | G158: 22 | H158: 17 | I158: 0 | J158: 0 | K158: 0 | L158: 0
B159: 156 | C159: Soudan du Sud | D159: Pays Partenaires | E159: 47 | F159: 33 | G159: 22 | H159: 17 | I159: 0 | J159: 0 | K159: 0 | L159: 0
B160: 157 | C160: Sri Lanka | D160: Pays Partenaires | E160: 47 | F160: 33 | G160: 22 | H160: 17 | I160: 0 | J160: 0 | K160: 0 | L160: 0
B161: 158 | C161: Suriname | D161: Pays Partenaires | E161: 77 | F161: 57 | G161: 40 | H161: 32 | I161: 0 | J161: 0 | K161: 0 | L161: 0
B162: 159 | C162: Swaziland | D162: Pays Partenaires | E162: 77 | F162: 57 | G162: 40 | H162: 32 | I162: 0 | J162: 0 | K162: 0 | L162: 0
B163: 160 | C163: Syrie | D163: Pays Partenaires | E163: 47 | F163: 33 | G163: 22 | H163: 17 | I163: 750 | J163: 650 | K163: 100 | L163: 160
B164: 161 | C164: Tadjikistan | D164: Pays Partenaires | E164: 47 | F164: 33 | G164: 22 | H164: 17 | I164: 0 | J164: 0 | K164: 0 | L164: 0
B165: 162 | C165: Tanzanie | D165: Pays Partenaires | E165: 47 | F165: 33 | G165: 22 | H165: 17 | I165: 0 | J165: 0 | K165: 0 | L165: 0
B166: 163 | C166: Tchad | D166: Pays Partenaires | E166: 47 | F166: 33 | G166: 22 | H166: 17 | I166: 0 | J166: 0 | K166: 0 | L166: 0
B167: 164 | C167: Thaïlande | D167: Pays Partenaires | E167: 108 | F167: 80 | G167: 57 | H167: 45 | I167: 0 | J167: 0 | K167: 0 | L167: 0
B168: 165 | C168: Timor-Oriental | D168: Pays Partenaires | E168: 47 | F168: 33 | G168: 22 | H168: 17 | I168: 0 | J168: 0 | K168: 0 | L168: 0
B169: 166 | C169: Togo | D169: Pays Partenaires | E169: 47 | F169: 33 | G169: 22 | H169: 17 | I169: 0 | J169: 0 | K169: 0 | L169: 0
B170: 167 | C170: Tonga | D170: Pays Partenaires | E170: 47 | F170: 33 | G170: 22 | H170: 17 | I170: 0 | J170: 0 | K170: 0 | L170: 0
B171: 168 | C171: Trinité-et-Tobago | D171: Pays Partenaires | E171: 77 | F171: 57 | G171: 40 | H171: 32 | I171: 0 | J171: 0 | K171: 0 | L171: 0
B172: 169 | C172: Tunisie | D172: Pays Partenaires | E172: 47 | F172: 33 | G172: 22 | H172: 17 | I172: 750 | J172: 650 | K172: 100 | L172: 160
B173: 170 | C173: Turkménistan | D173: Pays Partenaires | E173: 47 | F173: 33 | G173: 22 | H173: 17 | I173: 0 | J173: 0 | K173: 0 | L173: 0
B174: 171 | C174: Tuvalu | D174: Pays Partenaires | E174: 47 | F174: 33 | G174: 22 | H174: 17 | I174: 0 | J174: 0 | K174: 0 | L174: 0
B175: 172 | C175: Ukraine | D175: Pays Partenaires | E175: 108 | F175: 80 | G175: 57 | H175: 45 | I175: 750 | J175: 650 | K175: 100 | L175: 160
B176: 173 | C176: Uruguay | D176: Pays Partenaires | E176: 108 | F176: 80 | G176: 57 | H176: 45 | I176: 0 | J176: 0 | K176: 0 | L176: 0
B177: 174 | C177: Vanuatu | D177: Pays Partenaires | E177: 77 | F177: 57 | G177: 40 | H177: 32 | I177: 0 | J177: 0 | K177: 0 | L177: 0
B178: 175 | C178: Venezuela | D178: Pays Partenaires | E178: 108 | F178: 80 | G178: 57 | H178: 45 | I178: 0 | J178: 0 | K178: 0 | L178: 0
B179: 176 | C179: Viêt Nam | D179: Pays Partenaires | E179: 47 | F179: 33 | G179: 22 | H179: 17 | I179: 0 | J179: 0 | K179: 0 | L179: 0
B180: 177 | C180: Yémen | D180: Pays Partenaires | E180: 47 | F180: 33 | G180: 22 | H180: 17 | I180: 0 | J180: 0 | K180: 0 | L180: 0
B181: 178 | C181: Zambie | D181: Pays Partenaires | E181: 108 | F181: 80 | G181: 57 | H181: 45 | I181: 0 | J181: 0 | K181: 0 | L181: 0
B182: 179 | C182: Zimbabwe | D182: Pays Partenaires | E182: 108 | F182: 80 | G182: 57 | H182: 45 | I182: 0 | J182: 0 | K182: 0 | L182: 0

Sheet Coûts Unitaires & RèglesFinance
B1: COÛTS UNITAIRES ET UN RÉSUMÉ DES RÈGLES DE FINANCEMENT POUR LES PROJETS CONJOINTS ET STRUCTURELS DE RENFORCEMENT DES CAPACITÉ DANS LE DOMAINE DE L'ENSEIGNEMENT SUPÉRIEUR Veuillez trouver ci-dessous les valeurs des coûts unitaires utilisées dans ce fichier pour le calcul de la subvention. Faites référence au guide du programmes Erasmus+ 2017* pour un aperçu complet des règles de financement applicables aux projets conjoints et structurels de renforcement des capacité dans le domaine de l'enseignement supérieur (partie B du Guide et Annexe I)
B2: * Lien vers le guide du Programme Erasmus+ 2017: | C2: http://ec.europa.eu/programmes/erasmus-plus/resources_en
B3: * Lien vers l'appel à propositions, formulaires de candidature, annexes et lignes directrices: | C3: http://eur-lex.europa.eu/legal-content/EN/TXT/?uri=OJ:JOC_2016_386_R_0009
B4: A.1 Frais de Personnel | I4: A.2 & B Frais de Voyage | L4: A. 3 Frais de Séjour | P4: A.4 Equipement | S4: A.5 Sous-traitance | W4: B - Volet Spécial pour la Mobilité
B5: Les coûts unitaires Contribution aux frais de personnel effectuant des tâches qui sont directement nécessaires à la réalisation des objectifs du projet. Conditionnelles: les candidats devront justifier le type et le volume des ressources nécessaires dans le cadre de la mise en œuvre des activités et des résultats proposées. La contribution est valable à condition que le salaire pour les mêmes tâches est compensée qu'une seule fois. | I5: Les coûts unitaires sont indiqués sur la base de la distance d'un voyage par participant. Les distances de voyage doivent être calculés en utilisant le calculateur de distance fourni par la Commission européenne. Le demandeur doit indiquer la distance d’un trajet aller afin que puisse être calculé le montant de la bourse de l’UE qui servira à financer le voyage aller-retour. | L5: Les frais de subsistance, le logement, transports locaux et publics tels que bus et taxi, assurance-santé personnelle ou facultative. Les coûts unitaires sur la base de la durée du séjour des participants: Personnel: 120 EUR/jour du jour 1 au jour 14 70 EUR/jour du jour 15 au jour 60 50 EUR/jour du jour 61 au jour 90 (le maximum) Etudiant: 55 EUR/jour du jour 1 au jour 14 40 EUR/jour du jour 15 au jour 90 (le maximum) | P5: Contribution pour l'achat de matériel nécessaire à la mise en œuvre du projet. Le soutien est valable uniquement pour le matériel acheté pour les EES dans les pays partenaires. Condition: la demande subvention pour couvrir ces coûts doit être motivée dans le formulaire de demande. | S5: Contribution aux coûts de sous-traitance qui sont nécessaires pour la mise en œuvre du projet, y compris, notamment, les coûts pour les audits financiers obligatoires (certificat d'audit) et pour activités d'assurance de la qualité (externe). Sous-traitance pour les tâches de gestion de projets-ne est pas admissible. La sous-traitance à des organismes externes devrait être très occasionnelle. Les compétences spécifiques et une expertise particulière nécessaire pour atteindre les objectifs du projet devraient être trouvées dans le consortium et devraient déterminer sa composition. | W5: Les frais de voyage (étudiants et personnel): Les coûts unitaires (veuillez faire référence à des coûts unitaires dans le tableau A2). Contribution aux frais de voyage des étudiants et du personnel impliqués dans le "volet spécial mobilité", de leur lieu d'origine au lieu de l'activité et retour (y compris les frais de visa et l'assurance obligatoire liée, assurance voyage et frais d'annulation si justifié). Les activités et voyages connexes doivent être effectuées dans les pays impliqués dans le projet. Toute exception à cette règle doit être autorisée par l'Agence Executive. Pour la liste détaillée des activités admissibles, voir l'annexe I du présent guide. Les frais de séjour: les coûts unitaires sur la base de la durée du séjour des participants. Les frais de subsistance, le logement, transports locaux et publics tels que bus et taxi, assurance-santé personnelle ou facultative - sur la base de la durée du séjour par participant.
W6: Frais de séjour pour le Volet Spécial Mobilité
B7: Pays | C7: PR/PA | D7: Gestionnaire | E7: Enseignant/formateur/chercheur | F7: Personnel Technique | G7: Personnel administratif | I7: Distance | J7: Frais de Voyage (EUR) | L7: Nombre de jours | M7: Etudiant | N7: Personnel | P7: 100% des coûts éligibles Max. 30% de la subvention totale | S7: 100% des coûts éligibles Max. 10% de la subvention totale | W7: Country | X7: PR/PA | Y7: Etudiants des Pays Partenaires | Z7: Etudiants des Pays Programmes | AA7: Personnel des Pays Partenaires | AB7: Personnel des Pays Programmes
B8: =Rates!C4 -> Allemagne | C8: =Rates!D4 -> Pays Programmes | D8: =Rates!E4 -> 280 | E8: =Rates!F4 -> 214 | F8: =Rates!G4 -> 162 | G8: =Rates!H4 -> 131 | I8: =Rates!P4 -> 0 KM et 9 KM | J8: =Rates!Q4 -> 0 | L8: 1 | M8: =L8*55 -> 55 | N8: =L8*120 -> 120 | W8: =Rates!N4 -> Allemagne | X8: =VLOOKUP(W8,Rates!$C$4:$L$182,2,FALSE) -> Pays Programmes | Y8: =VLOOKUP(W8,Rates!$C$4:$L$182,7,FALSE) -> 800 | Z8: =VLOOKUP(W8,Rates!$C$4:$L$182,8,FALSE) -> 0 | AA8: =VLOOKUP(W8,Rates!$C$4:$L$182,9,FALSE) -> 120 | AB8: =VLOOKUP(W8,Rates!$C$4:$L$182,10,FALSE) -> 0
B9: =Rates!C5 -> Ancienne République yougoslave de Macédoine | C9: =Rates!D5 -> Pays Programmes | D9: =Rates!E5 -> 88 | E9: =Rates!F5 -> 74 | F9: =Rates!G5 -> 55 | G9: =Rates!H5 -> 39 | I9: =Rates!P5 -> 10 KM et 99 KM | J9: =Rates!Q5 -> 20 | L9: 2 | M9: =L9*55 -> 110 | N9: =L9*120 -> 240 | W9: =Rates!N5 -> Ancienne République yougoslave de Macédoine | X9: =VLOOKUP(W9,Rates!$C$4:$L$182,2,FALSE) -> Pays Programmes | Y9: =VLOOKUP(W9,Rates!$C$4:$L$182,7,FALSE) -> 750 | Z9: =VLOOKUP(W9,Rates!$C$4:$L$182,8,FALSE) -> 0 | AA9: =VLOOKUP(W9,Rates!$C$4:$L$182,9,FALSE) -> 120 | AB9: =VLOOKUP(W9,Rates!$C$4:$L$182,10,FALSE) -> 0
B10: =Rates!C6 -> Autriche | C10: =Rates!D6 -> Pays Programmes | D10: =Rates!E6 -> 294 | E10: =Rates!F6 -> 241 | F10: =Rates!G6 -> 190 | G10: =Rates!H6 -> 157 | I10: =Rates!P6 -> 100 KM et 499 KM | J10: =Rates!Q6 -> 180 | L10: 3 | M10: 165 | N10: 360 | W10: =Rates!N6 -> Autriche | X10: =VLOOKUP(W10,Rates!$C$4:$L$182,2,FALSE) -> Pays Programmes | Y10: =VLOOKUP(W10,Rates!$C$4:$L$182,7,FALSE) -> 850 | Z10: =VLOOKUP(W10,Rates!$C$4:$L$182,8,FALSE) -> 0 | AA10: =VLOOKUP(W10,Rates!$C$4:$L$182,9,FALSE) -> 140 | AB10: =VLOOKUP(W10,Rates!$C$4:$L$182,10,FALSE) -> 0
B11: =Rates!C7 -> Belgique | C11: =Rates!D7 -> Pays Programmes | D11: =Rates!E7 -> 280 | E11: =Rates!F7 -> 214 | F11: =Rates!G7 -> 162 | G11: =Rates!H7 -> 131 | I11: =Rates!P7 -> 500 KM et 1999 KM | J11: =Rates!Q7 -> 275 | L11: 4 | M11: 220 | N11: 480 | W11: =Rates!N7 -> Belgique | X11: =VLOOKUP(W11,Rates!$C$4:$L$182,2,FALSE) -> Pays Programmes | Y11: =VLOOKUP(W11,Rates!$C$4:$L$182,7,FALSE) -> 800 | Z11: =VLOOKUP(W11,Rates!$C$4:$L$182,8,FALSE) -> 0 | AA11: =VLOOKUP(W11,Rates!$C$4:$L$182,9,FALSE) -> 140 | AB11: =VLOOKUP(W11,Rates!$C$4:$L$182,10,FALSE) -> 0
B12: =Rates!C8 -> Bulgarie | C12: =Rates!D8 -> Pays Programmes | D12: =Rates!E8 -> 88 | E12: =Rates!F8 -> 74 | F12: =Rates!G8 -> 55 | G12: =Rates!H8 -> 39 | I12: =Rates!P8 -> 2000 KM et 2999 KM | J12: =Rates!Q8 -> 360 | L12: 5 | M12: 275 | N12: 600 | W12: =Rates!N8 -> Bulgarie | X12: =VLOOKUP(W12,Rates!$C$4:$L$182,2,FALSE) -> Pays Programmes | Y12: =VLOOKUP(W12,Rates!$C$4:$L$182,7,FALSE) -> 750 | Z12: =VLOOKUP(W12,Rates!$C$4:$L$182,8,FALSE) -> 0 | AA12: =VLOOKUP(W12,Rates!$C$4:$L$182,9,FALSE) -> 140 | AB12: =VLOOKUP(W12,Rates!$C$4:$L$182,10,FALSE) -> 0
B13: =Rates!C9 -> Chypre | C13: =Rates!D9 -> Pays Programmes | D13: =Rates!E9 -> 164 | E13: =Rates!F9 -> 137 | F13: =Rates!G9 -> 102 | G13: =Rates!H9 -> 78 | I13: =Rates!P9 -> 3000 KM et 3999 KM | J13: =Rates!Q9 -> 530 | L13: 6 | M13: 330 | N13: 720 | W13: =Rates!N9 -> Chypre | X13: =VLOOKUP(W13,Rates!$C$4:$L$182,2,FALSE) -> Pays Programmes | Y13: =VLOOKUP(W13,Rates!$C$4:$L$182,7,FALSE) -> 800 | Z13: =VLOOKUP(W13,Rates!$C$4:$L$182,8,FALSE) -> 0 | AA13: =VLOOKUP(W13,Rates!$C$4:$L$182,9,FALSE) -> 140 | AB13: =VLOOKUP(W13,Rates!$C$4:$L$182,10,FALSE) -> 0
B14: =Rates!C10 -> Croatie | C14: =Rates!D10 -> Pays Programmes | D14: =Rates!E10 -> 88 | E14: =Rates!F10 -> 74 | F14: =Rates!G10 -> 55 | G14: =Rates!H10 -> 39 | I14: =Rates!P10 -> 4000 KM et 7999 KM | J14: =Rates!Q10 -> 820 | L14: 7 | M14: 385 | N14: 840 | W14: =Rates!N10 -> Croatie | X14: =VLOOKUP(W14,Rates!$C$4:$L$182,2,FALSE) -> Pays Programmes | Y14: =VLOOKUP(W14,Rates!$C$4:$L$182,7,FALSE) -> 800 | Z14: =VLOOKUP(W14,Rates!$C$4:$L$182,8,FALSE) -> 0 | AA14: =VLOOKUP(W14,Rates!$C$4:$L$182,9,FALSE) -> 100 | AB14: =VLOOKUP(W14,Rates!$C$4:$L$182,10,FALSE) -> 0
B15: =Rates!C11 -> Danemark | C15: =Rates!D11 -> Pays Programmes | D15: =Rates!E11 -> 294 | E15: =Rates!F11 -> 241 | F15: =Rates!G11 -> 190 | G15: =Rates!H11 -> 157 | I15: =Rates!P11 -> 8000 KM ou plus | J15: =Rates!Q11 -> 1100 | L15: 8 | M15: 440 | N15: 960 | W15: =Rates!N11 -> Danemark | X15: =VLOOKUP(W15,Rates!$C$4:$L$182,2,FALSE) -> Pays Programmes | Y15: =VLOOKUP(W15,Rates!$C$4:$L$182,7,FALSE) -> 850 | Z15: =VLOOKUP(W15,Rates!$C$4:$L$182,8,FALSE) -> 0 | AA15: =VLOOKUP(W15,Rates!$C$4:$L$182,9,FALSE) -> 160 | AB15: =VLOOKUP(W15,Rates!$C$4:$L$182,10,FALSE) -> 0
B16: =Rates!C12 -> Espagne | C16: =Rates!D12 -> Pays Programmes | D16: =Rates!E12 -> 164 | E16: =Rates!F12 -> 137 | F16: =Rates!G12 -> 102 | G16: =Rates!H12 -> 78 | L16: 9 | M16: 495 | N16: 1080 | W16: =Rates!N12 -> Espagne | X16: =VLOOKUP(W16,Rates!$C$4:$L$182,2,FALSE) -> Pays Programmes | Y16: =VLOOKUP(W16,Rates!$C$4:$L$182,7,FALSE) -> 800 | Z16: =VLOOKUP(W16,Rates!$C$4:$L$182,8,FALSE) -> 0 | AA16: =VLOOKUP(W16,Rates!$C$4:$L$182,9,FALSE) -> 120 | AB16: =VLOOKUP(W16,Rates!$C$4:$L$182,10,FALSE) -> 0
B17: =Rates!C13 -> Estonie | C17: =Rates!D13 -> Pays Programmes | D17: =Rates!E13 -> 88 | E17: =Rates!F13 -> 74 | F17: =Rates!G13 -> 55 | G17: =Rates!H13 -> 39 | L17: 10 | M17: 550 | N17: 1200 | W17: =Rates!N13 -> Estonie | X17: =VLOOKUP(W17,Rates!$C$4:$L$182,2,FALSE) -> Pays Programmes | Y17: =VLOOKUP(W17,Rates!$C$4:$L$182,7,FALSE) -> 750 | Z17: =VLOOKUP(W17,Rates!$C$4:$L$182,8,FALSE) -> 0 | AA17: =VLOOKUP(W17,Rates!$C$4:$L$182,9,FALSE) -> 100 | AB17: =VLOOKUP(W17,Rates!$C$4:$L$182,10,FALSE) -> 0
B18: =Rates!C14 -> Finlande | C18: =Rates!D14 -> Pays Programmes | D18: =Rates!E14 -> 280 | E18: =Rates!F14 -> 214 | F18: =Rates!G14 -> 162 | G18: =Rates!H14 -> 131 | L18: 11 | M18: 605 | N18: 1320 | W18: =Rates!N14 -> Finlande | X18: =VLOOKUP(W18,Rates!$C$4:$L$182,2,FALSE) -> Pays Programmes | Y18: =VLOOKUP(W18,Rates!$C$4:$L$182,7,FALSE) -> 850 | Z18: =VLOOKUP(W18,Rates!$C$4:$L$182,8,FALSE) -> 0 | AA18: =VLOOKUP(W18,Rates!$C$4:$L$182,9,FALSE) -> 140 | AB18: =VLOOKUP(W18,Rates!$C$4:$L$182,10,FALSE) -> 0
B19: =Rates!C15 -> France | C19: =Rates!D15 -> Pays Programmes | D19: =Rates!E15 -> 280 | E19: =Rates!F15 -> 214 | F19: =Rates!G15 -> 162 | G19: =Rates!H15 -> 131 | L19: 12 | M19: 660 | N19: 1440 | W19: =Rates!N15 -> France | X19: =VLOOKUP(W19,Rates!$C$4:$L$182,2,FALSE) -> Pays Programmes | Y19: =VLOOKUP(W19,Rates!$C$4:$L$182,7,FALSE) -> 850 | Z19: =VLOOKUP(W19,Rates!$C$4:$L$182,8,FALSE) -> 0 | AA19: =VLOOKUP(W19,Rates!$C$4:$L$182,9,FALSE) -> 140 | AB19: =VLOOKUP(W19,Rates!$C$4:$L$182,10,FALSE) -> 0
B20: =Rates!C16 -> Grèce | C20: =Rates!D16 -> Pays Programmes | D20: =Rates!E16 -> 164 | E20: =Rates!F16 -> 137 | F20: =Rates!G16 -> 102 | G20: =Rates!H16 -> 78 | L20: 13 | M20: 715 | N20: 1560 | W20: =Rates!N16 -> Grèce | X20: =VLOOKUP(W20,Rates!$C$4:$L$182,2,FALSE) -> Pays Programmes | Y20: =VLOOKUP(W20,Rates!$C$4:$L$182,7,FALSE) -> 800 | Z20: =VLOOKUP(W20,Rates!$C$4:$L$182,8,FALSE) -> 0 | AA20: =VLOOKUP(W20,Rates!$C$4:$L$182,9,FALSE) -> 140 | AB20: =VLOOKUP(W20,Rates!$C$4:$L$182,10,FALSE) -> 0
B21: =Rates!C17 -> Hongrie | C21: =Rates!D17 -> Pays Programmes | D21: =Rates!E17 -> 88 | E21: =Rates!F17 -> 74 | F21: =Rates!G17 -> 55 | G21: =Rates!H17 -> 39 | L21: 14 | M21: 770 | N21: 1680 | W21: =Rates!N17 -> Hongrie | X21: =VLOOKUP(W21,Rates!$C$4:$L$182,2,FALSE) -> Pays Programmes | Y21: =VLOOKUP(W21,Rates!$C$4:$L$182,7,FALSE) -> 750 | Z21: =VLOOKUP(W21,Rates!$C$4:$L$182,8,FALSE) -> 0 | AA21: =VLOOKUP(W21,Rates!$C$4:$L$182,9,FALSE) -> 140 | AB21: =VLOOKUP(W21,Rates!$C$4:$L$182,10,FALSE) -> 0
B22: =Rates!C18 -> Irlande | C22: =Rates!D18 -> Pays Programmes | D22: =Rates!E18 -> 294 | E22: =Rates!F18 -> 241 | F22: =Rates!G18 -> 190 | G22: =Rates!H18 -> 157 | L22: 15 | M22: =((L22-$L$21)*40)+770 -> 810 | N22: =((L22-$L$21)*70)+1680 -> 1750 | W22: =Rates!N18 -> Irlande | X22: =VLOOKUP(W22,Rates!$C$4:$L$182,2,FALSE) -> Pays Programmes | Y22: =VLOOKUP(W22,Rates!$C$4:$L$182,7,FALSE) -> 850 | Z22: =VLOOKUP(W22,Rates!$C$4:$L$182,8,FALSE) -> 0 | AA22: =VLOOKUP(W22,Rates!$C$4:$L$182,9,FALSE) -> 160 | AB22: =VLOOKUP(W22,Rates!$C$4:$L$182,10,FALSE) -> 0
B23: =Rates!C19 -> Islande | C23: =Rates!D19 -> Pays Programmes | D23: =Rates!E19 -> 280 | E23: =Rates!F19 -> 214 | F23: =Rates!G19 -> 162 | G23: =Rates!H19 -> 131 | L23: 16 | M23: =((L23-$L$21)*40)+770 -> 850 | N23: =((L23-$L$21)*70)+1680 -> 1820 | W23: =Rates!N19 -> Islande | X23: =VLOOKUP(W23,Rates!$C$4:$L$182,2,FALSE) -> Pays Programmes | Y23: =VLOOKUP(W23,Rates!$C$4:$L$182,7,FALSE) -> 800 | Z23: =VLOOKUP(W23,Rates!$C$4:$L$182,8,FALSE) -> 0 | AA23: =VLOOKUP(W23,Rates!$C$4:$L$182,9,FALSE) -> 140 | AB23: =VLOOKUP(W23,Rates!$C$4:$L$182,10,FALSE) -> 0
B24: =Rates!C20 -> Italie | C24: =Rates!D20 -> Pays Programmes | D24: =Rates!E20 -> 280 | E24: =Rates!F20 -> 214 | F24: =Rates!G20 -> 162 | G24: =Rates!H20 -> 131 | L24: 17 | M24: 890 | N24: 1890 | W24: =Rates!N20 -> Italie | X24: =VLOOKUP(W24,Rates!$C$4:$L$182,2,FALSE) -> Pays Programmes | Y24: =VLOOKUP(W24,Rates!$C$4:$L$182,7,FALSE) -> 850 | Z24: =VLOOKUP(W24,Rates!$C$4:$L$182,8,FALSE) -> 0 | AA24: =VLOOKUP(W24,Rates!$C$4:$L$182,9,FALSE) -> 140 | AB24: =VLOOKUP(W24,Rates!$C$4:$L$182,10,FALSE) -> 0
B25: =Rates!C21 -> Lettonie | C25: =Rates!D21 -> Pays Programmes | D25: =Rates!E21 -> 88 | E25: =Rates!F21 -> 74 | F25: =Rates!G21 -> 55 | G25: =Rates!H21 -> 39 | L25: 18 | M25: 930 | N25: 1960 | W25: =Rates!N21 -> Lettonie | X25: =VLOOKUP(W25,Rates!$C$4:$L$182,2,FALSE) -> Pays Programmes | Y25: =VLOOKUP(W25,Rates!$C$4:$L$182,7,FALSE) -> 750 | Z25: =VLOOKUP(W25,Rates!$C$4:$L$182,8,FALSE) -> 0 | AA25: =VLOOKUP(W25,Rates!$C$4:$L$182,9,FALSE) -> 120 | AB25: =VLOOKUP(W25,Rates!$C$4:$L$182,10,FALSE) -> 0
B26: =Rates!C22 -> Liechtenstein | C26: =Rates!D22 -> Pays Programmes | D26: =Rates!E22 -> 294 | E26: =Rates!F22 -> 241 | F26: =Rates!G22 -> 190 | G26: =Rates!H22 -> 157 | L26: 19 | M26: 970 | N26: 2030 | W26: =Rates!N22 -> Liechtenstein | X26: =VLOOKUP(W26,Rates!$C$4:$L$182,2,FALSE) -> Pays Programmes | Y26: =VLOOKUP(W26,Rates!$C$4:$L$182,7,FALSE) -> 850 | Z26: =VLOOKUP(W26,Rates!$C$4:$L$182,8,FALSE) -> 0 | AA26: =VLOOKUP(W26,Rates!$C$4:$L$182,9,FALSE) -> 140 | AB26: =VLOOKUP(W26,Rates!$C$4:$L$182,10,FALSE) -> 0
B27: =Rates!C23 -> Lituanie | C27: =Rates!D23 -> Pays Programmes | D27: =Rates!E23 -> 88 | E27: =Rates!F23 -> 74 | F27: =Rates!G23 -> 55 | G27: =Rates!H23 -> 39 | L27: 20 | M27: 1010 | N27: 2100 | W27: =Rates!N23 -> Lituanie | X27: =VLOOKUP(W27,Rates!$C$4:$L$182,2,FALSE) -> Pays Programmes | Y27: =VLOOKUP(W27,Rates!$C$4:$L$182,7,FALSE) -> 750 | Z27: =VLOOKUP(W27,Rates!$C$4:$L$182,8,FALSE) -> 0 | AA27: =VLOOKUP(W27,Rates!$C$4:$L$182,9,FALSE) -> 100 | AB27: =VLOOKUP(W27,Rates!$C$4:$L$182,10,FALSE) -> 0
B28: =Rates!C24 -> Luxembourg | C28: =Rates!D24 -> Pays Programmes | D28: =Rates!E24 -> 294 | E28: =Rates!F24 -> 241 | F28: =Rates!G24 -> 190 | G28: =Rates!H24 -> 157 | L28: 21 | M28: 1050 | N28: 2170 | W28: =Rates!N24 -> Luxembourg | X28: =VLOOKUP(W28,Rates!$C$4:$L$182,2,FALSE) -> Pays Programmes | Y28: =VLOOKUP(W28,Rates!$C$4:$L$182,7,FALSE) -> 800 | Z28: =VLOOKUP(W28,Rates!$C$4:$L$182,8,FALSE) -> 0 | AA28: =VLOOKUP(W28,Rates!$C$4:$L$182,9,FALSE) -> 140 | AB28: =VLOOKUP(W28,Rates!$C$4:$L$182,10,FALSE) -> 0
B29: =Rates!C25 -> Malte | C29: =Rates!D25 -> Pays Programmes | D29: =Rates!E25 -> 164 | E29: =Rates!F25 -> 137 | F29: =Rates!G25 -> 102 | G29: =Rates!H25 -> 78 | L29: 22 | M29: 1090 | N29: 2240 | W29: =Rates!N25 -> Malte | X29: =VLOOKUP(W29,Rates!$C$4:$L$182,2,FALSE) -> Pays Programmes | Y29: =VLOOKUP(W29,Rates!$C$4:$L$182,7,FALSE) -> 750 | Z29: =VLOOKUP(W29,Rates!$C$4:$L$182,8,FALSE) -> 0 | AA29: =VLOOKUP(W29,Rates!$C$4:$L$182,9,FALSE) -> 120 | AB29: =VLOOKUP(W29,Rates!$C$4:$L$182,10,FALSE) -> 0
B30: =Rates!C26 -> Norvège | C30: =Rates!D26 -> Pays Programmes | D30: =Rates!E26 -> 294 | E30: =Rates!F26 -> 241 | F30: =Rates!G26 -> 190 | G30: =Rates!H26 -> 157 | L30: 23 | M30: 1130 | N30: 2310 | W30: =Rates!N26 -> Norvège | X30: =VLOOKUP(W30,Rates!$C$4:$L$182,2,FALSE) -> Pays Programmes | Y30: =VLOOKUP(W30,Rates!$C$4:$L$182,7,FALSE) -> 850 | Z30: =VLOOKUP(W30,Rates!$C$4:$L$182,8,FALSE) -> 0 | AA30: =VLOOKUP(W30,Rates!$C$4:$L$182,9,FALSE) -> 140 | AB30: =VLOOKUP(W30,Rates!$C$4:$L$182,10,FALSE) -> 0
B31: =Rates!C27 -> Pays-Bas | C31: =Rates!D27 -> Pays Programmes | D31: =Rates!E27 -> 294 | E31: =Rates!F27 -> 241 | F31: =Rates!G27 -> 190 | G31: =Rates!H27 -> 157 | L31: 24 | M31: 1170 | N31: 2380 | W31: =Rates!N27 -> Pays-Bas | X31: =VLOOKUP(W31,Rates!$C$4:$L$182,2,FALSE) -> Pays Programmes | Y31: =VLOOKUP(W31,Rates!$C$4:$L$182,7,FALSE) -> 800 | Z31: =VLOOKUP(W31,Rates!$C$4:$L$182,8,FALSE) -> 0 | AA31: =VLOOKUP(W31,Rates!$C$4:$L$182,9,FALSE) -> 160 | AB31: =VLOOKUP(W31,Rates!$C$4:$L$182,10,FALSE) -> 0
B32: =Rates!C28 -> Pologne | C32: =Rates!D28 -> Pays Programmes | D32: =Rates!E28 -> 88 | E32: =Rates!F28 -> 74 | F32: =Rates!G28 -> 55 | G32: =Rates!H28 -> 39 | L32: 25 | M32: 1210 | N32: 2450 | W32: =Rates!N28 -> Pologne | X32: =VLOOKUP(W32,Rates!$C$4:$L$182,2,FALSE) -> Pays Programmes | Y32: =VLOOKUP(W32,Rates!$C$4:$L$182,7,FALSE) -> 750 | Z32: =VLOOKUP(W32,Rates!$C$4:$L$182,8,FALSE) -> 0 | AA32: =VLOOKUP(W32,Rates!$C$4:$L$182,9,FALSE) -> 140 | AB32: =VLOOKUP(W32,Rates!$C$4:$L$182,10,FALSE) -> 0
B33: =Rates!C29 -> Portugal | C33: =Rates!D29 -> Pays Programmes | D33: =Rates!E29 -> 164 | E33: =Rates!F29 -> 137 | F33: =Rates!G29 -> 102 | G33: =Rates!H29 -> 78 | L33: 26 | M33: 1250 | N33: 2520 | W33: =Rates!N29 -> Portugal | X33: =VLOOKUP(W33,Rates!$C$4:$L$182,2,FALSE) -> Pays Programmes | Y33: =VLOOKUP(W33,Rates!$C$4:$L$182,7,FALSE) -> 800 | Z33: =VLOOKUP(W33,Rates!$C$4:$L$182,8,FALSE) -> 0 | AA33: =VLOOKUP(W33,Rates!$C$4:$L$182,9,FALSE) -> 120 | AB33: =VLOOKUP(W33,Rates!$C$4:$L$182,10,FALSE) -> 0
B34: =Rates!C30 -> République tchèque | C34: =Rates!D30 -> Pays Programmes | D34: =Rates!E30 -> 164 | E34: =Rates!F30 -> 137 | F34: =Rates!G30 -> 102 | G34: =Rates!H30 -> 78 | L34: 27 | M34: 1290 | N34: 2590 | W34: =Rates!N30 -> République tchèque | X34: =VLOOKUP(W34,Rates!$C$4:$L$182,2,FALSE) -> Pays Programmes | Y34: =VLOOKUP(W34,Rates!$C$4:$L$182,7,FALSE) -> 800 | Z34: =VLOOKUP(W34,Rates!$C$4:$L$182,8,FALSE) -> 0 | AA34: =VLOOKUP(W34,Rates!$C$4:$L$182,9,FALSE) -> 140 | AB34: =VLOOKUP(W34,Rates!$C$4:$L$182,10,FALSE) -> 0
B35: =Rates!C31 -> Roumanie | C35: =Rates!D31 -> Pays Programmes | D35: =Rates!E31 -> 88 | E35: =Rates!F31 -> 74 | F35: =Rates!G31 -> 55 | G35: =Rates!H31 -> 39 | L35: 28 | M35: 1330 | N35: 2660 | W35: =Rates!N31 -> Roumanie | X35: =VLOOKUP(W35,Rates!$C$4:$L$182,2,FALSE) -> Pays Programmes | Y35: =VLOOKUP(W35,Rates!$C$4:$L$182,7,FALSE) -> 750 | Z35: =VLOOKUP(W35,Rates!$C$4:$L$182,8,FALSE) -> 0 | AA35: =VLOOKUP(W35,Rates!$C$4:$L$182,9,FALSE) -> 140 | AB35: =VLOOKUP(W35,Rates!$C$4:$L$182,10,FALSE) -> 0
B36: =Rates!C32 -> Royaume-Uni | C36: =Rates!D32 -> Pays Programmes | D36: =Rates!E32 -> 280 | E36: =Rates!F32 -> 214 | F36: =Rates!G32 -> 162 | G36: =Rates!H32 -> 131 | L36: 29 | M36: 1370 | N36: 2730 | W36: =Rates!N32 -> Royaume-Uni | X36: =VLOOKUP(W36,Rates!$C$4:$L$182,2,FALSE) -> Pays Programmes | Y36: =VLOOKUP(W36,Rates!$C$4:$L$182,7,FALSE) -> 850 | Z36: =VLOOKUP(W36,Rates!$C$4:$L$182,8,FALSE) -> 0 | AA36: =VLOOKUP(W36,Rates!$C$4:$L$182,9,FALSE) -> 160 | AB36: =VLOOKUP(W36,Rates!$C$4:$L$182,10,FALSE) -> 0
B37: =Rates!C33 -> Slovaquie | C37: =Rates!D33 -> Pays Programmes | D37: =Rates!E33 -> 88 | E37: =Rates!F33 -> 74 | F37: =Rates!G33 -> 55 | G37: =Rates!H33 -> 39 | L37: 30 | M37: 1410 | N37: 2800 | W37: =Rates!N33 -> Slovaquie | X37: =VLOOKUP(W37,Rates!$C$4:$L$182,2,FALSE) -> Pays Programmes | Y37: =VLOOKUP(W37,Rates!$C$4:$L$182,7,FALSE) -> 750 | Z37: =VLOOKUP(W37,Rates!$C$4:$L$182,8,FALSE) -> 0 | AA37: =VLOOKUP(W37,Rates!$C$4:$L$182,9,FALSE) -> 120 | AB37: =VLOOKUP(W37,Rates!$C$4:$L$182,10,FALSE) -> 0
B38: =Rates!C34 -> Slovénie | C38: =Rates!D34 -> Pays Programmes | D38: =Rates!E34 -> 164 | E38: =Rates!F34 -> 137 | F38: =Rates!G34 -> 102 | G38: =Rates!H34 -> 78 | L38: 31 | M38: 1450 | N38: 2870 | W38: =Rates!N34 -> Slovénie | X38: =VLOOKUP(W38,Rates!$C$4:$L$182,2,FALSE) -> Pays Programmes | Y38: =VLOOKUP(W38,Rates!$C$4:$L$182,7,FALSE) -> 800 | Z38: =VLOOKUP(W38,Rates!$C$4:$L$182,8,FALSE) -> 0 | AA38: =VLOOKUP(W38,Rates!$C$4:$L$182,9,FALSE) -> 100 | AB38: =VLOOKUP(W38,Rates!$C$4:$L$182,10,FALSE) -> 0
B39: =Rates!C35 -> Suède | C39: =Rates!D35 -> Pays Programmes | D39: =Rates!E35 -> 294 | E39: =Rates!F35 -> 241 | F39: =Rates!G35 -> 190 | G39: =Rates!H35 -> 157 | L39: 32 | M39: 1490 | N39: 2940 | W39: =Rates!N35 -> Suède | X39: =VLOOKUP(W39,Rates!$C$4:$L$182,2,FALSE) -> Pays Programmes | Y39: =VLOOKUP(W39,Rates!$C$4:$L$182,7,FALSE) -> 850 | Z39: =VLOOKUP(W39,Rates!$C$4:$L$182,8,FALSE) -> 0 | AA39: =VLOOKUP(W39,Rates!$C$4:$L$182,9,FALSE) -> 160 | AB39: =VLOOKUP(W39,Rates!$C$4:$L$182,10,FALSE) -> 0
B40: =Rates!C36 -> Turquie | C40: =Rates!D36 -> Pays Programmes | D40: =Rates!E36 -> 88 | E40: =Rates!F36 -> 74 | F40: =Rates!G36 -> 55 | G40: =Rates!H36 -> 39 | L40: 33 | M40: 1530 | N40: 3010 | W40: =Rates!N36 -> Turquie | X40: =VLOOKUP(W40,Rates!$C$4:$L$182,2,FALSE) -> Pays Programmes | Y40: =VLOOKUP(W40,Rates!$C$4:$L$182,7,FALSE) -> 800 | Z40: =VLOOKUP(W40,Rates!$C$4:$L$182,8,FALSE) -> 0 | AA40: =VLOOKUP(W40,Rates!$C$4:$L$182,9,FALSE) -> 140 | AB40: =VLOOKUP(W40,Rates!$C$4:$L$182,10,FALSE) -> 0
B41: =Rates!C37 -> Afghanistan | C41: =Rates!D37 -> Pays Partenaires | D41: =Rates!E37 -> 77 | E41: =Rates!F37 -> 57 | F41: =Rates!G37 -> 40 | G41: =Rates!H37 -> 32 | L41: 34 | M41: 1570 | N41: 3080 | W41: =Rates!N37 -> Albanie | X41: =VLOOKUP(W41,Rates!$C$4:$L$182,2,FALSE) -> Pays Partenaires | Y41: =VLOOKUP(W41,Rates!$C$4:$L$182,7,FALSE) -> 750 | Z41: =VLOOKUP(W41,Rates!$C$4:$L$182,8,FALSE) -> 650 | AA41: =VLOOKUP(W41,Rates!$C$4:$L$182,9,FALSE) -> 100 | AB41: =VLOOKUP(W41,Rates!$C$4:$L$182,10,FALSE) -> 160
B42: =Rates!C38 -> Afrique du Sud | C42: =Rates!D38 -> Pays Partenaires | D42: =Rates!E38 -> 77 | E42: =Rates!F38 -> 57 | F42: =Rates!G38 -> 40 | G42: =Rates!H38 -> 32 | L42: 35 | M42: 1610 | N42: 3150 | W42: =Rates!N38 -> Algérie | X42: =VLOOKUP(W42,Rates!$C$4:$L$182,2,FALSE) -> Pays Partenaires | Y42: =VLOOKUP(W42,Rates!$C$4:$L$182,7,FALSE) -> 750 | Z42: =VLOOKUP(W42,Rates!$C$4:$L$182,8,FALSE) -> 650 | AA42: =VLOOKUP(W42,Rates!$C$4:$L$182,9,FALSE) -> 100 | AB42: =VLOOKUP(W42,Rates!$C$4:$L$182,10,FALSE) -> 160
B43: =Rates!C39 -> Albanie | C43: =Rates!D39 -> Pays Partenaires | D43: =Rates!E39 -> 108 | E43: =Rates!F39 -> 80 | F43: =Rates!G39 -> 57 | G43: =Rates!H39 -> 45 | L43: 36 | M43: 1650 | N43: 3220 | W43: =Rates!N39 -> Arménie | X43: =VLOOKUP(W43,Rates!$C$4:$L$182,2,FALSE) -> Pays Partenaires | Y43: =VLOOKUP(W43,Rates!$C$4:$L$182,7,FALSE) -> 750 | Z43: =VLOOKUP(W43,Rates!$C$4:$L$182,8,FALSE) -> 650 | AA43: =VLOOKUP(W43,Rates!$C$4:$L$182,9,FALSE) -> 100 | AB43: =VLOOKUP(W43,Rates!$C$4:$L$182,10,FALSE) -> 160
B44: =Rates!C40 -> Algérie | C44: =Rates!D40 -> Pays Partenaires | D44: =Rates!E40 -> 47 | E44: =Rates!F40 -> 33 | F44: =Rates!G40 -> 22 | G44: =Rates!H40 -> 17 | L44: 37 | M44: 1690 | N44: 3290 | W44: =Rates!N40 -> Azerbaïdjan | X44: =VLOOKUP(W44,Rates!$C$4:$L$182,2,FALSE) -> Pays Partenaires | Y44: =VLOOKUP(W44,Rates!$C$4:$L$182,7,FALSE) -> 750 | Z44: =VLOOKUP(W44,Rates!$C$4:$L$182,8,FALSE) -> 650 | AA44: =VLOOKUP(W44,Rates!$C$4:$L$182,9,FALSE) -> 100 | AB44: =VLOOKUP(W44,Rates!$C$4:$L$182,10,FALSE) -> 160
B45: =Rates!C41 -> Angola | C45: =Rates!D41 -> Pays Partenaires | D45: =Rates!E41 -> 108 | E45: =Rates!F41 -> 80 | F45: =Rates!G41 -> 57 | G45: =Rates!H41 -> 45 | L45: 38 | M45: 1730 | N45: 3360 | W45: =Rates!N41 -> Biélorussie | X45: =VLOOKUP(W45,Rates!$C$4:$L$182,2,FALSE) -> Pays Partenaires | Y45: =VLOOKUP(W45,Rates!$C$4:$L$182,7,FALSE) -> 750 | Z45: =VLOOKUP(W45,Rates!$C$4:$L$182,8,FALSE) -> 650 | AA45: =VLOOKUP(W45,Rates!$C$4:$L$182,9,FALSE) -> 100 | AB45: =VLOOKUP(W45,Rates!$C$4:$L$182,10,FALSE) -> 160
B46: =Rates!C42 -> Antigua-et-Barbuda | C46: =Rates!D42 -> Pays Partenaires | D46: =Rates!E42 -> 108 | E46: =Rates!F42 -> 80 | F46: =Rates!G42 -> 57 | G46: =Rates!H42 -> 45 | L46: 39 | M46: 1770 | N46: 3430 | W46: =Rates!N42 -> Bosnie-Herzégovine | X46: =VLOOKUP(W46,Rates!$C$4:$L$182,2,FALSE) -> Pays Partenaires | Y46: =VLOOKUP(W46,Rates!$C$4:$L$182,7,FALSE) -> 750 | Z46: =VLOOKUP(W46,Rates!$C$4:$L$182,8,FALSE) -> 650 | AA46: =VLOOKUP(W46,Rates!$C$4:$L$182,9,FALSE) -> 100 | AB46: =VLOOKUP(W46,Rates!$C$4:$L$182,10,FALSE) -> 160
B47: =Rates!C43 -> Argentine | C47: =Rates!D43 -> Pays Partenaires | D47: =Rates!E43 -> 108 | E47: =Rates!F43 -> 80 | F47: =Rates!G43 -> 57 | G47: =Rates!H43 -> 45 | L47: 40 | M47: 1810 | N47: 3500 | W47: =Rates!N43 -> Égypte | X47: =VLOOKUP(W47,Rates!$C$4:$L$182,2,FALSE) -> Pays Partenaires | Y47: =VLOOKUP(W47,Rates!$C$4:$L$182,7,FALSE) -> 750 | Z47: =VLOOKUP(W47,Rates!$C$4:$L$182,8,FALSE) -> 650 | AA47: =VLOOKUP(W47,Rates!$C$4:$L$182,9,FALSE) -> 100 | AB47: =VLOOKUP(W47,Rates!$C$4:$L$182,10,FALSE) -> 160
B48: =Rates!C44 -> Arménie | C48: =Rates!D44 -> Pays Partenaires | D48: =Rates!E44 -> 47 | E48: =Rates!F44 -> 33 | F48: =Rates!G44 -> 22 | G48: =Rates!H44 -> 17 | L48: 41 | M48: 1850 | N48: 3570 | W48: =Rates!N44 -> Géorgie | X48: =VLOOKUP(W48,Rates!$C$4:$L$182,2,FALSE) -> Pays Partenaires | Y48: =VLOOKUP(W48,Rates!$C$4:$L$182,7,FALSE) -> 750 | Z48: =VLOOKUP(W48,Rates!$C$4:$L$182,8,FALSE) -> 650 | AA48: =VLOOKUP(W48,Rates!$C$4:$L$182,9,FALSE) -> 100 | AB48: =VLOOKUP(W48,Rates!$C$4:$L$182,10,FALSE) -> 160
B49: =Rates!C45 -> Azerbaïdjan | C49: =Rates!D45 -> Pays Partenaires | D49: =Rates!E45 -> 77 | E49: =Rates!F45 -> 57 | F49: =Rates!G45 -> 40 | G49: =Rates!H45 -> 32 | L49: 42 | M49: 1890 | N49: 3640 | W49: =Rates!N45 -> Israël | X49: =VLOOKUP(W49,Rates!$C$4:$L$182,2,FALSE) -> Pays Partenaires | Y49: =VLOOKUP(W49,Rates!$C$4:$L$182,7,FALSE) -> 750 | Z49: =VLOOKUP(W49,Rates!$C$4:$L$182,8,FALSE) -> 650 | AA49: =VLOOKUP(W49,Rates!$C$4:$L$182,9,FALSE) -> 100 | AB49: =VLOOKUP(W49,Rates!$C$4:$L$182,10,FALSE) -> 160
B50: =Rates!C46 -> Bahamas | C50: =Rates!D46 -> Pays Partenaires | D50: =Rates!E46 -> 77 | E50: =Rates!F46 -> 57 | F50: =Rates!G46 -> 40 | G50: =Rates!H46 -> 32 | L50: 43 | M50: 1930 | N50: 3710 | W50: =Rates!N46 -> Jordanie | X50: =VLOOKUP(W50,Rates!$C$4:$L$182,2,FALSE) -> Pays Partenaires | Y50: =VLOOKUP(W50,Rates!$C$4:$L$182,7,FALSE) -> 750 | Z50: =VLOOKUP(W50,Rates!$C$4:$L$182,8,FALSE) -> 650 | AA50: =VLOOKUP(W50,Rates!$C$4:$L$182,9,FALSE) -> 100 | AB50: =VLOOKUP(W50,Rates!$C$4:$L$182,10,FALSE) -> 160
B51: =Rates!C47 -> Bangladesh | C51: =Rates!D47 -> Pays Partenaires | D51: =Rates!E47 -> 47 | E51: =Rates!F47 -> 33 | F51: =Rates!G47 -> 22 | G51: =Rates!H47 -> 17 | L51: 44 | M51: 1970 | N51: 3780 | W51: =Rates!N47 -> Kosovo | X51: =VLOOKUP(W51,Rates!$C$4:$L$182,2,FALSE) -> Pays Partenaires | Y51: =VLOOKUP(W51,Rates!$C$4:$L$182,7,FALSE) -> 750 | Z51: =VLOOKUP(W51,Rates!$C$4:$L$182,8,FALSE) -> 650 | AA51: =VLOOKUP(W51,Rates!$C$4:$L$182,9,FALSE) -> 100 | AB51: =VLOOKUP(W51,Rates!$C$4:$L$182,10,FALSE) -> 160
B52: =Rates!C48 -> Barbade | C52: =Rates!D48 -> Pays Partenaires | D52: =Rates!E48 -> 108 | E52: =Rates!F48 -> 80 | F52: =Rates!G48 -> 57 | G52: =Rates!H48 -> 45 | L52: 45 | M52: 2010 | N52: 3850 | W52: =Rates!N48 -> Liban | X52: =VLOOKUP(W52,Rates!$C$4:$L$182,2,FALSE) -> Pays Partenaires | Y52: =VLOOKUP(W52,Rates!$C$4:$L$182,7,FALSE) -> 750 | Z52: =VLOOKUP(W52,Rates!$C$4:$L$182,8,FALSE) -> 650 | AA52: =VLOOKUP(W52,Rates!$C$4:$L$182,9,FALSE) -> 100 | AB52: =VLOOKUP(W52,Rates!$C$4:$L$182,10,FALSE) -> 160
B53: =Rates!C49 -> Belize | C53: =Rates!D49 -> Pays Partenaires | D53: =Rates!E49 -> 47 | E53: =Rates!F49 -> 33 | F53: =Rates!G49 -> 22 | G53: =Rates!H49 -> 17 | L53: 46 | M53: 2050 | N53: 3920 | W53: =Rates!N49 -> Libye | X53: =VLOOKUP(W53,Rates!$C$4:$L$182,2,FALSE) -> Pays Partenaires | Y53: =VLOOKUP(W53,Rates!$C$4:$L$182,7,FALSE) -> 750 | Z53: =VLOOKUP(W53,Rates!$C$4:$L$182,8,FALSE) -> 650 | AA53: =VLOOKUP(W53,Rates!$C$4:$L$182,9,FALSE) -> 100 | AB53: =VLOOKUP(W53,Rates!$C$4:$L$182,10,FALSE) -> 160
B54: =Rates!C50 -> Bénin | C54: =Rates!D50 -> Pays Partenaires | D54: =Rates!E50 -> 47 | E54: =Rates!F50 -> 33 | F54: =Rates!G50 -> 22 | G54: =Rates!H50 -> 17 | L54: 47 | M54: 2090 | N54: 3990 | W54: =Rates!N50 -> Maroc | X54: =VLOOKUP(W54,Rates!$C$4:$L$182,2,FALSE) -> Pays Partenaires | Y54: =VLOOKUP(W54,Rates!$C$4:$L$182,7,FALSE) -> 750 | Z54: =VLOOKUP(W54,Rates!$C$4:$L$182,8,FALSE) -> 650 | AA54: =VLOOKUP(W54,Rates!$C$4:$L$182,9,FALSE) -> 100 | AB54: =VLOOKUP(W54,Rates!$C$4:$L$182,10,FALSE) -> 160
B55: =Rates!C51 -> Bhoutan | C55: =Rates!D51 -> Pays Partenaires | D55: =Rates!E51 -> 47 | E55: =Rates!F51 -> 33 | F55: =Rates!G51 -> 22 | G55: =Rates!H51 -> 17 | L55: 48 | M55: 2130 | N55: 4060 | W55: =Rates!N51 -> Moldavie | X55: =VLOOKUP(W55,Rates!$C$4:$L$182,2,FALSE) -> Pays Partenaires | Y55: =VLOOKUP(W55,Rates!$C$4:$L$182,7,FALSE) -> 750 | Z55: =VLOOKUP(W55,Rates!$C$4:$L$182,8,FALSE) -> 650 | AA55: =VLOOKUP(W55,Rates!$C$4:$L$182,9,FALSE) -> 100 | AB55: =VLOOKUP(W55,Rates!$C$4:$L$182,10,FALSE) -> 160
B56: =Rates!C52 -> Biélorussie | C56: =Rates!D52 -> Pays Partenaires | D56: =Rates!E52 -> 47 | E56: =Rates!F52 -> 33 | F56: =Rates!G52 -> 22 | G56: =Rates!H52 -> 17 | L56: 49 | M56: 2170 | N56: 4130 | W56: =Rates!N52 -> Monténégro | X56: =VLOOKUP(W56,Rates!$C$4:$L$182,2,FALSE) -> Pays Partenaires | Y56: =VLOOKUP(W56,Rates!$C$4:$L$182,7,FALSE) -> 750 | Z56: =VLOOKUP(W56,Rates!$C$4:$L$182,8,FALSE) -> 650 | AA56: =VLOOKUP(W56,Rates!$C$4:$L$182,9,FALSE) -> 100 | AB56: =VLOOKUP(W56,Rates!$C$4:$L$182,10,FALSE) -> 160
B57: =Rates!C53 -> Bolivie | C57: =Rates!D53 -> Pays Partenaires | D57: =Rates!E53 -> 77 | E57: =Rates!F53 -> 57 | F57: =Rates!G53 -> 40 | G57: =Rates!H53 -> 32 | L57: 50 | M57: 2210 | N57: 4200 | W57: =Rates!N53 -> Palestine | X57: =VLOOKUP(W57,Rates!$C$4:$L$182,2,FALSE) -> Pays Partenaires | Y57: =VLOOKUP(W57,Rates!$C$4:$L$182,7,FALSE) -> 750 | Z57: =VLOOKUP(W57,Rates!$C$4:$L$182,8,FALSE) -> 650 | AA57: =VLOOKUP(W57,Rates!$C$4:$L$182,9,FALSE) -> 100 | AB57: =VLOOKUP(W57,Rates!$C$4:$L$182,10,FALSE) -> 160
B58: =Rates!C54 -> Bosnie-Herzégovine | C58: =Rates!D54 -> Pays Partenaires | D58: =Rates!E54 -> 108 | E58: =Rates!F54 -> 80 | F58: =Rates!G54 -> 57 | G58: =Rates!H54 -> 45 | L58: 51 | M58: 2250 | N58: 4270 | W58: =Rates!N54 -> Serbie | X58: =VLOOKUP(W58,Rates!$C$4:$L$182,2,FALSE) -> Pays Partenaires | Y58: =VLOOKUP(W58,Rates!$C$4:$L$182,7,FALSE) -> 750 | Z58: =VLOOKUP(W58,Rates!$C$4:$L$182,8,FALSE) -> 650 | AA58: =VLOOKUP(W58,Rates!$C$4:$L$182,9,FALSE) -> 100 | AB58: =VLOOKUP(W58,Rates!$C$4:$L$182,10,FALSE) -> 160
B59: =Rates!C55 -> Botswana | C59: =Rates!D55 -> Pays Partenaires | D59: =Rates!E55 -> 47 | E59: =Rates!F55 -> 33 | F59: =Rates!G55 -> 22 | G59: =Rates!H55 -> 17 | L59: 52 | M59: 2290 | N59: 4340 | W59: =Rates!N55 -> Syrie | X59: =VLOOKUP(W59,Rates!$C$4:$L$182,2,FALSE) -> Pays Partenaires | Y59: =VLOOKUP(W59,Rates!$C$4:$L$182,7,FALSE) -> 750 | Z59: =VLOOKUP(W59,Rates!$C$4:$L$182,8,FALSE) -> 650 | AA59: =VLOOKUP(W59,Rates!$C$4:$L$182,9,FALSE) -> 100 | AB59: =VLOOKUP(W59,Rates!$C$4:$L$182,10,FALSE) -> 160
B60: =Rates!C56 -> Brésil | C60: =Rates!D56 -> Pays Partenaires | D60: =Rates!E56 -> 108 | E60: =Rates!F56 -> 80 | F60: =Rates!G56 -> 57 | G60: =Rates!H56 -> 45 | L60: 53 | M60: 2330 | N60: 4410 | W60: =Rates!N56 -> Tunisie | X60: =VLOOKUP(W60,Rates!$C$4:$L$182,2,FALSE) -> Pays Partenaires | Y60: =VLOOKUP(W60,Rates!$C$4:$L$182,7,FALSE) -> 750 | Z60: =VLOOKUP(W60,Rates!$C$4:$L$182,8,FALSE) -> 650 | AA60: =VLOOKUP(W60,Rates!$C$4:$L$182,9,FALSE) -> 100 | AB60: =VLOOKUP(W60,Rates!$C$4:$L$182,10,FALSE) -> 160
B61: =Rates!C57 -> Burkina Faso | C61: =Rates!D57 -> Pays Partenaires | D61: =Rates!E57 -> 77 | E61: =Rates!F57 -> 57 | F61: =Rates!G57 -> 40 | G61: =Rates!H57 -> 32 | L61: 54 | M61: 2370 | N61: 4480 | W61: =Rates!N57 -> Ukraine | X61: =VLOOKUP(W61,Rates!$C$4:$L$182,2,FALSE) -> Pays Partenaires | Y61: =VLOOKUP(W61,Rates!$C$4:$L$182,7,FALSE) -> 750 | Z61: =VLOOKUP(W61,Rates!$C$4:$L$182,8,FALSE) -> 650 | AA61: =VLOOKUP(W61,Rates!$C$4:$L$182,9,FALSE) -> 100 | AB61: =VLOOKUP(W61,Rates!$C$4:$L$182,10,FALSE) -> 160
B62: =Rates!C58 -> Burundi | C62: =Rates!D58 -> Pays Partenaires | D62: =Rates!E58 -> 47 | E62: =Rates!F58 -> 33 | F62: =Rates!G58 -> 22 | G62: =Rates!H58 -> 17 | L62: 55 | M62: 2410 | N62: 4550
B63: =Rates!C59 -> Cambodge | C63: =Rates!D59 -> Pays Partenaires | D63: =Rates!E59 -> 47 | E63: =Rates!F59 -> 33 | F63: =Rates!G59 -> 22 | G63: =Rates!H59 -> 17 | L63: 56 | M63: 2450 | N63: 4620
B64: =Rates!C60 -> Cameroun | C64: =Rates!D60 -> Pays Partenaires | D64: =Rates!E60 -> 77 | E64: =Rates!F60 -> 57 | F64: =Rates!G60 -> 40 | G64: =Rates!H60 -> 32 | L64: 57 | M64: 2490 | N64: 4690
B65: =Rates!C61 -> Cape-Vert | C65: =Rates!D61 -> Pays Partenaires | D65: =Rates!E61 -> 47 | E65: =Rates!F61 -> 33 | F65: =Rates!G61 -> 22 | G65: =Rates!H61 -> 17 | L65: 58 | M65: 2530 | N65: 4760
B66: =Rates!C62 -> Chili | C66: =Rates!D62 -> Pays Partenaires | D66: =Rates!E62 -> 108 | E66: =Rates!F62 -> 80 | F66: =Rates!G62 -> 57 | G66: =Rates!H62 -> 45 | L66: 59 | M66: 2570 | N66: 4830
B67: =Rates!C63 -> Chine | C67: =Rates!D63 -> Pays Partenaires | D67: =Rates!E63 -> 77 | E67: =Rates!F63 -> 57 | F67: =Rates!G63 -> 40 | G67: =Rates!H63 -> 32 | L67: 60 | M67: 2610 | N67: 4900
B68: =Rates!C64 -> Colombie | C68: =Rates!D64 -> Pays Partenaires | D68: =Rates!E64 -> 108 | E68: =Rates!F64 -> 80 | F68: =Rates!G64 -> 57 | G68: =Rates!H64 -> 45 | L68: 61 | M68: 2650 | N68: =((L68-$L$67)*50)+4900 -> 4950
B69: =Rates!C65 -> Comores | C69: =Rates!D65 -> Pays Partenaires | D69: =Rates!E65 -> 108 | E69: =Rates!F65 -> 80 | F69: =Rates!G65 -> 57 | G69: =Rates!H65 -> 45 | L69: 62 | M69: 2690 | N69: =((L69-$L$67)*50)+4900 -> 5000
B70: =Rates!C66 -> Congo (Brazzaville) | C70: =Rates!D66 -> Pays Partenaires | D70: =Rates!E66 -> 77 | E70: =Rates!F66 -> 57 | F70: =Rates!G66 -> 40 | G70: =Rates!H66 -> 32 | L70: 63 | M70: 2730 | N70: 5050
B71: =Rates!C67 -> Congo (Kinshasa) | C71: =Rates!D67 -> Pays Partenaires | D71: =Rates!E67 -> 47 | E71: =Rates!F67 -> 33 | F71: =Rates!G67 -> 22 | G71: =Rates!H67 -> 17 | L71: 64 | M71: 2770 | N71: 5100
B72: =Rates!C68 -> Costa Rica | C72: =Rates!D68 -> Pays Partenaires | D72: =Rates!E68 -> 77 | E72: =Rates!F68 -> 57 | F72: =Rates!G68 -> 40 | G72: =Rates!H68 -> 32 | L72: 65 | M72: 2810 | N72: 5150
B73: =Rates!C69 -> Côte d’Ivoire | C73: =Rates!D69 -> Pays Partenaires | D73: =Rates!E69 -> 108 | E73: =Rates!F69 -> 80 | F73: =Rates!G69 -> 57 | G73: =Rates!H69 -> 45 | L73: 66 | M73: 2850 | N73: 5200
B74: =Rates!C70 -> Cuba | C74: =Rates!D70 -> Pays Partenaires | D74: =Rates!E70 -> 47 | E74: =Rates!F70 -> 33 | F74: =Rates!G70 -> 22 | G74: =Rates!H70 -> 17 | L74: 67 | M74: 2890 | N74: 5250
B75: =Rates!C71 -> Djibouti | C75: =Rates!D71 -> Pays Partenaires | D75: =Rates!E71 -> 77 | E75: =Rates!F71 -> 57 | F75: =Rates!G71 -> 40 | G75: =Rates!H71 -> 32 | L75: 68 | M75: 2930 | N75: 5300
B76: =Rates!C72 -> Dominique | C76: =Rates!D72 -> Pays Partenaires | D76: =Rates!E72 -> 108 | E76: =Rates!F72 -> 80 | F76: =Rates!G72 -> 57 | G76: =Rates!H72 -> 45 | L76: 69 | M76: 2970 | N76: 5350
B77: =Rates!C73 -> Égypte | C77: =Rates!D73 -> Pays Partenaires | D77: =Rates!E73 -> 47 | E77: =Rates!F73 -> 33 | F77: =Rates!G73 -> 22 | G77: =Rates!H73 -> 17 | L77: 70 | M77: 3010 | N77: 5400
B78: =Rates!C74 -> El Salvador | C78: =Rates!D74 -> Pays Partenaires | D78: =Rates!E74 -> 77 | E78: =Rates!F74 -> 57 | F78: =Rates!G74 -> 40 | G78: =Rates!H74 -> 32 | L78: 71 | M78: 3050 | N78: 5450
B79: =Rates!C75 -> Équateur | C79: =Rates!D75 -> Pays Partenaires | D79: =Rates!E75 -> 77 | E79: =Rates!F75 -> 57 | F79: =Rates!G75 -> 40 | G79: =Rates!H75 -> 32 | L79: 72 | M79: 3090 | N79: 5500
B80: =Rates!C76 -> Érythrée | C80: =Rates!D76 -> Pays Partenaires | D80: =Rates!E76 -> 47 | E80: =Rates!F76 -> 33 | F80: =Rates!G76 -> 22 | G80: =Rates!H76 -> 17 | L80: 73 | M80: 3130 | N80: 5550
B81: =Rates!C77 -> Éthiopie | C81: =Rates!D77 -> Pays Partenaires | D81: =Rates!E77 -> 47 | E81: =Rates!F77 -> 33 | F81: =Rates!G77 -> 22 | G81: =Rates!H77 -> 17 | L81: 74 | M81: 3170 | N81: 5600
B82: =Rates!C78 -> Fidji | C82: =Rates!D78 -> Pays Partenaires | D82: =Rates!E78 -> 47 | E82: =Rates!F78 -> 33 | F82: =Rates!G78 -> 22 | G82: =Rates!H78 -> 17 | L82: 75 | M82: 3210 | N82: 5650
B83: =Rates!C79 -> Gabon | C83: =Rates!D79 -> Pays Partenaires | D83: =Rates!E79 -> 108 | E83: =Rates!F79 -> 80 | F83: =Rates!G79 -> 57 | G83: =Rates!H79 -> 45 | L83: 76 | M83: 3250 | N83: 5700
B84: =Rates!C80 -> Gambie | C84: =Rates!D80 -> Pays Partenaires | D84: =Rates!E80 -> 47 | E84: =Rates!F80 -> 33 | F84: =Rates!G80 -> 22 | G84: =Rates!H80 -> 17 | L84: 77 | M84: 3290 | N84: 5750
B85: =Rates!C81 -> Géorgie | C85: =Rates!D81 -> Pays Partenaires | D85: =Rates!E81 -> 77 | E85: =Rates!F81 -> 57 | F85: =Rates!G81 -> 40 | G85: =Rates!H81 -> 32 | L85: 78 | M85: 3330 | N85: 5800
B86: =Rates!C82 -> Ghana | C86: =Rates!D82 -> Pays Partenaires | D86: =Rates!E82 -> 47 | E86: =Rates!F82 -> 33 | F86: =Rates!G82 -> 22 | G86: =Rates!H82 -> 17 | L86: 79 | M86: 3370 | N86: 5850
B87: =Rates!C83 -> Grenade | C87: =Rates!D83 -> Pays Partenaires | D87: =Rates!E83 -> 108 | E87: =Rates!F83 -> 80 | F87: =Rates!G83 -> 57 | G87: =Rates!H83 -> 45 | L87: 80 | M87: =((L87-$L$21)*40)+770 -> 3410 | N87: 5900
B88: =Rates!C84 -> Guatemala | C88: =Rates!D84 -> Pays Partenaires | D88: =Rates!E84 -> 77 | E88: =Rates!F84 -> 57 | F88: =Rates!G84 -> 40 | G88: =Rates!H84 -> 32 | L88: 81 | M88: 3450 | N88: 5950
B89: =Rates!C85 -> Guinée équatoriale | C89: =Rates!D85 -> Pays Partenaires | D89: =Rates!E85 -> 47 | E89: =Rates!F85 -> 33 | F89: =Rates!G85 -> 22 | G89: =Rates!H85 -> 17 | L89: 82 | M89: 3490 | N89: 6000
B90: =Rates!C86 -> Guinée-Bissau | C90: =Rates!D86 -> Pays Partenaires | D90: =Rates!E86 -> 77 | E90: =Rates!F86 -> 57 | F90: =Rates!G86 -> 40 | G90: =Rates!H86 -> 32 | L90: 83 | M90: 3530 | N90: 6050
B91: =Rates!C87 -> Guyana | C91: =Rates!D87 -> Pays Partenaires | D91: =Rates!E87 -> 47 | E91: =Rates!F87 -> 33 | F91: =Rates!G87 -> 22 | G91: =Rates!H87 -> 17 | L91: 84 | M91: 3570 | N91: 6100
B92: =Rates!C88 -> Haïti | C92: =Rates!D88 -> Pays Partenaires | D92: =Rates!E88 -> 77 | E92: =Rates!F88 -> 57 | F92: =Rates!G88 -> 40 | G92: =Rates!H88 -> 32 | L92: 85 | M92: 3610 | N92: 6150
B93: =Rates!C89 -> Honduras | C93: =Rates!D89 -> Pays Partenaires | D93: =Rates!E89 -> 47 | E93: =Rates!F89 -> 33 | F93: =Rates!G89 -> 22 | G93: =Rates!H89 -> 17 | L93: 86 | M93: 3650 | N93: 6200
B94: =Rates!C90 -> Îles Cook | C94: =Rates!D90 -> Pays Partenaires | D94: =Rates!E90 -> 108 | E94: =Rates!F90 -> 80 | F94: =Rates!G90 -> 57 | G94: =Rates!H90 -> 45 | L94: 87 | M94: 3690 | N94: 6250
B95: =Rates!C91 -> Îles Marshall | C95: =Rates!D91 -> Pays Partenaires | D95: =Rates!E91 -> 47 | E95: =Rates!F91 -> 33 | F95: =Rates!G91 -> 22 | G95: =Rates!H91 -> 17 | L95: 88 | M95: 3730 | N95: 6300
B96: =Rates!C92 -> Îles Salomon | C96: =Rates!D92 -> Pays Partenaires | D96: =Rates!E92 -> 47 | E96: =Rates!F92 -> 33 | F96: =Rates!G92 -> 22 | G96: =Rates!H92 -> 17 | L96: 89 | M96: 3770 | N96: 6350
B97: =Rates!C93 -> Inde | C97: =Rates!D93 -> Pays Partenaires | D97: =Rates!E93 -> 47 | E97: =Rates!F93 -> 33 | F97: =Rates!G93 -> 22 | G97: =Rates!H93 -> 17 | L97: 90 | M97: 3810 | N97: 6400
B98: =Rates!C94 -> Indonésie | C98: =Rates!D94 -> Pays Partenaires | D98: =Rates!E94 -> 47 | E98: =Rates!F94 -> 33 | F98: =Rates!G94 -> 22 | G98: =Rates!H94 -> 17
B99: =Rates!C95 -> Iran | C99: =Rates!D95 -> Pays Partenaires | D99: =Rates!E95 -> 77 | E99: =Rates!F95 -> 57 | F99: =Rates!G95 -> 40 | G99: =Rates!H95 -> 32
B100: =Rates!C96 -> Iraq | C100: =Rates!D96 -> Pays Partenaires | D100: =Rates!E96 -> 77 | E100: =Rates!F96 -> 57 | F100: =Rates!G96 -> 40 | G100: =Rates!H96 -> 32
B101: =Rates!C97 -> Israël | C101: =Rates!D97 -> Pays Partenaires | D101: =Rates!E97 -> 166 | E101: =Rates!F97 -> 132 | F101: =Rates!G97 -> 102 | G101: =Rates!H97 -> 92
B102: =Rates!C98 -> Jamaïque | C102: =Rates!D98 -> Pays Partenaires | D102: =Rates!E98 -> 77 | E102: =Rates!F98 -> 57 | F102: =Rates!G98 -> 40 | G102: =Rates!H98 -> 32
B103: =Rates!C99 -> Jordanie | C103: =Rates!D99 -> Pays Partenaires | D103: =Rates!E99 -> 77 | E103: =Rates!F99 -> 57 | F103: =Rates!G99 -> 40 | G103: =Rates!H99 -> 32
B104: =Rates!C100 -> Kazakhstan | C104: =Rates!D100 -> Pays Partenaires | D104: =Rates!E100 -> 77 | E104: =Rates!F100 -> 57 | F104: =Rates!G100 -> 40 | G104: =Rates!H100 -> 32
B105: =Rates!C101 -> Kenya | C105: =Rates!D101 -> Pays Partenaires | D105: =Rates!E101 -> 77 | E105: =Rates!F101 -> 57 | F105: =Rates!G101 -> 40 | G105: =Rates!H101 -> 32
B106: =Rates!C102 -> Kirghizstan | C106: =Rates!D102 -> Pays Partenaires | D106: =Rates!E102 -> 47 | E106: =Rates!F102 -> 33 | F106: =Rates!G102 -> 22 | G106: =Rates!H102 -> 17
B107: =Rates!C103 -> Kiribati | C107: =Rates!D103 -> Pays Partenaires | D107: =Rates!E103 -> 47 | E107: =Rates!F103 -> 33 | F107: =Rates!G103 -> 22 | G107: =Rates!H103 -> 17
B108: =Rates!C104 -> Kosovo | C108: =Rates!D104 -> Pays Partenaires | D108: =Rates!E104 -> 108 | E108: =Rates!F104 -> 80 | F108: =Rates!G104 -> 57 | G108: =Rates!H104 -> 45
B109: =Rates!C105 -> Laos | C109: =Rates!D105 -> Pays Partenaires | D109: =Rates!E105 -> 47 | E109: =Rates!F105 -> 33 | F109: =Rates!G105 -> 22 | G109: =Rates!H105 -> 17
B110: =Rates!C106 -> Lesotho | C110: =Rates!D106 -> Pays Partenaires | D110: =Rates!E106 -> 47 | E110: =Rates!F106 -> 33 | F110: =Rates!G106 -> 22 | G110: =Rates!H106 -> 17
B111: =Rates!C107 -> Liban | C111: =Rates!D107 -> Pays Partenaires | D111: =Rates!E107 -> 108 | E111: =Rates!F107 -> 80 | F111: =Rates!G107 -> 57 | G111: =Rates!H107 -> 45
B112: =Rates!C108 -> Liberia | C112: =Rates!D108 -> Pays Partenaires | D112: =Rates!E108 -> 47 | E112: =Rates!F108 -> 33 | F112: =Rates!G108 -> 22 | G112: =Rates!H108 -> 17
B113: =Rates!C109 -> Libye | C113: =Rates!D109 -> Pays Partenaires | D113: =Rates!E109 -> 108 | E113: =Rates!F109 -> 80 | F113: =Rates!G109 -> 57 | G113: =Rates!H109 -> 45
B114: =Rates!C110 -> Madagascar | C114: =Rates!D110 -> Pays Partenaires | D114: =Rates!E110 -> 47 | E114: =Rates!F110 -> 33 | F114: =Rates!G110 -> 22 | G114: =Rates!H110 -> 17
B115: =Rates!C111 -> Malaisie | C115: =Rates!D111 -> Pays Partenaires | D115: =Rates!E111 -> 47 | E115: =Rates!F111 -> 33 | F115: =Rates!G111 -> 22 | G115: =Rates!H111 -> 17
B116: =Rates!C112 -> Malawi | C116: =Rates!D112 -> Pays Partenaires | D116: =Rates!E112 -> 47 | E116: =Rates!F112 -> 33 | F116: =Rates!G112 -> 22 | G116: =Rates!H112 -> 17
B117: =Rates!C113 -> Maldives | C117: =Rates!D113 -> Pays Partenaires | D117: =Rates!E113 -> 47 | E117: =Rates!F113 -> 33 | F117: =Rates!G113 -> 22 | G117: =Rates!H113 -> 17
B118: =Rates!C114 -> Mali | C118: =Rates!D114 -> Pays Partenaires | D118: =Rates!E114 -> 47 | E118: =Rates!F114 -> 33 | F118: =Rates!G114 -> 22 | G118: =Rates!H114 -> 17
B119: =Rates!C115 -> Maroc | C119: =Rates!D115 -> Pays Partenaires | D119: =Rates!E115 -> 77 | E119: =Rates!F115 -> 57 | F119: =Rates!G115 -> 40 | G119: =Rates!H115 -> 32
B120: =Rates!C116 -> Maurice | C120: =Rates!D116 -> Pays Partenaires | D120: =Rates!E116 -> 47 | E120: =Rates!F116 -> 33 | F120: =Rates!G116 -> 22 | G120: =Rates!H116 -> 17
B121: =Rates!C117 -> Mauritanie | C121: =Rates!D117 -> Pays Partenaires | D121: =Rates!E117 -> 47 | E121: =Rates!F117 -> 33 | F121: =Rates!G117 -> 22 | G121: =Rates!H117 -> 17
B122: =Rates!C118 -> Mexique | C122: =Rates!D118 -> Pays Partenaires | D122: =Rates!E118 -> 108 | E122: =Rates!F118 -> 80 | F122: =Rates!G118 -> 57 | G122: =Rates!H118 -> 45
B123: =Rates!C119 -> Micronésie | C123: =Rates!D119 -> Pays Partenaires | D123: =Rates!E119 -> 77 | E123: =Rates!F119 -> 57 | F123: =Rates!G119 -> 40 | G123: =Rates!H119 -> 32
B124: =Rates!C120 -> Moldavie | C124: =Rates!D120 -> Pays Partenaires | D124: =Rates!E120 -> 47 | E124: =Rates!F120 -> 33 | F124: =Rates!G120 -> 22 | G124: =Rates!H120 -> 17
B125: =Rates!C121 -> Mongolie | C125: =Rates!D121 -> Pays Partenaires | D125: =Rates!E121 -> 47 | E125: =Rates!F121 -> 33 | F125: =Rates!G121 -> 22 | G125: =Rates!H121 -> 17
B126: =Rates!C122 -> Monténégro | C126: =Rates!D122 -> Pays Partenaires | D126: =Rates!E122 -> 108 | E126: =Rates!F122 -> 80 | F126: =Rates!G122 -> 57 | G126: =Rates!H122 -> 45
B127: =Rates!C123 -> Mozambique | C127: =Rates!D123 -> Pays Partenaires | D127: =Rates!E123 -> 77 | E127: =Rates!F123 -> 57 | F127: =Rates!G123 -> 40 | G127: =Rates!H123 -> 32
B128: =Rates!C124 -> Myanmar | C128: =Rates!D124 -> Pays Partenaires | D128: =Rates!E124 -> 47 | E128: =Rates!F124 -> 33 | F128: =Rates!G124 -> 22 | G128: =Rates!H124 -> 17
B129: =Rates!C125 -> Namibie | C129: =Rates!D125 -> Pays Partenaires | D129: =Rates!E125 -> 77 | E129: =Rates!F125 -> 57 | F129: =Rates!G125 -> 40 | G129: =Rates!H125 -> 32
B130: =Rates!C126 -> Nauru | C130: =Rates!D126 -> Pays Partenaires | D130: =Rates!E126 -> 47 | E130: =Rates!F126 -> 33 | F130: =Rates!G126 -> 22 | G130: =Rates!H126 -> 17
B131: =Rates!C127 -> Népal | C131: =Rates!D127 -> Pays Partenaires | D131: =Rates!E127 -> 47 | E131: =Rates!F127 -> 33 | F131: =Rates!G127 -> 22 | G131: =Rates!H127 -> 17
B132: =Rates!C128 -> Nicaragua | C132: =Rates!D128 -> Pays Partenaires | D132: =Rates!E128 -> 47 | E132: =Rates!F128 -> 33 | F132: =Rates!G128 -> 22 | G132: =Rates!H128 -> 17
B133: =Rates!C129 -> Niger | C133: =Rates!D129 -> Pays Partenaires | D133: =Rates!E129 -> 47 | E133: =Rates!F129 -> 33 | F133: =Rates!G129 -> 22 | G133: =Rates!H129 -> 17
B134: =Rates!C130 -> Nigeria | C134: =Rates!D130 -> Pays Partenaires | D134: =Rates!E130 -> 108 | E134: =Rates!F130 -> 80 | F134: =Rates!G130 -> 57 | G134: =Rates!H130 -> 45
B135: =Rates!C131 -> Niue | C135: =Rates!D131 -> Pays Partenaires | D135: =Rates!E131 -> 47 | E135: =Rates!F131 -> 33 | F135: =Rates!G131 -> 22 | G135: =Rates!H131 -> 17
B136: =Rates!C132 -> Ouganda | C136: =Rates!D132 -> Pays Partenaires | D136: =Rates!E132 -> 47 | E136: =Rates!F132 -> 33 | F136: =Rates!G132 -> 22 | G136: =Rates!H132 -> 17
B137: =Rates!C133 -> Ouzbékistan | C137: =Rates!D133 -> Pays Partenaires | D137: =Rates!E133 -> 47 | E137: =Rates!F133 -> 33 | F137: =Rates!G133 -> 22 | G137: =Rates!H133 -> 17
B138: =Rates!C134 -> Pakistan | C138: =Rates!D134 -> Pays Partenaires | D138: =Rates!E134 -> 47 | E138: =Rates!F134 -> 33 | F138: =Rates!G134 -> 22 | G138: =Rates!H134 -> 17
B139: =Rates!C135 -> Palaos | C139: =Rates!D135 -> Pays Partenaires | D139: =Rates!E135 -> 47 | E139: =Rates!F135 -> 33 | F139: =Rates!G135 -> 22 | G139: =Rates!H135 -> 17
B140: =Rates!C136 -> Palestine | C140: =Rates!D136 -> Pays Partenaires | D140: =Rates!E136 -> 77 | E140: =Rates!F136 -> 57 | F140: =Rates!G136 -> 40 | G140: =Rates!H136 -> 32
B141: =Rates!C137 -> Panama | C141: =Rates!D137 -> Pays Partenaires | D141: =Rates!E137 -> 77 | E141: =Rates!F137 -> 57 | F141: =Rates!G137 -> 40 | G141: =Rates!H137 -> 32
B142: =Rates!C138 -> Papouasie-Nouvelle-Guinée | C142: =Rates!D138 -> Pays Partenaires | D142: =Rates!E138 -> 77 | E142: =Rates!F138 -> 57 | F142: =Rates!G138 -> 40 | G142: =Rates!H138 -> 32
B143: =Rates!C139 -> Paraguay | C143: =Rates!D139 -> Pays Partenaires | D143: =Rates!E139 -> 77 | E143: =Rates!F139 -> 57 | F143: =Rates!G139 -> 40 | G143: =Rates!H139 -> 32
B144: =Rates!C140 -> Pérou | C144: =Rates!D140 -> Pays Partenaires | D144: =Rates!E140 -> 108 | E144: =Rates!F140 -> 80 | F144: =Rates!G140 -> 57 | G144: =Rates!H140 -> 45
B145: =Rates!C141 -> Philippines | C145: =Rates!D141 -> Pays Partenaires | D145: =Rates!E141 -> 47 | E145: =Rates!F141 -> 33 | F145: =Rates!G141 -> 22 | G145: =Rates!H141 -> 17
B146: =Rates!C142 -> République centrafricaine | C146: =Rates!D142 -> Pays Partenaires | D146: =Rates!E142 -> 47 | E146: =Rates!F142 -> 33 | F146: =Rates!G142 -> 22 | G146: =Rates!H142 -> 17
B147: =Rates!C143 -> République de Guinée | C147: =Rates!D143 -> Pays Partenaires | D147: =Rates!E143 -> 47 | E147: =Rates!F143 -> 33 | F147: =Rates!G143 -> 22 | G147: =Rates!H143 -> 17
B148: =Rates!C144 -> République dominicaine | C148: =Rates!D144 -> Pays Partenaires | D148: =Rates!E144 -> 77 | E148: =Rates!F144 -> 57 | F148: =Rates!G144 -> 40 | G148: =Rates!H144 -> 32
B149: =Rates!C145 -> RPD Corée | C149: =Rates!D145 -> Pays Partenaires | D149: =Rates!E145 -> 47 | E149: =Rates!F145 -> 33 | F149: =Rates!G145 -> 22 | G149: =Rates!H145 -> 17
B150: =Rates!C146 -> Russie | C150: =Rates!D146 -> Pays Partenaires | D150: =Rates!E146 -> 77 | E150: =Rates!F146 -> 57 | F150: =Rates!G146 -> 40 | G150: =Rates!H146 -> 32
B151: =Rates!C147 -> Rwanda | C151: =Rates!D147 -> Pays Partenaires | D151: =Rates!E147 -> 47 | E151: =Rates!F147 -> 33 | F151: =Rates!G147 -> 22 | G151: =Rates!H147 -> 17
B152: =Rates!C148 -> Saint-Christophe-et-Niévès | C152: =Rates!D148 -> Pays Partenaires | D152: =Rates!E148 -> 108 | E152: =Rates!F148 -> 80 | F152: =Rates!G148 -> 57 | G152: =Rates!H148 -> 45
B153: =Rates!C149 -> Sainte-Lucie | C153: =Rates!D149 -> Pays Partenaires | D153: =Rates!E149 -> 108 | E153: =Rates!F149 -> 80 | F153: =Rates!G149 -> 57 | G153: =Rates!H149 -> 45
B154: =Rates!C150 -> Saint-Vincent-et-les-Grenadines | C154: =Rates!D150 -> Pays Partenaires | D154: =Rates!E150 -> 108 | E154: =Rates!F150 -> 80 | F154: =Rates!G150 -> 57 | G154: =Rates!H150 -> 45
B155: =Rates!C151 -> Samoa | C155: =Rates!D151 -> Pays Partenaires | D155: =Rates!E151 -> 47 | E155: =Rates!F151 -> 33 | F155: =Rates!G151 -> 22 | G155: =Rates!H151 -> 17
B156: =Rates!C152 -> Sao Tomé-et-Principe | C156: =Rates!D152 -> Pays Partenaires | D156: =Rates!E152 -> 108 | E156: =Rates!F152 -> 80 | F156: =Rates!G152 -> 57 | G156: =Rates!H152 -> 45
B157: =Rates!C153 -> Sénégal | C157: =Rates!D153 -> Pays Partenaires | D157: =Rates!E153 -> 77 | E157: =Rates!F153 -> 57 | F157: =Rates!G153 -> 40 | G157: =Rates!H153 -> 32
B158: =Rates!C154 -> Serbie | C158: =Rates!D154 -> Pays Partenaires | D158: =Rates!E154 -> 108 | E158: =Rates!F154 -> 80 | F158: =Rates!G154 -> 57 | G158: =Rates!H154 -> 45
B159: =Rates!C155 -> Seychelles | C159: =Rates!D155 -> Pays Partenaires | D159: =Rates!E155 -> 108 | E159: =Rates!F155 -> 80 | F159: =Rates!G155 -> 57 | G159: =Rates!H155 -> 45
B160: =Rates!C156 -> Sierra Leone | C160: =Rates!D156 -> Pays Partenaires | D160: =Rates!E156 -> 47 | E160: =Rates!F156 -> 33 | F160: =Rates!G156 -> 22 | G160: =Rates!H156 -> 17
B161: =Rates!C157 -> Somalie | C161: =Rates!D157 -> Pays Partenaires | D161: =Rates!E157 -> 47 | E161: =Rates!F157 -> 33 | F161: =Rates!G157 -> 22 | G161: =Rates!H157 -> 17
B162: =Rates!C158 -> Soudan | C162: =Rates!D158 -> Pays Partenaires | D162: =Rates!E158 -> 47 | E162: =Rates!F158 -> 33 | F162: =Rates!G158 -> 22 | G162: =Rates!H158 -> 17
B163: =Rates!C159 -> Soudan du Sud | C163: =Rates!D159 -> Pays Partenaires | D163: =Rates!E159 -> 47 | E163: =Rates!F159 -> 33 | F163: =Rates!G159 -> 22 | G163: =Rates!H159 -> 17
B164: =Rates!C160 -> Sri Lanka | C164: =Rates!D160 -> Pays Partenaires | D164: =Rates!E160 -> 47 | E164: =Rates!F160 -> 33 | F164: =Rates!G160 -> 22 | G164: =Rates!H160 -> 17
B165: =Rates!C161 -> Suriname | C165: =Rates!D161 -> Pays Partenaires | D165: =Rates!E161 -> 77 | E165: =Rates!F161 -> 57 | F165: =Rates!G161 -> 40 | G165: =Rates!H161 -> 32
B166: =Rates!C162 -> Swaziland | C166: =Rates!D162 -> Pays Partenaires | D166: =Rates!E162 -> 77 | E166: =Rates!F162 -> 57 | F166: =Rates!G162 -> 40 | G166: =Rates!H162 -> 32
B167: =Rates!C163 -> Syrie | C167: =Rates!D163 -> Pays Partenaires | D167: =Rates!E163 -> 47 | E167: =Rates!F163 -> 33 | F167: =Rates!G163 -> 22 | G167: =Rates!H163 -> 17
B168: =Rates!C164 -> Tadjikistan | C168: =Rates!D164 -> Pays Partenaires | D168: =Rates!E164 -> 47 | E168: =Rates!F164 -> 33 | F168: =Rates!G164 -> 22 | G168: =Rates!H164 -> 17
B169: =Rates!C165 -> Tanzanie | C169: =Rates!D165 -> Pays Partenaires | D169: =Rates!E165 -> 47 | E169: =Rates!F165 -> 33 | F169: =Rates!G165 -> 22 | G169: =Rates!H165 -> 17
B170: =Rates!C166 -> Tchad | C170: =Rates!D166 -> Pays Partenaires | D170: =Rates!E166 -> 47 | E170: =Rates!F166 -> 33 | F170: =Rates!G166 -> 22 | G170: =Rates!H166 -> 17
B171: =Rates!C167 -> Thaïlande | C171: =Rates!D167 -> Pays Partenaires | D171: =Rates!E167 -> 108 | E171: =Rates!F167 -> 80 | F171: =Rates!G167 -> 57 | G171: =Rates!H167 -> 45
B172: =Rates!C168 -> Timor-Oriental | C172: =Rates!D168 -> Pays Partenaires | D172: =Rates!E168 -> 47 | E172: =Rates!F168 -> 33 | F172: =Rates!G168 -> 22 | G172: =Rates!H168 -> 17
B173: =Rates!C169 -> Togo | C173: =Rates!D169 -> Pays Partenaires | D173: =Rates!E169 -> 47 | E173: =Rates!F169 -> 33 | F173: =Rates!G169 -> 22 | G173: =Rates!H169 -> 17
B174: =Rates!C170 -> Tonga | C174: =Rates!D170 -> Pays Partenaires | D174: =Rates!E170 -> 47 | E174: =Rates!F170 -> 33 | F174: =Rates!G170 -> 22 | G174: =Rates!H170 -> 17
B175: =Rates!C171 -> Trinité-et-Tobago | C175: =Rates!D171 -> Pays Partenaires | D175: =Rates!E171 -> 77 | E175: =Rates!F171 -> 57 | F175: =Rates!G171 -> 40 | G175: =Rates!H171 -> 32
B176: =Rates!C172 -> Tunisie | C176: =Rates!D172 -> Pays Partenaires | D176: =Rates!E172 -> 47 | E176: =Rates!F172 -> 33 | F176: =Rates!G172 -> 22 | G176: =Rates!H172 -> 17
B177: =Rates!C173 -> Turkménistan | C177: =Rates!D173 -> Pays Partenaires | D177: =Rates!E173 -> 47 | E177: =Rates!F173 -> 33 | F177: =Rates!G173 -> 22 | G177: =Rates!H173 -> 17
B178: =Rates!C174 -> Tuvalu | C178: =Rates!D174 -> Pays Partenaires | D178: =Rates!E174 -> 47 | E178: =Rates!F174 -> 33 | F178: =Rates!G174 -> 22 | G178: =Rates!H174 -> 17
B179: =Rates!C175 -> Ukraine | C179: =Rates!D175 -> Pays Partenaires | D179: =Rates!E175 -> 108 | E179: =Rates!F175 -> 80 | F179: =Rates!G175 -> 57 | G179: =Rates!H175 -> 45
B180: =Rates!C176 -> Uruguay | C180: =Rates!D176 -> Pays Partenaires | D180: =Rates!E176 -> 108 | E180: =Rates!F176 -> 80 | F180: =Rates!G176 -> 57 | G180: =Rates!H176 -> 45
B181: =Rates!C177 -> Vanuatu | C181: =Rates!D177 -> Pays Partenaires | D181: =Rates!E177 -> 77 | E181: =Rates!F177 -> 57 | F181: =Rates!G177 -> 40 | G181: =Rates!H177 -> 32
B182: =Rates!C178 -> Venezuela | C182: =Rates!D178 -> Pays Partenaires | D182: =Rates!E178 -> 108 | E182: =Rates!F178 -> 80 | F182: =Rates!G178 -> 57 | G182: =Rates!H178 -> 45
B183: =Rates!C179 -> Viêt Nam | C183: =Rates!D179 -> Pays Partenaires | D183: =Rates!E179 -> 47 | E183: =Rates!F179 -> 33 | F183: =Rates!G179 -> 22 | G183: =Rates!H179 -> 17
B184: =Rates!C180 -> Yémen | C184: =Rates!D180 -> Pays Partenaires | D184: =Rates!E180 -> 47 | E184: =Rates!F180 -> 33 | F184: =Rates!G180 -> 22 | G184: =Rates!H180 -> 17
B185: =Rates!C181 -> Zambie | C185: =Rates!D181 -> Pays Partenaires | D185: =Rates!E181 -> 108 | E185: =Rates!F181 -> 80 | F185: =Rates!G181 -> 57 | G185: =Rates!H181 -> 45
B186: =Rates!C182 -> Zimbabwe | C186: =Rates!D182 -> Pays Partenaires | D186: =Rates!E182 -> 108 | E186: =Rates!F182 -> 80 | F186: =Rates!G182 -> 57 | G186: =Rates!H182 -> 45
